Workbook

Sheet Terms-con
C1: Contents | D1: =CONTENTS!B2 -> Petroleum and Gas Estimated Rehabilitation Cost Calculator
Q3: TERMS AND CONDITIONS OF USE | AE3: TERMS AND CONDITIONS OF USE | AS3: TERMS AND CONDITIONS OF USE
C7: TERMS AND CONDITIONS OF USE
D50: ESR/2015/1824 | F50: Version: | G50: 6.05 | I50: Effective Date: | J50: 2024-02-14 | R50: =$D$50 -> ESR/2015/1824 | T50: =$F$50 -> Version: | U50: =$G$50 -> 6.05 | W50: =$I$50 -> Effective Date: | X50: =$J$50 -> 2024-02-14 | Y50: =IF(K50="","",K50) ->  | AF50: =$D$50 -> ESR/2015/1824 | AH50: =$F$50 -> Version: | AI50: =$G$50 -> 6.05 | AK50: =$I$50 -> Effective Date: | AL50: =$J$50 -> 2024-02-14 | AT50: =$D$50 -> ESR/2015/1824 | AV50: =$F$50 -> Version: | AW50: =$G$50 -> 6.05 | AY50: =$I$50 -> Effective Date: | AZ50: =$J$50 -> 2024-02-14
B54: ©State of Queensland, 2024 | P54: =$B54 -> ©State of Queensland, 2024 | AD54: =$B54 -> ©State of Queensland, 2024 | AR54: =$B54 -> ©State of Queensland, 2024

Sheet CONTENTS
B2: Petroleum and Gas Estimated Rehabilitation Cost Calculator
B3: CONTENTS
B5: Click on the links below
B6: TERMS AND CONDITIONS OF USE
B7: REGISTRATION
B8: INFORMATION
B9: SUMMARY
B10: MAIN
B11: WASTE REGISTER
B12: GENERAL LAND REHABILITATION
B13: WELLS
B14: SEISMIC AND INFRASTRUCTURE
B15: PIPELINES (LAND)
B16: PROCESS FACILITIES
B17: PROCESS FACILITIES USER BUILD
B18: LNG FACILITIES
B19: WATER FACILITIES USER BUILD
B20: WATER STORAGE
B21: WATER STORAGE USER BUILD
B22: INVESTIGATION CONTAMINATION
B23: ASSUMPTIONS
B24: SUBRATES
B25: LISTS
B27: EA= Environmental Authority
B28: ERC = Estimated Rehabilitation Cost
B30: Colour Code Key
B31: User Input Cells
B32: User Input - Alternate Rates / justification
B33: Alternate Rates entered by User
B34: Locked cell - Default Rates or Sum from Input Sheets
B35: Locked cells - blanks
B36: Locked cell - calculations or text
B37: * denotes pop up message is available in cell

Sheet Registration
B2: =CONTENTS!$B$2 -> Petroleum and Gas Estimated Rehabilitation Cost Calculator
B3: Contents | C3: REGISTRATION
C6: Environmental Authority Ref: | E6: EA Holder:
C8: Tenure Numbers: | E8: Site Name:
C11: Last ERC Decision Date: | E11: Current ERC Amount:
C13: Site Contact: | E13: Position:
C15: Site Address: | E15: Phone:
E17: Email:
C19: Waste Levy (select) | D19: Select from below | E19: Further user comment on waste levy application: | F19: Enter a justification here if the site is in a waste levy zone but the waste levy is not applied. (Overwrite this text).
C21: Name of Assessor (company): | E21: Name of Site Manager (company):
C22: Title: | E22: Title:
C23: Date: | E23: Date:
C25: Below this line for the Department's use only
C27: Name of Department Reviewer: | E27: Name of Department Manager:
C28: Title: | E28: Title:
C29: Date: | E29: Date:

Sheet Information
B3: =CONTENTS!$B$2 -> Petroleum and Gas Estimated Rehabilitation Cost Calculator
B4: Contents | C4: INFORMATION SHEET
B6: Sheet | C6: Use | D6: Notes | E6: User Notes
B7: General | C7: Enter quantities in the green cells. If alternate rates are justified enter to the yellow cells and provide justification in the Table of Values. Quantities only need to be entered in one table (e.g. if using rolled-up rates for roads, the same road quantities do not need to be entered to the User Quantities table. If a quantity based table. e.g. number of dams is used, the user does not have to enter the area in the area-based table). | D7: Numerical assumptions are shown in the Assumptions sheet. The rates generally include activities reasonably anticipated to be required to rehabilitate items. Specifically, decommissioning, demolition, removal, disposal / storage, rehabilitation of land ("grade and seed") and land investigations where required are included. User tables allow entry of site-specific quantities and adding on of non-standard items such as long distance haul of growth media and amendment to soil. In general, the intent is the default rates will cover most scenarios and the User build-up should only be necessary if there is a clear requirement. For example, it is known that highly sodic soil will require amendment with a higher gypsum application rate or growth media will require carting from more than 10 km. Rates in arid environments do not include growth media and seeding. Arid environments are desert whereby vegetation is absent (e.g. the Cooper Basin in South West Queensland). Click in title cells with asterisk for tips on specific use. When entering text (e.g. in User Notes to the right), it is recommended to add a blank row at the beginning and end of the text to ensure text displays correctly. Use Alt Enter to add blank rows.
B8: CONTENTS | C8: The User can navigate through the calculator using the quick links. Includes the legend (repeated to the right) illustrating the colour coding used throughout the calculator.
B9: REGISTRATION | C9: Enter the details for the site / project and select whether the Waste Levy applies using the dropdown menu. If the User selects one of the options indicating the Waste Levy does not apply, they must enter a justification in the adjacent cell. | D9: The most common reason for the Waste Levy not applying is that the site is not in a Waste Levy zone.
B10: ASSUMPTIONS | C10: Information only | D10: Shows the numerical defaults used in the background calculations such as machine productivity rates, density of materials to convert from volume to mass, thickness of surface layers, and soil amendment application rates. The Assumptions with the Subrates and User build-up tables in the Input sheets give the User a reasonable indication of the scope behind each Default Rate.
B11: SUBRATES | C11: Information only, no user inputs are required. The User cannot change these rates. | D11: Contains the rates used to build the TOV values. Includes the unit prices for earthmoving (e.g. cost per cubic metre to push soil 20 m using a D8 dozer), land amendments purchase price (e.g. gypsum) and gate fees and levy for waste.
B12: LISTS | C12: Information only, no user inputs are required. | D12: This is a functional sheet used to make other sheets work.
B13: INFORMATION AND USER NOTES | C13: The User can enter notes specific to each Sheet in the User Notes section. | D13: This sheet contains information about each Input Sheet, the other sheets (e.g. Waste Register) and specific elements.
B14: SUMMARY | C14: Summarises the costs per domain for all inputs. The User can changed the project management and maintenance and monitoring multipliers in this Sheet. See notes to the right for conditions under which that can occur. | D14: Adds the multipliers of project management, maintenance and monitoring, and contingency. The project management costs are to cover the State's management of a project where a default has occurred. Maintenance and monitoring covers such activities post rehabilitation. Activities include inspection to assess rehabilitation performance and minor repairs. The project management and maintenance and monitoring multipliers can be changed by a User but comprehensive justification must be provided in the boxes below the summary and support information that is likely to include evidence of a third-party calculation. The contingency is to cover reasonable unknowns that can't be quantified as the time of the estimate. The contingency cannot be changed.
B15: WASTE REGISTER | C15: Information only, no user inputs are required. | D15: This sheet reports the quantities of waste that are subject to a waste levy. The User selects whether the waste levy applies in Registration. The Waste Register multiplies the user-entered (in the Input Sheets) quantities of each element (e.g. camp) by the specific mass of waste for that element. For example X tonnes of concrete per camp is multiplied by the number of camps to get the total concrete for that line to which the waste levy applies. The total waste (e.g. mass of concrete) is reported to the Investigation / Contamination sheet where it is multiplied by the appropriate levy to get the total levy amount.
B16: MAIN | C16: Lists the Default rates used in the Calculator. If Alternate rates are added in the Input Sheets, an alert will be reported in this sheet and the User must provide a justification. Add | D16: Note: the calculations and rolled-up (default) rates are designed as far as practical so that the User does not have to enter quantities more than once for the same element. For example, if a rolled camp rate is selected the assumption is all reasonably elements associated with a camp are included in that rate.
B17: General Land Rehabilitation | C17: Optional sheet that allows listing of areas requiring general rehabilitation that are not covered in Main or other Input Sheets, any drainage and diversions, miscellaneous soil and land treatment, and listing of bores. | D17: The Quantities in this sheet are reported to the Main sheet in Section 11. General Land Rehabilitation.
B18: Wells | C18: Optional sheet that allows listing of each well or well groups. The User selects the type of well from the dropdown menus in the "Type" column, enters the number of wells in that category in the "Number" column, and selects the land type in the "Land Type" column. | D18: This sheet allows the area of well disturbances to be entered creating consistency with the spatial data. The rates for the well types are not the same as in the Main sheet as the decommissioning / removal component is separated from the land rehabilitation component. The number of wells in each category is multiplied by the corresponding rate to get the total cost for each category. The land rehabilitation costs are summed separately. These costs are summed and the total sent to the Main sheet for inclusion in the overall ERC total.
B19: Infrastructure | C19: Optional sheet that allows listing of seismic easement lengths or areas, tracks / roads either separately or by group and camps. In each table, the User selects the land type from the dropdown. Additional selections from dropdowns are available for the surface cover type in the tracks and roads table and the size (by person and temporary or permanent) in the camps table. Enter the total for all entries in the category / row. For example, if a temporary camp < 20 persons is selected and 10 camps are entered for that row, the area entered must be the total for all 10 camps. | D19: This sheet allows disturbances to be entered by area creating consistency with spatial data. The rates for the seismic and tracks and roads are the same as the Defaults in the Table of Values. The number each in category is multiplied by the corresponding rate to get the total cost for each category. These costs are summed and the total sent to the Main sheet for inclusion in the overall ERC total. For camps, the costs for decommissioning and land rehabilitation are separate so that the rates shown are different to the Table of Values. The camp rates with land rehabilitation are shown in the Camps Subrates table in the Subrates sheet.
B20: Pipelines Land | C20: Optional sheet that allows listing of pipeline easements by length or area. The User selects whether the pipe is above or below ground and the type of fluid within the pipe. These selections are for information only in this sheet so that Users and Reviewers can correlate items such as flushing which is entered separately in the Main sheet. | D20: This sheet allows disturbances to be entered by area or calculated from length and width entries creating consistency with spatial data. The number in each category is multiplied by the corresponding rate to get the total cost for each category. These costs are summed and the total sent to the Main sheet for inclusion in the overall ERC total. The Rehab Status and Land Type determine which rate is used.
B21: Water Storage | C21: Optional sheet that allows listing of water storage by area of disturbance. The User must select whether the pond contains contaminated sediment or not (clean), whether the pond is lined or unlined, the size category, and the land type. The area entry is the total crest area of the pond / dam or group of ponds / dams in the row. | D21: This sheet allows entry of the disturbance area of the pond / dam or total area of a group of dams. The number column is for information only and does not multiply by the area - the total area of all dams in the row must be entered. The User selections described in Use determine the default rate applied to the category. The Default rates are per unit area and this is multiplied by the default rate for the category. These costs are summed and the total sent to the Main sheet for inclusion in the overall ERC total. The Regulated / Non Regulated selection is information for the Department reviewer and does not influence cost. Contaminated and Clean are distinguished in the Calculator by the thickness of sediment to be managed with Contaminated assuming more sediment to manage. Examples of Contaminated are oily / water and interceptor pond. Clean ponds may be Evaporation ponds.
B22: Water Storage User Build | C22: Optional sheet that allows the User more input into the build up of the pond / dams. The User must: - enter the number of ponds / dams in the category (row) - enter the area (crest) disturbed by the pond / dam - select whether the pond / dam is lined or unlined, - enter the land type - enter the # of structures in the category (row) - enter the dimensions of the pond / dam banks / walls (height above ground surface, width across the top of the berm (walkway / driveway), and slope of the walls (typically 1 in 2 or less for small dams and 1 in 3 or 1 in 4 for large dams). - enter the number of dams that will share the one-off investigation costs. The User can enter a specific: - liner area or accept the default calculation based on the entered crest area. - volume of soil in the bunds / berms / walls or leave this column blank and accept the calculation based on entries made in the previous columns. - sediment thickness or accept the default - growth media thickness or accept the default - area for land investigation or accept the crest area as the default The User can select: - the load and haul distance and fleet size for sediment removal - the push distance and dozer size for wall push in - the load and haul distance and fleet size for growth media application | D22: The cost calculation is for one pond / dam based on the User entries / selections. This cost is multiplied by the entry in # of structures in the category to get the total cost for the row. Consequently, the # of structures must be at least 1. For lined ponds / dams, if the User enters a liner area less than the crest area, an alert is raised and the User must explain why the liner area is less than the footprint. If the User enters specific values less than the defaults they should provide justification. The User Notes column to the right can be used. The # Dams to Share Upfront Cost determines how many dams / ponds are covered by the one mobilisation. For example if there are three dams adjacent to area it is reasonable to assume the structures would be investigated during the same visit to site. In this case if the # of dams / ponds entered in the row was 1, the User should enter 3 in the # Dams to Share Upfront Cost cell. If the # of dams / ponds entered in the row was 3 (3 dams of the same construction) the User should enter 3 in the # Dams to Share Upfront Cost cell. In the first case the cost for the one-off land investigation cost would be a third of the unit cost rate. In the second case, the cost for the one-off land investigation cost would be a whole (1) of the unit cost rate. The load and haul and fleet size selections are up to the User and guidance is provided in the User Guide.
B23: Water Facilities User Build | C23: Optional sheet that allows the User to build rates for specific water facilities such as Water Transfer Stations. The User enters quantities against the applicable rows. Entries are not expected in every row and the User does not need to justify the absence of an entry unless it is clearly an error (e.g. an aerial shows five large tanks and the User has only entered 1). | D23: Such facilities are generally comprised of tanks, pipes and pumps. Land Investigations are typically not required for such facilities. If one is required the User can enter a User entered row or enter to the Land Investigation table in the Investigation Contamination sheet or enter to the rows in Main sheet.
B24: Process Facilities | C24: Optional sheet that allows listing of process facilities by area of disturbance. The User must select the category of facility in each table and the number of facilities in the category and then the land area disturbed by the facilities. The area entry is the total disturbance area for the facilities in the category / row. | D24: This sheet allows the area of disturbance for the process facilities to be entered creating consistency with the spatial data. The rates for the facilities are not the same as in the Main sheet as the decommissioning / removal component is separated from the land rehabilitation component. The number of facilities in each category is multiplied by the corresponding rate to get the total cost for each category. The land rehabilitation costs are summed separately. These costs are summed and the total sent to the Main sheet for inclusion in the overall ERC total.
B25: Process Facilities User Build | C25: Optional sheet that allows the User to build rates for specific process facilities such as oil storage facilities. The User enters quantities against the applicable rows. Entries are not expected in every row and the User does not need to justify the absence of an entry unless it is clearly an error (e.g. an aerial shows five large tanks and the User has only entered 1). The User must select the type of facility from the dropdown at the top of the sheet as this determines the total cost reported to Main. | D25: The quantities entered by the User are multiplied by the default rate and summed. The sums for each type of facility are reported to the Main sheet. Such facilities are generally comprised of tanks, pipes and pumps. Land Investigations are typically required for such facilities.
B26: LNG Facilities User Build | C26: Optional sheet that allows the User to build a rate for a specific LNG facility (Curtis Island). The User enters quantities against the applicable rows. Entries are not expected in every row and the User does not need to justify the absence of an entry unless it is clearly an error (e.g. an aerial shows five large tanks and the User has only entered 1). | D26: The quantities entered by the User are multiplied by the default rate and summed. The sums for each type of facility are reported to the Main sheet. Such facilities are generally comprised of tanks, pipes and pumps. Land Investigations are typically required for such facilities.
B27: Investigation Contamination | C27: Optional sheet that allows input of areas for land investigation and mass of contaminated soil or asbestos not covered in other domains. | D27: Where land investigations and disposal of contamination are required, they are included in the Default rates. It is not required to enter additional contamination mass or land investigations for these in the Investigation Contamination sheet.
B28: Terms-con | C28: User should read the terms and conditions prior to populating the calculator.

Sheet Summary
C2: =CONTENTS!$B$2 -> Petroleum and Gas Estimated Rehabilitation Cost Calculator
D4: SUMMARY | E4: Contents | G4: Total ERC | H4: =H29 -> 0
D6: Item | E6: Quantity | F6: Unit | G6: Rate | H6: Total Cost
D7: =Main!C6 -> 1. Exploration | H7: =Main!L49 -> 0
D8: =Main!C50 -> 2. Roads, Tracks, Laydown and Borrow Pits | H8: =Main!L86 -> 0
D9: =Main!C87 -> 3. Camps, Buildings, Sewage Treatment Plant | H9: =Main!L133 -> 0
D10: =Main!C134 -> 4. Power Generation and Distribution | H10: =Main!L148 -> 0
D11: =Main!C149 -> 5. Wells Pads and Associated Infrastructure | H11: =Main!L217 -> 0
D12: =Main!C218 -> 6. Pipelines | H12: =Main!L358 -> 0
D13: =Main!C359 -> 7. Gas Processing and Oil Storage Facilities | H13: =Main!L399 -> 0
D14: =Main!C400 -> 8. LNG Plants | H14: =Main!L409 -> 0
D15: =Main!C410 -> 9. Water Treatment Plants and Transfer Stations | H15: =Main!L435 -> 0
D16: =Main!C436 -> 10. Water Storage Infrastructure (Dams / Ponds and Tanks) | H16: =Main!L639 -> 0
D17: =Main!C640 -> 11. General Land Rehabilitation | H17: =Main!L692 -> 0
D18: =Main!C693 -> 12. Investigation and Contamination | H18: =Main!L728 -> 0
D19: =Main!C729 -> 13. Mobilisation and Demobilisation | H19: =Main!L742 -> 0
D20: =Main!C743 -> 14. Additional Activities | H20: =Main!L754 -> 0
D21: Total before Project Overheads and Contingency | H21: =SUM(H7:H20) -> 0
C23: ` | D23: Project Overheads and Contingency | F23: User Entry* | G23: Default | H23: Total Cost
D24: Project Management | G24: 10% | H24: =IF(F24="",G24,F24)*$H$21 -> 0
D25: Environmental Maintenance and Monitoring | G25: 5% | H25: =IF(F25="",G25,F25)*$H$21 -> 0
D26: Contingency | G26: 10% | H26: =IF(F26="",G26,F26)*$H$21 -> 0
D27: Subtotal of Project Overheads and Contingency | H27: =SUM(H24:H26) -> 0
D29: Total Estimated Rehabilitation Cost for the Site (excluding GST) | H29: =H27+H21 -> 0
D31: Difference from Current ERC amount | H31: =Summary!H29-Registration!F11 -> 0
D34: Alternate Project Management Rate Justification:
D35: Enter justification if alternate project management rate used (overwrite this text). Recommend adding a blank row at the beginning and end of the text so it displays correctly. (Alt Enter).
D37: Alternate Monitoring and Maintenance Rate Justification:
D38: Enter justification if alternate maintenance and monitoring rate used (overwrite this text). Recommend adding a blank row at the beginning and end of the text so it displays correctly. (Alt Enter).

Sheet Main
B1: Filter | C1: =CONTENTS!$B$2 -> Petroleum and Gas Estimated Rehabilitation Cost Calculator
C2: Contents | D2: MAIN | K2: Total ERC amount | L2: =ERC -> 0
B3: 1
B4: 1 | C4: Map ID | D4: # | E4: Activity / Description | F4: User Enter | G4: Input Sheet / Unit | H4: Quantity | I4: Unit | J4: Default Unit Rate | K4: Alternative Unit Rate | L4: Total Cost | M4: User Comments / Item Names | N4: Rationale for Alternate Rate | O4: Use of Default Rate | P4: Scope of Default Rate
B5: 1
B6: 1 | C6: 1. Exploration
B7: =IF(L7>0,1,0) -> 0 | E7: Seismic (Infrastructure Input Sheet) | I7: lump | L7: ='Seismic and Infrastructure'!D3 -> 0 | O7: Enter values (length) in Infrastructure Input Sheet. | P7: Minor re-grading and seeding of pasture species. Includes inspector and labourer, backhoe, allowance for seed, vehicle.
B8: =IF(L8>0,1,0) -> 0 | D8: #1.01 | E8: Seismic survey rehabilitation in pasture | I8: km | J8: $1,006.18 | L8: =IF(K8="",J8,K8)*H8 -> 0 | O8: Enter length of seismic corridor, grid-lines, minor tracks requiring rehabilitation in pasture land (not the total length). | P8: Minor re-grading and seeding of pasture species. Includes inspector and labourer, backhoe, allowance for seed, vehicle.
B9: 0 | D9: #1.02 | E9: Seismic survey rehabilitation in native | I9: km | J9: $1,895.53 | L9: 0 | O9: Enter length of seismic corridor, grid-lines, minor tracks requiring rehabilitation in native land (not the total length). | P9: Minor re-grading and seeding of native species. Includes inspector and labourer, backhoe, allowance for seed, vehicle.
B10: 0 | D10: #1.03 | E10: Seismic survey rehabilitation in arid | I10: km | J10: $426.76 | L10: 0 | O10: Enter length of seismic corridor, grid-lines, minor tracks requiring rehabilitation in arid land (not the total length). | P10: Minor re-grading. No seeding. Includes inspector and labourer, backhoe, vehicle.
B11: 0 | D11: #1.04 | E11: Seismic survey rehabilitation in pasture | I11: ha | J11: $2,874.80 | L11: 0 | O11: Enter area of seismic corridor, grid-lines, minor tracks requiring rehabilitation in pasture land (not the total length). | P11: Minor re-grading and seeding of pasture species. Includes inspector and labourer, backhoe, allowance for seed, vehicle.
B12: 0 | D12: #1.05 | E12: Seismic survey rehabilitation in native | I12: ha | J12: $5,415.80 | L12: 0 | O12: Enter area of seismic corridor, grid-lines, minor tracks requiring rehabilitation in native land (not the total length). | P12: Minor re-grading and seeding of native species. Includes inspector and labourer, backhoe, allowance for seed, vehicle.
B13: 0 | D13: #1.06 | E13: Seismic survey rehabilitation in arid | I13: ha | J13: $1,219.30 | L13: 0 | O13: Enter area of seismic corridor, grid-lines, minor tracks requiring rehabilitation in native land (not the total length). | P13: Minor re-grading. No seeding. Includes inspector and labourer, backhoe, vehicle.
B14: 0 | D14: #1.07 | E14: =Lists!C184 -> Track, Earthen, No replace, 3 m wide, Pasture | I14: km | J14: $616.70 | L14: 0 | O14: Enter length of track of shown width in pasture land. | P14: Salvage soil adjacent to road, rip length of road, grade and seed with pasture species.
B15: 0 | D15: #1.08 | E15: =Lists!C185 -> Track, Earthen, No replace, 3 m wide, Native | I15: km | J15: $1,379.00 | L15: 0 | O15: Enter length of track of shown width in native land. | P15: Salvage soil adjacent to road, rip length of road, grade and seed with native species.
B16: 0 | D16: #1.09 | E16: =Lists!C186 -> Track, Earthen, No replace, 3 m wide, Arid | I16: km | J16: $120.05 | L16: 0 | O16: Enter length of track of shown width in arid land. | P16: Rip length of road.
B17: 0 | D17: #1.10 | E17: =Lists!C187 -> Track, Earthen, No replace, 6 m wide, Pasture | I17: km | J17: $1,233.40 | L17: 0 | O17: Enter length of track of shown width in pasture land. | P17: Salvage soil adjacent to road, rip length of road, grade and seed with pasture species.
B18: 0 | D18: #1.11 | E18: =Lists!C188 -> Track, Earthen, No replace, 6 m wide, Native | I18: km | J18: $2,758.00 | L18: 0 | O18: Enter length of track of shown width in native land. | P18: Salvage soil adjacent to road, rip length of road, grade and seed with pasture species.
B19: 0 | D19: #1.12 | E19: =Lists!C189 -> Track, Earthen, No replace, 6 m wide, Arid | I19: km | J19: $240.10 | L19: 0 | O19: Enter length of track of shown width in arid land. | P19: Salvage soil adjacent to road, rip length of road, grade and seed with native species.
B20: 0 | D20: #1.13 | E20: =Lists!C224 -> Track, Earthen, No replace, Pasture | I20: ha | J20: $2,055.66 | L20: 0 | O20: Enter area of track in pasture land. | P20: Rip length of road.
B21: 0 | D21: #1.14 | E21: =Lists!C225 -> Track, Earthen, No replace, Native | I21: ha | J21: $4,596.66 | L21: 0 | O21: Enter area of track in pasture land. | P21: Salvage soil adjacent to road, rip length of road, grade and seed with pasture species.
B22: 0 | D22: #1.15 | E22: =Lists!C226 -> Track, Earthen, No replace, Arid | I22: ha | J22: $400.16 | L22: 0 | O22: Enter area of track in native land. | P22: Salvage soil adjacent to road, rip length of road, grade and seed with native species.
B23: 0 | D23: #1.16 | E23: Lined Dam <=1 ML | I23: dam | J23: $7,725.75 | L23: 0 | O23: Enter number of dams in shown size category. | P23: Remove liner and dispose off-site, excavate, load, haul, dump and spread water storage sediment (thickness in Assumptions) and dump in void on-site, push in berms and place and spread, grade and seed (assumed 50:50 mix pasture and native species). Small fleet of D9 dozer, 340F excavator with shears to cut liner, CAT 740C (ADT) trucks, CAT 14M grader, and 19 kL water truck to excavate, load, haul, dump and spread water storage sediment and silt.
B24: 0 | D24: #1.17 | E24: Lined Dam >1 and <= 3.5 ML | I24: dam | J24: $17,428.14 | L24: 0 | O24: Enter number of dams in shown size category. | P24: As above
B25: 0 | D25: #1.18 | E25: Lined Dam >3.5 and <= 7.5 ML | I25: dam | J25: $31,905.80 | L25: 0 | O25: Enter number of dams in shown size category. | P25: As above
B26: 0 | D26: #1.19 | E26: Lined Dam >7.5 and <= 10 ML | I26: dam | J26: $44,008.61 | L26: 0 | O26: Enter number of dams in shown size category. | P26: As above
B27: 0 | D27: #1.20 | E27: Lined Dam >10 and <= 20 ML | I27: dam | J27: $76,669.00 | L27: 0 | O27: Enter number of dams in shown size category. | P27: As above
B28: 0 | D28: #1.21 | E28: Unlined Dam >1 and <=3.5 ML | I28: dam | J28: $6,836.72 | L28: 0 | O28: Enter number of dams in shown size category. | P28: As above
B29: 0 | D29: #1.22 | E29: Unlined Dam >3.5 and <=7.5 ML | I29: dam | J29: $14,761.06 | L29: 0 | O29: Enter number of dams in shown size category. | P29: As above
B30: 0 | D30: #1.23 | E30: Unlined Dam >3.5 and <=7.5 ML | I30: dam | J30: $27,460.68 | L30: 0 | O30: Enter number of dams in shown size category. | P30: As above
B31: 0 | D31: #1.24 | E31: Unlined Dam >7.5 and <=10 ML | I31: dam | J31: $38,674.46 | L31: 0 | O31: Enter number of dams in shown size category. | P31: As above
B32: 0 | D32: #1.25 | E32: Unlined Dam >10 and <=20 ML | I32: dam | J32: $66,000.71 | L32: =IF(K32="",J32,K32)*H32 -> 0 | O32: Enter number of dams in shown size category. | P32: As above
B33: 0 | D33: #1.26 | E33: =WellList_coreholes -> Conventional oil, Corehole, Single well | I33: hole | J33: $313.78 | L33: 0 | O33: =CONCATENATE("Enter number of coreholes used for conventional oil and gas exploration. Use for wells where only minor surface work is required. Does not include a sump. If drill site has a sump enter to rate ",$D$36) -> Enter number of coreholes used for conventional oil and gas exploration. Use for wells where only minor surface work is required. Does not include a sump. If drill site has a sump enter to rate #1.29 | P33: Coreholes installed using pitless drilling systems. Drilling equipment and materials removed by contractor at close of drilling activities. No fluids or wastes will require off-site management. Allowance for small area (see Wells Table in Assumptions) re-seed area.
B34: 0 | D34: #1.27 | E34: Coal seam gas, Corehole, Single well | I34: hole | J34: $313.78 | L34: 0 | O34: =CONCATENATE("Enter number of coreholes used for coal seam gas exploration. Use for wells where only minor surface work is required. Does not include a sump. If drill site has a sump enter to rate ",$D$36) -> Enter number of coreholes used for coal seam gas exploration. Use for wells where only minor surface work is required. Does not include a sump. If drill site has a sump enter to rate #1.29 | P34: Coreholes installed using pitless drilling systems. Drilling equipment and materials removed by contractor at close of drilling activities. No fluids or wastes will require off-site management. Allowance for small area (see Wells Table in Assumptions) re-seed area.
B35: 0 | D35: #1.28 | E35: Tight / shale gas, Corehole, Single well | I35: hole | J35: $313.78 | L35: 0 | O35: =CONCATENATE("Enter number of coreholes used for tight gas exploration. Use for wells where only minor surface work is required. Does not include a sump. If drill site has a sump enter to rate ",$D$36) -> Enter number of coreholes used for tight gas exploration. Use for wells where only minor surface work is required. Does not include a sump. If drill site has a sump enter to rate #1.29 | P35: Coreholes installed using pitless drilling systems. Drilling equipment and materials removed by contractor at close of drilling activities. No fluids or wastes will require off-site management. Allowance for small area (see Wells Table in Assumptions) re-seed area.
B36: 0 | D36: #1.29 | E36: Drilling mud sump decommissioning | I36: sump | J36: $2,302.22 | L36: 0 | O36: Enter number of sumps associated with drillholes. Not all drillholes will have sumps. | P36: Mix, bury, cover. Excavator to fill hole back in, labour for a one day per sump.
B37: 0 | D37: #1.30 | E37: Land area covered by demountable camps, water treatment plants, earthen laydown where infrastructure / equipment will be removed - pasture | I37: ha | J37: $1,655.50 | L37: 0 | O37: Enter land area | P37: For such infrastructure, the modules / equipment is not owned by the company submitting the ERC and they are only responsible for grade and seed of the area. Cost includes trimming area and seeding with pasture species.
B38: 0 | D38: #1.31 | E38: Land area covered by demountable camps, water treatment plants, earthen laydown where infrastructure / equipment will be removed - native | I38: ha | J38: $4,196.50 | L38: 0 | O38: Enter land area | P38: For such infrastructure, the modules / equipment is not owned by the company submitting the ERC and they are only responsible for grade and seed of the area. Cost includes trimming area and seeding with native species.
B39: 0 | D39: #1.32 | E39: Temporary camp - > 50 and <= 100 persons | F39: <<< Select from dropdown | G39: Note to Developer - do not delete Cell in Col J | I39: # | J39: =IF(E39=Lists!$C$143,0,VLOOKUP(E39,$E$93:$J$97,6,FALSE)) -> $99,664.93 | L39: 0 | O39: Select company owned camp size in column E and enter number of category. | P39: Electrical and mechanical disconnection of accommodation, mess, ablution, laundry and recreational modules. No hardstand as temporary camp. Some gravel removal and grade and seed. Transport of modules to storage area and wastes to disposal facilities. The rate includes all elements generally associated with a camp. In general no other rate is required unless there is a co-located major office / control centre for example.
B40: 0 | D40: #1.33 | E40: Temporary camp - > 20 and <= 50 persons | F40: <<< Select from dropdown | G40: Note to Developer - do not delete Cell in Col J | I40: # | J40: =IF(E40=Lists!$C$143,0,VLOOKUP(E40,$E$93:$J$97,6,FALSE)) -> $68,759.12 | L40: 0 | O40: Select company owned camp size in column E and enter number of category. | P40: As above
B41: 0 | D41: #1.34 | E41: Camp not of shown capacity | L41: 0
B42: 0 | D42: #1.35 | E42: Additional line item - user to name activity | L42: =H42*K42 -> 0
B43: 0 | D43: #1.36 | E43: Additional line item - user to name activity | L43: 0
B44: 0 | D44: #1.37 | E44: Additional line item - user to name activity | L44: 0
B45: 0 | D45: #1.38 | E45: Additional line item - user to name activity | L45: 0
B46: 0 | D46: #1.39 | E46: Additional line item - user to name activity | L46: 0
B47: 0 | D47: #1.40 | E47: Additional line item - user to name activity | L47: 0
B48: 0 | D48: #1.41 | E48: Additional line item - user to name activity | L48: 0
B49: 1 | K49: Subtotal | L49: =SUBTOTAL(9,L7:L48) -> 0
B50: 1 | C50: 2. Roads, Tracks, Laydown and Borrow Pits
B51: =IF(L51>0,1,0) -> 0 | E51: Tracks (Infrastructure Sheet) | I51: lump | L51: ='Seismic and Infrastructure'!E3 -> 0 | O51: Enter values (area) in Infrastructure Input Sheet. | P51: Salvage soil adjacent to road, rip length of road, grade and seed with pasture species.
B52: =IF(L52>0,1,0) -> 0 | D52: #2.01 | E52: =Lists!C184 -> Track, Earthen, No replace, 3 m wide, Pasture | I52: km | J52: $616.70 | L52: =IF(K52="",J52,K52)*H52 -> 0 | O52: Enter length of track of shown width in pasture land. | P52: Salvage soil adjacent to road, rip length of road, grade and seed with pasture species.
B53: 0 | D53: #2.02 | E53: =Lists!C185 -> Track, Earthen, No replace, 3 m wide, Native | I53: km | J53: $1,379.00 | L53: 0 | O53: Enter length of track of shown width in native land. | P53: Salvage soil adjacent to road, rip length of road, grade and seed with native species.
B54: 0 | D54: #2.03 | E54: =Lists!C186 -> Track, Earthen, No replace, 3 m wide, Arid | I54: km | J54: $120.05 | L54: 0 | O54: Enter length of track of shown width in arid land. | P54: Rip length of road.
B55: 0 | D55: #2.04 | E55: =Lists!C187 -> Track, Earthen, No replace, 6 m wide, Pasture | I55: km | J55: $1,233.40 | L55: 0 | O55: Enter length of track of shown width in pasture land. | P55: Salvage soil adjacent to road, rip length of road, grade and seed with pasture species.
B56: 0 | D56: #2.05 | E56: =Lists!C188 -> Track, Earthen, No replace, 6 m wide, Native | I56: km | J56: $2,758.00 | L56: 0 | O56: Enter length of track of shown width in native land. | P56: Salvage soil adjacent to road, rip length of road, grade and seed with pasture species.
B57: 0 | D57: #2.06 | E57: =Lists!C189 -> Track, Earthen, No replace, 6 m wide, Arid | I57: km | J57: $240.10 | L57: 0 | O57: Enter length of track of shown width in arid land. | P57: Salvage soil adjacent to road, rip length of road, grade and seed with native species.
B58: 0 | D58: #2.07 | E58: =Lists!C224 -> Track, Earthen, No replace, Pasture | I58: ha | J58: $2,055.66 | L58: 0 | O58: Enter area of track in pasture land. | P58: Rip length of road.
B59: 0 | D59: #2.08 | E59: =Lists!C225 -> Track, Earthen, No replace, Native | I59: ha | J59: $4,596.66 | L59: 0 | O59: Enter area of track in pasture land. | P59: Salvage soil adjacent to road, rip length of road, grade and seed with pasture species.
B60: 0 | D60: #2.09 | E60: =Lists!C226 -> Track, Earthen, No replace, Arid | I60: ha | J60: $400.16 | L60: =IF(K60="",J60,K60)*H60 -> 0 | O60: Enter area of track in native land. | P60: Salvage soil adjacent to road, rip length of road, grade and seed with native species.
B61: 0 | D61: #2.10 | E61: =Lists!C190 -> Track, Rock, No replace, 3 m wide, Pasture | I61: km | J61: $2,467.46 | L61: =IF(K61="",J61,K61)*H61 -> 0 | O61: Enter length of track of shown width in pasture land. | P61: Remove rock / gravel / asphalt, salvage soil adjacent to road, rip length of road, grade and seed with pasture species.
B62: 0 | D62: #2.11 | E62: =Lists!C191 -> Track, Rock, No replace, 3 m wide, Native | I62: km | J62: $3,229.76 | L62: 0 | O62: Enter length of track of shown width in native land. | P62: Remove rock / gravel / asphalt, salvage soil adjacent to road, rip length of road, grade and seed with native species.
B63: 0 | D63: #2.12 | E63: =Lists!C192 -> Track, Rock, No replace, 3 m wide, Arid | I63: km | J63: $1,970.81 | L63: 0 | O63: Enter length of track of shown width in arid land. | P63: Remove rock / gravel / asphalt, rip length of road. No seed.
B64: 0 | D64: #2.13 | E64: =Lists!C193 -> Track, Rock, No replace, 6 m wide, Pasture | I64: km | J64: $4,934.93 | L64: 0 | O64: Enter length of track of shown width in pasture land. | P64: Remove rock / gravel / asphalt, salvage soil adjacent to road, rip length of road, grade and seed with pasture species.
B65: 0 | D65: #2.14 | E65: =Lists!C194 -> Track, Rock, No replace, 6 m wide, Native | I65: km | J65: $6,459.53 | L65: 0 | O65: Enter length of track of shown width in native land. | P65: Remove rock / gravel / asphalt, salvage soil adjacent to road, rip length of road, grade and seed with native species.
B66: 0 | D66: #2.15 | E66: =Lists!C195 -> Track, Rock, No replace, 6 m wide, Arid | I66: km | J66: $3,941.63 | L66: 0 | O66: Enter length of track of shown width in arid land. | P66: Remove rock / gravel / asphalt, rip length of road. No seed.
B67: 0 | D67: #2.16 | E67: =Lists!C196 -> Track, Rock, Replace rock, 3 m wide, Pasture | I67: km | J67: $3,778.69 | L67: 0 | O67: Enter length of track of shown width in pasture land. | P67: Remove rock / gravel / asphalt, and replace with clean.
B68: 0 | D68: #2.17 | E68: =Lists!C197 -> Track, Rock, Replace rock, 3 m wide, Native | I68: km | J68: $3,778.69 | L68: 0 | O68: Enter length of track of shown width in native land. | P68: Remove rock / gravel / asphalt, and replace with clean.
B69: 0 | D69: #2.18 | E69: =Lists!C198 -> Track, Rock, Replace rock, 3 m wide, Arid | I69: km | J69: $3,778.69 | L69: 0 | O69: Enter length of track of shown width in arid land. | P69: Remove rock / gravel / asphalt, and replace with clean.
B70: 0 | D70: #2.19 | E70: =Lists!C199 -> Track, Rock, Replace rock, 6 m wide, Pasture | I70: km | J70: $7,557.39 | L70: 0 | O70: Enter length of track of shown width in pasture land. | P70: Remove rock / gravel / asphalt, and replace with clean.
B71: 0 | D71: #2.20 | E71: =Lists!C200 -> Track, Rock, Replace rock, 6 m wide, Native | I71: km | J71: $7,557.39 | L71: =IF(K71="",J71,K71)*H71 -> 0 | O71: Enter length of track of shown width in native land. | P71: Remove rock / gravel / asphalt, and replace with clean.
B72: 0 | D72: #2.21 | E72: =Lists!C201 -> Track, Rock, Replace rock, 6 m wide, Arid | I72: km | J72: $7,557.39 | L72: 0 | O72: Enter length of track of shown width in arid land. | P72: Remove rock / gravel / asphalt, and replace with clean.
B73: 0 | D73: #2.22 | E73: =Lists!C227 -> Track, Rock, No replace, Pasture | I73: ha | J73: $8,224.88 | L73: =IF(K73="",J73,K73)*H73 -> 0 | O73: Enter area of track in pasture land. | P73: Remove rock / gravel / asphalt, salvage soil adjacent to road, rip length of road, grade and seed with pasture species.
B74: 0 | D74: #2.23 | E74: =Lists!C228 -> Track, Rock, No replace, Native | I74: ha | J74: $10,765.88 | L74: 0 | O74: Enter area of track in native land. | P74: Remove rock / gravel / asphalt, salvage soil adjacent to road, rip length of road, grade and seed with native species.
B75: 0 | D75: #2.24 | E75: =Lists!C229 -> Track, Rock, No replace, Arid | I75: ha | J75: $6,569.38 | L75: 0 | O75: Enter area of track in arid land. | P75: Remove rock / gravel / asphalt, rip length of road. No seed.
B76: 0 | D76: #2.25 | E76: =Lists!C214 -> Laydown, Earthen, No replace, Pasture | I76: ha | J76: $2,055.66 | L76: 0 | O76: Enter area of laydown in pasture land. | P76: Rip area of laydown, salvage soil adjacent to laydown, grade and seed with pasture species.
B77: 0 | D77: #2.26 | E77: =Lists!C215 -> Laydown, Earthen, No replace, Native | I77: ha | J77: $4,596.66 | L77: 0 | O77: Enter area of laydown in native land. | P77: Rip area of laydown, salvage soil adjacent to laydown, grade and seed with pasture species.
B78: 0 | D78: #2.27 | E78: =Lists!C216 -> Laydown, Earthen, No replace, Arid | I78: ha | J78: $400.16 | L78: 0 | O78: Enter area of laydown in arid land. | P78: Rip area of laydown, no seed.
B79: 0 | D79: #2.28 | E79: =Lists!C217 -> Laydown, Rock, No replace, Pasture | I79: ha | J79: $8,745.09 | L79: 0 | O79: Enter area of laydown in pasture land. | P79: Load and haul rock, rip / reshape area of laydown, salvage soil adjacent to laydown, grade and seed with pasture species.
B80: 0 | D80: #2.29 | E80: =Lists!C220 -> Borrow Pit, Pasture | I80: ha | J80: $9,568.93 | L80: 0 | O80: Enter area of borrow pit in pasture land. | P80: Push in sides to lessen slope. CAT D11 dozer, load and haul growth media and reshape.
B81: 0 | D81: #2.30 | E81: =Lists!C221 -> Borrow Pit, Native | I81: ha | J81: $12,109.93 | L81: 0 | O81: Enter area of borrow pit in native land. | P81: Push in sides to lessen slope. CAT D11 dozer, load and haul growth media and reshape.
B82: 0 | D82: #2.31 | E82: =Lists!C222 -> Borrow Pit, Arid | I82: ha | J82: $6,443.41 | L82: 0 | O82: Enter area of borrow pit in arid land. | P82: Push in sides to lessen slope. CAT D11 dozer, load and haul growth media and reshape.
B83: 0 | D83: #2.32 | E83: Landfill | I83: m2 | J83: $3.59 | L83: 0 | O83: Enter footprint of landfill | P83: Cover up with dozer. Use soil from nearby. Assumes dozer push of 3 lifts of 0.5 m. Haul from nearby (up to 1000 m) using loader and trucks and place.
B84: 0 | D84: #2.33 | E84: Additional line item - user to name activity | L84: =H84*K84 -> 0
B85: 0 | D85: #2.34 | E85: Additional line item - user to name activity | L85: =H85*K85 -> 0
B86: 1 | K86: Subtotal | L86: =SUBTOTAL(9,L51:L85) -> 0
B87: 1 | C87: 3. Camps, Buildings, Sewage Treatment Plant
B88: =IF(L88>0,1,0) -> 0 | E88: Camps from Infrastructure Input Sheet | I88: lump | L88: ='Seismic and Infrastructure'!F3 -> 0 | O88: Enter values (# camps) in Infrastructure Input Sheet. | P88: Electrical and mechanical disconnection of accommodation, mess, ablution, laundry and recreational modules. No hardstand as temporary camp. Some gravel removal and grade and seed. Transport of modules to storage area and wastes to disposal facilities. The rate includes all elements generally associated with a camp except seeding which must be entered to the input sheet or in the three rates below this set). In general no other rate is required unless there is a co-located major office / control centre for example. Exceptions are contaminated land investigations which will only be required if a fuelling system is at the camp and any dams / ponds.
B89: =IF(L89>0,1,0) -> 0 | D89: #3.01 | E89: =Lists!C138 -> Small temporary camp (<= 50 persons) | I89: m2 | J89: $43.17 | L89: =IF(K89="",J89,K89)*H89 -> 0 | O89: Enter area disturbed by camp. Rate includes allowance for rehabilitating land between and surrounding modules. However, if large areas of land are present that cannot reasonably be assumed to included with the camp, use land rehabilitation rates to account for this. | P89: Electrical and mechanical disconnection of accommodation, mess, ablution, laundry and recreational modules. No hardstand as temporary camp. Some gravel removal and grade and seed. Transport of modules to storage area and wastes to disposal facilities. The rate includes all elements generally associated with a camp. In general no other rate is required unless there is a co-located major office / control centre for example.
B90: 0 | D90: #3.02 | E90: =Lists!C139 -> Larger temporary camp (> 50 persons) | I90: m2 | J90: $44.95 | L90: 0 | O90: Enter area disturbed by camp. Rate includes allowance for rehabilitating land between and surrounding modules. However, if large areas of land are present that cannot reasonably be assumed to included with the camp, use land rehabilitation rates to account for this. | P90: As above
B91: 0 | D91: #3.03 | E91: =Lists!C140 -> Small permament camp (<= 50 persons) | I91: m2 | J91: $38.53 | L91: 0 | O91: Enter area disturbed by camp. Rate includes allowance for rehabilitating land between and surrounding modules. However, if large areas of land are present that cannot reasonably be assumed to included with the camp, use land rehabilitation rates to account for this. | P91: Electrical and mechanical disconnection of accommodation, mess, ablution, laundry and recreational modules. Removal of hardstand and gravel removal, grade and seed. Transport of modules to storage area and wastes to disposal facilities. The rate includes all elements generally associated with a camp. In general no other rate is required unless there is a co-located major office / control centre for example.
B92: 0 | D92: #3.04 | E92: =Lists!C141 -> Larger permanent camp (> 50 persons) | I92: m2 | J92: $42.37 | L92: 0 | O92: Enter area disturbed by camp. Rate includes allowance for rehabilitating land between and surrounding modules. However, if large areas of land are present that cannot reasonably be assumed to included with the camp, use land rehabilitation rates to account for this. | P92: As above
B93: 0 | D93: #3.05 | E93: =Assumptions!C220 -> Temporary camp - <= 20 persons | I93: camps | J93: $48,560.61 | L93: 0 | O93: Enter # camps for this category. | P93: Electrical and mechanical disconnection of accommodation, mess, ablution, laundry and recreational modules. Allowance for removal of a mix concrete, asphalt and gravel, rip, level and seed. Transport of modules to storage area and wastes to disposal facilities. Grade and seed included. The rate includes all elements generally associated with a camp. In general no other rate is required unless there is a co-located major office / control centre and major switchyard for example.
B94: 0 | D94: #3.06 | E94: =Assumptions!C221 -> Temporary camp - > 20 and <= 50 persons | I94: camps | J94: $68,759.12 | L94: 0 | O94: Enter # camps for this category. | P94: As above
B95: 0 | D95: #3.07 | E95: =Assumptions!C222 -> Temporary camp - > 50 and <= 100 persons | I95: camps | J95: $99,664.93 | L95: 0 | O95: Enter # camps for this category. | P95: As above
B96: 0 | D96: #3.08 | E96: =Assumptions!C223 -> Temporary camp - > 100 and <= 150 persons | I96: camps | J96: $145,212.99 | L96: 0 | O96: Enter # camps for this category. | P96: As above
B97: 0 | D97: #3.09 | E97: =Assumptions!C224 -> Temporary camp - > 150 and <= 200 persons | I97: camps | J97: $176,774.80 | L97: 0 | O97: Enter # camps for this category. | P97: As above
B98: 0 | D98: #3.10 | E98: =Assumptions!C225 -> Temporary camp - > 200 and <= 250 persons | I98: camps | J98: $244,877.92 | L98: 0 | O98: Enter # camps for this category. | P98: As above
B99: 0 | D99: #3.11 | E99: =Assumptions!C226 -> Temporary camp - > 250 and <= 300 persons | I99: camps | J99: $275,350.79 | L99: 0 | O99: Enter # camps for this category. | P99: As above
B100: 0 | D100: #3.12 | E100: =Assumptions!C227 -> Temporary camp - > 300 and <= 400 persons | I100: camps | J100: $339,187.51 | L100: 0 | O100: Enter # camps for this category. | P100: As above
B101: 0 | D101: #3.13 | E101: =Assumptions!C228 -> Temporary camp - > 400 and <= 500 persons | I101: camps | J101: $437,763.50 | L101: 0 | O101: Enter # camps for this category. | P101: As above
B102: 0 | D102: #3.14 | E102: =Assumptions!C229 -> Temporary camp - > 500 and <= 750 persons | I102: camps | J102: $633,188.49 | L102: 0 | O102: Enter # camps for this category. | P102: As above
B103: 0 | D103: #3.15 | E103: =Assumptions!C230 -> Temporary camp - > 750 and <= 1000 persons | I103: camps | J103: $826,425.63 | L103: 0 | O103: Enter # camps for this category. | P103: As above
B104: 0 | D104: #3.16 | E104: =Assumptions!C231 -> Temporary camp - > 1000 and <= 2000 persons | I104: camps | J104: $1,639,226.55 | L104: 0 | O104: Enter # camps for this category. | P104: As above
B105: 0 | D105: #3.17 | E105: =Assumptions!C232 -> Temporary camp - > 2000 and <= 3000 persons | I105: camps | J105: $2,451,290.08 | L105: 0 | O105: Enter # camps for this category. | P105: As above
B106: 0 | D106: #3.18 | E106: =Assumptions!C233 -> Temporary camp - > 3000 and <= 4000 persons | I106: camps | J106: $3,264,091.00 | L106: 0 | O106: Enter # camps for this category. | P106: As above
B107: 0 | D107: #3.19 | E107: =Assumptions!C234 -> Temporary camp - > 4000 and <= 5000 persons | I107: camps | J107: $4,076,506.08 | L107: 0 | O107: Enter # camps for this category. | P107: As above
B108: 0 | D108: #3.20 | E108: =Assumptions!C235 -> Permanent camp - > 0 and <= 20 persons | I108: camps | J108: $67,211.71 | L108: 0 | O108: Enter # camps for this category. | P108: Electrical and mechanical disconnection of accommodation, mess, ablution, laundry and recreational modules. Removal of hardstand and gravel removal, grade and seed. Transport of modules to storage area and wastes to disposal facilities. Grade and seed included. The rate includes all elements generally associated with a camp. In general no other rate is required unless there is a co-located major office / control centre for example. Exceptions are contaminated land investigations which will only be required if a fuelling system is at the camp and any dams / ponds.
B109: 0 | D109: #3.21 | E109: =Assumptions!C236 -> Permanent camp - > 20 and <= 50 persons | I109: camps | J109: $109,876.15 | L109: 0 | O109: Enter # camps for this category. | P109: As above
B110: 0 | D110: #3.22 | E110: =Assumptions!C237 -> Permanent camp - > 50 and <= 100 persons | I110: camps | J110: $193,037.07 | L110: 0 | O110: Enter # camps for this category. | P110: As above
B111: 0 | D111: #3.23 | E111: =Assumptions!C238 -> Permanent camp - > 100 and <= 150 persons | I111: camps | J111: $262,662.53 | L111: 0 | O111: Enter # camps for this category. | P111: As above
B112: 0 | D112: #3.24 | E112: =Assumptions!C239 -> Permanent camp - > 150 and <= 200 persons | I112: camps | J112: $351,273.10 | L112: 0 | O112: Enter # camps for this category. | P112: As above
B113: 0 | D113: #3.25 | E113: =Assumptions!C240 -> Permanent camp - > 200 and <= 250 persons | I113: camps | J113: $461,857.44 | L113: 0 | O113: Enter # camps for this category. | P113: As above
B114: 0 | D114: #3.26 | E114: =Assumptions!C241 -> Permanent camp - > 250 and <= 300 persons | I114: camps | J114: $515,066.40 | L114: 0 | O114: Enter # camps for this category. | P114: As above
B115: 0 | D115: #3.27 | E115: =Assumptions!C242 -> Permanent camp - > 300 and <= 400 persons | I115: camps | J115: $643,792.23 | L115: 0 | O115: Enter # camps for this category. | P115: As above
B116: 0 | D116: #3.28 | E116: =Assumptions!C243 -> Permanent camp - > 400 and <= 500 persons | I116: camps | J116: $806,867.43 | L116: 0 | O116: Enter # camps for this category. | P116: As above
B117: 0 | D117: #3.29 | E117: =Assumptions!C244 -> Permanent camp - > 500 and <= 750 persons | I117: camps | J117: $1,003,637.11 | L117: 0 | O117: Enter # camps for this category. | P117: As above
B118: 0 | D118: #3.30 | E118: =Assumptions!C245 -> Permanent camp - > 750 and <= 1000 persons | I118: camps | J118: $1,314,748.22 | L118: =IF(K118="",J118,K118)*H118 -> 0 | O118: Enter # camps for this category. | P118: As above
B119: 0 | D119: #3.31 | E119: =Assumptions!C246 -> Permanent camp - > 1000 and <= 2000 persons | I119: camps | J119: $2,521,210.64 | L119: 0 | O119: Enter # camps for this category. | P119: As above
B120: 0 | D120: #3.32 | E120: =Assumptions!C247 -> Permanent camp - > 2000 and <= 3000 persons | I120: camps | J120: $3,741,989.05 | L120: 0 | O120: Enter # camps for this category. | P120: As above
B121: 0 | D121: #3.33 | E121: =Assumptions!C248 -> Permanent camp - > 3000 and <= 4000 persons | I121: camps | J121: $4,961,645.12 | L121: 0 | O121: Enter # camps for this category. | P121: As above
B122: 0 | D122: #3.34 | E122: =Assumptions!C249 -> Permanent camp - > 4000 and <= 5000 persons | I122: camps | J122: $6,168,107.54 | L122: 0 | O122: Enter # camps for this category. | P122: As above
B123: 0 | D123: #3.35 | E123: =Lists!C176 -> Small, Brick wall, Steel roof, Concrete floor, 1 floors | I123: m2 | J123: $119.70 | L123: 0 | O123: Enter the area (footprint) of the building to be demolished. Buildings will typically be part of other facilities and grade and seed would be included in those rates. The footprint of buildings is relatively small and if grade and seed is required it can be assumed to be covered in this rate (as equipment will be on-site). | P123: Empty contents, electrical and mechanical disconnection of building, remove steel roof and structure and cut-up, demolish brick walls and concrete slab, load and haul and disposal. See Assumptions for indication of size. Small buildings are small offices, pump rooms, stores.
B124: 0 | D124: #3.36 | E124: =Lists!C177 -> Large, Brick wall, Steel roof, Concrete floor, 1 floors | I124: m2 | J124: $71.13 | L124: 0 | O124: Enter the area (footprint) of the building to be demolished. Buildings will typically be part of other facilities and grade and seed would be included in those rates. The footprint of buildings is relatively small and if grade and seed is required it can be assumed to be covered in this rate (as equipment will be on-site). | P124: Empty contents, electrical and mechanical disconnection of building, remove steel roof and structure and cut-up, demolish brick walls and concrete slab, load and haul and disposal. See Assumptions for indication of size. Large buildings are large permanent office blocks / control rooms.
B125: 0 | D125: #3.37 | E125: =Lists!C178 -> Large, Steel wall, Steel roof, Concrete floor, 1 floors | I125: m2 | J125: $76.22 | L125: 0 | O125: Enter the area (footprint) of the building to be demolished. Buildings will typically be part of other facilities and grade and seed would be included in those rates. The footprint of buildings is relatively small and if grade and seed is required it can be assumed to be covered in this rate (as equipment will be on-site). | P125: Empty contents, electrical and mechanical disconnection of building, remove steel roof and wall cladding and structure and cut-up, demolish concrete slab, load and haul and disposal. Includes warehouse and workshops.
B126: 0 | D126: #3.38 | E126: =Lists!C179 -> Small, Steel wall, Steel roof, Concrete floor, 1 floors | I126: m2 | J126: $127.71 | L126: =IF(K126="",J126,K126)*H126 -> 0 | O126: Enter the area (footprint) of the building to be demolished. Buildings will typically be part of other facilities and grade and seed would be included in those rates. The footprint of buildings is relatively small and if grade and seed is required it can be assumed to be covered in this rate (as equipment will be on-site). | P126: Empty contents, electrical and mechanical disconnection of building, remove steel roof and wall cladding and structure and cut-up, demolish concrete slab, load and haul and disposal.
B127: 0 | D127: #3.39 | E127: =Lists!C180 -> Small, Steel wall, Steel roof, Concrete floor, 2 floors | I127: m2 | J127: $135.92 | L127: 0 | O127: Enter the area (footprint) of the building to be demolished. The area is the footprint only as the rate takes account of the multi-storeys. Buildings will typically be part of other facilities and grade and seed would be included in those rates. The footprint of buildings is relatively small and if grade and seed is required it can be assumed to be covered in this rate (as equipment will be on-site). | P127: Empty contents, electrical and mechanical disconnection of building, remove steel roof and wall cladding and structure and cut-up, demolish concrete slabs, load and haul and disposal.
B128: 0 | D128: #3.40 | E128: =Lists!C181 -> Portable skid mounted, portable building | I128: item | J128: $2,255.95 | L128: 0 | O128: Enter number of small demountable structures (e.g. small office.) This rate does not include grade and seed as a portable building will typically be within a larger area (e.g. laydown). | P128: Electrical and mechanical disconnection, crane to lift to truck and transport to storage location at distance shown in Assumptions.
B129: 0 | D129: #3.41 | E129: Sewage Treatment Plant | I129: kL/day | J129: $141.80 | L129: 0 | O129: Enter nameplate capacity of wastewater treatment plant. Rate is for aboveground unit with tanks. If the facility has large in-ground clarifiers / settling ponds add a pond or tank rate. If the facility places / irrigates treated materials to land, add the area to the rate below. | P129: Electrical and mechanical disconnection of tanks and pump sets, demolish / dispose or remove transport tanks and equipment, growth media, rip, seed land. Allowance for transport and apply to land residual solids.
B130: 0 | D130: #3.42 | E130: Irrigation area associated with Sewage Treatment Plant | I130: ha | J130: $3,326.16 | L130: 0 | O130: Enter area of land used to irrigate treated sewage. | P130: Salvage local growth media, rip, seed.
B131: 0 | D131: #3.43 | E131: Additional line item - user to name activity | L131: =H131*K131 -> 0
B132: 0 | D132: #3.44 | E132: Additional line item - user to name activity | L132: =H132*K132 -> 0
B133: 1 | K133: Subtotal | L133: =SUBTOTAL(9,L88:L132) -> 0
B134: 1 | C134: 4. Power Generation and Distribution
B135: =IF(L135>0,1,0) -> 0 | D135: #4.01 | E135: =Lists!C397 -> Overhead powerlines (steel towers) | I135: km | J135: $24,114.69 | L135: =IF(K135="",J135,K135)*H135 -> 0 | O135: Enter total number of kilometres. For low voltage power lines with steel towers. | P135: De-energise system; disconnect cables from tower, cut cables, load to truck and dispose off-site; attach pulling cables to tower (dogman) and crane; cut one-side legs (excavator and shears); pull over tower, cut up steel; demolish concrete footings, load and dispose off-site, grade and seed area around tower.
B136: 0 | D136: #4.02 | E136: =Lists!C398 -> Overhead powerlines (wooden poles) | I136: km | J136: $17,768.75 | L136: 0 | O136: Enter total number of kilometres. For low voltage power lines with wooden poles. | P136: De-energise system; disconnect cables from tower, cut cables, load to truck and dispose off-site; chain saw pole, cut up, load and dispose off-site; demolish concrete footings, load and dispose off-site, grade and seed area around tower.
B137: 0 | D137: #4.03 | E137: =Lists!C399 -> Overhead powerlines (concrete poles) | I137: km | J137: $27,300.43 | L137: 0 | O137: Enter total number of kilometres. For low voltage power lines with concrete poles. | P137: De-energise system; disconnect cables from tower, cut cables, load to truck and dispose off-site; excavator with rock breaker to demolish pole, break up, load and dispose off-site; demolish concrete footings, load and dispose off-site; demolish concrete footings, load and dispose off-site, grade and seed area around tower.
B138: 0 | D138: #4.04 | E138: =Lists!C402 -> Power generation - gas 3 MW | I138: facility | J138: $42,978.70 | L138: 0 | O138: Enter number of single unit generating plants. | P138: Assumes 1 single 3 MW unit. De-energise, disconnect, load and transport modules; disconnect portable buildings and transport; remove gravel surface and transport to re-use area; grade and seed; small land investigation around transformers.
B139: 0 | D139: #4.05 | E139: =Lists!C403 -> Power generation - gas 12 MW | I139: facility | J139: $191,998.72 | L139: 0 | O139: Enter number of plants | P139: Assumes 4 X 3 MW units. De-energise, disconnect, load and transport modules; disconnect portable buildings and transport; remove gravel surface and transport to re-use area; grade and seed; small land investigation around transformers.
B140: 0 | D140: #4.06 | E140: =Lists!C404 -> Power generation - gas 24 MW | I140: facility | J140: $344,603.13 | L140: 0 | O140: Enter number of plants | P140: Assumes 8 X 3 MW units. De-energise, disconnect, load and transport modules; disconnect portable buildings and transport; remove gravel surface and transport to re-use area; grade and seed; small land investigation around transformers.
B141: 0 | D141: #4.07 | E141: =Lists!C405 -> Power generation - gas 36 MW | I141: facility | J141: $480,489.06 | L141: 0 | O141: Enter number of plants | P141: Assumes 12 X 3 MW units. De-energise, disconnect, load and transport modules; disconnect portable buildings and transport; remove gravel surface and transport to re-use area; grade and seed; small land investigation around transformers.
B142: 0 | D142: #4.08 | E142: =Lists!C408 -> Substation 33 / 11 kV | I142: facility | J142: $79,262.71 | L142: 0 | O142: Enter number of switchyards / substations | P142: Disconnect transformers electrically and mechanically; load transformers and sections on trucks and transport to yard; pull cables, roll up and load to trucks for transport to storage; separate power factor correction units for transport; load miscellaneous components (e.g. circuit breakers) to trucks and transport for scrap; lightning masts knocked over with excavator and loaded to trucks for scrap. Lift portable buildings onto truck and transport for re-use. Pump out diesel from belly tank of generator and use in vehicles. Transport generator to storage. Demolish footings and load out concrete. Pump out oily water separator and demolish. Load out debris. Scrape up gravel and load-out Grade and seed. Assumes power company will disconnect incoming lines from landing towers.
B143: 0 | D143: #4.09 | E143: =Lists!C409 -> Substation 66 / 11 kV | I143: facility | J143: $81,695.42 | L143: 0 | O143: Enter number of switchyards / substations | P143: As above
B144: 0 | D144: #4.10 | E144: =Lists!C410 -> Substation 132 / 33 kV | I144: facility | J144: $251,692.18 | L144: 0 | O144: Enter number of switchyards / substations | P144: As above
B145: 0 | D145: #4.11 | E145: Communications towers | I145: tower | J145: $20,911.30 | L145: 0 | O145: Enter number of communications towers. | P145: Equivalent of steel lattice towers with electronics. Electronics removed and transported to storage. Tower pulled down, steel cut-up and transported to re-use yard (no credit for scrap value).
B146: 0 | D146: #4.12 | E146: Additional line item - user to name activity | L146: =H146*K146 -> 0
B147: 0 | D147: #4.13 | E147: Additional line item - user to name activity | L147: =H147*K147 -> 0
B148: 1 | K148: Subtotal | L148: =SUBTOTAL(9,L135:L147) -> 0
B149: 1 | C149: 5. Wells Pads and Associated Infrastructure
B150: =IF(L150>0,1,0) -> 0 | E150: Wells Input Sheet | I150: lump | L150: =Wells!C4 -> 0 | P150: Scopes as for individual well items below. General note: where wells are connected to pipelines, the cut and cap at the well end is included in the well rate (no need to include in the pipeline allowances).
B151: =IF(L151>0,1,0) -> 0 | D151: #5.01 | E151: =WellList -> Conventional oil, Plugged and abandoned, Single well | I151: pad | J151: $679.88 | L151: =IF(K151="",J151,K151)*H151 -> 0 | O151: Enter number of well sites. If a beam pump remains add to rate below. | P151: Remove sign, excavate to access casing, cut casing and cement, backfill, minimal grade and allowance for seed. See Assumptions for assumed land area (minimal for P&A wells). No allowance for beam pump or sump.
B152: 0 | D152: #5.02 | E152: Conventional oil, Suspended, Single well | I152: pad | J152: $1,728.40 | L152: 0 | O152: Enter number of well pads. If a beam pump remains add to rate below. | P152: Remove above-ground equipment (does not include beam pump if remaining) and fencing. Grade and seed of pad size shown in Assumptions. No allowance for beam pump or sump.
B153: 0 | D153: #5.03 | E153: Conventional oil, Shut-in, Single well | I153: pad | J153: $9,624.17 | L153: 0 | O153: Enter number of well pads. | P153: Removal of above-ground equipment including beam and associated infrastructure and fencing Allowance for liquid removal. Grade and seed of pad size shown in Assumptions.
B154: 0 | D154: #5.04 | E154: Conventional oil, Appraisal / development, Single well | I154: pad | J154: $12,454.24 | L154: 0 | O154: Enter number of well pads. | P154: Removal of above-ground equipment and infrastructure and fencing, allowance for sludge and liquid disposal. Grade and seed of pad size shown in Assumptions. No allowance for beam pump or sump.
B155: 0 | D155: #5.05 | E155: Conventional oil, Operation / Production, Single well, Beam Pump | I155: pad | J155: $18,180.95 | L155: 0 | O155: Enter number of well pads. | P155: Removal of above-ground equipment including beam and associated infrastructure and fencing, allowance for sludge disposal. Grade and seed of pad size shown in Assumptions.
B156: 0 | D156: #5.06 | E156: Conventional oil, Operation / Production, Single well, No Beam Pump | I156: pad | J156: $14,837.48 | L156: 0 | O156: Enter number of well pads. If a beam pump remains either use rate above which includes beam or add a beam pump separately using the rate below. | P156: Removal of above-ground equipment and associated infrastructure and fencing, allowance for sludge disposal. Grade and seed of pad size shown in Assumptions.
B157: 0 | D157: #5.07 | E157: Conventional oil, Beam Pump only | I157: pad | J157: $3,343.46 | L157: 0 | O157: Enter number of beam pumps. Use if a beam pump remains at a P&A or suspended well site. | P157: Disconnect beam pump, lift onto truck, transport to storage area. Excavate and backfill cellar, transport soil to landfill. Allowance for liquids removal and grade and seed.
B158: 0 | D158: #5.08 | E158: Conventional gas, Plugged and abandoned, Single well | I158: pad | J158: $679.88 | L158: 0 | O158: Enter number of well sites. | P158: Remove sign, excavate to access casing, cut casing and cement, backfill, minimal grade and allowance for seed. See Assumptions for assumed land area (minimal for P&A wells).
B159: 0 | D159: #5.09 | E159: Conventional gas, Suspended, Single well | I159: pad | J159: $917.22 | L159: 0 | O159: Enter number of well pads. | P159: Remove remaining above-ground equipment and fencing. Grade and seed of pad size shown in Assumptions. Headworks assumed removed. If they remain use shut-in rate.
B160: 0 | D160: #5.10 | E160: Conventional gas, Shut-in, Single well | I160: pad | J160: $3,643.45 | L160: =IF(K160="",J160,K160)*H160 -> 0 | O160: Enter number of well pads. | P160: Removal of above-ground equipment including head works and associated infrastructure and fencing. Grade and seed of pad size shown in Assumptions.
B161: 0 | D161: #5.11 | E161: Conventional gas, Appraisal / development, Single well | I161: pad | J161: $5,494.90 | L161: 0 | O161: Enter number of well pads. | P161: Removal of above-ground equipment including head works and associated infrastructure and fencing. Grade and seed of pad size shown in Assumptions. Does not include any water storage.
B162: 0 | D162: #5.12 | E162: Conventional gas, Operation / Production, Single well | I162: pad | J162: $3,643.45 | L162: =IF(K162="",J162,K162)*H162 -> 0 | O162: Enter number of well pads. | P162: Removal of above-ground equipment including head works and associated infrastructure and fencing. Grade and seed of pad size shown in Assumptions. Does not include any water storage.
B163: 0 | D163: #5.13 | E163: Conventional gas, Operation / Production, <= 4 wells well | I163: pad | J163: $10,977.80 | L163: 0 | O163: Enter number of well pads for shown category. | P163: Removal of above-ground equipment including head works for up to 4 co-located wells and associated infrastructure and fencing. Grade and seed of pad size shown in Assumptions. Does not include any water storage.
B164: 0 | D164: #5.14 | E164: Conventional gas, Operation / Production, > 4 wells well | I164: pad | J164: $13,578.89 | L164: 0 | O164: Enter number of well pads for shown category. | P164: Removal of above-ground equipment including head works for greater than 4 co-located wells and associated infrastructure and fencing. Grade and seed of pad size shown in Assumptions. Does not include any water storage.
B165: 0 | D165: #5.15 | E165: Coal seam gas, Plugged and abandoned, Single well | I165: pad | J165: $679.88 | L165: 0 | O165: Enter number of well pads for shown category. | P165: Remove sign, excavate to access casing, cut casing and cement, backfill, minimal grade and allowance for seed. See Assumptions for assumed land area (minimal for P&A wells).
B166: 0 | D166: #5.16 | E166: Coal seam gas, Suspended, Single well | I166: pad | J166: $1,874.50 | L166: 0 | O166: Enter number of well pads for shown category. | P166: Remove remaining above-ground equipment and fencing. Grade and seed of pad size shown in Assumptions. Headworks assumed removed. If they remain use shut-in rate.
B167: 0 | D167: #5.17 | E167: Coal seam gas, Shut-in, Single well | I167: pad | J167: $8,842.95 | L167: 0 | O167: Enter number of well pads for shown category. | P167: Remove wellhead infrastructure (bottle tree), pipe and fittings and fencing; excavate around well to gain access for cutting casing below grade and around transfer pipe penetration to cut and cap, cut and cap. Grade and seed of area shown in Assumptions.
B168: 0 | D168: #5.18 | E168: Coal seam gas, Appraisal / development, Single well | I168: pad | J168: $18,038.96 | L168: 0 | O168: Enter number of well pads for shown category. | P168: Remove wellhead infrastructure (bottle tree), pipe and fittings and fencing; remove and dispose sump liner and sludge; fill in sump; demolish flare pit; excavate around well to gain access for cutting casing below grade and around transfer pipe penetration to cut and cap, cut and cap. Grade and seed of area shown in Assumptions. Does not include any larger water storage.
B169: 0 | D169: #5.19 | E169: Coal seam gas, Operation / Production, Single well | I169: pad | J169: $8,155.04 | L169: 0 | O169: Enter number of well pads for shown category. | P169: Remove wellhead infrastructure (bottle tree), pipe and fittings and fencing; excavate around well to gain access for cutting casing below grade and around transfer pipe penetration to cut and cap, cut and cap. Grade and seed of area shown in Assumptions. Does not include any larger water storage.
B170: 0 | D170: #5.20 | E170: Coal seam gas, Appraisal / development, <= 4 wells well | I170: pad | J170: $28,632.26 | L170: 0 | O170: Enter number of well pads for shown category. | P170: Remove wellhead infrastructure (bottle tree), pipe and fittings for up to 4 co-located wells; remove fencing; remove and dispose sump liner and sludge; fill in sump; demolish flare pit; excavate around wells to gain access for cutting casing below grade and around transfer pipe penetration to cut and cap, cut and cap. Grade and seed of area shown in Assumptions. Does not include any larger water storage.
B171: 0 | D171: #5.21 | E171: Coal seam gas, Operation / Production, <= 4 wells well | I171: pad | J171: $15,504.26 | L171: 0 | O171: Enter number of well pads for shown category. | P171: Remove wellhead infrastructure (bottle tree), pipe and fittings for up to 4 co-located wells; remove fencing; excavate around well to gain access for cutting casing below grade and around transfer pipe penetration to cut and cap, cut and cap. Grade and seed of area shown in Assumptions. Does not include any larger water storage.
B172: 0 | D172: #5.22 | E172: Coal seam gas, Appraisal / development, > 4 wells well | I172: pad | J172: $48,730.10 | L172: 0 | O172: Enter number of well pads for shown category. | P172: Remove wellhead infrastructure (bottle tree), pipe and fittings for more than 4 co-located wells; remove fencing; remove and dispose sump liner and sludge; demolish flare pit; fill in sump; excavate around well to gain access for cutting casing below grade and around transfer pipe penetration to cut and cap, cut and cap.. Grade and seed of area shown in Assumptions. Does not include any larger water storage.
B173: 0 | D173: #5.23 | E173: Coal seam gas, Operation / Production, > 4 wells well | I173: pad | J173: $28,654.96 | L173: 0 | O173: Enter number of well pads for shown category. | P173: Remove wellhead infrastructure (bottle tree), pipe and fittings for more than 4 co-located wells; remove fencing; excavate around well to gain access for cutting casing below grade and around transfer pipe penetration to cut and cap, cut and cap. Grade and seed of area shown in Assumptions. Does not include any larger water storage.
B174: 0 | D174: #5.24 | E174: Tight / shale gas, Plugged and abandoned, Single well | I174: pad | J174: $679.88 | L174: 0 | O174: Enter number of well pads for shown category. | P174: Remove sign, excavate to access casing, cut casing and cement, backfill, minimal grade and allowance for seed. See Assumptions for assumed land area (minimal for P&A wells).
B175: 0 | D175: #5.25 | E175: Tight / shale gas, Suspended, Single well | I175: pad | J175: $1,674.50 | L175: 0 | O175: Enter number of well pads for shown category. | P175: Remove remaining above-ground equipment and fencing. Grade and seed of pad size shown in Assumptions. Headworks assumed removed. If they remain use shut-in rate.
B176: 0 | D176: #5.26 | E176: Tight / shale gas, Shut-in, Single well | I176: pad | J176: $8,642.95 | L176: =IF(K176="",J176,K176)*H176 -> 0 | O176: Enter number of well pads for shown category. | P176: Remove wellhead infrastructure, pipe and fittings and fencing; excavate around well to gain access for cutting casing below grade and around transfer pipe penetration to cut and cap, cut and cap. Grade and seed of area shown in Assumptions.
B177: 0 | D177: #5.27 | E177: Tight / shale gas, Appraisal / development, Single well | I177: pad | J177: $25,403.39 | L177: 0 | O177: Enter number of well pads for shown category. | P177: Remove wellhead infrastructure, pipe and fittings and fencing; remove and dispose sump liner and sludge; fill in sump; demolish flare pit; excavate around well to gain access for cutting casing below grade and around transfer pipe penetration to cut and cap, cut and cap. Grade and seed of area shown in Assumptions. Does not include any larger water storage.
B178: 0 | D178: #5.28 | E178: Tight / shale gas, Operation / Production, Single well | I178: pad | J178: $8,395.61 | L178: =IF(K178="",J178,K178)*H178 -> 0 | O178: Enter number of well pads for shown category. | P178: Remove wellhead infrastructure, pipe and fittings and fencing; excavate around well to gain access for cutting casing below grade and around transfer pipe penetration to cut and cap, cut and cap. Grade and seed of area shown in Assumptions. Does not include any larger water storage.
B179: 0 | D179: #5.29 | E179: Tight / shale gas, Operation / Production, <= 4 wells well | I179: pad | J179: $18,640.78 | L179: 0 | O179: Enter number of well pads for shown category. | P179: Remove wellhead infrastructure (bottle tree), pipe and fittings for up to 4 co-located wells; remove fencing; remove and dispose sump liner and sludge; fill in sump; demolish flare pit; excavate around wells to gain access for cutting casing below grade and around transfer pipe penetration to cut and cap, cut and cap. Grade and seed of area shown in Assumptions. Does not include any larger water storage.
B180: 0 | D180: #5.30 | E180: Tight / shale gas, Operation / Production, > 4 wells well | I180: pad | J180: $28,161.44 | L180: 0 | O180: Enter number of well pads for shown category. | P180: Remove wellhead infrastructure (bottle tree), pipe and fittings for up to 4 co-located wells; remove fencing; excavate around well to gain access for cutting casing below grade and around transfer pipe penetration to cut and cap, cut and cap. Grade and seed of area shown in Assumptions. Does not include any larger water storage.
B181: 0 | D181: #5.31 | E181: =Lists!C246 -> Conventional oil, Plugged and abandoned, Single well - arid | I181: pad | J181: $479.88 | L181: =IF(K181="",J181,K181)*H181 -> 0 | O181: Enter number of well pads for shown category. Only used for wells in a desert-type environment (e.g. Cooper Basin) where vegetation is typically not present. | P181: Remove sign, excavate to access casing, cut casing and cement, backfill, minimal grade, no seed. See Assumptions for assumed land area (minimal for P&A wells). No allowance for beam pump or sump.
B182: 0 | D182: #5.32 | E182: =Lists!C247 -> Conventional oil, Suspended, Single well - arid | I182: pad | J182: $1,528.40 | L182: =IF(K182="",J182,K182)*H182 -> 0 | O182: Enter number of well pads for shown category. Only used for wells in a desert-type environment (e.g. Cooper Basin) where vegetation is typically not present. | P182: Remove above-ground equipment (does not include beam pump if remaining) and fencing. Rip and grade pad size shown in Assumptions. No seed. No allowance for beam pump or sump.
B183: 0 | D183: #5.33 | E183: =Lists!C248 -> Conventional oil, Shut-in, Single well - arid | I183: pad | J183: $9,424.17 | L183: =IF(K183="",J183,K183)*H183 -> 0 | O183: Enter number of well pads for shown category. Only used for wells in a desert-type environment (e.g. Cooper Basin) where vegetation is typically not present. | P183: Removal of above-ground equipment including beam and associated infrastructure and fencing Allowance for liquid removal. Rip and grade pad size shown in Assumptions. No seed..
B184: 0 | D184: #5.34 | E184: =Lists!C249 -> Conventional oil, Appraisal / development, Single well - arid | I184: pad | J184: $12,254.24 | L184: =IF(K184="",J184,K184)*H184 -> 0 | O184: Enter number of well pads for shown category. Only used for wells in a desert-type environment (e.g. Cooper Basin) where vegetation is typically not present. | P184: Removal of above-ground equipment and infrastructure and fencing, allowance for sludge and liquid disposal. Rip and grade pad size shown in Assumptions. No seed. No allowance for beam pump or sump.
B185: 0 | D185: #5.35 | E185: =Lists!C250 -> Conventional oil, Operation / Production, Single well, Beam Pump - arid | I185: pad | J185: $17,980.95 | L185: 0 | O185: Enter number of well pads for shown category. Only used for wells in a desert-type environment (e.g. Cooper Basin) where vegetation is typically not present. | P185: Removal of above-ground equipment including beam and associated infrastructure and fencing, allowance for sludge disposal. Rip and grade pad size shown in Assumptions. No seed.
B186: 0 | D186: #5.36 | E186: =Lists!C251 -> Conventional oil, Operation / Production, Single well, No Beam Pump - arid | I186: pad | J186: $14,637.48 | L186: =IF(K186="",J186,K186)*H186 -> 0 | O186: Enter number of well pads for shown category. Only used for wells in a desert-type environment (e.g. Cooper Basin) where vegetation is typically not present. If beam pump is present use rate above or add separately using rate below. | P186: Removal of above-ground equipment and associated infrastructure and fencing, allowance for sludge disposal. Rip and grade pad size shown in Assumptions. No seed.
B187: 0 | D187: #5.37 | E187: =Lists!C252 -> Conventional oil, Beam Pump only - arid | I187: pad | J187: $3,143.46 | L187: =IF(K187="",J187,K187)*H187 -> 0 | O187: Enter number of well pads for shown category. Only used for wells in a desert-type environment (e.g. Cooper Basin) where vegetation is typically not present. | P187: Disconnect beam pump, lift onto truck, transport to storage area. Excavate and backfill cellar, transport soil to landfill. Allowance for liquids removal. Rip and grade pad size shown in Assumptions. No seed.
B188: 0 | D188: #5.38 | E188: =Lists!C253 -> Conventional gas, Plugged and abandoned, Single well - arid | I188: pad | J188: $479.88 | L188: =IF(K188="",J188,K188)*H188 -> 0 | O188: Enter number of well pads for shown category. Only used for wells in a desert-type environment (e.g. Cooper Basin) where vegetation is typically not present. | P188: Remove sign, excavate to access casing, cut casing and cement, backfill, minimal grade, no seed. See Assumptions for assumed land area (minimal for P&A wells).
B189: 0 | D189: #5.39 | E189: =Lists!C254 -> Conventional gas, Suspended, Single well - arid | I189: pad | J189: $717.22 | L189: =IF(K189="",J189,K189)*H189 -> 0 | O189: Enter number of well pads for shown category. Only used for wells in a desert-type environment (e.g. Cooper Basin) where vegetation is typically not present. | P189: Remove remaining above-ground equipment and fencing. Rip and grade pad size shown in Assumptions. No seed. Headworks assumed removed. If they remain use shut-in rate.
B190: 0 | D190: #5.40 | E190: =Lists!C255 -> Conventional gas, Shut-in, Single well - arid | I190: pad | J190: $3,443.45 | L190: =IF(K190="",J190,K190)*H190 -> 0 | O190: Enter number of well pads for shown category. Only used for wells in a desert-type environment (e.g. Cooper Basin) where vegetation is typically not present. | P190: Removal of above-ground equipment including head works and associated infrastructure and fencing. Rip and grade pad size shown in Assumptions. No seed.
B191: 0 | D191: #5.41 | E191: =Lists!C256 -> Conventional gas, Appraisal / development, Single well - arid | I191: pad | J191: $5,294.90 | L191: 0 | O191: Enter number of well pads for shown category. Only used for wells in a desert-type environment (e.g. Cooper Basin) where vegetation is typically not present. | P191: Removal of above-ground equipment including head works and associated infrastructure and fencing. Rip and grade pad size shown in Assumptions. No seed. Does not include any water storage.
B192: 0 | D192: #5.42 | E192: =Lists!C257 -> Conventional gas, Operation / Production, Single well - arid | I192: pad | J192: $3,443.45 | L192: =IF(K192="",J192,K192)*H192 -> 0 | O192: Enter number of well pads for shown category. Only used for wells in a desert-type environment (e.g. Cooper Basin) where vegetation is typically not present. | P192: Removal of above-ground equipment including head works and associated infrastructure and fencing. Rip and grade pad size shown in Assumptions. No seed. Does not include any water storage.
B193: 0 | D193: #5.43 | E193: =Lists!C258 -> Conventional gas, Operation / Production, <= 4 wells well - arid | I193: pad | J193: $8,455.32 | L193: =IF(K193="",J193,K193)*H193 -> 0 | O193: Enter number of well pads for shown category. Only used for wells in a desert-type environment (e.g. Cooper Basin) where vegetation is typically not present. | P193: Removal of above-ground equipment including head works for up to 4 co-located wells and associated infrastructure and fencing. Rip and grade pad size shown in Assumptions. No seed. Does not include any water storage.
B194: 0 | D194: #5.44 | E194: =Lists!C259 -> Conventional gas, Operation / Production, > 4 wells well - arid | I194: pad | J194: $13,376.89 | L194: =IF(K194="",J194,K194)*H194 -> 0 | O194: Enter number of well pads for shown category. Only used for wells in a desert-type environment (e.g. Cooper Basin) where vegetation is typically not present. | P194: Removal of above-ground equipment including head works for greater than 4 co-located wells and associated infrastructure and fencing. Rip and grade pad size shown in Assumptions. No seed. Does not include any water storage.
B195: 0 | D195: #5.45 | E195: =Lists!C260 -> Coal seam gas, Plugged and abandoned, Single well - arid | I195: pad | J195: $479.88 | L195: =IF(K195="",J195,K195)*H195 -> 0 | O195: Enter number of well pads for shown category. Only used for wells in a desert-type environment (e.g. Cooper Basin) where vegetation is typically not present. | P195: Remove sign, excavate to access casing, cut casing and cement, backfill, minimal grade. No seed. See Assumptions for assumed land area (minimal for P&A wells).
B196: 0 | D196: #5.46 | E196: =Lists!C261 -> Coal seam gas, Suspended, Single well - arid | I196: pad | J196: $1,474.50 | L196: =IF(K196="",J196,K196)*H196 -> 0 | O196: Enter number of well pads for shown category. Only used for wells in a desert-type environment (e.g. Cooper Basin) where vegetation is typically not present. | P196: Remove remaining above-ground equipment and fencing. Rip and grade pad size shown in Assumptions. No seed. Headworks assumed removed. If they remain use shut-in rate.
B197: 0 | D197: #5.47 | E197: =Lists!C262 -> Coal seam gas, Shut-in, Single well - arid | I197: pad | J197: $8,442.95 | L197: =IF(K197="",J197,K197)*H197 -> 0 | O197: Enter number of well pads for shown category. Only used for wells in a desert-type environment (e.g. Cooper Basin) where vegetation is typically not present. | P197: Remove wellhead infrastructure (bottle tree), pipe and fittings and fencing; excavate around well to gain access for cutting casing below grade and around transfer pipe penetration to cut and cap, cut and cap. Rip and grade pad size shown in Assumptions. No seed.
B198: 0 | D198: #5.48 | E198: =Lists!C263 -> Coal seam gas, Appraisal / development, Single well - arid | I198: pad | J198: $10,674.52 | L198: =IF(K198="",J198,K198)*H198 -> 0 | O198: Enter number of well pads for shown category. Only used for wells in a desert-type environment (e.g. Cooper Basin) where vegetation is typically not present. | P198: Remove wellhead infrastructure (bottle tree), pipe and fittings and fencing; remove and dispose sump liner and sludge; fill in sump; demolish flare pit; excavate around well to gain access for cutting casing below grade and around transfer pipe penetration to cut and cap, cut and cap. Rip and grade pad size shown in Assumptions. No seed. Does not include any larger water storage.
B199: 0 | D199: #5.49 | E199: =Lists!C264 -> Coal seam gas, Operation / Production, Single well - arid | I199: pad | J199: $7,755.04 | L199: =IF(K199="",J199,K199)*H199 -> 0 | O199: Enter number of well pads for shown category. Only used for wells in a desert-type environment (e.g. Cooper Basin) where vegetation is typically not present. | P199: Remove wellhead infrastructure (bottle tree), pipe and fittings and fencing; excavate around well to gain access for cutting casing below grade and around transfer pipe penetration to cut and cap, cut and cap. Rip and grade pad size shown in Assumptions. No seed.. Does not include any larger water storage.
B200: 0 | D200: #5.50 | E200: =Lists!C265 -> Coal seam gas, Appraisal / development, <= 4 wells well - arid | I200: pad | J200: $21,467.82 | L200: =IF(K200="",J200,K200)*H200 -> 0 | O200: Enter number of well pads for shown category. Only used for wells in a desert-type environment (e.g. Cooper Basin) where vegetation is typically not present. | P200: Remove wellhead infrastructure (bottle tree), pipe and fittings for up to 4 co-located wells; remove fencing; remove and dispose sump liner and sludge; fill in sump; demolish flare pit; excavate around wells to gain access for cutting casing below grade and around transfer pipe penetration to cut and cap, cut and cap. Rip and grade pad size shown in Assumptions. No seed. . Does not include any larger water storage.
... 555 more rows

Sheet Waste Register
B2: =CONTENTS!$B$2 -> Petroleum and Gas Estimated Rehabilitation Cost Calculator
B3: Contents | C3: WASTE LEVY REGISTER | E3: =IF(OR(Registration!D19=Lists!$C$7,Registration!D19=Lists!$C$8),"Applied","Not applied") -> Not applied
K5: CONCRETE
B6: TOV# | C6: Activity | F6: Mass | G6: Unit | H6: Qty Input Sheets | I6: Qty Main | J6: Unit | K6: Total Qty (t)
B7: =Main!D89 -> #3.01 | C7: =VLOOKUP(B7,CampsMainInput,Main!$E$756,FALSE) -> Small temporary camp (<= 50 persons) | F7: =VLOOKUP($C7,conc_levy_sp_mass_defs,Assumptions!$E$1,FALSE) -> 0.000 | G7: =VLOOKUP(C7,Assumptions!$C$216:$D$219,2,FALSE) -> t/m2 | H7: N/A | I7: =VLOOKUP(B7,CampsMain,Main!$H$756,FALSE) -> 0 | J7: m2 | K7: =(IF(H7="N/A",0,H7)+I7)*F7 -> 0.00
B8: =Main!D90 -> #3.02 | C8: =VLOOKUP(B8,CampsMainInput,Main!$E$756,FALSE) -> Larger temporary camp (> 50 persons) | F8: =VLOOKUP($C8,conc_levy_sp_mass_defs,Assumptions!$E$1,FALSE) -> 0.002 | G8: =VLOOKUP(C8,Assumptions!$C$216:$D$219,2,FALSE) -> t/m2 | H8: N/A | I8: =VLOOKUP(B8,CampsMain,Main!$H$756,FALSE) -> 0 | J8: m2 | K8: 0.00
B9: =Main!D91 -> #3.03 | C9: =VLOOKUP(B9,CampsMainInput,Main!$E$756,FALSE) -> Small permament camp (<= 50 persons) | F9: =VLOOKUP($C9,conc_levy_sp_mass_defs,Assumptions!$E$1,FALSE) -> 0.043 | G9: =VLOOKUP(C9,Assumptions!$C$216:$D$219,2,FALSE) -> t/m2 | H9: N/A | I9: =VLOOKUP(B9,CampsMain,Main!$H$756,FALSE) -> 0 | J9: m2 | K9: 0.00
B10: =Main!D92 -> #3.04 | C10: =VLOOKUP(B10,CampsMainInput,Main!$E$756,FALSE) -> Larger permanent camp (> 50 persons) | F10: =VLOOKUP($C10,conc_levy_sp_mass_defs,Assumptions!$E$1,FALSE) -> 0.041 | G10: =VLOOKUP(C10,Assumptions!$C$216:$D$219,2,FALSE) -> t/m2 | H10: N/A | I10: =VLOOKUP(B10,CampsMain,Main!$H$756,FALSE) -> 0 | J10: m2 | K10: 0.00
B11: =Main!D93 -> #3.05 | C11: =VLOOKUP(B11,CampsMainInput,Main!$E$756,FALSE) -> Temporary camp - <= 20 persons | F11: =VLOOKUP($C11,conc_levy_sp_mass_defs,Assumptions!$E$1,FALSE) -> 0 | G11: =VLOOKUP($C11,Assumptions!$C$220:$D$273,2,FALSE) -> t/camp | H11: =HLOOKUP(C11,'Seismic and Infrastructure'!$L$74:$AO$107,'Seismic and Infrastructure'!$AQ$107,FALSE) -> 0 | I11: =VLOOKUP(B11,CampsMain,Main!$H$756,FALSE) -> 0 | J11: camps | K11: 0.00
B12: =Main!D94 -> #3.06 | C12: =VLOOKUP(B12,CampsMainInput,Main!$E$756,FALSE) -> Temporary camp - > 20 and <= 50 persons | F12: =VLOOKUP($C12,conc_levy_sp_mass_defs,Assumptions!$E$1,FALSE) -> 0 | G12: =VLOOKUP($C12,Assumptions!$C$220:$D$273,2,FALSE) -> t/camp | H12: =HLOOKUP(C12,'Seismic and Infrastructure'!$L$74:$AO$107,'Seismic and Infrastructure'!$AQ$107,FALSE) -> 0 | I12: =VLOOKUP(B12,CampsMain,Main!$H$756,FALSE) -> 0 | J12: camps | K12: 0.00
B13: =Main!D95 -> #3.07 | C13: =VLOOKUP(B13,CampsMainInput,Main!$E$756,FALSE) -> Temporary camp - > 50 and <= 100 persons | F13: =VLOOKUP($C13,conc_levy_sp_mass_defs,Assumptions!$E$1,FALSE) -> 0 | G13: =VLOOKUP($C13,Assumptions!$C$220:$D$273,2,FALSE) -> t/camp | H13: =HLOOKUP(C13,'Seismic and Infrastructure'!$L$74:$AO$107,'Seismic and Infrastructure'!$AQ$107,FALSE) -> 0 | I13: =VLOOKUP(B13,CampsMain,Main!$H$756,FALSE) -> 0 | J13: camps | K13: 0.00
B14: =Main!D96 -> #3.08 | C14: =VLOOKUP(B14,CampsMainInput,Main!$E$756,FALSE) -> Temporary camp - > 100 and <= 150 persons | F14: =VLOOKUP($C14,conc_levy_sp_mass_defs,Assumptions!$E$1,FALSE) -> 49 | G14: =VLOOKUP($C14,Assumptions!$C$220:$D$273,2,FALSE) -> t/camp | H14: =HLOOKUP(C14,'Seismic and Infrastructure'!$L$74:$AO$107,'Seismic and Infrastructure'!$AQ$107,FALSE) -> 0 | I14: =VLOOKUP(B14,CampsMain,Main!$H$756,FALSE) -> 0 | J14: camps | K14: 0.00
B15: =Main!D97 -> #3.09 | C15: =VLOOKUP(B15,CampsMainInput,Main!$E$756,FALSE) -> Temporary camp - > 150 and <= 200 persons | F15: =VLOOKUP($C15,conc_levy_sp_mass_defs,Assumptions!$E$1,FALSE) -> 49 | G15: =VLOOKUP($C15,Assumptions!$C$220:$D$273,2,FALSE) -> t/camp | H15: =HLOOKUP(C15,'Seismic and Infrastructure'!$L$74:$AO$107,'Seismic and Infrastructure'!$AQ$107,FALSE) -> 0 | I15: =VLOOKUP(B15,CampsMain,Main!$H$756,FALSE) -> 0 | J15: camps | K15: 0.00
B16: =Main!D98 -> #3.10 | C16: =VLOOKUP(B16,CampsMainInput,Main!$E$756,FALSE) -> Temporary camp - > 200 and <= 250 persons | F16: =VLOOKUP($C16,conc_levy_sp_mass_defs,Assumptions!$E$1,FALSE) -> 49 | G16: =VLOOKUP($C16,Assumptions!$C$220:$D$273,2,FALSE) -> t/camp | H16: =HLOOKUP(C16,'Seismic and Infrastructure'!$L$74:$AO$107,'Seismic and Infrastructure'!$AQ$107,FALSE) -> 0 | I16: =VLOOKUP(B16,CampsMain,Main!$H$756,FALSE) -> 0 | J16: camps | K16: 0.00
B17: =Main!D99 -> #3.11 | C17: =VLOOKUP(B17,CampsMainInput,Main!$E$756,FALSE) -> Temporary camp - > 250 and <= 300 persons | F17: =VLOOKUP($C17,conc_levy_sp_mass_defs,Assumptions!$E$1,FALSE) -> 49 | G17: =VLOOKUP($C17,Assumptions!$C$220:$D$273,2,FALSE) -> t/camp | H17: =HLOOKUP(C17,'Seismic and Infrastructure'!$L$74:$AO$107,'Seismic and Infrastructure'!$AQ$107,FALSE) -> 0 | I17: =VLOOKUP(B17,CampsMain,Main!$H$756,FALSE) -> 0 | J17: camps | K17: 0.00
B18: =Main!D100 -> #3.12 | C18: =VLOOKUP(B18,CampsMainInput,Main!$E$756,FALSE) -> Temporary camp - > 300 and <= 400 persons | F18: =VLOOKUP($C18,conc_levy_sp_mass_defs,Assumptions!$E$1,FALSE) -> 49 | G18: =VLOOKUP($C18,Assumptions!$C$220:$D$273,2,FALSE) -> t/camp | H18: =HLOOKUP(C18,'Seismic and Infrastructure'!$L$74:$AO$107,'Seismic and Infrastructure'!$AQ$107,FALSE) -> 0 | I18: =VLOOKUP(B18,CampsMain,Main!$H$756,FALSE) -> 0 | J18: camps | K18: 0.00
B19: =Main!D101 -> #3.13 | C19: =VLOOKUP(B19,CampsMainInput,Main!$E$756,FALSE) -> Temporary camp - > 400 and <= 500 persons | F19: =VLOOKUP($C19,conc_levy_sp_mass_defs,Assumptions!$E$1,FALSE) -> 49 | G19: =VLOOKUP($C19,Assumptions!$C$220:$D$273,2,FALSE) -> t/camp | H19: =HLOOKUP(C19,'Seismic and Infrastructure'!$L$74:$AO$107,'Seismic and Infrastructure'!$AQ$107,FALSE) -> 0 | I19: =VLOOKUP(B19,CampsMain,Main!$H$756,FALSE) -> 0 | J19: camps | K19: 0.00
B20: =Main!D102 -> #3.14 | C20: =VLOOKUP(B20,CampsMainInput,Main!$E$756,FALSE) -> Temporary camp - > 500 and <= 750 persons | F20: =VLOOKUP($C20,conc_levy_sp_mass_defs,Assumptions!$E$1,FALSE) -> 49 | G20: =VLOOKUP($C20,Assumptions!$C$220:$D$273,2,FALSE) -> t/camp | H20: =HLOOKUP(C20,'Seismic and Infrastructure'!$L$74:$AO$107,'Seismic and Infrastructure'!$AQ$107,FALSE) -> 0 | I20: =VLOOKUP(B20,CampsMain,Main!$H$756,FALSE) -> 0 | J20: camps | K20: 0.00
B21: =Main!D103 -> #3.15 | C21: =VLOOKUP(B21,CampsMainInput,Main!$E$756,FALSE) -> Temporary camp - > 750 and <= 1000 persons | F21: =VLOOKUP($C21,conc_levy_sp_mass_defs,Assumptions!$E$1,FALSE) -> 49 | G21: =VLOOKUP($C21,Assumptions!$C$220:$D$273,2,FALSE) -> t/camp | H21: =HLOOKUP(C21,'Seismic and Infrastructure'!$L$74:$AO$107,'Seismic and Infrastructure'!$AQ$107,FALSE) -> 0 | I21: =VLOOKUP(B21,CampsMain,Main!$H$756,FALSE) -> 0 | J21: camps | K21: =(IF(H21="N/A",0,H21)+I21)*F21 -> 0.00
B22: =Main!D104 -> #3.16 | C22: =VLOOKUP(B22,CampsMainInput,Main!$E$756,FALSE) -> Temporary camp - > 1000 and <= 2000 persons | F22: =VLOOKUP($C22,conc_levy_sp_mass_defs,Assumptions!$E$1,FALSE) -> 49 | G22: =VLOOKUP($C22,Assumptions!$C$220:$D$273,2,FALSE) -> t/camp | H22: =HLOOKUP(C22,'Seismic and Infrastructure'!$L$74:$AO$107,'Seismic and Infrastructure'!$AQ$107,FALSE) -> 0 | I22: =VLOOKUP(B22,CampsMain,Main!$H$756,FALSE) -> 0 | J22: camps | K22: 0.00
B23: =Main!D105 -> #3.17 | C23: =VLOOKUP(B23,CampsMainInput,Main!$E$756,FALSE) -> Temporary camp - > 2000 and <= 3000 persons | F23: =VLOOKUP($C23,conc_levy_sp_mass_defs,Assumptions!$E$1,FALSE) -> 49 | G23: =VLOOKUP($C23,Assumptions!$C$220:$D$273,2,FALSE) -> t/camp | H23: =HLOOKUP(C23,'Seismic and Infrastructure'!$L$74:$AO$107,'Seismic and Infrastructure'!$AQ$107,FALSE) -> 0 | I23: =VLOOKUP(B23,CampsMain,Main!$H$756,FALSE) -> 0 | J23: camps | K23: 0.00
B24: =Main!D106 -> #3.18 | C24: =VLOOKUP(B24,CampsMainInput,Main!$E$756,FALSE) -> Temporary camp - > 3000 and <= 4000 persons | F24: =VLOOKUP($C24,conc_levy_sp_mass_defs,Assumptions!$E$1,FALSE) -> 49 | G24: =VLOOKUP($C24,Assumptions!$C$220:$D$273,2,FALSE) -> t/camp | H24: =HLOOKUP(C24,'Seismic and Infrastructure'!$L$74:$AO$107,'Seismic and Infrastructure'!$AQ$107,FALSE) -> 0 | I24: =VLOOKUP(B24,CampsMain,Main!$H$756,FALSE) -> 0 | J24: camps | K24: 0.00
B25: =Main!D107 -> #3.19 | C25: =VLOOKUP(B25,CampsMainInput,Main!$E$756,FALSE) -> Temporary camp - > 4000 and <= 5000 persons | F25: =VLOOKUP($C25,conc_levy_sp_mass_defs,Assumptions!$E$1,FALSE) -> 49 | G25: =VLOOKUP($C25,Assumptions!$C$220:$D$273,2,FALSE) -> t/camp | H25: =HLOOKUP(C25,'Seismic and Infrastructure'!$L$74:$AO$107,'Seismic and Infrastructure'!$AQ$107,FALSE) -> 0 | I25: =VLOOKUP(B25,CampsMain,Main!$H$756,FALSE) -> 0 | J25: camps | K25: 0.00
B26: =Main!D108 -> #3.20 | C26: =VLOOKUP(B26,CampsMainInput,Main!$E$756,FALSE) -> Permanent camp - > 0 and <= 20 persons | F26: =VLOOKUP($C26,conc_levy_sp_mass_defs,Assumptions!$E$1,FALSE) -> 0 | G26: =VLOOKUP($C26,Assumptions!$C$220:$D$273,2,FALSE) -> t/camp | H26: =HLOOKUP(C26,'Seismic and Infrastructure'!$L$74:$AO$107,'Seismic and Infrastructure'!$AQ$107,FALSE) -> 0 | I26: =VLOOKUP(B26,CampsMain,Main!$H$756,FALSE) -> 0 | J26: camps | K26: 0.00
B27: =Main!D109 -> #3.21 | C27: =VLOOKUP(B27,CampsMainInput,Main!$E$756,FALSE) -> Permanent camp - > 20 and <= 50 persons | F27: =VLOOKUP($C27,conc_levy_sp_mass_defs,Assumptions!$E$1,FALSE) -> 194 | G27: =VLOOKUP($C27,Assumptions!$C$220:$D$273,2,FALSE) -> t/camp | H27: =HLOOKUP(C27,'Seismic and Infrastructure'!$L$74:$AO$107,'Seismic and Infrastructure'!$AQ$107,FALSE) -> 0 | I27: =VLOOKUP(B27,CampsMain,Main!$H$756,FALSE) -> 0 | J27: camps | K27: 0.00
B28: =Main!D110 -> #3.22 | C28: =VLOOKUP(B28,CampsMainInput,Main!$E$756,FALSE) -> Permanent camp - > 50 and <= 100 persons | F28: =VLOOKUP($C28,conc_levy_sp_mass_defs,Assumptions!$E$1,FALSE) -> 389 | G28: =VLOOKUP($C28,Assumptions!$C$220:$D$273,2,FALSE) -> t/camp | H28: =HLOOKUP(C28,'Seismic and Infrastructure'!$L$74:$AO$107,'Seismic and Infrastructure'!$AQ$107,FALSE) -> 0 | I28: =VLOOKUP(B28,CampsMain,Main!$H$756,FALSE) -> 0 | J28: camps | K28: 0.00
B29: =Main!D111 -> #3.23 | C29: =VLOOKUP(B29,CampsMainInput,Main!$E$756,FALSE) -> Permanent camp - > 100 and <= 150 persons | F29: =VLOOKUP($C29,conc_levy_sp_mass_defs,Assumptions!$E$1,FALSE) -> 578 | G29: =VLOOKUP($C29,Assumptions!$C$220:$D$273,2,FALSE) -> t/camp | H29: =HLOOKUP(C29,'Seismic and Infrastructure'!$L$74:$AO$107,'Seismic and Infrastructure'!$AQ$107,FALSE) -> 0 | I29: =VLOOKUP(B29,CampsMain,Main!$H$756,FALSE) -> 0 | J29: camps | K29: 0.00
B30: =Main!D112 -> #3.24 | C30: =VLOOKUP(B30,CampsMainInput,Main!$E$756,FALSE) -> Permanent camp - > 150 and <= 200 persons | F30: =VLOOKUP($C30,conc_levy_sp_mass_defs,Assumptions!$E$1,FALSE) -> 822 | G30: =VLOOKUP($C30,Assumptions!$C$220:$D$273,2,FALSE) -> t/camp | H30: =HLOOKUP(C30,'Seismic and Infrastructure'!$L$74:$AO$107,'Seismic and Infrastructure'!$AQ$107,FALSE) -> 0 | I30: =VLOOKUP(B30,CampsMain,Main!$H$756,FALSE) -> 0 | J30: camps | K30: 0.00
B31: =Main!D113 -> #3.25 | C31: =VLOOKUP(B31,CampsMainInput,Main!$E$756,FALSE) -> Permanent camp - > 200 and <= 250 persons | F31: =VLOOKUP($C31,conc_levy_sp_mass_defs,Assumptions!$E$1,FALSE) -> 1065 | G31: =VLOOKUP($C31,Assumptions!$C$220:$D$273,2,FALSE) -> t/camp | H31: =HLOOKUP(C31,'Seismic and Infrastructure'!$L$74:$AO$107,'Seismic and Infrastructure'!$AQ$107,FALSE) -> 0 | I31: =VLOOKUP(B31,CampsMain,Main!$H$756,FALSE) -> 0 | J31: camps | K31: 0.00
B32: =Main!D114 -> #3.26 | C32: =VLOOKUP(B32,CampsMainInput,Main!$E$756,FALSE) -> Permanent camp - > 250 and <= 300 persons | F32: =VLOOKUP($C32,conc_levy_sp_mass_defs,Assumptions!$E$1,FALSE) -> 1157 | G32: =VLOOKUP($C32,Assumptions!$C$220:$D$273,2,FALSE) -> t/camp | H32: =HLOOKUP(C32,'Seismic and Infrastructure'!$L$74:$AO$107,'Seismic and Infrastructure'!$AQ$107,FALSE) -> 0 | I32: =VLOOKUP(B32,CampsMain,Main!$H$756,FALSE) -> 0 | J32: camps | K32: 0.00
B33: =Main!D115 -> #3.27 | C33: =VLOOKUP(B33,CampsMainInput,Main!$E$756,FALSE) -> Permanent camp - > 300 and <= 400 persons | F33: =VLOOKUP($C33,conc_levy_sp_mass_defs,Assumptions!$E$1,FALSE) -> 1401 | G33: =VLOOKUP($C33,Assumptions!$C$220:$D$273,2,FALSE) -> t/camp | H33: =HLOOKUP(C33,'Seismic and Infrastructure'!$L$74:$AO$107,'Seismic and Infrastructure'!$AQ$107,FALSE) -> 0 | I33: =VLOOKUP(B33,CampsMain,Main!$H$756,FALSE) -> 0 | J33: camps | K33: 0.00
B34: =Main!D116 -> #3.28 | C34: =VLOOKUP(B34,CampsMainInput,Main!$E$756,FALSE) -> Permanent camp - > 400 and <= 500 persons | F34: =VLOOKUP($C34,conc_levy_sp_mass_defs,Assumptions!$E$1,FALSE) -> 1687 | G34: =VLOOKUP($C34,Assumptions!$C$220:$D$273,2,FALSE) -> t/camp | H34: =HLOOKUP(C34,'Seismic and Infrastructure'!$L$74:$AO$107,'Seismic and Infrastructure'!$AQ$107,FALSE) -> 0 | I34: =VLOOKUP(B34,CampsMain,Main!$H$756,FALSE) -> 0 | J34: camps | K34: 0.00
B35: =Main!D117 -> #3.29 | C35: =VLOOKUP(B35,CampsMainInput,Main!$E$756,FALSE) -> Permanent camp - > 500 and <= 750 persons | F35: =VLOOKUP($C35,conc_levy_sp_mass_defs,Assumptions!$E$1,FALSE) -> 713 | G35: =VLOOKUP($C35,Assumptions!$C$220:$D$273,2,FALSE) -> t/camp | H35: =HLOOKUP(C35,'Seismic and Infrastructure'!$L$74:$AO$107,'Seismic and Infrastructure'!$AQ$107,FALSE) -> 0 | I35: =VLOOKUP(B35,CampsMain,Main!$H$756,FALSE) -> 0 | J35: camps | K35: 0.00
B36: =Main!D118 -> #3.30 | C36: =VLOOKUP(B36,CampsMainInput,Main!$E$756,FALSE) -> Permanent camp - > 750 and <= 1000 persons | F36: =VLOOKUP($C36,conc_levy_sp_mass_defs,Assumptions!$E$1,FALSE) -> 870 | G36: =VLOOKUP($C36,Assumptions!$C$220:$D$273,2,FALSE) -> t/camp | H36: =HLOOKUP(C36,'Seismic and Infrastructure'!$L$74:$AO$107,'Seismic and Infrastructure'!$AQ$107,FALSE) -> 0 | I36: =VLOOKUP(B36,CampsMain,Main!$H$756,FALSE) -> 0 | J36: camps | K36: 0.00
B37: =Main!D119 -> #3.31 | C37: =VLOOKUP(B37,CampsMainInput,Main!$E$756,FALSE) -> Permanent camp - > 1000 and <= 2000 persons | F37: =VLOOKUP($C37,conc_levy_sp_mass_defs,Assumptions!$E$1,FALSE) -> 1493 | G37: =VLOOKUP($C37,Assumptions!$C$220:$D$273,2,FALSE) -> t/camp | H37: =HLOOKUP(C37,'Seismic and Infrastructure'!$L$74:$AO$107,'Seismic and Infrastructure'!$AQ$107,FALSE) -> 0 | I37: =VLOOKUP(B37,CampsMain,Main!$H$756,FALSE) -> 0 | J37: camps | K37: 0.00
B38: =Main!D120 -> #3.32 | C38: =VLOOKUP(B38,CampsMainInput,Main!$E$756,FALSE) -> Permanent camp - > 2000 and <= 3000 persons | F38: =VLOOKUP($C38,conc_levy_sp_mass_defs,Assumptions!$E$1,FALSE) -> 2227 | G38: =VLOOKUP($C38,Assumptions!$C$220:$D$273,2,FALSE) -> t/camp | H38: =HLOOKUP(C38,'Seismic and Infrastructure'!$L$74:$AO$107,'Seismic and Infrastructure'!$AQ$107,FALSE) -> 0 | I38: =VLOOKUP(B38,CampsMain,Main!$H$756,FALSE) -> 0 | J38: camps | K38: 0.00
B39: =Main!D121 -> #3.33 | C39: =VLOOKUP(B39,CampsMainInput,Main!$E$756,FALSE) -> Permanent camp - > 3000 and <= 4000 persons | F39: =VLOOKUP($C39,conc_levy_sp_mass_defs,Assumptions!$E$1,FALSE) -> 2852 | G39: =VLOOKUP($C39,Assumptions!$C$220:$D$273,2,FALSE) -> t/camp | H39: =HLOOKUP(C39,'Seismic and Infrastructure'!$L$74:$AO$107,'Seismic and Infrastructure'!$AQ$107,FALSE) -> 0 | I39: =VLOOKUP(B39,CampsMain,Main!$H$756,FALSE) -> 0 | J39: camps | K39: 0.00
B40: =Main!D122 -> #3.34 | C40: =VLOOKUP(B40,CampsMainInput,Main!$E$756,FALSE) -> Permanent camp - > 4000 and <= 5000 persons | F40: =VLOOKUP($C40,conc_levy_sp_mass_defs,Assumptions!$E$1,FALSE) -> 3476 | G40: =VLOOKUP($C40,Assumptions!$C$220:$D$273,2,FALSE) -> t/camp | H40: =HLOOKUP(C40,'Seismic and Infrastructure'!$L$74:$AO$107,'Seismic and Infrastructure'!$AQ$107,FALSE) -> 0 | I40: =VLOOKUP(B40,CampsMain,Main!$H$756,FALSE) -> 0 | J40: camps | K40: 0.00
B41: =Main!D123 -> #3.35 | C41: =VLOOKUP(B41,BuildingsMain,Main!$E$756,FALSE) -> Small, Brick wall, Steel roof, Concrete floor, 1 floors | F41: =VLOOKUP($C41,conc_levy_sp_mass_defs,Assumptions!$E$1,FALSE) -> 1.0 | G41: t per m2 | H41: N/A | I41: =VLOOKUP(B41,Main!$D$123:$L$128,Main!$H$756,FALSE) -> 0 | J41: m2 | K41: 0.00
B42: =Main!D124 -> #3.36 | C42: =VLOOKUP(B42,BuildingsMain,Main!$E$756,FALSE) -> Large, Brick wall, Steel roof, Concrete floor, 1 floors | F42: =VLOOKUP($C42,conc_levy_sp_mass_defs,Assumptions!$E$1,FALSE) -> 0.5 | G42: t per m2 | H42: N/A | I42: =VLOOKUP(B42,Main!$D$123:$L$128,Main!$H$756,FALSE) -> 0 | J42: m2 | K42: 0.00
B43: =Main!D125 -> #3.37 | C43: =VLOOKUP(B43,BuildingsMain,Main!$E$756,FALSE) -> Large, Steel wall, Steel roof, Concrete floor, 1 floors | F43: =VLOOKUP($C43,conc_levy_sp_mass_defs,Assumptions!$E$1,FALSE) -> 0.4 | G43: t per m2 | H43: N/A | I43: =VLOOKUP(B43,Main!$D$123:$L$128,Main!$H$756,FALSE) -> 0 | J43: m2 | K43: 0.00
B44: =Main!D126 -> #3.38 | C44: =VLOOKUP(B44,BuildingsMain,Main!$E$756,FALSE) -> Small, Steel wall, Steel roof, Concrete floor, 1 floors | F44: =VLOOKUP($C44,conc_levy_sp_mass_defs,Assumptions!$E$1,FALSE) -> 0.4 | G44: t per m2 | H44: N/A | I44: =VLOOKUP(B44,Main!$D$123:$L$128,Main!$H$756,FALSE) -> 0 | J44: m2 | K44: 0.00
B45: =Main!D127 -> #3.39 | C45: =VLOOKUP(B45,BuildingsMain,Main!$E$756,FALSE) -> Small, Steel wall, Steel roof, Concrete floor, 2 floors | F45: =VLOOKUP($C45,conc_levy_sp_mass_defs,Assumptions!$E$1,FALSE) -> 0.7 | G45: t per m2 | H45: N/A | I45: =VLOOKUP(B45,Main!$D$123:$L$128,Main!$H$756,FALSE) -> 0 | J45: m2 | K45: 0.00
B46: =Main!D135 -> #4.01 | C46: =VLOOKUP(B46,PowerMain,Main!$E$756,FALSE) -> Overhead powerlines (steel towers) | F46: =VLOOKUP($C46,conc_levy_sp_mass_defs,Assumptions!$E$1,FALSE) -> 8 | G46: t per km | H46: N/A | I46: =VLOOKUP(B46,PowerMain,Main!$H$756,FALSE) -> 0 | J46: km | K46: 0.00
B47: =Main!D137 -> #4.03 | C47: =VLOOKUP(B47,PowerMain,Main!$E$756,FALSE) -> Overhead powerlines (concrete poles) | F47: =VLOOKUP($C47,conc_levy_sp_mass_defs,Assumptions!$E$1,FALSE) -> 17 | G47: t per km | H47: N/A | I47: =VLOOKUP(B47,PowerMain,Main!$H$756,FALSE) -> 0 | J47: km | K47: 0.00
B48: =Main!D364 -> #7.03 | C48: =VLOOKUP(B48,GasProcessMainfromInput,Main!$E$756,FALSE) -> Gas Processing Plant > 0 and <= 15 TJ/day | F48: =VLOOKUP($C48,conc_levy_sp_mass_defs,Assumptions!$E$1,FALSE) -> 202 | G48: t per plant | H48: =HLOOKUP(C48,'Process Facilities'!$K$6:$U$29,'Process Facilities'!$V$29,FALSE) -> 0 | I48: =VLOOKUP(B48,GasProcessMain,Main!$H$756,FALSE) -> 0 | J48: plants | K48: 0.00
B49: =Main!D365 -> #7.04 | C49: =VLOOKUP(B49,GasProcessMainfromInput,Main!$E$756,FALSE) -> Gas Processing Plant > 15 and <= 25 TJ/day | F49: =VLOOKUP($C49,conc_levy_sp_mass_defs,Assumptions!$E$1,FALSE) -> 403 | G49: t per plant | H49: =HLOOKUP(C49,'Process Facilities'!$K$6:$U$29,'Process Facilities'!$V$29,FALSE) -> 0 | I49: =VLOOKUP(B49,GasProcessMain,Main!$H$756,FALSE) -> 0 | J49: plants | K49: 0.00
B50: =Main!D366 -> #7.05 | C50: =VLOOKUP(B50,GasProcessMainfromInput,Main!$E$756,FALSE) -> Gas Processing Plant > 25 and <= 50 TJ/day | F50: =VLOOKUP($C50,conc_levy_sp_mass_defs,Assumptions!$E$1,FALSE) -> 605 | G50: t per plant | H50: =HLOOKUP(C50,'Process Facilities'!$K$6:$U$29,'Process Facilities'!$V$29,FALSE) -> 0 | I50: =VLOOKUP(B50,GasProcessMain,Main!$H$756,FALSE) -> 0 | J50: plants | K50: 0.00
B51: =Main!D367 -> #7.06 | C51: =VLOOKUP(B51,GasProcessMainfromInput,Main!$E$756,FALSE) -> Gas Processing Plant > 50 and <= 100 TJ/day | F51: =VLOOKUP($C51,conc_levy_sp_mass_defs,Assumptions!$E$1,FALSE) -> 1109 | G51: t per plant | H51: =HLOOKUP(C51,'Process Facilities'!$K$6:$U$29,'Process Facilities'!$V$29,FALSE) -> 0 | I51: =VLOOKUP(B51,GasProcessMain,Main!$H$756,FALSE) -> 0 | J51: plants | K51: 0.00
B52: =Main!D368 -> #7.07 | C52: =VLOOKUP(B52,GasProcessMainfromInput,Main!$E$756,FALSE) -> Gas Processing Plant > 100 and <= 200 TJ/day | F52: =VLOOKUP($C52,conc_levy_sp_mass_defs,Assumptions!$E$1,FALSE) -> 1714 | G52: t per plant | H52: =HLOOKUP(C52,'Process Facilities'!$K$6:$U$29,'Process Facilities'!$V$29,FALSE) -> 0 | I52: =VLOOKUP(B52,GasProcessMain,Main!$H$756,FALSE) -> 0 | J52: plants | K52: 0.00
B53: =Main!D369 -> #7.08 | C53: =VLOOKUP(B53,GasProcessMainfromInput,Main!$E$756,FALSE) -> Gas Processing Plant > 200 and <= 300 TJ/day | F53: =VLOOKUP($C53,conc_levy_sp_mass_defs,Assumptions!$E$1,FALSE) -> 2016 | G53: t per plant | H53: =HLOOKUP(C53,'Process Facilities'!$K$6:$U$29,'Process Facilities'!$V$29,FALSE) -> 0 | I53: =VLOOKUP(B53,GasProcessMain,Main!$H$756,FALSE) -> 0 | J53: plants | K53: 0.00
B54: =Main!D370 -> #7.09 | C54: =VLOOKUP(B54,GasProcessMainfromInput,Main!$E$756,FALSE) -> Gas Processing Plant > 300 and <= 400 TJ/day | F54: =VLOOKUP($C54,conc_levy_sp_mass_defs,Assumptions!$E$1,FALSE) -> 2117 | G54: t per plant | H54: =HLOOKUP(C54,'Process Facilities'!$K$6:$U$29,'Process Facilities'!$V$29,FALSE) -> 0 | I54: =VLOOKUP(B54,GasProcessMain,Main!$H$756,FALSE) -> 0 | J54: plants | K54: 0.00
B55: =Main!D371 -> #7.10 | C55: =VLOOKUP(B55,GasProcessMainfromInput,Main!$E$756,FALSE) -> Gas Processing Plant > 400 and <= 500 TJ/day | F55: =VLOOKUP($C55,conc_levy_sp_mass_defs,Assumptions!$E$1,FALSE) -> 2218 | G55: t per plant | H55: =HLOOKUP(C55,'Process Facilities'!$K$6:$U$29,'Process Facilities'!$V$29,FALSE) -> 0 | I55: =VLOOKUP(B55,GasProcessMain,Main!$H$756,FALSE) -> 0 | J55: plants | K55: 0.00
B56: =Main!D372 -> #7.11 | C56: =VLOOKUP(B56,GasProcessMainfromInput,Main!$E$756,FALSE) -> Gas Processing Plant > 500 and <= 750 TJ/day | F56: =VLOOKUP($C56,conc_levy_sp_mass_defs,Assumptions!$E$1,FALSE) -> 2268 | G56: t per plant | H56: =HLOOKUP(C56,'Process Facilities'!$K$6:$U$29,'Process Facilities'!$V$29,FALSE) -> 0 | I56: =VLOOKUP(B56,GasProcessMain,Main!$H$756,FALSE) -> 0 | J56: plants | K56: 0.00
B57: =Main!D373 -> #7.12 | C57: =VLOOKUP(B57,GasProcessMainfromInput,Main!$E$756,FALSE) -> Gas Processing Plant > 750 and <= 1000 TJ/day | F57: =VLOOKUP($C57,conc_levy_sp_mass_defs,Assumptions!$E$1,FALSE) -> 2318 | G57: t per plant | H57: =HLOOKUP(C57,'Process Facilities'!$K$6:$U$29,'Process Facilities'!$V$29,FALSE) -> 0 | I57: =VLOOKUP(B57,GasProcessMain,Main!$H$756,FALSE) -> 0 | J57: plants | K57: 0.00
B58: =Main!D377 -> #7.14 | C58: =VLOOKUP(B58,GasProcessMainfromInput,Main!$E$756,FALSE) -> Conventional Gas > 0 and <= 1 TJ/day | F58: =VLOOKUP($C58,conc_levy_sp_mass_defs,Assumptions!$E$1,FALSE) -> 25 | G58: t per plant | H58: =HLOOKUP(C58,'Process Facilities'!$K$35:$R$61,'Process Facilities'!$S$58,FALSE) -> 0 | I58: =VLOOKUP(B58,ConvGasMain,Main!$H$756,FALSE) -> 0 | J58: plants | K58: 0.00
B59: =Main!D378 -> #7.15 | C59: =VLOOKUP(B59,GasProcessMainfromInput,Main!$E$756,FALSE) -> Conventional Gas > 1 and <= 2 TJ/day | F59: =VLOOKUP($C59,conc_levy_sp_mass_defs,Assumptions!$E$1,FALSE) -> 50 | G59: t per plant | H59: =HLOOKUP(C59,'Process Facilities'!$K$35:$R$61,'Process Facilities'!$S$58,FALSE) -> 0 | I59: =VLOOKUP(B59,ConvGasMain,Main!$H$756,FALSE) -> 0 | J59: plants | K59: 0.00
B60: =Main!D379 -> #7.16 | C60: =VLOOKUP(B60,GasProcessMainfromInput,Main!$E$756,FALSE) -> Conventional Gas > 2 and <= 5 TJ/day | F60: =VLOOKUP($C60,conc_levy_sp_mass_defs,Assumptions!$E$1,FALSE) -> 50 | G60: t per plant | H60: =HLOOKUP(C60,'Process Facilities'!$K$35:$R$61,'Process Facilities'!$S$58,FALSE) -> 0 | I60: =VLOOKUP(B60,ConvGasMain,Main!$H$756,FALSE) -> 0 | J60: plants | K60: 0.00
B61: =Main!D380 -> #7.17 | C61: =VLOOKUP(B61,GasProcessMainfromInput,Main!$E$756,FALSE) -> Conventional Gas > 5 and <= 10 TJ/day | F61: =VLOOKUP($C61,conc_levy_sp_mass_defs,Assumptions!$E$1,FALSE) -> 50 | G61: t per plant | H61: =HLOOKUP(C61,'Process Facilities'!$K$35:$R$61,'Process Facilities'!$S$58,FALSE) -> 0 | I61: =VLOOKUP(B61,ConvGasMain,Main!$H$756,FALSE) -> 0 | J61: plants | K61: 0.00
B62: =Main!D381 -> #7.18 | C62: =VLOOKUP(B62,GasProcessMainfromInput,Main!$E$756,FALSE) -> Conventional Gas > 10 and <= 15 TJ/day | F62: =VLOOKUP($C62,conc_levy_sp_mass_defs,Assumptions!$E$1,FALSE) -> 101 | G62: t per plant | H62: =HLOOKUP(C62,'Process Facilities'!$K$35:$R$61,'Process Facilities'!$S$58,FALSE) -> 0 | I62: =VLOOKUP(B62,ConvGasMain,Main!$H$756,FALSE) -> 0 | J62: plants | K62: 0.00
B63: =Main!D382 -> #7.19 | C63: =VLOOKUP(B63,GasProcessMainfromInput,Main!$E$756,FALSE) -> Conventional Gas > 15 and <= 25 TJ/day | F63: =VLOOKUP($C63,conc_levy_sp_mass_defs,Assumptions!$E$1,FALSE) -> 101 | G63: t per plant | H63: =HLOOKUP(C63,'Process Facilities'!$K$35:$R$61,'Process Facilities'!$S$58,FALSE) -> 0 | I63: =VLOOKUP(B63,ConvGasMain,Main!$H$756,FALSE) -> 0 | J63: plants | K63: 0.00
B64: =Main!D383 -> #7.20 | C64: =VLOOKUP(B64,GasProcessMainfromInput,Main!$E$756,FALSE) -> Conventional Gas > 25 and <= 50 TJ/day | F64: =VLOOKUP($C64,conc_levy_sp_mass_defs,Assumptions!$E$1,FALSE) -> 151 | G64: t per plant | H64: =HLOOKUP(C64,'Process Facilities'!$K$35:$R$61,'Process Facilities'!$S$58,FALSE) -> 0 | I64: =VLOOKUP(B64,ConvGasMain,Main!$H$756,FALSE) -> 0 | J64: plants | K64: 0.00
B65: =Main!D386 -> #7.21 | C65: =VLOOKUP(B65,GasProcessMainfromInput,Main!$E$756,FALSE) -> Conventional Oil > 0 and <= 50 kL | F65: =VLOOKUP($C65,conc_levy_sp_mass_defs,Assumptions!$E$1,FALSE) -> 0 | G65: t per plant | H65: =HLOOKUP(C65,'Process Facilities'!$K$123:$R$146,'Process Facilities'!$R$146,FALSE) -> 0 | I65: =VLOOKUP(B65,ConvOilMain,Main!$H$756,FALSE) -> 0 | J65: plants | K65: 0.00
B66: =Main!D387 -> #7.22 | C66: =VLOOKUP(B66,GasProcessMainfromInput,Main!$E$756,FALSE) -> Conventional Oil > 50 and <= 200 kL | F66: =VLOOKUP($C66,conc_levy_sp_mass_defs,Assumptions!$E$1,FALSE) -> 0 | G66: t per plant | H66: =HLOOKUP(C66,'Process Facilities'!$K$123:$R$146,'Process Facilities'!$R$146,FALSE) -> 0 | I66: =VLOOKUP(B66,ConvOilMain,Main!$H$756,FALSE) -> 0 | J66: plants | K66: 0.00
B67: =Main!D388 -> #7.23 | C67: =VLOOKUP(B67,GasProcessMainfromInput,Main!$E$756,FALSE) -> Conventional Oil > 200 and <= 1000 kL | F67: =VLOOKUP($C67,conc_levy_sp_mass_defs,Assumptions!$E$1,FALSE) -> 23 | G67: t per plant | H67: =HLOOKUP(C67,'Process Facilities'!$K$123:$R$146,'Process Facilities'!$R$146,FALSE) -> 0 | I67: =VLOOKUP(B67,ConvOilMain,Main!$H$756,FALSE) -> 0 | J67: plants | K67: 0.00
B68: =Main!D389 -> #7.24 | C68: =VLOOKUP(B68,GasProcessMainfromInput,Main!$E$756,FALSE) -> Conventional Oil > 1000 and <= 5000 kL | F68: =VLOOKUP($C68,conc_levy_sp_mass_defs,Assumptions!$E$1,FALSE) -> 54 | G68: t per plant | H68: =HLOOKUP(C68,'Process Facilities'!$K$123:$R$146,'Process Facilities'!$R$146,FALSE) -> 0 | I68: =VLOOKUP(B68,ConvOilMain,Main!$H$756,FALSE) -> 0 | J68: plants | K68: 0.00
B69: =Main!D390 -> #7.25 | C69: =VLOOKUP(B69,GasProcessMainfromInput,Main!$E$756,FALSE) -> Conventional Oil > 5000 and <= 10000 kL | F69: =VLOOKUP($C69,conc_levy_sp_mass_defs,Assumptions!$E$1,FALSE) -> 112 | G69: t per plant | H69: =HLOOKUP(C69,'Process Facilities'!$K$123:$R$146,'Process Facilities'!$R$146,FALSE) -> 0 | I69: =VLOOKUP(B69,ConvOilMain,Main!$H$756,FALSE) -> 0 | J69: plants | K69: 0.00
B70: =Main!D391 -> #7.26 | C70: =VLOOKUP(B70,GasProcessMainfromInput,Main!$E$756,FALSE) -> Conventional Oil > 10000 and <= 25000 kL | F70: =VLOOKUP($C70,conc_levy_sp_mass_defs,Assumptions!$E$1,FALSE) -> 105 | G70: t per plant | H70: =HLOOKUP(C70,'Process Facilities'!$K$123:$R$146,'Process Facilities'!$R$146,FALSE) -> 0 | I70: =VLOOKUP(B70,ConvOilMain,Main!$H$756,FALSE) -> 0 | J70: plants | K70: 0.00
B71: =Main!D392 -> #7.27 | C71: =VLOOKUP(B71,GasProcessMainfromInput,Main!$E$756,FALSE) -> Conventional Oil > 25000 and <= 50000 kL | F71: =VLOOKUP($C71,conc_levy_sp_mass_defs,Assumptions!$E$1,FALSE) -> 203 | G71: t per plant | H71: =HLOOKUP(C71,'Process Facilities'!$K$123:$R$146,'Process Facilities'!$R$146,FALSE) -> 0 | I71: =VLOOKUP(B71,ConvOilMain,Main!$H$756,FALSE) -> 0 | J71: plants | K71: =(IF(H71="N/A",0,H71)+I71)*F71 -> 0.00
B72: =Main!D395 -> #7.29 | C72: =VLOOKUP(B72,GasProcessMainfromInput,Main!$E$756,FALSE) -> LPG Plant <= 500 kL | F72: =VLOOKUP($C72,conc_levy_sp_mass_defs,Assumptions!$E$1,FALSE) -> 371 | G72: t per plant | H72: =HLOOKUP(C72,'Process Facilities'!$K$152:$M$165,'Process Facilities'!$M$165,FALSE) -> 0 | I72: =VLOOKUP(B72,LPGMain,Main!$H$756,FALSE) -> 0 | J72: plants | K72: 0.00
B73: =Main!D396 -> #7.30 | C73: =VLOOKUP(B73,GasProcessMainfromInput,Main!$E$756,FALSE) -> LPG Plant > 500 kL | F73: =VLOOKUP($C73,conc_levy_sp_mass_defs,Assumptions!$E$1,FALSE) -> 641 | G73: t per plant | H73: =HLOOKUP(C73,'Process Facilities'!$K$152:$M$165,'Process Facilities'!$M$165,FALSE) -> 0 | I73: =VLOOKUP(B73,LPGMain,Main!$H$756,FALSE) -> 0 | J73: plants | K73: 0.00
B74: =Main!D401 -> #8.01 | C74: =VLOOKUP(B74,LNGMain,Main!$E$756,FALSE) -> LNG Plant 1 train | F74: =VLOOKUP($C74,conc_levy_sp_mass_defs,Assumptions!$E$1,FALSE) -> 69327 | G74: t per plant | H74: =IF(AND('LNG Facilities User Build'!$E$7='Waste Register'!C74,'LNG Facilities User Build'!$E$3>0),1,0) -> 0 | I74: =VLOOKUP(B74,LNGMain,Main!$H$756,FALSE) -> 0 | J74: plants | K74: 0.00
B75: =Main!D402 -> #8.02 | C75: =VLOOKUP(B75,LNGMain,Main!$E$756,FALSE) -> LNG Plant 2 train | F75: =VLOOKUP($C75,conc_levy_sp_mass_defs,Assumptions!$E$1,FALSE) -> 69381 | G75: t per plant | H75: =IF(AND('LNG Facilities User Build'!$E$7='Waste Register'!C75,'LNG Facilities User Build'!$E$3>0),1,0) -> 0 | I75: =VLOOKUP(B75,LNGMain,Main!$H$756,FALSE) -> 0 | J75: plants | K75: 0.00
B76: =Main!D403 -> #8.03 | C76: =VLOOKUP(B76,LNGMain,Main!$E$756,FALSE) -> LNG Plant 3 train | F76: =VLOOKUP($C76,conc_levy_sp_mass_defs,Assumptions!$E$1,FALSE) -> 69435 | G76: t per plant | H76: =IF(AND('LNG Facilities User Build'!$E$7='Waste Register'!C76,'LNG Facilities User Build'!$E$3>0),1,0) -> 0 | I76: =VLOOKUP(B76,LNGMain,Main!$H$756,FALSE) -> 0 | J76: plants | K76: 0.00
B77: =Main!D413 -> #9.01 | C77: =VLOOKUP(B77,WaterPlantMain,Main!$E$756,FALSE) -> Water Treatment Plant 1 ML/day | F77: =VLOOKUP($C77,conc_levy_sp_mass_defs,Assumptions!$E$1,FALSE) -> 106 | G77: t per plant | H77: =HLOOKUP(C77,'Process Facilities'!$K$64:$S$87,'Process Facilities'!$S$87,FALSE) -> 0 | I77: =VLOOKUP(B77,WaterPlantMain,Main!$H$756,FALSE) -> 0 | J77: plants | K77: 0.00
B78: =Main!D414 -> #9.02 | C78: =VLOOKUP(B78,WaterPlantMain,Main!$E$756,FALSE) -> Water Treatment Plant 2 ML/day | F78: =VLOOKUP($C78,conc_levy_sp_mass_defs,Assumptions!$E$1,FALSE) -> 211 | G78: t per plant | H78: =HLOOKUP(C78,'Process Facilities'!$K$64:$S$87,'Process Facilities'!$S$87,FALSE) -> 0 | I78: =VLOOKUP(B78,WaterPlantMain,Main!$H$756,FALSE) -> 0 | J78: plants | K78: 0.00
B79: =Main!D415 -> #9.03 | C79: =VLOOKUP(B79,WaterPlantMain,Main!$E$756,FALSE) -> Water Treatment Plant 6 ML/day | F79: =VLOOKUP($C79,conc_levy_sp_mass_defs,Assumptions!$E$1,FALSE) -> 475 | G79: t per plant | H79: =HLOOKUP(C79,'Process Facilities'!$K$64:$S$87,'Process Facilities'!$S$87,FALSE) -> 0 | I79: =VLOOKUP(B79,WaterPlantMain,Main!$H$756,FALSE) -> 0 | J79: plants | K79: 0.00
B80: =Main!D416 -> #9.04 | C80: =VLOOKUP(B80,WaterPlantMain,Main!$E$756,FALSE) -> Water Treatment Plant 12 ML/day | F80: =VLOOKUP($C80,conc_levy_sp_mass_defs,Assumptions!$E$1,FALSE) -> 581 | G80: t per plant | H80: =HLOOKUP(C80,'Process Facilities'!$K$64:$S$87,'Process Facilities'!$S$87,FALSE) -> 0 | I80: =VLOOKUP(B80,WaterPlantMain,Main!$H$756,FALSE) -> 0 | J80: plants | K80: 0.00
B81: =Main!D417 -> #9.05 | C81: =VLOOKUP(B81,WaterPlantMain,Main!$E$756,FALSE) -> Water Treatment Plant 20 ML/day | F81: =VLOOKUP($C81,conc_levy_sp_mass_defs,Assumptions!$E$1,FALSE) -> 739 | G81: t per plant | H81: =HLOOKUP(C81,'Process Facilities'!$K$64:$S$87,'Process Facilities'!$S$87,FALSE) -> 0 | I81: =VLOOKUP(B81,WaterPlantMain,Main!$H$756,FALSE) -> 0 | J81: plants | K81: 0.00
B82: =Main!D418 -> #9.06 | C82: =VLOOKUP(B82,WaterPlantMain,Main!$E$756,FALSE) -> Water Treatment Plant 40 ML/day | F82: =VLOOKUP($C82,conc_levy_sp_mass_defs,Assumptions!$E$1,FALSE) -> 845 | G82: t per plant | H82: =HLOOKUP(C82,'Process Facilities'!$K$64:$S$87,'Process Facilities'!$S$87,FALSE) -> 0 | I82: =VLOOKUP(B82,WaterPlantMain,Main!$H$756,FALSE) -> 0 | J82: plants | K82: 0.00
B83: =Main!D419 -> #9.07 | C83: =VLOOKUP(B83,WaterPlantMain,Main!$E$756,FALSE) -> Water Treatment Plant 80 ML/day BC&TC | F83: =VLOOKUP($C83,conc_levy_sp_mass_defs,Assumptions!$E$1,FALSE) -> 4013 | G83: t per plant | H83: =HLOOKUP(C83,'Process Facilities'!$K$64:$S$87,'Process Facilities'!$S$87,FALSE) -> 0 | I83: =VLOOKUP(B83,WaterPlantMain,Main!$H$756,FALSE) -> 0 | J83: plants | K83: 0.00
B84: =Main!D420 -> #9.08 | C84: =VLOOKUP(B84,WaterPlantMain,Main!$E$756,FALSE) -> Water Treatment Plant 100 ML/day BC&TC | F84: =VLOOKUP($C84,conc_levy_sp_mass_defs,Assumptions!$E$1,FALSE) -> 4435 | G84: t per plant | H84: =HLOOKUP(C84,'Process Facilities'!$K$64:$S$87,'Process Facilities'!$S$87,FALSE) -> 0 | I84: =VLOOKUP(B84,WaterPlantMain,Main!$H$756,FALSE) -> 0 | J84: plants | K84: 0.00
B85: =Main!D620 -> #10.172 | C85: =VLOOKUP(B85,TanksMain,Main!$E$756,FALSE) -> Vertical, Steel, Closed top, Steel, Single skin, Not lined, 500 kL | F85: =VLOOKUP($C85,conc_levy_sp_mass_defs,Assumptions!$E$1,FALSE) -> 14 | G85: t per tank | H85: =VLOOKUP(C85,'Process Facilities User Build'!$B$7:$Y$77,'Process Facilities User Build'!$Y$92,FALSE) -> 0 | I85: =VLOOKUP(B85,TanksMain,Main!$H$756,FALSE) -> 0 | J85: tanks | K85: 0.00
B86: =Main!D621 -> #10.173 | C86: =VLOOKUP(B86,TanksMain,Main!$E$756,FALSE) -> Vertical, Steel, Closed top, Steel, Single skin, Not lined, 1000 kL | F86: =VLOOKUP($C86,conc_levy_sp_mass_defs,Assumptions!$E$1,FALSE) -> 17 | G86: t per tank | H86: =VLOOKUP(C86,'Process Facilities User Build'!$B$7:$Y$77,'Process Facilities User Build'!$Y$92,FALSE) -> 0 | I86: =VLOOKUP(B86,TanksMain,Main!$H$756,FALSE) -> 0 | J86: tanks | K86: 0.00
B87: =Main!D622 -> #10.174 | C87: =VLOOKUP(B87,TanksMain,Main!$E$756,FALSE) -> Vertical, Steel, Closed top, Steel, Single skin, Not lined, 2000 kL | F87: =VLOOKUP($C87,conc_levy_sp_mass_defs,Assumptions!$E$1,FALSE) -> 20 | G87: t per tank | H87: =VLOOKUP(C87,'Process Facilities User Build'!$B$7:$Y$77,'Process Facilities User Build'!$Y$92,FALSE) -> 0 | I87: =VLOOKUP(B87,TanksMain,Main!$H$756,FALSE) -> 0 | J87: tanks | K87: 0.00
B88: =Main!D623 -> #10.175 | C88: =VLOOKUP(B88,TanksMain,Main!$E$756,FALSE) -> Vertical, Steel, Closed top, Steel, Single skin, Not lined, 3000 kL | F88: =VLOOKUP($C88,conc_levy_sp_mass_defs,Assumptions!$E$1,FALSE) -> 23 | G88: t per tank | H88: =VLOOKUP(C88,'Process Facilities User Build'!$B$7:$Y$77,'Process Facilities User Build'!$Y$92,FALSE) -> 0 | I88: =VLOOKUP(B88,TanksMain,Main!$H$756,FALSE) -> 0 | J88: tanks | K88: 0.00
B89: =Main!D624 -> #10.176 | C89: =VLOOKUP(B89,TanksMain,Main!$E$756,FALSE) -> Vertical, Steel, Closed top, Steel, Single skin, Not lined, 5000 kL | F89: =VLOOKUP($C89,conc_levy_sp_mass_defs,Assumptions!$E$1,FALSE) -> 26 | G89: t per tank | H89: =VLOOKUP(C89,'Process Facilities User Build'!$B$7:$Y$77,'Process Facilities User Build'!$Y$92,FALSE) -> 0 | I89: =VLOOKUP(B89,TanksMain,Main!$H$756,FALSE) -> 0 | J89: tanks | K89: 0.00
B90: =Main!D625 -> #10.177 | C90: =VLOOKUP(B90,TanksMain,Main!$E$756,FALSE) -> Vertical, Steel, Closed top, Steel, Single skin, Not lined, 7500 kL | F90: =VLOOKUP($C90,conc_levy_sp_mass_defs,Assumptions!$E$1,FALSE) -> 27 | G90: t per tank | H90: =VLOOKUP(C90,'Process Facilities User Build'!$B$7:$Y$77,'Process Facilities User Build'!$Y$92,FALSE) -> 0 | I90: =VLOOKUP(B90,TanksMain,Main!$H$756,FALSE) -> 0 | J90: tanks | K90: 0.00
B91: =Main!D626 -> #10.178 | C91: =VLOOKUP(B91,TanksMain,Main!$E$756,FALSE) -> Vertical, Steel, Closed top, Steel, Single skin, Not lined, 10000 kL | F91: =VLOOKUP($C91,conc_levy_sp_mass_defs,Assumptions!$E$1,FALSE) -> 29 | G91: t per tank | H91: =VLOOKUP(C91,'Process Facilities User Build'!$B$7:$Y$77,'Process Facilities User Build'!$Y$92,FALSE) -> 0 | I91: =VLOOKUP(B91,TanksMain,Main!$H$756,FALSE) -> 0 | J91: tanks | K91: 0.00
B92: =Main!D627 -> #10.179 | C92: =VLOOKUP(B92,TanksMain,Main!$E$756,FALSE) -> Panel, Concrete, Open top, Earth, Single skin, Lined, 1.2 ML | F92: =VLOOKUP($C92,conc_levy_sp_mass_defs,Assumptions!$E$1,FALSE) -> 94 | G92: t per tank | H92: =VLOOKUP(C92,'Process Facilities User Build'!$B$7:$Y$77,'Process Facilities User Build'!$Y$92,FALSE) -> 0 | I92: =VLOOKUP(B92,TanksMain,Main!$H$756,FALSE) -> 0 | J92: tanks | K92: 0.00
B93: =Main!D628 -> #10.180 | C93: =VLOOKUP(B93,TanksMain,Main!$E$756,FALSE) -> Panel, Concrete, Open top, Earth, Single skin, Lined, 1.9 ML | F93: =VLOOKUP($C93,conc_levy_sp_mass_defs,Assumptions!$E$1,FALSE) -> 116 | G93: t per tank | H93: =VLOOKUP(C93,'Process Facilities User Build'!$B$7:$Y$77,'Process Facilities User Build'!$Y$92,FALSE) -> 0 | I93: =VLOOKUP(B93,TanksMain,Main!$H$756,FALSE) -> 0 | J93: tanks | K93: 0.00
B94: =Main!D629 -> #10.181 | C94: =VLOOKUP(B94,TanksMain,Main!$E$756,FALSE) -> Panel, Concrete, Open top, Earth, Single skin, Lined, 3.6 ML | F94: =VLOOKUP($C94,conc_levy_sp_mass_defs,Assumptions!$E$1,FALSE) -> 169 | G94: t per tank | H94: =VLOOKUP(C94,'Process Facilities User Build'!$B$7:$Y$77,'Process Facilities User Build'!$Y$92,FALSE) -> 0 | I94: =VLOOKUP(B94,TanksMain,Main!$H$756,FALSE) -> 0 | J94: tanks | K94: 0.00
B95: =Main!D630 -> #10.182 | C95: =VLOOKUP(B95,TanksMain,Main!$E$756,FALSE) -> Panel, Concrete, Open top, Earth, Single skin, Lined, 5.5 ML | F95: =VLOOKUP($C95,conc_levy_sp_mass_defs,Assumptions!$E$1,FALSE) -> 203 | G95: t per tank | H95: =VLOOKUP(C95,'Process Facilities User Build'!$B$7:$Y$77,'Process Facilities User Build'!$Y$92,FALSE) -> 0 | I95: =VLOOKUP(B95,TanksMain,Main!$H$756,FALSE) -> 0 | J95: tanks | K95: 0.00
B96: =Main!D631 -> #10.183 | C96: =VLOOKUP(B96,TanksMain,Main!$E$756,FALSE) -> Panel, Concrete, Open top, Earth, Single skin, Lined, 7.6 ML | F96: =VLOOKUP($C96,conc_levy_sp_mass_defs,Assumptions!$E$1,FALSE) -> 244 | G96: t per tank | H96: =VLOOKUP(C96,'Process Facilities User Build'!$B$7:$Y$77,'Process Facilities User Build'!$Y$92,FALSE) -> 0 | I96: =VLOOKUP(B96,TanksMain,Main!$H$756,FALSE) -> 0 | J96: tanks | K96: 0.00
B97: =Main!D632 -> #10.184 | C97: =VLOOKUP(B97,TanksMain,Main!$E$756,FALSE) -> Panel, Concrete, Open top, Earth, Single skin, Lined, 12 ML | F97: =VLOOKUP($C97,conc_levy_sp_mass_defs,Assumptions!$E$1,FALSE) -> 338 | G97: t per tank | H97: =VLOOKUP(C97,'Process Facilities User Build'!$B$7:$Y$77,'Process Facilities User Build'!$Y$92,FALSE) -> 0 | I97: =VLOOKUP(B97,TanksMain,Main!$H$756,FALSE) -> 0 | J97: tanks | K97: 0.00
B98: =Main!D633 -> #10.185 | C98: =VLOOKUP(B98,TanksMain,Main!$E$756,FALSE) -> Panel, Concrete, Open top, Earth, Single skin, Lined, 15.5 ML | F98: =VLOOKUP($C98,conc_levy_sp_mass_defs,Assumptions!$E$1,FALSE) -> 400 | G98: t per tank | H98: =VLOOKUP(C98,'Process Facilities User Build'!$B$7:$Y$77,'Process Facilities User Build'!$Y$92,FALSE) -> 0 | I98: =VLOOKUP(B98,TanksMain,Main!$H$756,FALSE) -> 0 | J98: tanks | K98: 0.00
B99: =Main!D634 -> #10.186 | C99: =VLOOKUP(B99,TanksMain,Main!$E$756,FALSE) -> Panel, Concrete, Open top, Earth, Single skin, Lined, 25 ML | F99: =VLOOKUP($C99,conc_levy_sp_mass_defs,Assumptions!$E$1,FALSE) -> 513 | G99: t per tank | H99: =VLOOKUP(C99,'Process Facilities User Build'!$B$7:$Y$77,'Process Facilities User Build'!$Y$92,FALSE) -> 0 | I99: =VLOOKUP(B99,TanksMain,Main!$H$756,FALSE) -> 0 | J99: tanks | K99: 0.00
B100: =Main!D635 -> #10.187 | C100: =VLOOKUP(B100,TanksMain,Main!$E$756,FALSE) -> Panel, Concrete, Open top, Earth, Single skin, Lined, 40 ML | F100: =VLOOKUP($C100,conc_levy_sp_mass_defs,Assumptions!$E$1,FALSE) -> 641 | G100: t per tank | H100: =VLOOKUP(C100,'Process Facilities User Build'!$B$7:$Y$77,'Process Facilities User Build'!$Y$92,FALSE) -> 0 | I100: =VLOOKUP(B100,TanksMain,Main!$H$756,FALSE) -> 0 | J100: tanks | K100: 0.00
B101: =Main!D636 -> #10.188 | C101: =VLOOKUP(B101,TanksMain,Main!$E$756,FALSE) -> Panel, Concrete, Open top, Earth, Single skin, Lined, 50 ML | F101: =VLOOKUP($C101,conc_levy_sp_mass_defs,Assumptions!$E$1,FALSE) -> 708 | G101: t per tank | H101: =VLOOKUP(C101,'Process Facilities User Build'!$B$7:$Y$77,'Process Facilities User Build'!$Y$92,FALSE) -> 0 | I101: =VLOOKUP(B101,TanksMain,Main!$H$756,FALSE) -> 0 | J101: tanks | K101: 0.00 | L101: Metro | M101: Regional
K102: Total | L102: Total to ERC amount (only applied if Waste Levy applies)
K103: =SUM(K7:K102) -> 0.00 | L103: =IF(Registration!D19=Waste_levy_Metro,K103,0) -> 0.00 | M103: =IF(Registration!$D$19=Waste_Levy_regional,K103,0) -> 0.00
L105: Metro | M105: Regional
B106: Reference | C106: Activity | F106: Mass | G106: Unit | H106: Qty | J106: Unit | K106: Total | L106: Total to ERC amount (only applied if Waste Levy applies)
B107: Inv Contam | C107: =Lists!C282 -> Asbestos (ACM) | F107: =HLOOKUP(C107,'Investigation Contamination'!$J$25:$S$38,'Investigation Contamination'!$T$38,FALSE) -> 0.00 | G107: t | H107: 1 | J107: total | K107: =H107*F107 -> 0.0 | L107: =IF(Registration!$D$19=Waste_levy_Metro,K107,0) -> 0.0 | M107: =IF(Registration!$D$19=Waste_Levy_regional,K107,0) -> 0.0
B108: Inv Contam | C108: =Lists!C283 -> Asbestos in soil | F108: =HLOOKUP(C108,'Investigation Contamination'!$J$25:$S$38,'Investigation Contamination'!$T$38,FALSE) -> 0.00 | G108: t | H108: 1 | J108: total | K108: =H108*F108 -> 0.0 | L108: =IF(Registration!$D$19=Waste_levy_Metro,K108,0) -> 0.0 | M108: =IF(Registration!$D$19=Waste_Levy_regional,K108,0) -> 0.0
B109: Inv Contam | C109: =Lists!C284 -> Low Level Petroleum Hydrocarbons in soil | F109: =HLOOKUP(C109,'Investigation Contamination'!$J$25:$S$38,'Investigation Contamination'!$T$38,FALSE) -> 0.00 | G109: t | H109: 1 | J109: total | K109: 0.0 | L109: =IF(Registration!$D$19=Waste_levy_Metro,K109,0) -> 0.0 | M109: =IF(Registration!$D$19=Waste_Levy_regional,K109,0) -> 0.0
B110: Inv Contam | C110: =Lists!C285 -> High Level Petroleum Hydrocarbons in soil | F110: =HLOOKUP(C110,'Investigation Contamination'!$J$25:$S$38,'Investigation Contamination'!$T$38,FALSE) -> 0.00 | G110: t | H110: 1 | J110: total | K110: 0.0 | L110: =IF(Registration!$D$19=Waste_levy_Metro,K110,0) -> 0.0 | M110: =IF(Registration!$D$19=Waste_Levy_regional,K110,0) -> 0.0
B111: Inv Contam | C111: =Lists!C286 -> Low level inorganics in soil | F111: =HLOOKUP(C111,'Investigation Contamination'!$J$25:$S$38,'Investigation Contamination'!$T$38,FALSE) -> 0.00 | G111: t | H111: 1 | J111: total | K111: =H111*F111 -> 0.0 | L111: =IF(Registration!$D$19=Waste_levy_Metro,K111,0) -> 0.0 | M111: =IF(Registration!$D$19=Waste_Levy_regional,K111,0) -> 0.0
B112: Inv Contam | C112: =Lists!C287 -> High level inorganics in soil | F112: =HLOOKUP(C112,'Investigation Contamination'!$J$25:$S$38,'Investigation Contamination'!$T$38,FALSE) -> 0.00 | G112: t | H112: 1 | J112: total | K112: 0.0 | L112: =IF(Registration!$D$19=Waste_levy_Metro,K112,0) -> 0.0 | M112: =IF(Registration!$D$19=Waste_Levy_regional,K112,0) -> 0.0
B113: Inv Contam | C113: =Lists!C288 -> General Waste | F113: =HLOOKUP(C113,'Investigation Contamination'!$J$25:$S$38,'Investigation Contamination'!$T$38,FALSE) -> 0.00 | G113: t | H113: 1 | J113: total | K113: =H113*F113 -> 0.0 | L113: =IF(Registration!$D$19=Waste_levy_Metro,K113,0) -> 0.0 | M113: =IF(Registration!$D$19=Waste_Levy_regional,K113,0) -> 0.0
B114: Inv Contam | C114: =Lists!C289 -> Construction / building waste | F114: =HLOOKUP(C114,'Investigation Contamination'!$J$25:$S$38,'Investigation Contamination'!$T$38,FALSE) -> 0.00 | G114: t | H114: 1 | J114: total | K114: 0.0 | L114: =IF(Registration!$D$19=Waste_levy_Metro,K114,0) -> 0.0 | M114: =IF(Registration!$D$19=Waste_Levy_regional,K114,0) -> 0.0
B115: Inv Contam | C115: =Lists!C290 -> Regulated waste (e.g. tires and belts) | F115: =HLOOKUP(C115,'Investigation Contamination'!$J$25:$S$38,'Investigation Contamination'!$T$38,FALSE) -> 0.00 | G115: t | H115: 1 | J115: total | K115: 0.0 | L115: =IF(Registration!$D$19=Waste_levy_Metro,K115,0) -> 0.0 | M115: =IF(Registration!$D$19=Waste_Levy_regional,K115,0) -> 0.0

Sheet Input Sheets >>
B10: Contents

Sheet General Land Rehabilitation
C2: =CONTENTS!B2 -> Petroleum and Gas Estimated Rehabilitation Cost Calculator
C3: Contents | D3: GENERAL LAND REHABILITATION
C4: Total ERC | D4: =ERC -> 0
D5: Only areas not included in other areas
D6: Land Rehabilitation and Repair of Subsidence and Land Management
C7: Map ID | D7: Name of Area | E7: Maintenance of rehabilitated areas | F7: Existing rehabilitation repair - minor | G7: Existing rehabilitation repair - moderate | H7: Existing rehabilitation repair - major | I7: Existing rehabilitation repair - total failure of intended landform | J7: Rehabilitation of miscellaneous footprints | K7: Land management of undisturbed areas (e.g., weed management, feral animal control, erosion and sediment control works) | L7: Pest management on buffer lands, non-disturbed, and rehabilitated areas | N7: 1
E8: ha | F8: ha | G8: ha | H8: ha | I8: ha | J8: Ha | K8: ha | L8: ha | N8: =N7+1 -> 2
B9: 1 | N9: =N8+1 -> 3
B10: =B9+1 -> 2 | N10: 4
B11: 3 | N11: 5
B12: 4 | N12: 6
B13: 5 | N13: 7
B14: 6 | N14: 8
B15: 7 | N15: 9
B16: 8 | N16: 10
B17: 9 | N17: 11
B18: 10 | N18: 12
N19: 13
D20: Quantity Totals | E20: =SUM(E8:E19) -> 0.00 | F20: =SUM(F8:F19) -> 0.00 | G20: 0.00 | H20: 0.00 | I20: 0.00 | J20: 0.00 | K20: 0.00 | L20: 0.00 | N20: 14
C23: Top | D23: Natural Drainage and Diversions
C24: Map ID | D24: Name of Area | E24: Engineered cut-through drain | F24: Repairs and/or stabilisation of new or compromised water course diversion | G24: Long term maintenance of water course diversion – Channel constructed through backfilled material | H24: Long term maintenance of water course diversion – Channel constructed through competent material | I24: Installation of rock armouring | K24: 1
E25: ha | F25: m | G25: m | H25: m | I25: m2 | K25: =K24+1 -> 2
B26: 1 | K26: =K25+1 -> 3
B27: =B26+1 -> 2 | K27: 4
B28: 3 | K28: 5
B29: 4 | K29: 6
B30: 5 | K30: 7
B31: 6 | K31: 8
B32: 7 | K32: 9
B33: 8 | K33: 10
B34: 9 | K34: 11
B35: 10 | K35: 12
K36: 13
D37: Quantity Totals | E37: =SUM(E25:E36) -> 0.00 | F37: =SUM(F25:F36) -> 0.00 | G37: 0.00 | H37: 0.00 | I37: 0.00 | K37: 14
C40: Top | D40: General Doze and Rip
C41: Map ID | D41: Name of Area | E41: General doze deep ripping - D6R | F41: General doze deep ripping - D7R | G41: General doze deep ripping - D8R | H41: General doze deep ripping - D9R | I41: General doze deep ripping - D10T | J41: General doze deep ripping - D11T | K41: General doze and shape to re-establish natural drainage and rip - D6R dozer | L41: General doze and shape to re-establish natural drainage and rip - D7R dozer | M41: General doze and shape to re-establish natural drainage and rip - D8R dozer | N41: General doze and shape to re-establish natural drainage and rip - D9R dozer | O41: General doze and shape to re-establish natural drainage and rip - D10T dozer | P41: General doze and shape to re-establish natural drainage and rip - D11T dozer | R41: 1
E42: ha | F42: ha | G42: ha | H42: ha | I42: ha | J42: ha | K42: ha | L42: ha | M42: ha | N42: ha | O42: ha | P42: ha | R42: =R41+1 -> 2
B43: 1 | R43: =R42+1 -> 3
B44: =B43+1 -> 2 | R44: 4
B45: 3 | R45: 5
B46: 4 | R46: 6
B47: 5 | R47: 7
B48: 6 | R48: 8
B49: 7 | R49: 9
B50: 8 | R50: 10
B51: 9 | R51: 11
B52: 10 | R52: 12
R53: 13
D54: Quantity Totals | E54: =SUM(E42:E53) -> 0.00 | F54: =SUM(F42:F53) -> 0.00 | G54: 0.00 | H54: 0.00 | I54: 0.00 | J54: 0.00 | K54: 0.00 | L54: 0.00 | M54: 0.00 | N54: 0.00 | O54: 0.00 | P54: 0.00 | R54: 14
C57: Top | D57: General Grade and Rip
C58: Map ID | D58: Name of Area | E58: General grader and shape to re-establish natural rip - 12M | F58: General grader and shape to re-establish natural rip - 14M | G58: General grader and shape to re-establish natural rip - 16M | I58: 1
E59: ha | F59: ha | G59: ha | I59: =I58+1 -> 2
B60: 1 | I60: =I59+1 -> 3
B61: 2 | I61: 4
B62: 3 | I62: 5
B63: 4 | I63: 6
B64: 5 | I64: 7
B65: 6 | I65: 8
B66: 7 | I66: 9
B67: 8 | I67: 10
B68: 9 | I68: 11
B69: 10 | I69: 12
I70: 13
D71: Quantity Totals | E71: =SUM(E59:E70) -> 0.00 | F71: =SUM(F59:F70) -> 0.00 | G71: 0.00 | I71: 14
C74: Top | D74: Miscellaneous Soil Amelioration and Seeding
C75: Map ID | D75: Name of Area | E75: =Lists!C127 -> Planting mature trees (>15 cm) | F75: =Lists!C128 -> Planting tube stock (<=15 cm) | G75: =Lists!C129 -> Hydro-seeding with mulch and bitumen tack | H75: =Lists!E118 -> Gypsum Normal Soil | I75: =Lists!F118 -> Gypsum Sodic Soil | J75: =Lists!G118 -> Gypsum Recycled Normal Soil | K75: =Lists!H118 -> Gypsum Recycled Sodic Soil | L75: =Lists!I118 -> Lime | M75: =Lists!J118 -> Biosolids, MSW, Manure | N75: =Lists!K118 -> Hay Mulch / Sugar Cane | O75: =Lists!L118 -> Fertiliser pasture | P75: =Lists!M118 -> Fertiliser trees | Q75: =Lists!C134 -> Direct seeding / fertiliser (pasture grass species) | R75: =Lists!D134 -> Direct seeding / fertiliser (native tree/shrub/grass species) | T75: 1
E76: Whole # | F76: Whole # | G76: m2 | H76: ha | I76: ha | J76: ha | K76: ha | L76: ha | M76: ha | N76: ha | O76: ha | P76: ha | Q76: ha | R76: ha | T76: =T75+1 -> 2
B77: 1 | T77: =T76+1 -> 3
B78: 2 | T78: 4
B79: 3 | T79: 5
B80: 4 | T80: 6
B81: 5 | T81: 7
B82: 6 | T82: 8
B83: 7 | T83: 9
B84: 8 | T84: 10
B85: 9 | T85: 11
B86: 10 | T86: 12
T87: 13
D88: Quantity Totals | E88: =SUM(E76:E87) -> 0.00 | F88: =SUM(F76:F87) -> 0.00 | G88: 0.00 | H88: 0.00 | I88: 0.00 | J88: =SUM(J76:J87) -> 0.00 | K88: 0.00 | L88: 0.00 | M88: 0.00 | N88: 0.00 | O88: 0.00 | P88: 0.00 | Q88: 0.00 | R88: 0.00 | T88: 14
C91: Top | D91: Bores
C92: Map ID | D92: Name of Area | E92: =Lists!E346 -> Water supply bore hole plugging | F92: =Lists!F346 -> Monitoring bore hole plugging | G92: =Lists!G346 -> Water supply bore hole backfilling with cuttings | H92: =Lists!H346 -> Monitoring bore hole backfilling with cuttings | I92: =Lists!I346 -> Water supply bore hole grounting | J92: =Lists!J346 -> Monitoring bore hole grouting | K92: =Lists!K346 -> Water reinjection bore hole grouting | N92: 1
E93: Whole # (bore) | F93: Whole # (bore) | G93: Whole # (bore) | H93: Whole # (bore) | I93: Whole # (bore) | J93: Whole # (bore) | K93: Whole # (bore) | N93: =N92+1 -> 2
B94: 1 | N94: =N93+1 -> 3
B95: 2 | N95: 4
B96: 3 | N96: 5
B97: 4 | N97: 6
B98: 5 | N98: 7
B99: 6 | N99: 8
B100: 7 | N100: 9
B101: 8 | N101: 10
B102: 9 | N102: 11
B103: 10 | N103: 12
N104: 13
D105: Quantity Totals | E105: =SUM(E93:E104) -> 0 | F105: =SUM(F93:F104) -> 0 | G105: 0 | H105: 0 | I105: 0 | J105: 0 | K105: 0 | N105: 14

Sheet Wells
B2: =CONTENTS!$B$2 -> Petroleum and Gas Estimated Rehabilitation Cost Calculator
B3: Contents | C3: WELLS INPUT SHEET | H3: Decom rate | I3: =VLOOKUP(I7,WellList_values_subs,Subrates!$D$1,FALSE) -> $479.88 | J3: =VLOOKUP(J7,WellList_values_subs,Subrates!$D$1,FALSE) -> $1,397.15 | K3: =VLOOKUP(K7,WellList_values_subs,Subrates!$D$1,FALSE) -> $9,249.17 | L3: =VLOOKUP(L7,WellList_values_subs,Subrates!$D$1,FALSE) -> $12,079.24 | M3: =VLOOKUP(M7,WellList_values_subs,Subrates!$D$1,FALSE) -> $17,630.95 | N3: =VLOOKUP(N7,WellList_values_subs,Subrates!$D$1,FALSE) -> $14,287.48 | O3: =VLOOKUP(O7,WellList_values_subs,Subrates!$D$1,FALSE) -> $2,968.46 | P3: =VLOOKUP(P7,WellList_values_subs,Subrates!$D$1,FALSE) -> $479.88 | Q3: =VLOOKUP(Q7,WellList_values_subs,Subrates!$D$1,FALSE) -> $542.22 | R3: =VLOOKUP(R7,WellList_values_subs,Subrates!$D$1,FALSE) -> $3,268.45 | S3: =VLOOKUP(S7,WellList_values_subs,Subrates!$D$1,FALSE) -> $5,119.90 | T3: =VLOOKUP(T7,WellList_values_subs,Subrates!$D$1,FALSE) -> $3,268.45 | U3: =VLOOKUP(U7,WellList_values_subs,Subrates!$D$1,FALSE) -> $7,755.32 | V3: =VLOOKUP(V7,WellList_values_subs,Subrates!$D$1,FALSE) -> $11,801.89 | W3: =VLOOKUP(W7,WellList_values_subs,Subrates!$D$1,FALSE) -> $479.88 | X3: =VLOOKUP(X7,WellList_values_subs,Subrates!$D$1,FALSE) -> $1,474.50 | Y3: =VLOOKUP(Y7,WellList_values_subs,Subrates!$D$1,FALSE) -> $8,267.95 | Z3: =VLOOKUP(Z7,WellList_values_subs,Subrates!$D$1,FALSE) -> $10,324.52 | AA3: =VLOOKUP(AA7,WellList_values_subs,Subrates!$D$1,FALSE) -> $7,405.04 | AB3: =VLOOKUP(AB7,WellList_values_subs,Subrates!$D$1,FALSE) -> $20,767.82 | AC3: =VLOOKUP(AC7,WellList_values_subs,Subrates!$D$1,FALSE) -> $11,122.04 | AD3: =VLOOKUP(AD7,WellList_values_subs,Subrates!$D$1,FALSE) -> $35,522.71 | AE3: =VLOOKUP(AE7,WellList_values_subs,Subrates!$D$1,FALSE) -> $20,090.52 | AF3: =VLOOKUP(AF7,WellList_values_subs,Subrates!$D$1,FALSE) -> $479.88 | AG3: =VLOOKUP(AG7,WellList_values_subs,Subrates!$D$1,FALSE) -> $1,474.50 | AH3: =VLOOKUP(AH7,WellList_values_subs,Subrates!$D$1,FALSE) -> $8,267.95 | AI3: =VLOOKUP(AI7,WellList_values_subs,Subrates!$D$1,FALSE) -> $10,324.52 | AJ3: =VLOOKUP(AJ7,WellList_values_subs,Subrates!$D$1,FALSE) -> $7,245.61 | AK3: =VLOOKUP(AK7,WellList_values_subs,Subrates!$D$1,FALSE) -> $10,776.34 | AL3: =VLOOKUP(AL7,WellList_values_subs,Subrates!$D$1,FALSE) -> $19,597.00 | AM3: =VLOOKUP(AM7,WellList_coreholes_values_subs,Subrates!$D$1,FALSE) -> $13.78 | AN3: =VLOOKUP(AN7,WellList_coreholes_values_subs,Subrates!$D$1,FALSE) -> $13.78 | AO3: =VLOOKUP(AO7,WellList_coreholes_values_subs,Subrates!$D$1,FALSE) -> $13.78 | AP3: Seed | AQ3: =VLOOKUP(AQ$7,WellList_values_subs,Subrates!$E$1,FALSE) -> $500,000.00 | AR3: =VLOOKUP(AR$7,WellList_values_subs,Subrates!$E$1,FALSE) -> $331.25 | AS3: =VLOOKUP(AS$7,WellList_values_subs,Subrates!$E$1,FALSE) -> $375.00 | AT3: =VLOOKUP(AT$7,WellList_values_subs,Subrates!$E$1,FALSE) -> $375.00 | AU3: =VLOOKUP(AU$7,WellList_values_subs,Subrates!$E$1,FALSE) -> $550.00 | AV3: =VLOOKUP(AV$7,WellList_values_subs,Subrates!$E$1,FALSE) -> $550.00 | AW3: =VLOOKUP(AW$7,WellList_values_subs,Subrates!$E$1,FALSE) -> $375.00 | AX3: =VLOOKUP(AX$7,WellList_values_subs,Subrates!$E$1,FALSE) -> $500,000.00 | AY3: =VLOOKUP(AY$7,WellList_values_subs,Subrates!$E$1,FALSE) -> $1,500.00 | AZ3: =VLOOKUP(AZ$7,WellList_values_subs,Subrates!$E$1,FALSE) -> $1,500.00 | BA3: =VLOOKUP(BA$7,WellList_values_subs,Subrates!$E$1,FALSE) -> $375.00 | BB3: =VLOOKUP(BB$7,WellList_values_subs,Subrates!$E$1,FALSE) -> $1,500.00 | BC3: =VLOOKUP(BC$7,WellList_values_subs,Subrates!$E$1,FALSE) -> $6,444.96 | BD3: =VLOOKUP(BD$7,WellList_values_subs,Subrates!$E$1,FALSE) -> $1,777.00 | BE3: =VLOOKUP(BE$7,WellList_values_subs,Subrates!$E$1,FALSE) -> $500,000.00 | BF3: =VLOOKUP(BF$7,WellList_values_subs,Subrates!$E$1,FALSE) -> $6,400.00 | BG3: =VLOOKUP(BG$7,WellList_values_subs,Subrates!$E$1,FALSE) -> $9,200.00 | BH3: =VLOOKUP(BH$7,WellList_values_subs,Subrates!$E$1,FALSE) -> $5,142.96 | BI3: =VLOOKUP(BI$7,WellList_values_subs,Subrates!$E$1,FALSE) -> $12,000.00 | BJ3: =VLOOKUP(BJ$7,WellList_values_subs,Subrates!$E$1,FALSE) -> $5,242.96 | BK3: =VLOOKUP(BK$7,WellList_values_subs,Subrates!$E$1,FALSE) -> $5,842.96 | BL3: =VLOOKUP(BL$7,WellList_values_subs,Subrates!$E$1,FALSE) -> $5,282.96 | BM3: =VLOOKUP(BM$7,WellList_values_subs,Subrates!$E$1,FALSE) -> $5,709.62 | BN3: =VLOOKUP(BN$7,WellList_values_subs,Subrates!$E$1,FALSE) -> $500,000.00 | BO3: =VLOOKUP(BO$7,WellList_values_subs,Subrates!$E$1,FALSE) -> $133.33 | BP3: =VLOOKUP(BP$7,WellList_values_subs,Subrates!$E$1,FALSE) -> $250.00 | BQ3: =VLOOKUP(BQ$7,WellList_values_subs,Subrates!$E$1,FALSE) -> $5,026.29 | BR3: =VLOOKUP(BR$7,WellList_values_subs,Subrates!$E$1,FALSE) -> $766.67 | BS3: =VLOOKUP(BS$7,WellList_values_subs,Subrates!$E$1,FALSE) -> $5,242.96 | BT3: =VLOOKUP(BT$7,WellList_values_subs,Subrates!$E$1,FALSE) -> $5,709.62 | BU3: =VLOOKUP(BU$7,WellList_coreholes_values_subs,Subrates!$E$1,FALSE) -> $30,000.00 | BV3: =VLOOKUP(BV$7,WellList_coreholes_values_subs,Subrates!$E$1,FALSE) -> $30,000.00 | BW3: =VLOOKUP(BW$7,WellList_coreholes_values_subs,Subrates!$E$1,FALSE) -> $30,000.00 | BX3: Arid ($/ha) | BY3: =VLOOKUP(AQ$7,WellList_values_subs,Subrates!$F$1,FALSE) -> 0 | BZ3: =VLOOKUP(AR$7,WellList_values_subs,Subrates!$F$1,FALSE) -> $131.25 | CA3: =VLOOKUP(AS$7,WellList_values_subs,Subrates!$F$1,FALSE) -> $175.00 | CB3: =VLOOKUP(AT$7,WellList_values_subs,Subrates!$F$1,FALSE) -> $175.00 | CC3: =VLOOKUP(AU$7,WellList_values_subs,Subrates!$F$1,FALSE) -> $350.00 | CD3: =VLOOKUP(AV$7,WellList_values_subs,Subrates!$F$1,FALSE) -> $350.00 | CE3: =VLOOKUP(AW$7,WellList_values_subs,Subrates!$F$1,FALSE) -> $175.00 | CF3: =VLOOKUP(AX$7,WellList_values_subs,Subrates!$F$1,FALSE) -> 0 | CG3: =VLOOKUP(AY$7,WellList_values_subs,Subrates!$F$1,FALSE) -> $700.00 | CH3: =VLOOKUP(AZ$7,WellList_values_subs,Subrates!$F$1,FALSE) -> $700.00 | CI3: =VLOOKUP(BA$7,WellList_values_subs,Subrates!$F$1,FALSE) -> $175.00 | CJ3: =VLOOKUP(BB$7,WellList_values_subs,Subrates!$F$1,FALSE) -> $700.00 | CK3: =VLOOKUP(BC$7,WellList_values_subs,Subrates!$F$1,FALSE) -> $1,400.00 | CL3: =VLOOKUP(BD$7,WellList_values_subs,Subrates!$F$1,FALSE) -> $1,575.00 | CM3: =VLOOKUP(BE$7,WellList_values_subs,Subrates!$F$1,FALSE) -> 0 | CN3: =VLOOKUP(BF$7,WellList_values_subs,Subrates!$F$1,FALSE) -> 0 | CO3: =VLOOKUP(BG$7,WellList_values_subs,Subrates!$F$1,FALSE) -> $2,800.00 | CP3: =VLOOKUP(BH$7,WellList_values_subs,Subrates!$F$1,FALSE) -> $233.33 | CQ3: =VLOOKUP(BI$7,WellList_values_subs,Subrates!$F$1,FALSE) -> $5,600.00 | CR3: =VLOOKUP(BJ$7,WellList_values_subs,Subrates!$F$1,FALSE) -> $466.67 | CS3: =VLOOKUP(BK$7,WellList_values_subs,Subrates!$F$1,FALSE) -> $933.33 | CT3: =VLOOKUP(BL$7,WellList_values_subs,Subrates!$F$1,FALSE) -> $560.00 | CU3: =VLOOKUP(BM$7,WellList_values_subs,Subrates!$F$1,FALSE) -> $933.33 | CV3: =VLOOKUP(BN$7,WellList_values_subs,Subrates!$F$1,FALSE) -> 0 | CW3: =VLOOKUP(BO$7,WellList_values_subs,Subrates!$F$1,FALSE) -> 0 | CX3: =VLOOKUP(BP$7,WellList_values_subs,Subrates!$F$1,FALSE) -> $116.67 | CY3: =VLOOKUP(BQ$7,WellList_values_subs,Subrates!$F$1,FALSE) -> $116.67 | CZ3: =VLOOKUP(BR$7,WellList_values_subs,Subrates!$F$1,FALSE) -> $233.33 | DA3: =VLOOKUP(BS$7,WellList_values_subs,Subrates!$F$1,FALSE) -> $466.67 | DB3: =VLOOKUP(BT$7,WellList_values_subs,Subrates!$F$1,FALSE) -> $933.33 | DC3: =VLOOKUP(BU$7,WellList_coreholes_values_subs,Subrates!$F$1,FALSE) -> 0 | DD3: =VLOOKUP(BV$7,WellList_coreholes_values_subs,Subrates!$F$1,FALSE) -> 0 | DE3: =VLOOKUP(BW$7,WellList_coreholes_values_subs,Subrates!$F$1,FALSE) -> 0
B4: Total Sheet | C4: =SUM(I5:DE5) -> 0 | E4: =SUM(E8:E44) -> 0 | F4: =SUM(F8:F44) -> 0.00 | H4: # | I4: =SUM(I8:I44) -> 0 | J4: 0 | K4: =SUM(K8:K44) -> 0 | L4: 0 | M4: 0 | N4: 0 | O4: 0 | P4: 0 | Q4: 0 | R4: =SUM(R8:R44) -> 0 | S4: 0 | T4: 0 | U4: 0 | V4: 0 | W4: 0 | X4: 0 | Y4: 0 | Z4: 0 | AA4: 0 | AB4: 0 | AC4: 0 | AD4: 0 | AE4: 0 | AF4: 0 | AG4: 0 | AH4: 0 | AI4: 0 | AJ4: 0 | AK4: 0 | AL4: 0 | AM4: 0 | AN4: 0 | AO4: 0 | AP4: Land for seed (ha) | AQ4: =SUM(AQ9:AQ43) -> 0.00 | AR4: =SUM(AR9:AR43) -> 0.00 | AS4: 0.00 | AT4: 0.00 | AU4: 0.00 | AV4: 0.00 | AW4: 0.00 | AX4: 0.00 | AY4: 0.00 | AZ4: 0.00 | BA4: 0.00 | BB4: 0.00 | BC4: 0.00 | BD4: 0.00 | BE4: 0.00 | BF4: 0.00 | BG4: 0.00 | BH4: 0.00 | BI4: 0.00 | BJ4: 0.00 | BK4: 0.00 | BL4: 0.00 | BM4: 0.00 | BN4: 0.00 | BO4: 0.00 | BP4: 0.00 | BQ4: 0.00 | BR4: 0.00 | BS4: 0.00 | BT4: 0.00 | BU4: 0.00 | BV4: 0.00 | BW4: 0.00 | BX4: Land Arid (ha) | BY4: =SUM(BY9:BY43) -> 0.00 | BZ4: =SUM(BZ9:BZ43) -> 0.00 | CA4: 0.00 | CB4: 0.00 | CC4: 0.00 | CD4: 0.00 | CE4: 0.00 | CF4: 0.00 | CG4: 0.00 | CH4: 0.00 | CI4: 0.00 | CJ4: 0.00 | CK4: 0.00 | CL4: 0.00 | CM4: 0.00 | CN4: 0.00 | CO4: 0.00 | CP4: 0.00 | CQ4: 0.00 | CR4: 0.00 | CS4: 0.00 | CT4: 0.00 | CU4: 0.00 | CV4: 0.00 | CW4: 0.00 | CX4: 0.00 | CY4: 0.00 | CZ4: 0.00 | DA4: 0.00 | DB4: 0.00 | DC4: =SUM(DC9:DC43) -> 0.00 | DD4: 0.00 | DE4: 0.00
B5: Total ERC | C5: =ERC -> 0 | H5: Decom | I5: =I4*I3 -> 0 | J5: 0 | K5: =K4*K3 -> 0 | L5: 0 | M5: 0 | N5: 0 | O5: 0 | P5: 0 | Q5: 0 | R5: =R4*R3 -> 0 | S5: 0 | T5: 0 | U5: 0 | V5: 0 | W5: 0 | X5: 0 | Y5: 0 | Z5: 0 | AA5: 0 | AB5: 0 | AC5: 0 | AD5: 0 | AE5: 0 | AF5: 0 | AG5: 0 | AH5: 0 | AI5: 0 | AJ5: 0 | AK5: 0 | AL5: 0 | AM5: 0 | AN5: 0 | AO5: 0 | AP5: Land Cost ($/ha) | AQ5: =AQ4*AQ3 -> 0 | AR5: =AR4*AR3 -> 0 | AS5: 0 | AT5: 0 | AU5: 0 | AV5: 0 | AW5: 0 | AX5: 0 | AY5: 0 | AZ5: 0 | BA5: 0 | BB5: 0 | BC5: 0 | BD5: 0 | BE5: 0 | BF5: 0 | BG5: 0 | BH5: 0 | BI5: 0 | BJ5: 0 | BK5: 0 | BL5: 0 | BM5: 0 | BN5: 0 | BO5: 0 | BP5: 0 | BQ5: 0 | BR5: 0 | BS5: 0 | BT5: 0 | BU5: 0 | BV5: 0 | BW5: 0 | BX5: Arid | BY5: =BY4*BY3 -> 0 | BZ5: =BZ4*BZ3 -> 0 | CA5: 0 | CB5: 0 | CC5: 0 | CD5: 0 | CE5: 0 | CF5: 0 | CG5: 0 | CH5: 0 | CI5: 0 | CJ5: 0 | CK5: 0 | CL5: 0 | CM5: 0 | CN5: 0 | CO5: 0 | CP5: 0 | CQ5: 0 | CR5: 0 | CS5: 0 | CT5: 0 | CU5: 0 | CV5: 0 | CW5: 0 | CX5: 0 | CY5: 0 | CZ5: 0 | DA5: 0 | DB5: 0 | DC5: =DC4*DC3 -> 0 | DD5: 0 | DE5: 0
B7: Map ID | C7: Name | D7: Type | E7: Number | F7: Total Area (all wells in row) | G7: Land Type | I7: =TRANSPOSE(WellList) -> Conventional oil, Plugged and abandoned, Single well | J7: Conventional oil, Suspended, Single well | K7: Conventional oil, Shut-in, Single well | L7: Conventional oil, Appraisal / development, Single well | M7: Conventional oil, Operation / Production, Single well, Beam Pump | N7: Conventional oil, Operation / Production, Single well, No Beam Pump | O7: Conventional oil, Beam Pump only | P7: Conventional gas, Plugged and abandoned, Single well | Q7: Conventional gas, Suspended, Single well | R7: Conventional gas, Shut-in, Single well | S7: Conventional gas, Appraisal / development, Single well | T7: Conventional gas, Operation / Production, Single well | U7: Conventional gas, Operation / Production, <= 4 wells well | V7: Conventional gas, Operation / Production, > 4 wells well | W7: Coal seam gas, Plugged and abandoned, Single well | X7: Coal seam gas, Suspended, Single well | Y7: Coal seam gas, Shut-in, Single well | Z7: Coal seam gas, Appraisal / development, Single well | AA7: Coal seam gas, Operation / Production, Single well | AB7: Coal seam gas, Appraisal / development, <= 4 wells well | AC7: Coal seam gas, Operation / Production, <= 4 wells well | AD7: Coal seam gas, Appraisal / development, > 4 wells well | AE7: Coal seam gas, Operation / Production, > 4 wells well | AF7: Tight / shale gas, Plugged and abandoned, Single well | AG7: Tight / shale gas, Suspended, Single well | AH7: Tight / shale gas, Shut-in, Single well | AI7: Tight / shale gas, Appraisal / development, Single well | AJ7: Tight / shale gas, Operation / Production, Single well | AK7: Tight / shale gas, Operation / Production, <= 4 wells well | AL7: Tight / shale gas, Operation / Production, > 4 wells well | AM7: =TRANSPOSE(WellList_coreholes) -> Conventional oil, Corehole, Single well | AN7: Coal seam gas, Corehole, Single well | AO7: Tight / shale gas, Corehole, Single well | AQ7: =TRANSPOSE(WellList) -> Conventional oil, Plugged and abandoned, Single well | AR7: Conventional oil, Suspended, Single well | AS7: Conventional oil, Shut-in, Single well | AT7: Conventional oil, Appraisal / development, Single well | AU7: Conventional oil, Operation / Production, Single well, Beam Pump | AV7: Conventional oil, Operation / Production, Single well, No Beam Pump | AW7: Conventional oil, Beam Pump only | AX7: Conventional gas, Plugged and abandoned, Single well | AY7: Conventional gas, Suspended, Single well | AZ7: Conventional gas, Shut-in, Single well | BA7: Conventional gas, Appraisal / development, Single well | BB7: Conventional gas, Operation / Production, Single well | BC7: Conventional gas, Operation / Production, <= 4 wells well | BD7: Conventional gas, Operation / Production, > 4 wells well | BE7: Coal seam gas, Plugged and abandoned, Single well | BF7: Coal seam gas, Suspended, Single well | BG7: Coal seam gas, Shut-in, Single well | BH7: Coal seam gas, Appraisal / development, Single well | BI7: Coal seam gas, Operation / Production, Single well | BJ7: Coal seam gas, Appraisal / development, <= 4 wells well | BK7: Coal seam gas, Operation / Production, <= 4 wells well | BL7: Coal seam gas, Appraisal / development, > 4 wells well | BM7: Coal seam gas, Operation / Production, > 4 wells well | BN7: Tight / shale gas, Plugged and abandoned, Single well | BO7: Tight / shale gas, Suspended, Single well | BP7: Tight / shale gas, Shut-in, Single well | BQ7: Tight / shale gas, Appraisal / development, Single well | BR7: Tight / shale gas, Operation / Production, Single well | BS7: Tight / shale gas, Operation / Production, <= 4 wells well | BT7: Tight / shale gas, Operation / Production, > 4 wells well | BU7: =TRANSPOSE(WellList_coreholes) -> Conventional oil, Corehole, Single well | BV7: Coal seam gas, Corehole, Single well | BW7: Tight / shale gas, Corehole, Single well | BY7: =TRANSPOSE(WellList) -> Conventional oil, Plugged and abandoned, Single well | BZ7: Conventional oil, Suspended, Single well | CA7: Conventional oil, Shut-in, Single well | CB7: Conventional oil, Appraisal / development, Single well | CC7: Conventional oil, Operation / Production, Single well, Beam Pump | CD7: Conventional oil, Operation / Production, Single well, No Beam Pump | CE7: Conventional oil, Beam Pump only | CF7: Conventional gas, Plugged and abandoned, Single well | CG7: Conventional gas, Suspended, Single well | CH7: Conventional gas, Shut-in, Single well | CI7: Conventional gas, Appraisal / development, Single well | CJ7: Conventional gas, Operation / Production, Single well | CK7: Conventional gas, Operation / Production, <= 4 wells well | CL7: Conventional gas, Operation / Production, > 4 wells well | CM7: Coal seam gas, Plugged and abandoned, Single well | CN7: Coal seam gas, Suspended, Single well | CO7: Coal seam gas, Shut-in, Single well | CP7: Coal seam gas, Appraisal / development, Single well | CQ7: Coal seam gas, Operation / Production, Single well | CR7: Coal seam gas, Appraisal / development, <= 4 wells well | CS7: Coal seam gas, Operation / Production, <= 4 wells well | CT7: Coal seam gas, Appraisal / development, > 4 wells well | CU7: Coal seam gas, Operation / Production, > 4 wells well | CV7: Tight / shale gas, Plugged and abandoned, Single well | CW7: Tight / shale gas, Suspended, Single well | CX7: Tight / shale gas, Shut-in, Single well | CY7: Tight / shale gas, Appraisal / development, Single well | CZ7: Tight / shale gas, Operation / Production, Single well | DA7: Tight / shale gas, Operation / Production, <= 4 wells well | DB7: Tight / shale gas, Operation / Production, > 4 wells well | DC7: =TRANSPOSE(WellList_coreholes) -> Conventional oil, Corehole, Single well | DD7: Coal seam gas, Corehole, Single well | DE7: Tight / shale gas, Corehole, Single well
D8: Select from dropdown | E8: Whole # | F8: ha | G8: Select from dropdown
D9: Conventional oil, Plugged and abandoned, Single well | G9: seed | I9: =IF($D9=I$7,$E9,"") -> 0 | J9: =IF($D9=J$7,$E9,"") ->  | L9: =IF($D9=L$7,$E9,"") ->  | AE9: =IF($D9=AE$7,$E9,"") ->  | AQ9: =IF(AND($G9=Lists!$D$41,$D9=AQ$7),$F9,"") -> 0 | AR9: =IF(AND($G9=Lists!$D$41,$D9=AR$7),$F9,"") ->  | AS9: =IF(AND($G9=Lists!$D$41,$D9=AS$7),$F9,"") ->  | AT9: =IF(AND($G9=Lists!$D$41,$D9=AT$7),$F9,"") ->  | AU9: =IF(AND($G9=Lists!$D$41,$D9=AU$7),$F9,"") ->  | AV9: =IF(AND($G9=Lists!$D$41,$D9=AV$7),$F9,"") ->  | AW9: =IF(AND($G9=Lists!$D$41,$D9=AW$7),$F9,"") ->  | AX9: =IF(AND($G9=Lists!$D$41,$D9=AX$7),$F9,"") ->  | AY9: =IF(AND($G9=Lists!$D$41,$D9=AY$7),$F9,"") ->  | AZ9: =IF(AND($G9=Lists!$D$41,$D9=AZ$7),$F9,"") ->  | BA9: =IF(AND($G9=Lists!$D$41,$D9=BA$7),$F9,"") ->  | BB9: =IF(AND($G9=Lists!$D$41,$D9=BB$7),$F9,"") ->  | BC9: =IF(AND($G9=Lists!$D$41,$D9=BC$7),$F9,"") ->  | BD9: =IF(AND($G9=Lists!$D$41,$D9=BD$7),$F9,"") ->  | BE9: =IF(AND($G9=Lists!$D$41,$D9=BE$7),$F9,"") ->  | BF9: =IF(AND($G9=Lists!$D$41,$D9=BF$7),$F9,"") ->  | BG9: =IF(AND($G9=Lists!$D$41,$D9=BG$7),$F9,"") ->  | BH9: =IF(AND($G9=Lists!$D$41,$D9=BH$7),$F9,"") ->  | BI9: =IF(AND($G9=Lists!$D$41,$D9=BI$7),$F9,"") ->  | BJ9: =IF(AND($G9=Lists!$D$41,$D9=BJ$7),$F9,"") ->  | BK9: =IF(AND($G9=Lists!$D$41,$D9=BK$7),$F9,"") ->  | BL9: =IF(AND($G9=Lists!$D$41,$D9=BL$7),$F9,"") ->  | BM9: =IF(AND($G9=Lists!$D$41,$D9=BM$7),$F9,"") ->  | BN9: =IF(AND($G9=Lists!$D$41,$D9=BN$7),$F9,"") ->  | BO9: =IF(AND($G9=Lists!$D$41,$D9=BO$7),$F9,"") ->  | BP9: =IF(AND($G9=Lists!$D$41,$D9=BP$7),$F9,"") ->  | BQ9: =IF(AND($G9=Lists!$D$41,$D9=BQ$7),$F9,"") ->  | BR9: =IF(AND($G9=Lists!$D$41,$D9=BR$7),$F9,"") ->  | BS9: =IF(AND($G9=Lists!$D$41,$D9=BS$7),$F9,"") ->  | BT9: =IF(AND($G9=Lists!$D$41,$D9=BT$7),$F9,"") ->  | BU9: =IF(AND($G9=Lists!$D$41,$D9=BU$7),$F9,"") ->  | BV9: =IF(AND($G9=Lists!$D$41,$D9=BV$7),$F9,"") ->  | BW9: =IF(AND($G9=Lists!$D$41,$D9=BW$7),$F9,"") ->  | BY9: =IF(AND($G9=Lists!$D$42,$D9=BY$7),$F9,"") ->  | BZ9: =IF(AND($G9=Lists!$D$42,$D9=BZ$7),$F9,"") ->  | CA9: =IF(AND($G9=Lists!$D$42,$D9=CA$7),$F9,"") ->  | CB9: =IF(AND($G9=Lists!$D$42,$D9=CB$7),$F9,"") ->  | CC9: =IF(AND($G9=Lists!$D$42,$D9=CC$7),$F9,"") ->  | CD9: =IF(AND($G9=Lists!$D$42,$D9=CD$7),$F9,"") ->  | CE9: =IF(AND($G9=Lists!$D$42,$D9=CE$7),$F9,"") ->  | CF9: =IF(AND($G9=Lists!$D$42,$D9=CF$7),$F9,"") ->  | CG9: =IF(AND($G9=Lists!$D$42,$D9=CG$7),$F9,"") ->  | CH9: =IF(AND($G9=Lists!$D$42,$D9=CH$7),$F9,"") ->  | CI9: =IF(AND($G9=Lists!$D$42,$D9=CI$7),$F9,"") ->  | CJ9: =IF(AND($G9=Lists!$D$42,$D9=CJ$7),$F9,"") ->  | CK9: =IF(AND($G9=Lists!$D$42,$D9=CK$7),$F9,"") ->  | CL9: =IF(AND($G9=Lists!$D$42,$D9=CL$7),$F9,"") ->  | CM9: =IF(AND($G9=Lists!$D$42,$D9=CM$7),$F9,"") ->  | CN9: =IF(AND($G9=Lists!$D$42,$D9=CN$7),$F9,"") ->  | CO9: =IF(AND($G9=Lists!$D$42,$D9=CO$7),$F9,"") ->  | CP9: =IF(AND($G9=Lists!$D$42,$D9=CP$7),$F9,"") ->  | CQ9: =IF(AND($G9=Lists!$D$42,$D9=CQ$7),$F9,"") ->  | CR9: =IF(AND($G9=Lists!$D$42,$D9=CR$7),$F9,"") ->  | CS9: =IF(AND($G9=Lists!$D$42,$D9=CS$7),$F9,"") ->  | CT9: =IF(AND($G9=Lists!$D$42,$D9=CT$7),$F9,"") ->  | CU9: =IF(AND($G9=Lists!$D$42,$D9=CU$7),$F9,"") ->  | CV9: =IF(AND($G9=Lists!$D$42,$D9=CV$7),$F9,"") ->  | CW9: =IF(AND($G9=Lists!$D$42,$D9=CW$7),$F9,"") ->  | CX9: =IF(AND($G9=Lists!$D$42,$D9=CX$7),$F9,"") ->  | CY9: =IF(AND($G9=Lists!$D$42,$D9=CY$7),$F9,"") ->  | CZ9: =IF(AND($G9=Lists!$D$42,$D9=CZ$7),$F9,"") ->  | DA9: =IF(AND($G9=Lists!$D$42,$D9=DA$7),$F9,"") ->  | DB9: =IF(AND($G9=Lists!$D$42,$D9=DB$7),$F9,"") ->  | DE9: =IF(AND($G9=Lists!$D$42,$D9=DE$7),$F9,"") -> 
D10: Conventional oil, Suspended, Single well | G10: seed | I10: =IF($D10=I$7,$E10,"") ->  | J10: 0 | AQ10: =IF(AND($G10=Lists!$D$41,$D10=AQ$7),$F10,"") ->  | AR10: =IF(AND($G10=Lists!$D$41,$D10=AR$7),$F10,"") -> 0 | AS10: =IF(AND($G10=Lists!$D$41,$D10=AS$7),$F10,"") ->  | AT10: =IF(AND($G10=Lists!$D$41,$D10=AT$7),$F10,"") ->  | AU10: =IF(AND($G10=Lists!$D$41,$D10=AU$7),$F10,"") ->  | AV10: =IF(AND($G10=Lists!$D$41,$D10=AV$7),$F10,"") ->  | AW10: =IF(AND($G10=Lists!$D$41,$D10=AW$7),$F10,"") ->  | AX10: =IF(AND($G10=Lists!$D$41,$D10=AX$7),$F10,"") ->  | AY10: =IF(AND($G10=Lists!$D$41,$D10=AY$7),$F10,"") ->  | AZ10: =IF(AND($G10=Lists!$D$41,$D10=AZ$7),$F10,"") ->  | BA10: =IF(AND($G10=Lists!$D$41,$D10=BA$7),$F10,"") ->  | BB10: =IF(AND($G10=Lists!$D$41,$D10=BB$7),$F10,"") ->  | BC10: =IF(AND($G10=Lists!$D$41,$D10=BC$7),$F10,"") ->  | BD10: =IF(AND($G10=Lists!$D$41,$D10=BD$7),$F10,"") ->  | BE10: =IF(AND($G10=Lists!$D$41,$D10=BE$7),$F10,"") ->  | BF10: =IF(AND($G10=Lists!$D$41,$D10=BF$7),$F10,"") ->  | BG10: =IF(AND($G10=Lists!$D$41,$D10=BG$7),$F10,"") ->  | BH10: =IF(AND($G10=Lists!$D$41,$D10=BH$7),$F10,"") ->  | BI10: =IF(AND($G10=Lists!$D$41,$D10=BI$7),$F10,"") ->  | BJ10: =IF(AND($G10=Lists!$D$41,$D10=BJ$7),$F10,"") ->  | BK10: =IF(AND($G10=Lists!$D$41,$D10=BK$7),$F10,"") ->  | BL10: =IF(AND($G10=Lists!$D$41,$D10=BL$7),$F10,"") ->  | BM10: =IF(AND($G10=Lists!$D$41,$D10=BM$7),$F10,"") ->  | BN10: =IF(AND($G10=Lists!$D$41,$D10=BN$7),$F10,"") ->  | BO10: =IF(AND($G10=Lists!$D$41,$D10=BO$7),$F10,"") ->  | BP10: =IF(AND($G10=Lists!$D$41,$D10=BP$7),$F10,"") ->  | BQ10: =IF(AND($G10=Lists!$D$41,$D10=BQ$7),$F10,"") ->  | BR10: =IF(AND($G10=Lists!$D$41,$D10=BR$7),$F10,"") ->  | BS10: =IF(AND($G10=Lists!$D$41,$D10=BS$7),$F10,"") ->  | BT10: =IF(AND($G10=Lists!$D$41,$D10=BT$7),$F10,"") ->  | BU10: =IF(AND($G10=Lists!$D$41,$D10=BU$7),$F10,"") ->  | BV10: =IF(AND($G10=Lists!$D$41,$D10=BV$7),$F10,"") ->  | BW10: =IF(AND($G10=Lists!$D$41,$D10=BW$7),$F10,"") ->  | BY10: =IF(AND($G10=Lists!$D$42,$D10=BY$7),$F10,"") ->  | BZ10: =IF(AND($G10=Lists!$D$42,$D10=BZ$7),$F10,"") ->  | CA10: =IF(AND($G10=Lists!$D$42,$D10=CA$7),$F10,"") ->  | CB10: =IF(AND($G10=Lists!$D$42,$D10=CB$7),$F10,"") ->  | CC10: =IF(AND($G10=Lists!$D$42,$D10=CC$7),$F10,"") ->  | CD10: =IF(AND($G10=Lists!$D$42,$D10=CD$7),$F10,"") ->  | CE10: =IF(AND($G10=Lists!$D$42,$D10=CE$7),$F10,"") ->  | CF10: =IF(AND($G10=Lists!$D$42,$D10=CF$7),$F10,"") ->  | CG10: =IF(AND($G10=Lists!$D$42,$D10=CG$7),$F10,"") ->  | CH10: =IF(AND($G10=Lists!$D$42,$D10=CH$7),$F10,"") ->  | CI10: =IF(AND($G10=Lists!$D$42,$D10=CI$7),$F10,"") ->  | CJ10: =IF(AND($G10=Lists!$D$42,$D10=CJ$7),$F10,"") ->  | CK10: =IF(AND($G10=Lists!$D$42,$D10=CK$7),$F10,"") ->  | CL10: =IF(AND($G10=Lists!$D$42,$D10=CL$7),$F10,"") ->  | CM10: =IF(AND($G10=Lists!$D$42,$D10=CM$7),$F10,"") ->  | CN10: =IF(AND($G10=Lists!$D$42,$D10=CN$7),$F10,"") ->  | CO10: =IF(AND($G10=Lists!$D$42,$D10=CO$7),$F10,"") ->  | CP10: =IF(AND($G10=Lists!$D$42,$D10=CP$7),$F10,"") ->  | CQ10: =IF(AND($G10=Lists!$D$42,$D10=CQ$7),$F10,"") ->  | CR10: =IF(AND($G10=Lists!$D$42,$D10=CR$7),$F10,"") ->  | CS10: =IF(AND($G10=Lists!$D$42,$D10=CS$7),$F10,"") ->  | CT10: =IF(AND($G10=Lists!$D$42,$D10=CT$7),$F10,"") ->  | CU10: =IF(AND($G10=Lists!$D$42,$D10=CU$7),$F10,"") ->  | CV10: =IF(AND($G10=Lists!$D$42,$D10=CV$7),$F10,"") ->  | CW10: =IF(AND($G10=Lists!$D$42,$D10=CW$7),$F10,"") ->  | CX10: =IF(AND($G10=Lists!$D$42,$D10=CX$7),$F10,"") ->  | CY10: =IF(AND($G10=Lists!$D$42,$D10=CY$7),$F10,"") ->  | CZ10: =IF(AND($G10=Lists!$D$42,$D10=CZ$7),$F10,"") ->  | DA10: =IF(AND($G10=Lists!$D$42,$D10=DA$7),$F10,"") ->  | DB10: =IF(AND($G10=Lists!$D$42,$D10=DB$7),$F10,"") ->  | DE10: =IF(AND($G10=Lists!$D$42,$D10=DE$7),$F10,"") -> 
D11: Conventional oil, Shut-in, Single well | G11: seed | K11: 0 | AQ11: =IF(AND($G11=Lists!$D$41,$D11=AQ$7),$F11,"") ->  | AR11: =IF(AND($G11=Lists!$D$41,$D11=AR$7),$F11,"") ->  | AS11: =IF(AND($G11=Lists!$D$41,$D11=AS$7),$F11,"") -> 0 | AT11: =IF(AND($G11=Lists!$D$41,$D11=AT$7),$F11,"") ->  | AU11: =IF(AND($G11=Lists!$D$41,$D11=AU$7),$F11,"") ->  | AV11: =IF(AND($G11=Lists!$D$41,$D11=AV$7),$F11,"") ->  | AW11: =IF(AND($G11=Lists!$D$41,$D11=AW$7),$F11,"") ->  | AX11: =IF(AND($G11=Lists!$D$41,$D11=AX$7),$F11,"") ->  | AY11: =IF(AND($G11=Lists!$D$41,$D11=AY$7),$F11,"") ->  | AZ11: =IF(AND($G11=Lists!$D$41,$D11=AZ$7),$F11,"") ->  | BA11: =IF(AND($G11=Lists!$D$41,$D11=BA$7),$F11,"") ->  | BB11: =IF(AND($G11=Lists!$D$41,$D11=BB$7),$F11,"") ->  | BC11: =IF(AND($G11=Lists!$D$41,$D11=BC$7),$F11,"") ->  | BD11: =IF(AND($G11=Lists!$D$41,$D11=BD$7),$F11,"") ->  | BE11: =IF(AND($G11=Lists!$D$41,$D11=BE$7),$F11,"") ->  | BF11: =IF(AND($G11=Lists!$D$41,$D11=BF$7),$F11,"") ->  | BG11: =IF(AND($G11=Lists!$D$41,$D11=BG$7),$F11,"") ->  | BH11: =IF(AND($G11=Lists!$D$41,$D11=BH$7),$F11,"") ->  | BI11: =IF(AND($G11=Lists!$D$41,$D11=BI$7),$F11,"") ->  | BJ11: =IF(AND($G11=Lists!$D$41,$D11=BJ$7),$F11,"") ->  | BK11: =IF(AND($G11=Lists!$D$41,$D11=BK$7),$F11,"") ->  | BL11: =IF(AND($G11=Lists!$D$41,$D11=BL$7),$F11,"") ->  | BM11: =IF(AND($G11=Lists!$D$41,$D11=BM$7),$F11,"") ->  | BN11: =IF(AND($G11=Lists!$D$41,$D11=BN$7),$F11,"") ->  | BO11: =IF(AND($G11=Lists!$D$41,$D11=BO$7),$F11,"") ->  | BP11: =IF(AND($G11=Lists!$D$41,$D11=BP$7),$F11,"") ->  | BQ11: =IF(AND($G11=Lists!$D$41,$D11=BQ$7),$F11,"") ->  | BR11: =IF(AND($G11=Lists!$D$41,$D11=BR$7),$F11,"") ->  | BS11: =IF(AND($G11=Lists!$D$41,$D11=BS$7),$F11,"") ->  | BT11: =IF(AND($G11=Lists!$D$41,$D11=BT$7),$F11,"") ->  | BU11: =IF(AND($G11=Lists!$D$41,$D11=BU$7),$F11,"") ->  | BV11: =IF(AND($G11=Lists!$D$41,$D11=BV$7),$F11,"") ->  | BW11: =IF(AND($G11=Lists!$D$41,$D11=BW$7),$F11,"") ->  | BY11: =IF(AND($G11=Lists!$D$42,$D11=BY$7),$F11,"") ->  | BZ11: =IF(AND($G11=Lists!$D$42,$D11=BZ$7),$F11,"") ->  | CA11: =IF(AND($G11=Lists!$D$42,$D11=CA$7),$F11,"") ->  | CB11: =IF(AND($G11=Lists!$D$42,$D11=CB$7),$F11,"") ->  | CC11: =IF(AND($G11=Lists!$D$42,$D11=CC$7),$F11,"") ->  | CD11: =IF(AND($G11=Lists!$D$42,$D11=CD$7),$F11,"") ->  | CE11: =IF(AND($G11=Lists!$D$42,$D11=CE$7),$F11,"") ->  | CF11: =IF(AND($G11=Lists!$D$42,$D11=CF$7),$F11,"") ->  | CG11: =IF(AND($G11=Lists!$D$42,$D11=CG$7),$F11,"") ->  | CH11: =IF(AND($G11=Lists!$D$42,$D11=CH$7),$F11,"") ->  | CI11: =IF(AND($G11=Lists!$D$42,$D11=CI$7),$F11,"") ->  | CJ11: =IF(AND($G11=Lists!$D$42,$D11=CJ$7),$F11,"") ->  | CK11: =IF(AND($G11=Lists!$D$42,$D11=CK$7),$F11,"") ->  | CL11: =IF(AND($G11=Lists!$D$42,$D11=CL$7),$F11,"") ->  | CM11: =IF(AND($G11=Lists!$D$42,$D11=CM$7),$F11,"") ->  | CN11: =IF(AND($G11=Lists!$D$42,$D11=CN$7),$F11,"") ->  | CO11: =IF(AND($G11=Lists!$D$42,$D11=CO$7),$F11,"") ->  | CP11: =IF(AND($G11=Lists!$D$42,$D11=CP$7),$F11,"") ->  | CQ11: =IF(AND($G11=Lists!$D$42,$D11=CQ$7),$F11,"") ->  | CR11: =IF(AND($G11=Lists!$D$42,$D11=CR$7),$F11,"") ->  | CS11: =IF(AND($G11=Lists!$D$42,$D11=CS$7),$F11,"") ->  | CT11: =IF(AND($G11=Lists!$D$42,$D11=CT$7),$F11,"") ->  | CU11: =IF(AND($G11=Lists!$D$42,$D11=CU$7),$F11,"") ->  | CV11: =IF(AND($G11=Lists!$D$42,$D11=CV$7),$F11,"") ->  | CW11: =IF(AND($G11=Lists!$D$42,$D11=CW$7),$F11,"") ->  | CX11: =IF(AND($G11=Lists!$D$42,$D11=CX$7),$F11,"") ->  | CY11: =IF(AND($G11=Lists!$D$42,$D11=CY$7),$F11,"") ->  | CZ11: =IF(AND($G11=Lists!$D$42,$D11=CZ$7),$F11,"") ->  | DA11: =IF(AND($G11=Lists!$D$42,$D11=DA$7),$F11,"") ->  | DB11: =IF(AND($G11=Lists!$D$42,$D11=DB$7),$F11,"") ->  | DE11: =IF(AND($G11=Lists!$D$42,$D11=DE$7),$F11,"") -> 
D12: Conventional oil, Appraisal / development, Single well | G12: seed | L12: 0 | AQ12: =IF(AND($G12=Lists!$D$41,$D12=AQ$7),$F12,"") ->  | AR12: =IF(AND($G12=Lists!$D$41,$D12=AR$7),$F12,"") ->  | AS12: =IF(AND($G12=Lists!$D$41,$D12=AS$7),$F12,"") ->  | AT12: =IF(AND($G12=Lists!$D$41,$D12=AT$7),$F12,"") -> 0 | AU12: =IF(AND($G12=Lists!$D$41,$D12=AU$7),$F12,"") ->  | AV12: =IF(AND($G12=Lists!$D$41,$D12=AV$7),$F12,"") ->  | AW12: =IF(AND($G12=Lists!$D$41,$D12=AW$7),$F12,"") ->  | AX12: =IF(AND($G12=Lists!$D$41,$D12=AX$7),$F12,"") ->  | AY12: =IF(AND($G12=Lists!$D$41,$D12=AY$7),$F12,"") ->  | AZ12: =IF(AND($G12=Lists!$D$41,$D12=AZ$7),$F12,"") ->  | BA12: =IF(AND($G12=Lists!$D$41,$D12=BA$7),$F12,"") ->  | BB12: =IF(AND($G12=Lists!$D$41,$D12=BB$7),$F12,"") ->  | BC12: =IF(AND($G12=Lists!$D$41,$D12=BC$7),$F12,"") ->  | BD12: =IF(AND($G12=Lists!$D$41,$D12=BD$7),$F12,"") ->  | BE12: =IF(AND($G12=Lists!$D$41,$D12=BE$7),$F12,"") ->  | BF12: =IF(AND($G12=Lists!$D$41,$D12=BF$7),$F12,"") ->  | BG12: =IF(AND($G12=Lists!$D$41,$D12=BG$7),$F12,"") ->  | BH12: =IF(AND($G12=Lists!$D$41,$D12=BH$7),$F12,"") ->  | BI12: =IF(AND($G12=Lists!$D$41,$D12=BI$7),$F12,"") ->  | BJ12: =IF(AND($G12=Lists!$D$41,$D12=BJ$7),$F12,"") ->  | BK12: =IF(AND($G12=Lists!$D$41,$D12=BK$7),$F12,"") ->  | BL12: =IF(AND($G12=Lists!$D$41,$D12=BL$7),$F12,"") ->  | BM12: =IF(AND($G12=Lists!$D$41,$D12=BM$7),$F12,"") ->  | BN12: =IF(AND($G12=Lists!$D$41,$D12=BN$7),$F12,"") ->  | BO12: =IF(AND($G12=Lists!$D$41,$D12=BO$7),$F12,"") ->  | BP12: =IF(AND($G12=Lists!$D$41,$D12=BP$7),$F12,"") ->  | BQ12: =IF(AND($G12=Lists!$D$41,$D12=BQ$7),$F12,"") ->  | BR12: =IF(AND($G12=Lists!$D$41,$D12=BR$7),$F12,"") ->  | BS12: =IF(AND($G12=Lists!$D$41,$D12=BS$7),$F12,"") ->  | BT12: =IF(AND($G12=Lists!$D$41,$D12=BT$7),$F12,"") ->  | BU12: =IF(AND($G12=Lists!$D$41,$D12=BU$7),$F12,"") ->  | BV12: =IF(AND($G12=Lists!$D$41,$D12=BV$7),$F12,"") ->  | BW12: =IF(AND($G12=Lists!$D$41,$D12=BW$7),$F12,"") ->  | BY12: =IF(AND($G12=Lists!$D$42,$D12=BY$7),$F12,"") ->  | BZ12: =IF(AND($G12=Lists!$D$42,$D12=BZ$7),$F12,"") ->  | CA12: =IF(AND($G12=Lists!$D$42,$D12=CA$7),$F12,"") ->  | CB12: =IF(AND($G12=Lists!$D$42,$D12=CB$7),$F12,"") ->  | CC12: =IF(AND($G12=Lists!$D$42,$D12=CC$7),$F12,"") ->  | CD12: =IF(AND($G12=Lists!$D$42,$D12=CD$7),$F12,"") ->  | CE12: =IF(AND($G12=Lists!$D$42,$D12=CE$7),$F12,"") ->  | CF12: =IF(AND($G12=Lists!$D$42,$D12=CF$7),$F12,"") ->  | CG12: =IF(AND($G12=Lists!$D$42,$D12=CG$7),$F12,"") ->  | CH12: =IF(AND($G12=Lists!$D$42,$D12=CH$7),$F12,"") ->  | CI12: =IF(AND($G12=Lists!$D$42,$D12=CI$7),$F12,"") ->  | CJ12: =IF(AND($G12=Lists!$D$42,$D12=CJ$7),$F12,"") ->  | CK12: =IF(AND($G12=Lists!$D$42,$D12=CK$7),$F12,"") ->  | CL12: =IF(AND($G12=Lists!$D$42,$D12=CL$7),$F12,"") ->  | CM12: =IF(AND($G12=Lists!$D$42,$D12=CM$7),$F12,"") ->  | CN12: =IF(AND($G12=Lists!$D$42,$D12=CN$7),$F12,"") ->  | CO12: =IF(AND($G12=Lists!$D$42,$D12=CO$7),$F12,"") ->  | CP12: =IF(AND($G12=Lists!$D$42,$D12=CP$7),$F12,"") ->  | CQ12: =IF(AND($G12=Lists!$D$42,$D12=CQ$7),$F12,"") ->  | CR12: =IF(AND($G12=Lists!$D$42,$D12=CR$7),$F12,"") ->  | CS12: =IF(AND($G12=Lists!$D$42,$D12=CS$7),$F12,"") ->  | CT12: =IF(AND($G12=Lists!$D$42,$D12=CT$7),$F12,"") ->  | CU12: =IF(AND($G12=Lists!$D$42,$D12=CU$7),$F12,"") ->  | CV12: =IF(AND($G12=Lists!$D$42,$D12=CV$7),$F12,"") ->  | CW12: =IF(AND($G12=Lists!$D$42,$D12=CW$7),$F12,"") ->  | CX12: =IF(AND($G12=Lists!$D$42,$D12=CX$7),$F12,"") ->  | CY12: =IF(AND($G12=Lists!$D$42,$D12=CY$7),$F12,"") ->  | CZ12: =IF(AND($G12=Lists!$D$42,$D12=CZ$7),$F12,"") ->  | DA12: =IF(AND($G12=Lists!$D$42,$D12=DA$7),$F12,"") ->  | DB12: =IF(AND($G12=Lists!$D$42,$D12=DB$7),$F12,"") ->  | DE12: =IF(AND($G12=Lists!$D$42,$D12=DE$7),$F12,"") -> 
D13: Conventional oil, Operation / Production, Single well, Beam Pump | G13: seed | M13: 0 | AQ13: =IF(AND($G13=Lists!$D$41,$D13=AQ$7),$F13,"") ->  | AR13: =IF(AND($G13=Lists!$D$41,$D13=AR$7),$F13,"") ->  | AS13: =IF(AND($G13=Lists!$D$41,$D13=AS$7),$F13,"") ->  | AT13: =IF(AND($G13=Lists!$D$41,$D13=AT$7),$F13,"") ->  | AU13: =IF(AND($G13=Lists!$D$41,$D13=AU$7),$F13,"") -> 0 | AV13: =IF(AND($G13=Lists!$D$41,$D13=AV$7),$F13,"") ->  | AW13: =IF(AND($G13=Lists!$D$41,$D13=AW$7),$F13,"") ->  | AX13: =IF(AND($G13=Lists!$D$41,$D13=AX$7),$F13,"") ->  | AY13: =IF(AND($G13=Lists!$D$41,$D13=AY$7),$F13,"") ->  | AZ13: =IF(AND($G13=Lists!$D$41,$D13=AZ$7),$F13,"") ->  | BA13: =IF(AND($G13=Lists!$D$41,$D13=BA$7),$F13,"") ->  | BB13: =IF(AND($G13=Lists!$D$41,$D13=BB$7),$F13,"") ->  | BC13: =IF(AND($G13=Lists!$D$41,$D13=BC$7),$F13,"") ->  | BD13: =IF(AND($G13=Lists!$D$41,$D13=BD$7),$F13,"") ->  | BE13: =IF(AND($G13=Lists!$D$41,$D13=BE$7),$F13,"") ->  | BF13: =IF(AND($G13=Lists!$D$41,$D13=BF$7),$F13,"") ->  | BG13: =IF(AND($G13=Lists!$D$41,$D13=BG$7),$F13,"") ->  | BH13: =IF(AND($G13=Lists!$D$41,$D13=BH$7),$F13,"") ->  | BI13: =IF(AND($G13=Lists!$D$41,$D13=BI$7),$F13,"") ->  | BJ13: =IF(AND($G13=Lists!$D$41,$D13=BJ$7),$F13,"") ->  | BK13: =IF(AND($G13=Lists!$D$41,$D13=BK$7),$F13,"") ->  | BL13: =IF(AND($G13=Lists!$D$41,$D13=BL$7),$F13,"") ->  | BM13: =IF(AND($G13=Lists!$D$41,$D13=BM$7),$F13,"") ->  | BN13: =IF(AND($G13=Lists!$D$41,$D13=BN$7),$F13,"") ->  | BO13: =IF(AND($G13=Lists!$D$41,$D13=BO$7),$F13,"") ->  | BP13: =IF(AND($G13=Lists!$D$41,$D13=BP$7),$F13,"") ->  | BQ13: =IF(AND($G13=Lists!$D$41,$D13=BQ$7),$F13,"") ->  | BR13: =IF(AND($G13=Lists!$D$41,$D13=BR$7),$F13,"") ->  | BS13: =IF(AND($G13=Lists!$D$41,$D13=BS$7),$F13,"") ->  | BT13: =IF(AND($G13=Lists!$D$41,$D13=BT$7),$F13,"") ->  | BU13: =IF(AND($G13=Lists!$D$41,$D13=BU$7),$F13,"") ->  | BV13: =IF(AND($G13=Lists!$D$41,$D13=BV$7),$F13,"") ->  | BW13: =IF(AND($G13=Lists!$D$41,$D13=BW$7),$F13,"") ->  | BY13: =IF(AND($G13=Lists!$D$42,$D13=BY$7),$F13,"") ->  | BZ13: =IF(AND($G13=Lists!$D$42,$D13=BZ$7),$F13,"") ->  | CA13: =IF(AND($G13=Lists!$D$42,$D13=CA$7),$F13,"") ->  | CB13: =IF(AND($G13=Lists!$D$42,$D13=CB$7),$F13,"") ->  | CC13: =IF(AND($G13=Lists!$D$42,$D13=CC$7),$F13,"") ->  | CD13: =IF(AND($G13=Lists!$D$42,$D13=CD$7),$F13,"") ->  | CE13: =IF(AND($G13=Lists!$D$42,$D13=CE$7),$F13,"") ->  | CF13: =IF(AND($G13=Lists!$D$42,$D13=CF$7),$F13,"") ->  | CG13: =IF(AND($G13=Lists!$D$42,$D13=CG$7),$F13,"") ->  | CH13: =IF(AND($G13=Lists!$D$42,$D13=CH$7),$F13,"") ->  | CI13: =IF(AND($G13=Lists!$D$42,$D13=CI$7),$F13,"") ->  | CJ13: =IF(AND($G13=Lists!$D$42,$D13=CJ$7),$F13,"") ->  | CK13: =IF(AND($G13=Lists!$D$42,$D13=CK$7),$F13,"") ->  | CL13: =IF(AND($G13=Lists!$D$42,$D13=CL$7),$F13,"") ->  | CM13: =IF(AND($G13=Lists!$D$42,$D13=CM$7),$F13,"") ->  | CN13: =IF(AND($G13=Lists!$D$42,$D13=CN$7),$F13,"") ->  | CO13: =IF(AND($G13=Lists!$D$42,$D13=CO$7),$F13,"") ->  | CP13: =IF(AND($G13=Lists!$D$42,$D13=CP$7),$F13,"") ->  | CQ13: =IF(AND($G13=Lists!$D$42,$D13=CQ$7),$F13,"") ->  | CR13: =IF(AND($G13=Lists!$D$42,$D13=CR$7),$F13,"") ->  | CS13: =IF(AND($G13=Lists!$D$42,$D13=CS$7),$F13,"") ->  | CT13: =IF(AND($G13=Lists!$D$42,$D13=CT$7),$F13,"") ->  | CU13: =IF(AND($G13=Lists!$D$42,$D13=CU$7),$F13,"") ->  | CV13: =IF(AND($G13=Lists!$D$42,$D13=CV$7),$F13,"") ->  | CW13: =IF(AND($G13=Lists!$D$42,$D13=CW$7),$F13,"") ->  | CX13: =IF(AND($G13=Lists!$D$42,$D13=CX$7),$F13,"") ->  | CY13: =IF(AND($G13=Lists!$D$42,$D13=CY$7),$F13,"") ->  | CZ13: =IF(AND($G13=Lists!$D$42,$D13=CZ$7),$F13,"") ->  | DA13: =IF(AND($G13=Lists!$D$42,$D13=DA$7),$F13,"") ->  | DB13: =IF(AND($G13=Lists!$D$42,$D13=DB$7),$F13,"") ->  | DE13: =IF(AND($G13=Lists!$D$42,$D13=DE$7),$F13,"") -> 
D14: Conventional oil, Operation / Production, Single well, No Beam Pump | G14: seed | N14: 0 | AQ14: =IF(AND($G14=Lists!$D$41,$D14=AQ$7),$F14,"") ->  | AR14: =IF(AND($G14=Lists!$D$41,$D14=AR$7),$F14,"") ->  | AS14: =IF(AND($G14=Lists!$D$41,$D14=AS$7),$F14,"") ->  | AT14: =IF(AND($G14=Lists!$D$41,$D14=AT$7),$F14,"") ->  | AU14: =IF(AND($G14=Lists!$D$41,$D14=AU$7),$F14,"") ->  | AV14: =IF(AND($G14=Lists!$D$41,$D14=AV$7),$F14,"") -> 0 | AW14: =IF(AND($G14=Lists!$D$41,$D14=AW$7),$F14,"") ->  | AX14: =IF(AND($G14=Lists!$D$41,$D14=AX$7),$F14,"") ->  | AY14: =IF(AND($G14=Lists!$D$41,$D14=AY$7),$F14,"") ->  | AZ14: =IF(AND($G14=Lists!$D$41,$D14=AZ$7),$F14,"") ->  | BA14: =IF(AND($G14=Lists!$D$41,$D14=BA$7),$F14,"") ->  | BB14: =IF(AND($G14=Lists!$D$41,$D14=BB$7),$F14,"") ->  | BC14: =IF(AND($G14=Lists!$D$41,$D14=BC$7),$F14,"") ->  | BD14: =IF(AND($G14=Lists!$D$41,$D14=BD$7),$F14,"") ->  | BE14: =IF(AND($G14=Lists!$D$41,$D14=BE$7),$F14,"") ->  | BF14: =IF(AND($G14=Lists!$D$41,$D14=BF$7),$F14,"") ->  | BG14: =IF(AND($G14=Lists!$D$41,$D14=BG$7),$F14,"") ->  | BH14: =IF(AND($G14=Lists!$D$41,$D14=BH$7),$F14,"") ->  | BI14: =IF(AND($G14=Lists!$D$41,$D14=BI$7),$F14,"") ->  | BJ14: =IF(AND($G14=Lists!$D$41,$D14=BJ$7),$F14,"") ->  | BK14: =IF(AND($G14=Lists!$D$41,$D14=BK$7),$F14,"") ->  | BL14: =IF(AND($G14=Lists!$D$41,$D14=BL$7),$F14,"") ->  | BM14: =IF(AND($G14=Lists!$D$41,$D14=BM$7),$F14,"") ->  | BN14: =IF(AND($G14=Lists!$D$41,$D14=BN$7),$F14,"") ->  | BO14: =IF(AND($G14=Lists!$D$41,$D14=BO$7),$F14,"") ->  | BP14: =IF(AND($G14=Lists!$D$41,$D14=BP$7),$F14,"") ->  | BQ14: =IF(AND($G14=Lists!$D$41,$D14=BQ$7),$F14,"") ->  | BR14: =IF(AND($G14=Lists!$D$41,$D14=BR$7),$F14,"") ->  | BS14: =IF(AND($G14=Lists!$D$41,$D14=BS$7),$F14,"") ->  | BT14: =IF(AND($G14=Lists!$D$41,$D14=BT$7),$F14,"") ->  | BU14: =IF(AND($G14=Lists!$D$41,$D14=BU$7),$F14,"") ->  | BV14: =IF(AND($G14=Lists!$D$41,$D14=BV$7),$F14,"") ->  | BW14: =IF(AND($G14=Lists!$D$41,$D14=BW$7),$F14,"") ->  | BY14: =IF(AND($G14=Lists!$D$42,$D14=BY$7),$F14,"") ->  | BZ14: =IF(AND($G14=Lists!$D$42,$D14=BZ$7),$F14,"") ->  | CA14: =IF(AND($G14=Lists!$D$42,$D14=CA$7),$F14,"") ->  | CB14: =IF(AND($G14=Lists!$D$42,$D14=CB$7),$F14,"") ->  | CC14: =IF(AND($G14=Lists!$D$42,$D14=CC$7),$F14,"") ->  | CD14: =IF(AND($G14=Lists!$D$42,$D14=CD$7),$F14,"") ->  | CE14: =IF(AND($G14=Lists!$D$42,$D14=CE$7),$F14,"") ->  | CF14: =IF(AND($G14=Lists!$D$42,$D14=CF$7),$F14,"") ->  | CG14: =IF(AND($G14=Lists!$D$42,$D14=CG$7),$F14,"") ->  | CH14: =IF(AND($G14=Lists!$D$42,$D14=CH$7),$F14,"") ->  | CI14: =IF(AND($G14=Lists!$D$42,$D14=CI$7),$F14,"") ->  | CJ14: =IF(AND($G14=Lists!$D$42,$D14=CJ$7),$F14,"") ->  | CK14: =IF(AND($G14=Lists!$D$42,$D14=CK$7),$F14,"") ->  | CL14: =IF(AND($G14=Lists!$D$42,$D14=CL$7),$F14,"") ->  | CM14: =IF(AND($G14=Lists!$D$42,$D14=CM$7),$F14,"") ->  | CN14: =IF(AND($G14=Lists!$D$42,$D14=CN$7),$F14,"") ->  | CO14: =IF(AND($G14=Lists!$D$42,$D14=CO$7),$F14,"") ->  | CP14: =IF(AND($G14=Lists!$D$42,$D14=CP$7),$F14,"") ->  | CQ14: =IF(AND($G14=Lists!$D$42,$D14=CQ$7),$F14,"") ->  | CR14: =IF(AND($G14=Lists!$D$42,$D14=CR$7),$F14,"") ->  | CS14: =IF(AND($G14=Lists!$D$42,$D14=CS$7),$F14,"") ->  | CT14: =IF(AND($G14=Lists!$D$42,$D14=CT$7),$F14,"") ->  | CU14: =IF(AND($G14=Lists!$D$42,$D14=CU$7),$F14,"") ->  | CV14: =IF(AND($G14=Lists!$D$42,$D14=CV$7),$F14,"") ->  | CW14: =IF(AND($G14=Lists!$D$42,$D14=CW$7),$F14,"") ->  | CX14: =IF(AND($G14=Lists!$D$42,$D14=CX$7),$F14,"") ->  | CY14: =IF(AND($G14=Lists!$D$42,$D14=CY$7),$F14,"") ->  | CZ14: =IF(AND($G14=Lists!$D$42,$D14=CZ$7),$F14,"") ->  | DA14: =IF(AND($G14=Lists!$D$42,$D14=DA$7),$F14,"") ->  | DB14: =IF(AND($G14=Lists!$D$42,$D14=DB$7),$F14,"") ->  | DE14: =IF(AND($G14=Lists!$D$42,$D14=DE$7),$F14,"") -> 
D15: Conventional oil, Beam Pump only | G15: seed | O15: 0 | AQ15: =IF(AND($G15=Lists!$D$41,$D15=AQ$7),$F15,"") ->  | AR15: =IF(AND($G15=Lists!$D$41,$D15=AR$7),$F15,"") ->  | AS15: =IF(AND($G15=Lists!$D$41,$D15=AS$7),$F15,"") ->  | AT15: =IF(AND($G15=Lists!$D$41,$D15=AT$7),$F15,"") ->  | AU15: =IF(AND($G15=Lists!$D$41,$D15=AU$7),$F15,"") ->  | AV15: =IF(AND($G15=Lists!$D$41,$D15=AV$7),$F15,"") ->  | AW15: =IF(AND($G15=Lists!$D$41,$D15=AW$7),$F15,"") -> 0 | AX15: =IF(AND($G15=Lists!$D$41,$D15=AX$7),$F15,"") ->  | AY15: =IF(AND($G15=Lists!$D$41,$D15=AY$7),$F15,"") ->  | AZ15: =IF(AND($G15=Lists!$D$41,$D15=AZ$7),$F15,"") ->  | BA15: =IF(AND($G15=Lists!$D$41,$D15=BA$7),$F15,"") ->  | BB15: =IF(AND($G15=Lists!$D$41,$D15=BB$7),$F15,"") ->  | BC15: =IF(AND($G15=Lists!$D$41,$D15=BC$7),$F15,"") ->  | BD15: =IF(AND($G15=Lists!$D$41,$D15=BD$7),$F15,"") ->  | BE15: =IF(AND($G15=Lists!$D$41,$D15=BE$7),$F15,"") ->  | BF15: =IF(AND($G15=Lists!$D$41,$D15=BF$7),$F15,"") ->  | BG15: =IF(AND($G15=Lists!$D$41,$D15=BG$7),$F15,"") ->  | BH15: =IF(AND($G15=Lists!$D$41,$D15=BH$7),$F15,"") ->  | BI15: =IF(AND($G15=Lists!$D$41,$D15=BI$7),$F15,"") ->  | BJ15: =IF(AND($G15=Lists!$D$41,$D15=BJ$7),$F15,"") ->  | BK15: =IF(AND($G15=Lists!$D$41,$D15=BK$7),$F15,"") ->  | BL15: =IF(AND($G15=Lists!$D$41,$D15=BL$7),$F15,"") ->  | BM15: =IF(AND($G15=Lists!$D$41,$D15=BM$7),$F15,"") ->  | BN15: =IF(AND($G15=Lists!$D$41,$D15=BN$7),$F15,"") ->  | BO15: =IF(AND($G15=Lists!$D$41,$D15=BO$7),$F15,"") ->  | BP15: =IF(AND($G15=Lists!$D$41,$D15=BP$7),$F15,"") ->  | BQ15: =IF(AND($G15=Lists!$D$41,$D15=BQ$7),$F15,"") ->  | BR15: =IF(AND($G15=Lists!$D$41,$D15=BR$7),$F15,"") ->  | BS15: =IF(AND($G15=Lists!$D$41,$D15=BS$7),$F15,"") ->  | BT15: =IF(AND($G15=Lists!$D$41,$D15=BT$7),$F15,"") ->  | BU15: =IF(AND($G15=Lists!$D$41,$D15=BU$7),$F15,"") ->  | BV15: =IF(AND($G15=Lists!$D$41,$D15=BV$7),$F15,"") ->  | BW15: =IF(AND($G15=Lists!$D$41,$D15=BW$7),$F15,"") ->  | BY15: =IF(AND($G15=Lists!$D$42,$D15=BY$7),$F15,"") ->  | BZ15: =IF(AND($G15=Lists!$D$42,$D15=BZ$7),$F15,"") ->  | CA15: =IF(AND($G15=Lists!$D$42,$D15=CA$7),$F15,"") ->  | CB15: =IF(AND($G15=Lists!$D$42,$D15=CB$7),$F15,"") ->  | CC15: =IF(AND($G15=Lists!$D$42,$D15=CC$7),$F15,"") ->  | CD15: =IF(AND($G15=Lists!$D$42,$D15=CD$7),$F15,"") ->  | CE15: =IF(AND($G15=Lists!$D$42,$D15=CE$7),$F15,"") ->  | CF15: =IF(AND($G15=Lists!$D$42,$D15=CF$7),$F15,"") ->  | CG15: =IF(AND($G15=Lists!$D$42,$D15=CG$7),$F15,"") ->  | CH15: =IF(AND($G15=Lists!$D$42,$D15=CH$7),$F15,"") ->  | CI15: =IF(AND($G15=Lists!$D$42,$D15=CI$7),$F15,"") ->  | CJ15: =IF(AND($G15=Lists!$D$42,$D15=CJ$7),$F15,"") ->  | CK15: =IF(AND($G15=Lists!$D$42,$D15=CK$7),$F15,"") ->  | CL15: =IF(AND($G15=Lists!$D$42,$D15=CL$7),$F15,"") ->  | CM15: =IF(AND($G15=Lists!$D$42,$D15=CM$7),$F15,"") ->  | CN15: =IF(AND($G15=Lists!$D$42,$D15=CN$7),$F15,"") ->  | CO15: =IF(AND($G15=Lists!$D$42,$D15=CO$7),$F15,"") ->  | CP15: =IF(AND($G15=Lists!$D$42,$D15=CP$7),$F15,"") ->  | CQ15: =IF(AND($G15=Lists!$D$42,$D15=CQ$7),$F15,"") ->  | CR15: =IF(AND($G15=Lists!$D$42,$D15=CR$7),$F15,"") ->  | CS15: =IF(AND($G15=Lists!$D$42,$D15=CS$7),$F15,"") ->  | CT15: =IF(AND($G15=Lists!$D$42,$D15=CT$7),$F15,"") ->  | CU15: =IF(AND($G15=Lists!$D$42,$D15=CU$7),$F15,"") ->  | CV15: =IF(AND($G15=Lists!$D$42,$D15=CV$7),$F15,"") ->  | CW15: =IF(AND($G15=Lists!$D$42,$D15=CW$7),$F15,"") ->  | CX15: =IF(AND($G15=Lists!$D$42,$D15=CX$7),$F15,"") ->  | CY15: =IF(AND($G15=Lists!$D$42,$D15=CY$7),$F15,"") ->  | CZ15: =IF(AND($G15=Lists!$D$42,$D15=CZ$7),$F15,"") ->  | DA15: =IF(AND($G15=Lists!$D$42,$D15=DA$7),$F15,"") ->  | DB15: =IF(AND($G15=Lists!$D$42,$D15=DB$7),$F15,"") ->  | DE15: =IF(AND($G15=Lists!$D$42,$D15=DE$7),$F15,"") -> 
D16: Conventional gas, Plugged and abandoned, Single well | G16: seed | P16: 0 | AQ16: =IF(AND($G16=Lists!$D$41,$D16=AQ$7),$F16,"") ->  | AR16: =IF(AND($G16=Lists!$D$41,$D16=AR$7),$F16,"") ->  | AS16: =IF(AND($G16=Lists!$D$41,$D16=AS$7),$F16,"") ->  | AT16: =IF(AND($G16=Lists!$D$41,$D16=AT$7),$F16,"") ->  | AU16: =IF(AND($G16=Lists!$D$41,$D16=AU$7),$F16,"") ->  | AV16: =IF(AND($G16=Lists!$D$41,$D16=AV$7),$F16,"") ->  | AW16: =IF(AND($G16=Lists!$D$41,$D16=AW$7),$F16,"") ->  | AX16: =IF(AND($G16=Lists!$D$41,$D16=AX$7),$F16,"") -> 0 | AY16: =IF(AND($G16=Lists!$D$41,$D16=AY$7),$F16,"") ->  | AZ16: =IF(AND($G16=Lists!$D$41,$D16=AZ$7),$F16,"") ->  | BA16: =IF(AND($G16=Lists!$D$41,$D16=BA$7),$F16,"") ->  | BB16: =IF(AND($G16=Lists!$D$41,$D16=BB$7),$F16,"") ->  | BC16: =IF(AND($G16=Lists!$D$41,$D16=BC$7),$F16,"") ->  | BD16: =IF(AND($G16=Lists!$D$41,$D16=BD$7),$F16,"") ->  | BE16: =IF(AND($G16=Lists!$D$41,$D16=BE$7),$F16,"") ->  | BF16: =IF(AND($G16=Lists!$D$41,$D16=BF$7),$F16,"") ->  | BG16: =IF(AND($G16=Lists!$D$41,$D16=BG$7),$F16,"") ->  | BH16: =IF(AND($G16=Lists!$D$41,$D16=BH$7),$F16,"") ->  | BI16: =IF(AND($G16=Lists!$D$41,$D16=BI$7),$F16,"") ->  | BJ16: =IF(AND($G16=Lists!$D$41,$D16=BJ$7),$F16,"") ->  | BK16: =IF(AND($G16=Lists!$D$41,$D16=BK$7),$F16,"") ->  | BL16: =IF(AND($G16=Lists!$D$41,$D16=BL$7),$F16,"") ->  | BM16: =IF(AND($G16=Lists!$D$41,$D16=BM$7),$F16,"") ->  | BN16: =IF(AND($G16=Lists!$D$41,$D16=BN$7),$F16,"") ->  | BO16: =IF(AND($G16=Lists!$D$41,$D16=BO$7),$F16,"") ->  | BP16: =IF(AND($G16=Lists!$D$41,$D16=BP$7),$F16,"") ->  | BQ16: =IF(AND($G16=Lists!$D$41,$D16=BQ$7),$F16,"") ->  | BR16: =IF(AND($G16=Lists!$D$41,$D16=BR$7),$F16,"") ->  | BS16: =IF(AND($G16=Lists!$D$41,$D16=BS$7),$F16,"") ->  | BT16: =IF(AND($G16=Lists!$D$41,$D16=BT$7),$F16,"") ->  | BU16: =IF(AND($G16=Lists!$D$41,$D16=BU$7),$F16,"") ->  | BV16: =IF(AND($G16=Lists!$D$41,$D16=BV$7),$F16,"") ->  | BW16: =IF(AND($G16=Lists!$D$41,$D16=BW$7),$F16,"") ->  | BY16: =IF(AND($G16=Lists!$D$42,$D16=BY$7),$F16,"") ->  | BZ16: =IF(AND($G16=Lists!$D$42,$D16=BZ$7),$F16,"") ->  | CA16: =IF(AND($G16=Lists!$D$42,$D16=CA$7),$F16,"") ->  | CB16: =IF(AND($G16=Lists!$D$42,$D16=CB$7),$F16,"") ->  | CC16: =IF(AND($G16=Lists!$D$42,$D16=CC$7),$F16,"") ->  | CD16: =IF(AND($G16=Lists!$D$42,$D16=CD$7),$F16,"") ->  | CE16: =IF(AND($G16=Lists!$D$42,$D16=CE$7),$F16,"") ->  | CF16: =IF(AND($G16=Lists!$D$42,$D16=CF$7),$F16,"") ->  | CG16: =IF(AND($G16=Lists!$D$42,$D16=CG$7),$F16,"") ->  | CH16: =IF(AND($G16=Lists!$D$42,$D16=CH$7),$F16,"") ->  | CI16: =IF(AND($G16=Lists!$D$42,$D16=CI$7),$F16,"") ->  | CJ16: =IF(AND($G16=Lists!$D$42,$D16=CJ$7),$F16,"") ->  | CK16: =IF(AND($G16=Lists!$D$42,$D16=CK$7),$F16,"") ->  | CL16: =IF(AND($G16=Lists!$D$42,$D16=CL$7),$F16,"") ->  | CM16: =IF(AND($G16=Lists!$D$42,$D16=CM$7),$F16,"") ->  | CN16: =IF(AND($G16=Lists!$D$42,$D16=CN$7),$F16,"") ->  | CO16: =IF(AND($G16=Lists!$D$42,$D16=CO$7),$F16,"") ->  | CP16: =IF(AND($G16=Lists!$D$42,$D16=CP$7),$F16,"") ->  | CQ16: =IF(AND($G16=Lists!$D$42,$D16=CQ$7),$F16,"") ->  | CR16: =IF(AND($G16=Lists!$D$42,$D16=CR$7),$F16,"") ->  | CS16: =IF(AND($G16=Lists!$D$42,$D16=CS$7),$F16,"") ->  | CT16: =IF(AND($G16=Lists!$D$42,$D16=CT$7),$F16,"") ->  | CU16: =IF(AND($G16=Lists!$D$42,$D16=CU$7),$F16,"") ->  | CV16: =IF(AND($G16=Lists!$D$42,$D16=CV$7),$F16,"") ->  | CW16: =IF(AND($G16=Lists!$D$42,$D16=CW$7),$F16,"") ->  | CX16: =IF(AND($G16=Lists!$D$42,$D16=CX$7),$F16,"") ->  | CY16: =IF(AND($G16=Lists!$D$42,$D16=CY$7),$F16,"") ->  | CZ16: =IF(AND($G16=Lists!$D$42,$D16=CZ$7),$F16,"") ->  | DA16: =IF(AND($G16=Lists!$D$42,$D16=DA$7),$F16,"") ->  | DB16: =IF(AND($G16=Lists!$D$42,$D16=DB$7),$F16,"") ->  | DE16: =IF(AND($G16=Lists!$D$42,$D16=DE$7),$F16,"") -> 
D17: Conventional gas, Suspended, Single well | G17: seed | Q17: 0 | AA17: =IF($D17=AA$7,$E17,"") ->  | AQ17: =IF(AND($G17=Lists!$D$41,$D17=AQ$7),$F17,"") ->  | AR17: =IF(AND($G17=Lists!$D$41,$D17=AR$7),$F17,"") ->  | AS17: =IF(AND($G17=Lists!$D$41,$D17=AS$7),$F17,"") ->  | AT17: =IF(AND($G17=Lists!$D$41,$D17=AT$7),$F17,"") ->  | AU17: =IF(AND($G17=Lists!$D$41,$D17=AU$7),$F17,"") ->  | AV17: =IF(AND($G17=Lists!$D$41,$D17=AV$7),$F17,"") ->  | AW17: =IF(AND($G17=Lists!$D$41,$D17=AW$7),$F17,"") ->  | AX17: =IF(AND($G17=Lists!$D$41,$D17=AX$7),$F17,"") ->  | AY17: =IF(AND($G17=Lists!$D$41,$D17=AY$7),$F17,"") -> 0 | AZ17: =IF(AND($G17=Lists!$D$41,$D17=AZ$7),$F17,"") ->  | BA17: =IF(AND($G17=Lists!$D$41,$D17=BA$7),$F17,"") ->  | BB17: =IF(AND($G17=Lists!$D$41,$D17=BB$7),$F17,"") ->  | BC17: =IF(AND($G17=Lists!$D$41,$D17=BC$7),$F17,"") ->  | BD17: =IF(AND($G17=Lists!$D$41,$D17=BD$7),$F17,"") ->  | BE17: =IF(AND($G17=Lists!$D$41,$D17=BE$7),$F17,"") ->  | BF17: =IF(AND($G17=Lists!$D$41,$D17=BF$7),$F17,"") ->  | BG17: =IF(AND($G17=Lists!$D$41,$D17=BG$7),$F17,"") ->  | BH17: =IF(AND($G17=Lists!$D$41,$D17=BH$7),$F17,"") ->  | BI17: =IF(AND($G17=Lists!$D$41,$D17=BI$7),$F17,"") ->  | BJ17: =IF(AND($G17=Lists!$D$41,$D17=BJ$7),$F17,"") ->  | BK17: =IF(AND($G17=Lists!$D$41,$D17=BK$7),$F17,"") ->  | BL17: =IF(AND($G17=Lists!$D$41,$D17=BL$7),$F17,"") ->  | BM17: =IF(AND($G17=Lists!$D$41,$D17=BM$7),$F17,"") ->  | BN17: =IF(AND($G17=Lists!$D$41,$D17=BN$7),$F17,"") ->  | BO17: =IF(AND($G17=Lists!$D$41,$D17=BO$7),$F17,"") ->  | BP17: =IF(AND($G17=Lists!$D$41,$D17=BP$7),$F17,"") ->  | BQ17: =IF(AND($G17=Lists!$D$41,$D17=BQ$7),$F17,"") ->  | BR17: =IF(AND($G17=Lists!$D$41,$D17=BR$7),$F17,"") ->  | BS17: =IF(AND($G17=Lists!$D$41,$D17=BS$7),$F17,"") ->  | BT17: =IF(AND($G17=Lists!$D$41,$D17=BT$7),$F17,"") ->  | BU17: =IF(AND($G17=Lists!$D$41,$D17=BU$7),$F17,"") ->  | BV17: =IF(AND($G17=Lists!$D$41,$D17=BV$7),$F17,"") ->  | BW17: =IF(AND($G17=Lists!$D$41,$D17=BW$7),$F17,"") ->  | BY17: =IF(AND($G17=Lists!$D$42,$D17=BY$7),$F17,"") ->  | BZ17: =IF(AND($G17=Lists!$D$42,$D17=BZ$7),$F17,"") ->  | CA17: =IF(AND($G17=Lists!$D$42,$D17=CA$7),$F17,"") ->  | CB17: =IF(AND($G17=Lists!$D$42,$D17=CB$7),$F17,"") ->  | CC17: =IF(AND($G17=Lists!$D$42,$D17=CC$7),$F17,"") ->  | CD17: =IF(AND($G17=Lists!$D$42,$D17=CD$7),$F17,"") ->  | CE17: =IF(AND($G17=Lists!$D$42,$D17=CE$7),$F17,"") ->  | CF17: =IF(AND($G17=Lists!$D$42,$D17=CF$7),$F17,"") ->  | CG17: =IF(AND($G17=Lists!$D$42,$D17=CG$7),$F17,"") ->  | CH17: =IF(AND($G17=Lists!$D$42,$D17=CH$7),$F17,"") ->  | CI17: =IF(AND($G17=Lists!$D$42,$D17=CI$7),$F17,"") ->  | CJ17: =IF(AND($G17=Lists!$D$42,$D17=CJ$7),$F17,"") ->  | CK17: =IF(AND($G17=Lists!$D$42,$D17=CK$7),$F17,"") ->  | CL17: =IF(AND($G17=Lists!$D$42,$D17=CL$7),$F17,"") ->  | CM17: =IF(AND($G17=Lists!$D$42,$D17=CM$7),$F17,"") ->  | CN17: =IF(AND($G17=Lists!$D$42,$D17=CN$7),$F17,"") ->  | CO17: =IF(AND($G17=Lists!$D$42,$D17=CO$7),$F17,"") ->  | CP17: =IF(AND($G17=Lists!$D$42,$D17=CP$7),$F17,"") ->  | CQ17: =IF(AND($G17=Lists!$D$42,$D17=CQ$7),$F17,"") ->  | CR17: =IF(AND($G17=Lists!$D$42,$D17=CR$7),$F17,"") ->  | CS17: =IF(AND($G17=Lists!$D$42,$D17=CS$7),$F17,"") ->  | CT17: =IF(AND($G17=Lists!$D$42,$D17=CT$7),$F17,"") ->  | CU17: =IF(AND($G17=Lists!$D$42,$D17=CU$7),$F17,"") ->  | CV17: =IF(AND($G17=Lists!$D$42,$D17=CV$7),$F17,"") ->  | CW17: =IF(AND($G17=Lists!$D$42,$D17=CW$7),$F17,"") ->  | CX17: =IF(AND($G17=Lists!$D$42,$D17=CX$7),$F17,"") ->  | CY17: =IF(AND($G17=Lists!$D$42,$D17=CY$7),$F17,"") ->  | CZ17: =IF(AND($G17=Lists!$D$42,$D17=CZ$7),$F17,"") ->  | DA17: =IF(AND($G17=Lists!$D$42,$D17=DA$7),$F17,"") ->  | DB17: =IF(AND($G17=Lists!$D$42,$D17=DB$7),$F17,"") ->  | DE17: =IF(AND($G17=Lists!$D$42,$D17=DE$7),$F17,"") -> 
D18: Conventional gas, Shut-in, Single well | G18: seed | R18: 0 | AQ18: =IF(AND($G18=Lists!$D$41,$D18=AQ$7),$F18,"") ->  | AR18: =IF(AND($G18=Lists!$D$41,$D18=AR$7),$F18,"") ->  | AS18: =IF(AND($G18=Lists!$D$41,$D18=AS$7),$F18,"") ->  | AT18: =IF(AND($G18=Lists!$D$41,$D18=AT$7),$F18,"") ->  | AU18: =IF(AND($G18=Lists!$D$41,$D18=AU$7),$F18,"") ->  | AV18: =IF(AND($G18=Lists!$D$41,$D18=AV$7),$F18,"") ->  | AW18: =IF(AND($G18=Lists!$D$41,$D18=AW$7),$F18,"") ->  | AX18: =IF(AND($G18=Lists!$D$41,$D18=AX$7),$F18,"") ->  | AY18: =IF(AND($G18=Lists!$D$41,$D18=AY$7),$F18,"") ->  | AZ18: =IF(AND($G18=Lists!$D$41,$D18=AZ$7),$F18,"") -> 0 | BA18: =IF(AND($G18=Lists!$D$41,$D18=BA$7),$F18,"") ->  | BB18: =IF(AND($G18=Lists!$D$41,$D18=BB$7),$F18,"") ->  | BC18: =IF(AND($G18=Lists!$D$41,$D18=BC$7),$F18,"") ->  | BD18: =IF(AND($G18=Lists!$D$41,$D18=BD$7),$F18,"") ->  | BE18: =IF(AND($G18=Lists!$D$41,$D18=BE$7),$F18,"") ->  | BF18: =IF(AND($G18=Lists!$D$41,$D18=BF$7),$F18,"") ->  | BG18: =IF(AND($G18=Lists!$D$41,$D18=BG$7),$F18,"") ->  | BH18: =IF(AND($G18=Lists!$D$41,$D18=BH$7),$F18,"") ->  | BI18: =IF(AND($G18=Lists!$D$41,$D18=BI$7),$F18,"") ->  | BJ18: =IF(AND($G18=Lists!$D$41,$D18=BJ$7),$F18,"") ->  | BK18: =IF(AND($G18=Lists!$D$41,$D18=BK$7),$F18,"") ->  | BL18: =IF(AND($G18=Lists!$D$41,$D18=BL$7),$F18,"") ->  | BM18: =IF(AND($G18=Lists!$D$41,$D18=BM$7),$F18,"") ->  | BN18: =IF(AND($G18=Lists!$D$41,$D18=BN$7),$F18,"") ->  | BO18: =IF(AND($G18=Lists!$D$41,$D18=BO$7),$F18,"") ->  | BP18: =IF(AND($G18=Lists!$D$41,$D18=BP$7),$F18,"") ->  | BQ18: =IF(AND($G18=Lists!$D$41,$D18=BQ$7),$F18,"") ->  | BR18: =IF(AND($G18=Lists!$D$41,$D18=BR$7),$F18,"") ->  | BS18: =IF(AND($G18=Lists!$D$41,$D18=BS$7),$F18,"") ->  | BT18: =IF(AND($G18=Lists!$D$41,$D18=BT$7),$F18,"") ->  | BU18: =IF(AND($G18=Lists!$D$41,$D18=BU$7),$F18,"") ->  | BV18: =IF(AND($G18=Lists!$D$41,$D18=BV$7),$F18,"") ->  | BW18: =IF(AND($G18=Lists!$D$41,$D18=BW$7),$F18,"") ->  | BY18: =IF(AND($G18=Lists!$D$42,$D18=BY$7),$F18,"") ->  | BZ18: =IF(AND($G18=Lists!$D$42,$D18=BZ$7),$F18,"") ->  | CA18: =IF(AND($G18=Lists!$D$42,$D18=CA$7),$F18,"") ->  | CB18: =IF(AND($G18=Lists!$D$42,$D18=CB$7),$F18,"") ->  | CC18: =IF(AND($G18=Lists!$D$42,$D18=CC$7),$F18,"") ->  | CD18: =IF(AND($G18=Lists!$D$42,$D18=CD$7),$F18,"") ->  | CE18: =IF(AND($G18=Lists!$D$42,$D18=CE$7),$F18,"") ->  | CF18: =IF(AND($G18=Lists!$D$42,$D18=CF$7),$F18,"") ->  | CG18: =IF(AND($G18=Lists!$D$42,$D18=CG$7),$F18,"") ->  | CH18: =IF(AND($G18=Lists!$D$42,$D18=CH$7),$F18,"") ->  | CI18: =IF(AND($G18=Lists!$D$42,$D18=CI$7),$F18,"") ->  | CJ18: =IF(AND($G18=Lists!$D$42,$D18=CJ$7),$F18,"") ->  | CK18: =IF(AND($G18=Lists!$D$42,$D18=CK$7),$F18,"") ->  | CL18: =IF(AND($G18=Lists!$D$42,$D18=CL$7),$F18,"") ->  | CM18: =IF(AND($G18=Lists!$D$42,$D18=CM$7),$F18,"") ->  | CN18: =IF(AND($G18=Lists!$D$42,$D18=CN$7),$F18,"") ->  | CO18: =IF(AND($G18=Lists!$D$42,$D18=CO$7),$F18,"") ->  | CP18: =IF(AND($G18=Lists!$D$42,$D18=CP$7),$F18,"") ->  | CQ18: =IF(AND($G18=Lists!$D$42,$D18=CQ$7),$F18,"") ->  | CR18: =IF(AND($G18=Lists!$D$42,$D18=CR$7),$F18,"") ->  | CS18: =IF(AND($G18=Lists!$D$42,$D18=CS$7),$F18,"") ->  | CT18: =IF(AND($G18=Lists!$D$42,$D18=CT$7),$F18,"") ->  | CU18: =IF(AND($G18=Lists!$D$42,$D18=CU$7),$F18,"") ->  | CV18: =IF(AND($G18=Lists!$D$42,$D18=CV$7),$F18,"") ->  | CW18: =IF(AND($G18=Lists!$D$42,$D18=CW$7),$F18,"") ->  | CX18: =IF(AND($G18=Lists!$D$42,$D18=CX$7),$F18,"") ->  | CY18: =IF(AND($G18=Lists!$D$42,$D18=CY$7),$F18,"") ->  | CZ18: =IF(AND($G18=Lists!$D$42,$D18=CZ$7),$F18,"") ->  | DA18: =IF(AND($G18=Lists!$D$42,$D18=DA$7),$F18,"") ->  | DB18: =IF(AND($G18=Lists!$D$42,$D18=DB$7),$F18,"") ->  | DE18: =IF(AND($G18=Lists!$D$42,$D18=DE$7),$F18,"") -> 
D19: Conventional gas, Appraisal / development, Single well | G19: seed | S19: 0 | AQ19: =IF(AND($G19=Lists!$D$41,$D19=AQ$7),$F19,"") ->  | AR19: =IF(AND($G19=Lists!$D$41,$D19=AR$7),$F19,"") ->  | AS19: =IF(AND($G19=Lists!$D$41,$D19=AS$7),$F19,"") ->  | AT19: =IF(AND($G19=Lists!$D$41,$D19=AT$7),$F19,"") ->  | AU19: =IF(AND($G19=Lists!$D$41,$D19=AU$7),$F19,"") ->  | AV19: =IF(AND($G19=Lists!$D$41,$D19=AV$7),$F19,"") ->  | AW19: =IF(AND($G19=Lists!$D$41,$D19=AW$7),$F19,"") ->  | AX19: =IF(AND($G19=Lists!$D$41,$D19=AX$7),$F19,"") ->  | AY19: =IF(AND($G19=Lists!$D$41,$D19=AY$7),$F19,"") ->  | AZ19: =IF(AND($G19=Lists!$D$41,$D19=AZ$7),$F19,"") ->  | BA19: =IF(AND($G19=Lists!$D$41,$D19=BA$7),$F19,"") -> 0 | BB19: =IF(AND($G19=Lists!$D$41,$D19=BB$7),$F19,"") ->  | BC19: =IF(AND($G19=Lists!$D$41,$D19=BC$7),$F19,"") ->  | BD19: =IF(AND($G19=Lists!$D$41,$D19=BD$7),$F19,"") ->  | BE19: =IF(AND($G19=Lists!$D$41,$D19=BE$7),$F19,"") ->  | BF19: =IF(AND($G19=Lists!$D$41,$D19=BF$7),$F19,"") ->  | BG19: =IF(AND($G19=Lists!$D$41,$D19=BG$7),$F19,"") ->  | BH19: =IF(AND($G19=Lists!$D$41,$D19=BH$7),$F19,"") ->  | BI19: =IF(AND($G19=Lists!$D$41,$D19=BI$7),$F19,"") ->  | BJ19: =IF(AND($G19=Lists!$D$41,$D19=BJ$7),$F19,"") ->  | BK19: =IF(AND($G19=Lists!$D$41,$D19=BK$7),$F19,"") ->  | BL19: =IF(AND($G19=Lists!$D$41,$D19=BL$7),$F19,"") ->  | BM19: =IF(AND($G19=Lists!$D$41,$D19=BM$7),$F19,"") ->  | BN19: =IF(AND($G19=Lists!$D$41,$D19=BN$7),$F19,"") ->  | BO19: =IF(AND($G19=Lists!$D$41,$D19=BO$7),$F19,"") ->  | BP19: =IF(AND($G19=Lists!$D$41,$D19=BP$7),$F19,"") ->  | BQ19: =IF(AND($G19=Lists!$D$41,$D19=BQ$7),$F19,"") ->  | BR19: =IF(AND($G19=Lists!$D$41,$D19=BR$7),$F19,"") ->  | BS19: =IF(AND($G19=Lists!$D$41,$D19=BS$7),$F19,"") ->  | BT19: =IF(AND($G19=Lists!$D$41,$D19=BT$7),$F19,"") ->  | BU19: =IF(AND($G19=Lists!$D$41,$D19=BU$7),$F19,"") ->  | BV19: =IF(AND($G19=Lists!$D$41,$D19=BV$7),$F19,"") ->  | BW19: =IF(AND($G19=Lists!$D$41,$D19=BW$7),$F19,"") ->  | BY19: =IF(AND($G19=Lists!$D$42,$D19=BY$7),$F19,"") ->  | BZ19: =IF(AND($G19=Lists!$D$42,$D19=BZ$7),$F19,"") ->  | CA19: =IF(AND($G19=Lists!$D$42,$D19=CA$7),$F19,"") ->  | CB19: =IF(AND($G19=Lists!$D$42,$D19=CB$7),$F19,"") ->  | CC19: =IF(AND($G19=Lists!$D$42,$D19=CC$7),$F19,"") ->  | CD19: =IF(AND($G19=Lists!$D$42,$D19=CD$7),$F19,"") ->  | CE19: =IF(AND($G19=Lists!$D$42,$D19=CE$7),$F19,"") ->  | CF19: =IF(AND($G19=Lists!$D$42,$D19=CF$7),$F19,"") ->  | CG19: =IF(AND($G19=Lists!$D$42,$D19=CG$7),$F19,"") ->  | CH19: =IF(AND($G19=Lists!$D$42,$D19=CH$7),$F19,"") ->  | CI19: =IF(AND($G19=Lists!$D$42,$D19=CI$7),$F19,"") ->  | CJ19: =IF(AND($G19=Lists!$D$42,$D19=CJ$7),$F19,"") ->  | CK19: =IF(AND($G19=Lists!$D$42,$D19=CK$7),$F19,"") ->  | CL19: =IF(AND($G19=Lists!$D$42,$D19=CL$7),$F19,"") ->  | CM19: =IF(AND($G19=Lists!$D$42,$D19=CM$7),$F19,"") ->  | CN19: =IF(AND($G19=Lists!$D$42,$D19=CN$7),$F19,"") ->  | CO19: =IF(AND($G19=Lists!$D$42,$D19=CO$7),$F19,"") ->  | CP19: =IF(AND($G19=Lists!$D$42,$D19=CP$7),$F19,"") ->  | CQ19: =IF(AND($G19=Lists!$D$42,$D19=CQ$7),$F19,"") ->  | CR19: =IF(AND($G19=Lists!$D$42,$D19=CR$7),$F19,"") ->  | CS19: =IF(AND($G19=Lists!$D$42,$D19=CS$7),$F19,"") ->  | CT19: =IF(AND($G19=Lists!$D$42,$D19=CT$7),$F19,"") ->  | CU19: =IF(AND($G19=Lists!$D$42,$D19=CU$7),$F19,"") ->  | CV19: =IF(AND($G19=Lists!$D$42,$D19=CV$7),$F19,"") ->  | CW19: =IF(AND($G19=Lists!$D$42,$D19=CW$7),$F19,"") ->  | CX19: =IF(AND($G19=Lists!$D$42,$D19=CX$7),$F19,"") ->  | CY19: =IF(AND($G19=Lists!$D$42,$D19=CY$7),$F19,"") ->  | CZ19: =IF(AND($G19=Lists!$D$42,$D19=CZ$7),$F19,"") ->  | DA19: =IF(AND($G19=Lists!$D$42,$D19=DA$7),$F19,"") ->  | DB19: =IF(AND($G19=Lists!$D$42,$D19=DB$7),$F19,"") ->  | DE19: =IF(AND($G19=Lists!$D$42,$D19=DE$7),$F19,"") -> 
D20: Conventional gas, Operation / Production, Single well | G20: seed | T20: 0 | AQ20: =IF(AND($G20=Lists!$D$41,$D20=AQ$7),$F20,"") ->  | AR20: =IF(AND($G20=Lists!$D$41,$D20=AR$7),$F20,"") ->  | AS20: =IF(AND($G20=Lists!$D$41,$D20=AS$7),$F20,"") ->  | AT20: =IF(AND($G20=Lists!$D$41,$D20=AT$7),$F20,"") ->  | AU20: =IF(AND($G20=Lists!$D$41,$D20=AU$7),$F20,"") ->  | AV20: =IF(AND($G20=Lists!$D$41,$D20=AV$7),$F20,"") ->  | AW20: =IF(AND($G20=Lists!$D$41,$D20=AW$7),$F20,"") ->  | AX20: =IF(AND($G20=Lists!$D$41,$D20=AX$7),$F20,"") ->  | AY20: =IF(AND($G20=Lists!$D$41,$D20=AY$7),$F20,"") ->  | AZ20: =IF(AND($G20=Lists!$D$41,$D20=AZ$7),$F20,"") ->  | BA20: =IF(AND($G20=Lists!$D$41,$D20=BA$7),$F20,"") ->  | BB20: =IF(AND($G20=Lists!$D$41,$D20=BB$7),$F20,"") -> 0 | BC20: =IF(AND($G20=Lists!$D$41,$D20=BC$7),$F20,"") ->  | BD20: =IF(AND($G20=Lists!$D$41,$D20=BD$7),$F20,"") ->  | BE20: =IF(AND($G20=Lists!$D$41,$D20=BE$7),$F20,"") ->  | BF20: =IF(AND($G20=Lists!$D$41,$D20=BF$7),$F20,"") ->  | BG20: =IF(AND($G20=Lists!$D$41,$D20=BG$7),$F20,"") ->  | BH20: =IF(AND($G20=Lists!$D$41,$D20=BH$7),$F20,"") ->  | BI20: =IF(AND($G20=Lists!$D$41,$D20=BI$7),$F20,"") ->  | BJ20: =IF(AND($G20=Lists!$D$41,$D20=BJ$7),$F20,"") ->  | BK20: =IF(AND($G20=Lists!$D$41,$D20=BK$7),$F20,"") ->  | BL20: =IF(AND($G20=Lists!$D$41,$D20=BL$7),$F20,"") ->  | BM20: =IF(AND($G20=Lists!$D$41,$D20=BM$7),$F20,"") ->  | BN20: =IF(AND($G20=Lists!$D$41,$D20=BN$7),$F20,"") ->  | BO20: =IF(AND($G20=Lists!$D$41,$D20=BO$7),$F20,"") ->  | BP20: =IF(AND($G20=Lists!$D$41,$D20=BP$7),$F20,"") ->  | BQ20: =IF(AND($G20=Lists!$D$41,$D20=BQ$7),$F20,"") ->  | BR20: =IF(AND($G20=Lists!$D$41,$D20=BR$7),$F20,"") ->  | BS20: =IF(AND($G20=Lists!$D$41,$D20=BS$7),$F20,"") ->  | BT20: =IF(AND($G20=Lists!$D$41,$D20=BT$7),$F20,"") ->  | BU20: =IF(AND($G20=Lists!$D$41,$D20=BU$7),$F20,"") ->  | BV20: =IF(AND($G20=Lists!$D$41,$D20=BV$7),$F20,"") ->  | BW20: =IF(AND($G20=Lists!$D$41,$D20=BW$7),$F20,"") ->  | BY20: =IF(AND($G20=Lists!$D$42,$D20=BY$7),$F20,"") ->  | BZ20: =IF(AND($G20=Lists!$D$42,$D20=BZ$7),$F20,"") ->  | CA20: =IF(AND($G20=Lists!$D$42,$D20=CA$7),$F20,"") ->  | CB20: =IF(AND($G20=Lists!$D$42,$D20=CB$7),$F20,"") ->  | CC20: =IF(AND($G20=Lists!$D$42,$D20=CC$7),$F20,"") ->  | CD20: =IF(AND($G20=Lists!$D$42,$D20=CD$7),$F20,"") ->  | CE20: =IF(AND($G20=Lists!$D$42,$D20=CE$7),$F20,"") ->  | CF20: =IF(AND($G20=Lists!$D$42,$D20=CF$7),$F20,"") ->  | CG20: =IF(AND($G20=Lists!$D$42,$D20=CG$7),$F20,"") ->  | CH20: =IF(AND($G20=Lists!$D$42,$D20=CH$7),$F20,"") ->  | CI20: =IF(AND($G20=Lists!$D$42,$D20=CI$7),$F20,"") ->  | CJ20: =IF(AND($G20=Lists!$D$42,$D20=CJ$7),$F20,"") ->  | CK20: =IF(AND($G20=Lists!$D$42,$D20=CK$7),$F20,"") ->  | CL20: =IF(AND($G20=Lists!$D$42,$D20=CL$7),$F20,"") ->  | CM20: =IF(AND($G20=Lists!$D$42,$D20=CM$7),$F20,"") ->  | CN20: =IF(AND($G20=Lists!$D$42,$D20=CN$7),$F20,"") ->  | CO20: =IF(AND($G20=Lists!$D$42,$D20=CO$7),$F20,"") ->  | CP20: =IF(AND($G20=Lists!$D$42,$D20=CP$7),$F20,"") ->  | CQ20: =IF(AND($G20=Lists!$D$42,$D20=CQ$7),$F20,"") ->  | CR20: =IF(AND($G20=Lists!$D$42,$D20=CR$7),$F20,"") ->  | CS20: =IF(AND($G20=Lists!$D$42,$D20=CS$7),$F20,"") ->  | CT20: =IF(AND($G20=Lists!$D$42,$D20=CT$7),$F20,"") ->  | CU20: =IF(AND($G20=Lists!$D$42,$D20=CU$7),$F20,"") ->  | CV20: =IF(AND($G20=Lists!$D$42,$D20=CV$7),$F20,"") ->  | CW20: =IF(AND($G20=Lists!$D$42,$D20=CW$7),$F20,"") ->  | CX20: =IF(AND($G20=Lists!$D$42,$D20=CX$7),$F20,"") ->  | CY20: =IF(AND($G20=Lists!$D$42,$D20=CY$7),$F20,"") ->  | CZ20: =IF(AND($G20=Lists!$D$42,$D20=CZ$7),$F20,"") ->  | DA20: =IF(AND($G20=Lists!$D$42,$D20=DA$7),$F20,"") ->  | DB20: =IF(AND($G20=Lists!$D$42,$D20=DB$7),$F20,"") ->  | DE20: =IF(AND($G20=Lists!$D$42,$D20=DE$7),$F20,"") -> 
D21: Conventional gas, Operation / Production, <= 4 wells well | G21: seed | U21: 0 | AQ21: =IF(AND($G21=Lists!$D$41,$D21=AQ$7),$F21,"") ->  | AR21: =IF(AND($G21=Lists!$D$41,$D21=AR$7),$F21,"") ->  | AS21: =IF(AND($G21=Lists!$D$41,$D21=AS$7),$F21,"") ->  | AT21: =IF(AND($G21=Lists!$D$41,$D21=AT$7),$F21,"") ->  | AU21: =IF(AND($G21=Lists!$D$41,$D21=AU$7),$F21,"") ->  | AV21: =IF(AND($G21=Lists!$D$41,$D21=AV$7),$F21,"") ->  | AW21: =IF(AND($G21=Lists!$D$41,$D21=AW$7),$F21,"") ->  | AX21: =IF(AND($G21=Lists!$D$41,$D21=AX$7),$F21,"") ->  | AY21: =IF(AND($G21=Lists!$D$41,$D21=AY$7),$F21,"") ->  | AZ21: =IF(AND($G21=Lists!$D$41,$D21=AZ$7),$F21,"") ->  | BA21: =IF(AND($G21=Lists!$D$41,$D21=BA$7),$F21,"") ->  | BB21: =IF(AND($G21=Lists!$D$41,$D21=BB$7),$F21,"") ->  | BC21: =IF(AND($G21=Lists!$D$41,$D21=BC$7),$F21,"") -> 0 | BD21: =IF(AND($G21=Lists!$D$41,$D21=BD$7),$F21,"") ->  | BE21: =IF(AND($G21=Lists!$D$41,$D21=BE$7),$F21,"") ->  | BF21: =IF(AND($G21=Lists!$D$41,$D21=BF$7),$F21,"") ->  | BG21: =IF(AND($G21=Lists!$D$41,$D21=BG$7),$F21,"") ->  | BH21: =IF(AND($G21=Lists!$D$41,$D21=BH$7),$F21,"") ->  | BI21: =IF(AND($G21=Lists!$D$41,$D21=BI$7),$F21,"") ->  | BJ21: =IF(AND($G21=Lists!$D$41,$D21=BJ$7),$F21,"") ->  | BK21: =IF(AND($G21=Lists!$D$41,$D21=BK$7),$F21,"") ->  | BL21: =IF(AND($G21=Lists!$D$41,$D21=BL$7),$F21,"") ->  | BM21: =IF(AND($G21=Lists!$D$41,$D21=BM$7),$F21,"") ->  | BN21: =IF(AND($G21=Lists!$D$41,$D21=BN$7),$F21,"") ->  | BO21: =IF(AND($G21=Lists!$D$41,$D21=BO$7),$F21,"") ->  | BP21: =IF(AND($G21=Lists!$D$41,$D21=BP$7),$F21,"") ->  | BQ21: =IF(AND($G21=Lists!$D$41,$D21=BQ$7),$F21,"") ->  | BR21: =IF(AND($G21=Lists!$D$41,$D21=BR$7),$F21,"") ->  | BS21: =IF(AND($G21=Lists!$D$41,$D21=BS$7),$F21,"") ->  | BT21: =IF(AND($G21=Lists!$D$41,$D21=BT$7),$F21,"") ->  | BU21: =IF(AND($G21=Lists!$D$41,$D21=BU$7),$F21,"") ->  | BV21: =IF(AND($G21=Lists!$D$41,$D21=BV$7),$F21,"") ->  | BW21: =IF(AND($G21=Lists!$D$41,$D21=BW$7),$F21,"") ->  | BY21: =IF(AND($G21=Lists!$D$42,$D21=BY$7),$F21,"") ->  | BZ21: =IF(AND($G21=Lists!$D$42,$D21=BZ$7),$F21,"") ->  | CA21: =IF(AND($G21=Lists!$D$42,$D21=CA$7),$F21,"") ->  | CB21: =IF(AND($G21=Lists!$D$42,$D21=CB$7),$F21,"") ->  | CC21: =IF(AND($G21=Lists!$D$42,$D21=CC$7),$F21,"") ->  | CD21: =IF(AND($G21=Lists!$D$42,$D21=CD$7),$F21,"") ->  | CE21: =IF(AND($G21=Lists!$D$42,$D21=CE$7),$F21,"") ->  | CF21: =IF(AND($G21=Lists!$D$42,$D21=CF$7),$F21,"") ->  | CG21: =IF(AND($G21=Lists!$D$42,$D21=CG$7),$F21,"") ->  | CH21: =IF(AND($G21=Lists!$D$42,$D21=CH$7),$F21,"") ->  | CI21: =IF(AND($G21=Lists!$D$42,$D21=CI$7),$F21,"") ->  | CJ21: =IF(AND($G21=Lists!$D$42,$D21=CJ$7),$F21,"") ->  | CK21: =IF(AND($G21=Lists!$D$42,$D21=CK$7),$F21,"") ->  | CL21: =IF(AND($G21=Lists!$D$42,$D21=CL$7),$F21,"") ->  | CM21: =IF(AND($G21=Lists!$D$42,$D21=CM$7),$F21,"") ->  | CN21: =IF(AND($G21=Lists!$D$42,$D21=CN$7),$F21,"") ->  | CO21: =IF(AND($G21=Lists!$D$42,$D21=CO$7),$F21,"") ->  | CP21: =IF(AND($G21=Lists!$D$42,$D21=CP$7),$F21,"") ->  | CQ21: =IF(AND($G21=Lists!$D$42,$D21=CQ$7),$F21,"") ->  | CR21: =IF(AND($G21=Lists!$D$42,$D21=CR$7),$F21,"") ->  | CS21: =IF(AND($G21=Lists!$D$42,$D21=CS$7),$F21,"") ->  | CT21: =IF(AND($G21=Lists!$D$42,$D21=CT$7),$F21,"") ->  | CU21: =IF(AND($G21=Lists!$D$42,$D21=CU$7),$F21,"") ->  | CV21: =IF(AND($G21=Lists!$D$42,$D21=CV$7),$F21,"") ->  | CW21: =IF(AND($G21=Lists!$D$42,$D21=CW$7),$F21,"") ->  | CX21: =IF(AND($G21=Lists!$D$42,$D21=CX$7),$F21,"") ->  | CY21: =IF(AND($G21=Lists!$D$42,$D21=CY$7),$F21,"") ->  | CZ21: =IF(AND($G21=Lists!$D$42,$D21=CZ$7),$F21,"") ->  | DA21: =IF(AND($G21=Lists!$D$42,$D21=DA$7),$F21,"") ->  | DB21: =IF(AND($G21=Lists!$D$42,$D21=DB$7),$F21,"") ->  | DE21: =IF(AND($G21=Lists!$D$42,$D21=DE$7),$F21,"") -> 
D22: Conventional gas, Operation / Production, > 4 wells well | G22: seed | V22: 0 | AQ22: =IF(AND($G22=Lists!$D$41,$D22=AQ$7),$F22,"") ->  | AR22: =IF(AND($G22=Lists!$D$41,$D22=AR$7),$F22,"") ->  | AS22: =IF(AND($G22=Lists!$D$41,$D22=AS$7),$F22,"") ->  | AT22: =IF(AND($G22=Lists!$D$41,$D22=AT$7),$F22,"") ->  | AU22: =IF(AND($G22=Lists!$D$41,$D22=AU$7),$F22,"") ->  | AV22: =IF(AND($G22=Lists!$D$41,$D22=AV$7),$F22,"") ->  | AW22: =IF(AND($G22=Lists!$D$41,$D22=AW$7),$F22,"") ->  | AX22: =IF(AND($G22=Lists!$D$41,$D22=AX$7),$F22,"") ->  | AY22: =IF(AND($G22=Lists!$D$41,$D22=AY$7),$F22,"") ->  | AZ22: =IF(AND($G22=Lists!$D$41,$D22=AZ$7),$F22,"") ->  | BA22: =IF(AND($G22=Lists!$D$41,$D22=BA$7),$F22,"") ->  | BB22: =IF(AND($G22=Lists!$D$41,$D22=BB$7),$F22,"") ->  | BC22: =IF(AND($G22=Lists!$D$41,$D22=BC$7),$F22,"") ->  | BD22: =IF(AND($G22=Lists!$D$41,$D22=BD$7),$F22,"") -> 0 | BE22: =IF(AND($G22=Lists!$D$41,$D22=BE$7),$F22,"") ->  | BF22: =IF(AND($G22=Lists!$D$41,$D22=BF$7),$F22,"") ->  | BG22: =IF(AND($G22=Lists!$D$41,$D22=BG$7),$F22,"") ->  | BH22: =IF(AND($G22=Lists!$D$41,$D22=BH$7),$F22,"") ->  | BI22: =IF(AND($G22=Lists!$D$41,$D22=BI$7),$F22,"") ->  | BJ22: =IF(AND($G22=Lists!$D$41,$D22=BJ$7),$F22,"") ->  | BK22: =IF(AND($G22=Lists!$D$41,$D22=BK$7),$F22,"") ->  | BL22: =IF(AND($G22=Lists!$D$41,$D22=BL$7),$F22,"") ->  | BM22: =IF(AND($G22=Lists!$D$41,$D22=BM$7),$F22,"") ->  | BN22: =IF(AND($G22=Lists!$D$41,$D22=BN$7),$F22,"") ->  | BO22: =IF(AND($G22=Lists!$D$41,$D22=BO$7),$F22,"") ->  | BP22: =IF(AND($G22=Lists!$D$41,$D22=BP$7),$F22,"") ->  | BQ22: =IF(AND($G22=Lists!$D$41,$D22=BQ$7),$F22,"") ->  | BR22: =IF(AND($G22=Lists!$D$41,$D22=BR$7),$F22,"") ->  | BS22: =IF(AND($G22=Lists!$D$41,$D22=BS$7),$F22,"") ->  | BT22: =IF(AND($G22=Lists!$D$41,$D22=BT$7),$F22,"") ->  | BU22: =IF(AND($G22=Lists!$D$41,$D22=BU$7),$F22,"") ->  | BV22: =IF(AND($G22=Lists!$D$41,$D22=BV$7),$F22,"") ->  | BW22: =IF(AND($G22=Lists!$D$41,$D22=BW$7),$F22,"") ->  | BY22: =IF(AND($G22=Lists!$D$42,$D22=BY$7),$F22,"") ->  | BZ22: =IF(AND($G22=Lists!$D$42,$D22=BZ$7),$F22,"") ->  | CA22: =IF(AND($G22=Lists!$D$42,$D22=CA$7),$F22,"") ->  | CB22: =IF(AND($G22=Lists!$D$42,$D22=CB$7),$F22,"") ->  | CC22: =IF(AND($G22=Lists!$D$42,$D22=CC$7),$F22,"") ->  | CD22: =IF(AND($G22=Lists!$D$42,$D22=CD$7),$F22,"") ->  | CE22: =IF(AND($G22=Lists!$D$42,$D22=CE$7),$F22,"") ->  | CF22: =IF(AND($G22=Lists!$D$42,$D22=CF$7),$F22,"") ->  | CG22: =IF(AND($G22=Lists!$D$42,$D22=CG$7),$F22,"") ->  | CH22: =IF(AND($G22=Lists!$D$42,$D22=CH$7),$F22,"") ->  | CI22: =IF(AND($G22=Lists!$D$42,$D22=CI$7),$F22,"") ->  | CJ22: =IF(AND($G22=Lists!$D$42,$D22=CJ$7),$F22,"") ->  | CK22: =IF(AND($G22=Lists!$D$42,$D22=CK$7),$F22,"") ->  | CL22: =IF(AND($G22=Lists!$D$42,$D22=CL$7),$F22,"") ->  | CM22: =IF(AND($G22=Lists!$D$42,$D22=CM$7),$F22,"") ->  | CN22: =IF(AND($G22=Lists!$D$42,$D22=CN$7),$F22,"") ->  | CO22: =IF(AND($G22=Lists!$D$42,$D22=CO$7),$F22,"") ->  | CP22: =IF(AND($G22=Lists!$D$42,$D22=CP$7),$F22,"") ->  | CQ22: =IF(AND($G22=Lists!$D$42,$D22=CQ$7),$F22,"") ->  | CR22: =IF(AND($G22=Lists!$D$42,$D22=CR$7),$F22,"") ->  | CS22: =IF(AND($G22=Lists!$D$42,$D22=CS$7),$F22,"") ->  | CT22: =IF(AND($G22=Lists!$D$42,$D22=CT$7),$F22,"") ->  | CU22: =IF(AND($G22=Lists!$D$42,$D22=CU$7),$F22,"") ->  | CV22: =IF(AND($G22=Lists!$D$42,$D22=CV$7),$F22,"") ->  | CW22: =IF(AND($G22=Lists!$D$42,$D22=CW$7),$F22,"") ->  | CX22: =IF(AND($G22=Lists!$D$42,$D22=CX$7),$F22,"") ->  | CY22: =IF(AND($G22=Lists!$D$42,$D22=CY$7),$F22,"") ->  | CZ22: =IF(AND($G22=Lists!$D$42,$D22=CZ$7),$F22,"") ->  | DA22: =IF(AND($G22=Lists!$D$42,$D22=DA$7),$F22,"") ->  | DB22: =IF(AND($G22=Lists!$D$42,$D22=DB$7),$F22,"") ->  | DE22: =IF(AND($G22=Lists!$D$42,$D22=DE$7),$F22,"") -> 
D23: Coal seam gas, Plugged and abandoned, Single well | G23: seed | W23: 0 | AQ23: =IF(AND($G23=Lists!$D$41,$D23=AQ$7),$F23,"") ->  | AR23: =IF(AND($G23=Lists!$D$41,$D23=AR$7),$F23,"") ->  | AS23: =IF(AND($G23=Lists!$D$41,$D23=AS$7),$F23,"") ->  | AT23: =IF(AND($G23=Lists!$D$41,$D23=AT$7),$F23,"") ->  | AU23: =IF(AND($G23=Lists!$D$41,$D23=AU$7),$F23,"") ->  | AV23: =IF(AND($G23=Lists!$D$41,$D23=AV$7),$F23,"") ->  | AW23: =IF(AND($G23=Lists!$D$41,$D23=AW$7),$F23,"") ->  | AX23: =IF(AND($G23=Lists!$D$41,$D23=AX$7),$F23,"") ->  | AY23: =IF(AND($G23=Lists!$D$41,$D23=AY$7),$F23,"") ->  | AZ23: =IF(AND($G23=Lists!$D$41,$D23=AZ$7),$F23,"") ->  | BA23: =IF(AND($G23=Lists!$D$41,$D23=BA$7),$F23,"") ->  | BB23: =IF(AND($G23=Lists!$D$41,$D23=BB$7),$F23,"") ->  | BC23: =IF(AND($G23=Lists!$D$41,$D23=BC$7),$F23,"") ->  | BD23: =IF(AND($G23=Lists!$D$41,$D23=BD$7),$F23,"") ->  | BE23: =IF(AND($G23=Lists!$D$41,$D23=BE$7),$F23,"") -> 0 | BF23: =IF(AND($G23=Lists!$D$41,$D23=BF$7),$F23,"") ->  | BG23: =IF(AND($G23=Lists!$D$41,$D23=BG$7),$F23,"") ->  | BH23: =IF(AND($G23=Lists!$D$41,$D23=BH$7),$F23,"") ->  | BI23: =IF(AND($G23=Lists!$D$41,$D23=BI$7),$F23,"") ->  | BJ23: =IF(AND($G23=Lists!$D$41,$D23=BJ$7),$F23,"") ->  | BK23: =IF(AND($G23=Lists!$D$41,$D23=BK$7),$F23,"") ->  | BL23: =IF(AND($G23=Lists!$D$41,$D23=BL$7),$F23,"") ->  | BM23: =IF(AND($G23=Lists!$D$41,$D23=BM$7),$F23,"") ->  | BN23: =IF(AND($G23=Lists!$D$41,$D23=BN$7),$F23,"") ->  | BO23: =IF(AND($G23=Lists!$D$41,$D23=BO$7),$F23,"") ->  | BP23: =IF(AND($G23=Lists!$D$41,$D23=BP$7),$F23,"") ->  | BQ23: =IF(AND($G23=Lists!$D$41,$D23=BQ$7),$F23,"") ->  | BR23: =IF(AND($G23=Lists!$D$41,$D23=BR$7),$F23,"") ->  | BS23: =IF(AND($G23=Lists!$D$41,$D23=BS$7),$F23,"") ->  | BT23: =IF(AND($G23=Lists!$D$41,$D23=BT$7),$F23,"") ->  | BU23: =IF(AND($G23=Lists!$D$41,$D23=BU$7),$F23,"") ->  | BV23: =IF(AND($G23=Lists!$D$41,$D23=BV$7),$F23,"") ->  | BW23: =IF(AND($G23=Lists!$D$41,$D23=BW$7),$F23,"") ->  | BY23: =IF(AND($G23=Lists!$D$42,$D23=BY$7),$F23,"") ->  | BZ23: =IF(AND($G23=Lists!$D$42,$D23=BZ$7),$F23,"") ->  | CA23: =IF(AND($G23=Lists!$D$42,$D23=CA$7),$F23,"") ->  | CB23: =IF(AND($G23=Lists!$D$42,$D23=CB$7),$F23,"") ->  | CC23: =IF(AND($G23=Lists!$D$42,$D23=CC$7),$F23,"") ->  | CD23: =IF(AND($G23=Lists!$D$42,$D23=CD$7),$F23,"") ->  | CE23: =IF(AND($G23=Lists!$D$42,$D23=CE$7),$F23,"") ->  | CF23: =IF(AND($G23=Lists!$D$42,$D23=CF$7),$F23,"") ->  | CG23: =IF(AND($G23=Lists!$D$42,$D23=CG$7),$F23,"") ->  | CH23: =IF(AND($G23=Lists!$D$42,$D23=CH$7),$F23,"") ->  | CI23: =IF(AND($G23=Lists!$D$42,$D23=CI$7),$F23,"") ->  | CJ23: =IF(AND($G23=Lists!$D$42,$D23=CJ$7),$F23,"") ->  | CK23: =IF(AND($G23=Lists!$D$42,$D23=CK$7),$F23,"") ->  | CL23: =IF(AND($G23=Lists!$D$42,$D23=CL$7),$F23,"") ->  | CM23: =IF(AND($G23=Lists!$D$42,$D23=CM$7),$F23,"") ->  | CN23: =IF(AND($G23=Lists!$D$42,$D23=CN$7),$F23,"") ->  | CO23: =IF(AND($G23=Lists!$D$42,$D23=CO$7),$F23,"") ->  | CP23: =IF(AND($G23=Lists!$D$42,$D23=CP$7),$F23,"") ->  | CQ23: =IF(AND($G23=Lists!$D$42,$D23=CQ$7),$F23,"") ->  | CR23: =IF(AND($G23=Lists!$D$42,$D23=CR$7),$F23,"") ->  | CS23: =IF(AND($G23=Lists!$D$42,$D23=CS$7),$F23,"") ->  | CT23: =IF(AND($G23=Lists!$D$42,$D23=CT$7),$F23,"") ->  | CU23: =IF(AND($G23=Lists!$D$42,$D23=CU$7),$F23,"") ->  | CV23: =IF(AND($G23=Lists!$D$42,$D23=CV$7),$F23,"") ->  | CW23: =IF(AND($G23=Lists!$D$42,$D23=CW$7),$F23,"") ->  | CX23: =IF(AND($G23=Lists!$D$42,$D23=CX$7),$F23,"") ->  | CY23: =IF(AND($G23=Lists!$D$42,$D23=CY$7),$F23,"") ->  | CZ23: =IF(AND($G23=Lists!$D$42,$D23=CZ$7),$F23,"") ->  | DA23: =IF(AND($G23=Lists!$D$42,$D23=DA$7),$F23,"") ->  | DB23: =IF(AND($G23=Lists!$D$42,$D23=DB$7),$F23,"") ->  | DE23: =IF(AND($G23=Lists!$D$42,$D23=DE$7),$F23,"") -> 
D24: Coal seam gas, Suspended, Single well | G24: seed | X24: 0 | AQ24: =IF(AND($G24=Lists!$D$41,$D24=AQ$7),$F24,"") ->  | AR24: =IF(AND($G24=Lists!$D$41,$D24=AR$7),$F24,"") ->  | AS24: =IF(AND($G24=Lists!$D$41,$D24=AS$7),$F24,"") ->  | AT24: =IF(AND($G24=Lists!$D$41,$D24=AT$7),$F24,"") ->  | AU24: =IF(AND($G24=Lists!$D$41,$D24=AU$7),$F24,"") ->  | AV24: =IF(AND($G24=Lists!$D$41,$D24=AV$7),$F24,"") ->  | AW24: =IF(AND($G24=Lists!$D$41,$D24=AW$7),$F24,"") ->  | AX24: =IF(AND($G24=Lists!$D$41,$D24=AX$7),$F24,"") ->  | AY24: =IF(AND($G24=Lists!$D$41,$D24=AY$7),$F24,"") ->  | AZ24: =IF(AND($G24=Lists!$D$41,$D24=AZ$7),$F24,"") ->  | BA24: =IF(AND($G24=Lists!$D$41,$D24=BA$7),$F24,"") ->  | BB24: =IF(AND($G24=Lists!$D$41,$D24=BB$7),$F24,"") ->  | BC24: =IF(AND($G24=Lists!$D$41,$D24=BC$7),$F24,"") ->  | BD24: =IF(AND($G24=Lists!$D$41,$D24=BD$7),$F24,"") ->  | BE24: =IF(AND($G24=Lists!$D$41,$D24=BE$7),$F24,"") ->  | BF24: =IF(AND($G24=Lists!$D$41,$D24=BF$7),$F24,"") -> 0 | BG24: =IF(AND($G24=Lists!$D$41,$D24=BG$7),$F24,"") ->  | BH24: =IF(AND($G24=Lists!$D$41,$D24=BH$7),$F24,"") ->  | BI24: =IF(AND($G24=Lists!$D$41,$D24=BI$7),$F24,"") ->  | BJ24: =IF(AND($G24=Lists!$D$41,$D24=BJ$7),$F24,"") ->  | BK24: =IF(AND($G24=Lists!$D$41,$D24=BK$7),$F24,"") ->  | BL24: =IF(AND($G24=Lists!$D$41,$D24=BL$7),$F24,"") ->  | BM24: =IF(AND($G24=Lists!$D$41,$D24=BM$7),$F24,"") ->  | BN24: =IF(AND($G24=Lists!$D$41,$D24=BN$7),$F24,"") ->  | BO24: =IF(AND($G24=Lists!$D$41,$D24=BO$7),$F24,"") ->  | BP24: =IF(AND($G24=Lists!$D$41,$D24=BP$7),$F24,"") ->  | BQ24: =IF(AND($G24=Lists!$D$41,$D24=BQ$7),$F24,"") ->  | BR24: =IF(AND($G24=Lists!$D$41,$D24=BR$7),$F24,"") ->  | BS24: =IF(AND($G24=Lists!$D$41,$D24=BS$7),$F24,"") ->  | BT24: =IF(AND($G24=Lists!$D$41,$D24=BT$7),$F24,"") ->  | BU24: =IF(AND($G24=Lists!$D$41,$D24=BU$7),$F24,"") ->  | BV24: =IF(AND($G24=Lists!$D$41,$D24=BV$7),$F24,"") ->  | BW24: =IF(AND($G24=Lists!$D$41,$D24=BW$7),$F24,"") ->  | BY24: =IF(AND($G24=Lists!$D$42,$D24=BY$7),$F24,"") ->  | BZ24: =IF(AND($G24=Lists!$D$42,$D24=BZ$7),$F24,"") ->  | CA24: =IF(AND($G24=Lists!$D$42,$D24=CA$7),$F24,"") ->  | CB24: =IF(AND($G24=Lists!$D$42,$D24=CB$7),$F24,"") ->  | CC24: =IF(AND($G24=Lists!$D$42,$D24=CC$7),$F24,"") ->  | CD24: =IF(AND($G24=Lists!$D$42,$D24=CD$7),$F24,"") ->  | CE24: =IF(AND($G24=Lists!$D$42,$D24=CE$7),$F24,"") ->  | CF24: =IF(AND($G24=Lists!$D$42,$D24=CF$7),$F24,"") ->  | CG24: =IF(AND($G24=Lists!$D$42,$D24=CG$7),$F24,"") ->  | CH24: =IF(AND($G24=Lists!$D$42,$D24=CH$7),$F24,"") ->  | CI24: =IF(AND($G24=Lists!$D$42,$D24=CI$7),$F24,"") ->  | CJ24: =IF(AND($G24=Lists!$D$42,$D24=CJ$7),$F24,"") ->  | CK24: =IF(AND($G24=Lists!$D$42,$D24=CK$7),$F24,"") ->  | CL24: =IF(AND($G24=Lists!$D$42,$D24=CL$7),$F24,"") ->  | CM24: =IF(AND($G24=Lists!$D$42,$D24=CM$7),$F24,"") ->  | CN24: =IF(AND($G24=Lists!$D$42,$D24=CN$7),$F24,"") ->  | CO24: =IF(AND($G24=Lists!$D$42,$D24=CO$7),$F24,"") ->  | CP24: =IF(AND($G24=Lists!$D$42,$D24=CP$7),$F24,"") ->  | CQ24: =IF(AND($G24=Lists!$D$42,$D24=CQ$7),$F24,"") ->  | CR24: =IF(AND($G24=Lists!$D$42,$D24=CR$7),$F24,"") ->  | CS24: =IF(AND($G24=Lists!$D$42,$D24=CS$7),$F24,"") ->  | CT24: =IF(AND($G24=Lists!$D$42,$D24=CT$7),$F24,"") ->  | CU24: =IF(AND($G24=Lists!$D$42,$D24=CU$7),$F24,"") ->  | CV24: =IF(AND($G24=Lists!$D$42,$D24=CV$7),$F24,"") ->  | CW24: =IF(AND($G24=Lists!$D$42,$D24=CW$7),$F24,"") ->  | CX24: =IF(AND($G24=Lists!$D$42,$D24=CX$7),$F24,"") ->  | CY24: =IF(AND($G24=Lists!$D$42,$D24=CY$7),$F24,"") ->  | CZ24: =IF(AND($G24=Lists!$D$42,$D24=CZ$7),$F24,"") ->  | DA24: =IF(AND($G24=Lists!$D$42,$D24=DA$7),$F24,"") ->  | DB24: =IF(AND($G24=Lists!$D$42,$D24=DB$7),$F24,"") ->  | DE24: =IF(AND($G24=Lists!$D$42,$D24=DE$7),$F24,"") -> 
D25: Coal seam gas, Shut-in, Single well | G25: seed | Y25: 0 | AQ25: =IF(AND($G25=Lists!$D$41,$D25=AQ$7),$F25,"") ->  | AR25: =IF(AND($G25=Lists!$D$41,$D25=AR$7),$F25,"") ->  | AS25: =IF(AND($G25=Lists!$D$41,$D25=AS$7),$F25,"") ->  | AT25: =IF(AND($G25=Lists!$D$41,$D25=AT$7),$F25,"") ->  | AU25: =IF(AND($G25=Lists!$D$41,$D25=AU$7),$F25,"") ->  | AV25: =IF(AND($G25=Lists!$D$41,$D25=AV$7),$F25,"") ->  | AW25: =IF(AND($G25=Lists!$D$41,$D25=AW$7),$F25,"") ->  | AX25: =IF(AND($G25=Lists!$D$41,$D25=AX$7),$F25,"") ->  | AY25: =IF(AND($G25=Lists!$D$41,$D25=AY$7),$F25,"") ->  | AZ25: =IF(AND($G25=Lists!$D$41,$D25=AZ$7),$F25,"") ->  | BA25: =IF(AND($G25=Lists!$D$41,$D25=BA$7),$F25,"") ->  | BB25: =IF(AND($G25=Lists!$D$41,$D25=BB$7),$F25,"") ->  | BC25: =IF(AND($G25=Lists!$D$41,$D25=BC$7),$F25,"") ->  | BD25: =IF(AND($G25=Lists!$D$41,$D25=BD$7),$F25,"") ->  | BE25: =IF(AND($G25=Lists!$D$41,$D25=BE$7),$F25,"") ->  | BF25: =IF(AND($G25=Lists!$D$41,$D25=BF$7),$F25,"") ->  | BG25: =IF(AND($G25=Lists!$D$41,$D25=BG$7),$F25,"") -> 0 | BH25: =IF(AND($G25=Lists!$D$41,$D25=BH$7),$F25,"") ->  | BI25: =IF(AND($G25=Lists!$D$41,$D25=BI$7),$F25,"") ->  | BJ25: =IF(AND($G25=Lists!$D$41,$D25=BJ$7),$F25,"") ->  | BK25: =IF(AND($G25=Lists!$D$41,$D25=BK$7),$F25,"") ->  | BL25: =IF(AND($G25=Lists!$D$41,$D25=BL$7),$F25,"") ->  | BM25: =IF(AND($G25=Lists!$D$41,$D25=BM$7),$F25,"") ->  | BN25: =IF(AND($G25=Lists!$D$41,$D25=BN$7),$F25,"") ->  | BO25: =IF(AND($G25=Lists!$D$41,$D25=BO$7),$F25,"") ->  | BP25: =IF(AND($G25=Lists!$D$41,$D25=BP$7),$F25,"") ->  | BQ25: =IF(AND($G25=Lists!$D$41,$D25=BQ$7),$F25,"") ->  | BR25: =IF(AND($G25=Lists!$D$41,$D25=BR$7),$F25,"") ->  | BS25: =IF(AND($G25=Lists!$D$41,$D25=BS$7),$F25,"") ->  | BT25: =IF(AND($G25=Lists!$D$41,$D25=BT$7),$F25,"") ->  | BU25: =IF(AND($G25=Lists!$D$41,$D25=BU$7),$F25,"") ->  | BV25: =IF(AND($G25=Lists!$D$41,$D25=BV$7),$F25,"") ->  | BW25: =IF(AND($G25=Lists!$D$41,$D25=BW$7),$F25,"") ->  | BY25: =IF(AND($G25=Lists!$D$42,$D25=BY$7),$F25,"") ->  | BZ25: =IF(AND($G25=Lists!$D$42,$D25=BZ$7),$F25,"") ->  | CA25: =IF(AND($G25=Lists!$D$42,$D25=CA$7),$F25,"") ->  | CB25: =IF(AND($G25=Lists!$D$42,$D25=CB$7),$F25,"") ->  | CC25: =IF(AND($G25=Lists!$D$42,$D25=CC$7),$F25,"") ->  | CD25: =IF(AND($G25=Lists!$D$42,$D25=CD$7),$F25,"") ->  | CE25: =IF(AND($G25=Lists!$D$42,$D25=CE$7),$F25,"") ->  | CF25: =IF(AND($G25=Lists!$D$42,$D25=CF$7),$F25,"") ->  | CG25: =IF(AND($G25=Lists!$D$42,$D25=CG$7),$F25,"") ->  | CH25: =IF(AND($G25=Lists!$D$42,$D25=CH$7),$F25,"") ->  | CI25: =IF(AND($G25=Lists!$D$42,$D25=CI$7),$F25,"") ->  | CJ25: =IF(AND($G25=Lists!$D$42,$D25=CJ$7),$F25,"") ->  | CK25: =IF(AND($G25=Lists!$D$42,$D25=CK$7),$F25,"") ->  | CL25: =IF(AND($G25=Lists!$D$42,$D25=CL$7),$F25,"") ->  | CM25: =IF(AND($G25=Lists!$D$42,$D25=CM$7),$F25,"") ->  | CN25: =IF(AND($G25=Lists!$D$42,$D25=CN$7),$F25,"") ->  | CO25: =IF(AND($G25=Lists!$D$42,$D25=CO$7),$F25,"") ->  | CP25: =IF(AND($G25=Lists!$D$42,$D25=CP$7),$F25,"") ->  | CQ25: =IF(AND($G25=Lists!$D$42,$D25=CQ$7),$F25,"") ->  | CR25: =IF(AND($G25=Lists!$D$42,$D25=CR$7),$F25,"") ->  | CS25: =IF(AND($G25=Lists!$D$42,$D25=CS$7),$F25,"") ->  | CT25: =IF(AND($G25=Lists!$D$42,$D25=CT$7),$F25,"") ->  | CU25: =IF(AND($G25=Lists!$D$42,$D25=CU$7),$F25,"") ->  | CV25: =IF(AND($G25=Lists!$D$42,$D25=CV$7),$F25,"") ->  | CW25: =IF(AND($G25=Lists!$D$42,$D25=CW$7),$F25,"") ->  | CX25: =IF(AND($G25=Lists!$D$42,$D25=CX$7),$F25,"") ->  | CY25: =IF(AND($G25=Lists!$D$42,$D25=CY$7),$F25,"") ->  | CZ25: =IF(AND($G25=Lists!$D$42,$D25=CZ$7),$F25,"") ->  | DA25: =IF(AND($G25=Lists!$D$42,$D25=DA$7),$F25,"") ->  | DB25: =IF(AND($G25=Lists!$D$42,$D25=DB$7),$F25,"") ->  | DE25: =IF(AND($G25=Lists!$D$42,$D25=DE$7),$F25,"") -> 
D26: Coal seam gas, Appraisal / development, Single well | G26: seed | Z26: 0 | AQ26: =IF(AND($G26=Lists!$D$41,$D26=AQ$7),$F26,"") ->  | AR26: =IF(AND($G26=Lists!$D$41,$D26=AR$7),$F26,"") ->  | AS26: =IF(AND($G26=Lists!$D$41,$D26=AS$7),$F26,"") ->  | AT26: =IF(AND($G26=Lists!$D$41,$D26=AT$7),$F26,"") ->  | AU26: =IF(AND($G26=Lists!$D$41,$D26=AU$7),$F26,"") ->  | AV26: =IF(AND($G26=Lists!$D$41,$D26=AV$7),$F26,"") ->  | AW26: =IF(AND($G26=Lists!$D$41,$D26=AW$7),$F26,"") ->  | AX26: =IF(AND($G26=Lists!$D$41,$D26=AX$7),$F26,"") ->  | AY26: =IF(AND($G26=Lists!$D$41,$D26=AY$7),$F26,"") ->  | AZ26: =IF(AND($G26=Lists!$D$41,$D26=AZ$7),$F26,"") ->  | BA26: =IF(AND($G26=Lists!$D$41,$D26=BA$7),$F26,"") ->  | BB26: =IF(AND($G26=Lists!$D$41,$D26=BB$7),$F26,"") ->  | BC26: =IF(AND($G26=Lists!$D$41,$D26=BC$7),$F26,"") ->  | BD26: =IF(AND($G26=Lists!$D$41,$D26=BD$7),$F26,"") ->  | BE26: =IF(AND($G26=Lists!$D$41,$D26=BE$7),$F26,"") ->  | BF26: =IF(AND($G26=Lists!$D$41,$D26=BF$7),$F26,"") ->  | BG26: =IF(AND($G26=Lists!$D$41,$D26=BG$7),$F26,"") ->  | BH26: =IF(AND($G26=Lists!$D$41,$D26=BH$7),$F26,"") -> 0 | BI26: =IF(AND($G26=Lists!$D$41,$D26=BI$7),$F26,"") ->  | BJ26: =IF(AND($G26=Lists!$D$41,$D26=BJ$7),$F26,"") ->  | BK26: =IF(AND($G26=Lists!$D$41,$D26=BK$7),$F26,"") ->  | BL26: =IF(AND($G26=Lists!$D$41,$D26=BL$7),$F26,"") ->  | BM26: =IF(AND($G26=Lists!$D$41,$D26=BM$7),$F26,"") ->  | BN26: =IF(AND($G26=Lists!$D$41,$D26=BN$7),$F26,"") ->  | BO26: =IF(AND($G26=Lists!$D$41,$D26=BO$7),$F26,"") ->  | BP26: =IF(AND($G26=Lists!$D$41,$D26=BP$7),$F26,"") ->  | BQ26: =IF(AND($G26=Lists!$D$41,$D26=BQ$7),$F26,"") ->  | BR26: =IF(AND($G26=Lists!$D$41,$D26=BR$7),$F26,"") ->  | BS26: =IF(AND($G26=Lists!$D$41,$D26=BS$7),$F26,"") ->  | BT26: =IF(AND($G26=Lists!$D$41,$D26=BT$7),$F26,"") ->  | BU26: =IF(AND($G26=Lists!$D$41,$D26=BU$7),$F26,"") ->  | BV26: =IF(AND($G26=Lists!$D$41,$D26=BV$7),$F26,"") ->  | BW26: =IF(AND($G26=Lists!$D$41,$D26=BW$7),$F26,"") ->  | BY26: =IF(AND($G26=Lists!$D$42,$D26=BY$7),$F26,"") ->  | BZ26: =IF(AND($G26=Lists!$D$42,$D26=BZ$7),$F26,"") ->  | CA26: =IF(AND($G26=Lists!$D$42,$D26=CA$7),$F26,"") ->  | CB26: =IF(AND($G26=Lists!$D$42,$D26=CB$7),$F26,"") ->  | CC26: =IF(AND($G26=Lists!$D$42,$D26=CC$7),$F26,"") ->  | CD26: =IF(AND($G26=Lists!$D$42,$D26=CD$7),$F26,"") ->  | CE26: =IF(AND($G26=Lists!$D$42,$D26=CE$7),$F26,"") ->  | CF26: =IF(AND($G26=Lists!$D$42,$D26=CF$7),$F26,"") ->  | CG26: =IF(AND($G26=Lists!$D$42,$D26=CG$7),$F26,"") ->  | CH26: =IF(AND($G26=Lists!$D$42,$D26=CH$7),$F26,"") ->  | CI26: =IF(AND($G26=Lists!$D$42,$D26=CI$7),$F26,"") ->  | CJ26: =IF(AND($G26=Lists!$D$42,$D26=CJ$7),$F26,"") ->  | CK26: =IF(AND($G26=Lists!$D$42,$D26=CK$7),$F26,"") ->  | CL26: =IF(AND($G26=Lists!$D$42,$D26=CL$7),$F26,"") ->  | CM26: =IF(AND($G26=Lists!$D$42,$D26=CM$7),$F26,"") ->  | CN26: =IF(AND($G26=Lists!$D$42,$D26=CN$7),$F26,"") ->  | CO26: =IF(AND($G26=Lists!$D$42,$D26=CO$7),$F26,"") ->  | CP26: =IF(AND($G26=Lists!$D$42,$D26=CP$7),$F26,"") ->  | CQ26: =IF(AND($G26=Lists!$D$42,$D26=CQ$7),$F26,"") ->  | CR26: =IF(AND($G26=Lists!$D$42,$D26=CR$7),$F26,"") ->  | CS26: =IF(AND($G26=Lists!$D$42,$D26=CS$7),$F26,"") ->  | CT26: =IF(AND($G26=Lists!$D$42,$D26=CT$7),$F26,"") ->  | CU26: =IF(AND($G26=Lists!$D$42,$D26=CU$7),$F26,"") ->  | CV26: =IF(AND($G26=Lists!$D$42,$D26=CV$7),$F26,"") ->  | CW26: =IF(AND($G26=Lists!$D$42,$D26=CW$7),$F26,"") ->  | CX26: =IF(AND($G26=Lists!$D$42,$D26=CX$7),$F26,"") ->  | CY26: =IF(AND($G26=Lists!$D$42,$D26=CY$7),$F26,"") ->  | CZ26: =IF(AND($G26=Lists!$D$42,$D26=CZ$7),$F26,"") ->  | DA26: =IF(AND($G26=Lists!$D$42,$D26=DA$7),$F26,"") ->  | DB26: =IF(AND($G26=Lists!$D$42,$D26=DB$7),$F26,"") ->  | DE26: =IF(AND($G26=Lists!$D$42,$D26=DE$7),$F26,"") -> 
D27: Coal seam gas, Operation / Production, Single well | G27: seed | AA27: 0 | AQ27: =IF(AND($G27=Lists!$D$41,$D27=AQ$7),$F27,"") ->  | AR27: =IF(AND($G27=Lists!$D$41,$D27=AR$7),$F27,"") ->  | AS27: =IF(AND($G27=Lists!$D$41,$D27=AS$7),$F27,"") ->  | AT27: =IF(AND($G27=Lists!$D$41,$D27=AT$7),$F27,"") ->  | AU27: =IF(AND($G27=Lists!$D$41,$D27=AU$7),$F27,"") ->  | AV27: =IF(AND($G27=Lists!$D$41,$D27=AV$7),$F27,"") ->  | AW27: =IF(AND($G27=Lists!$D$41,$D27=AW$7),$F27,"") ->  | AX27: =IF(AND($G27=Lists!$D$41,$D27=AX$7),$F27,"") ->  | AY27: =IF(AND($G27=Lists!$D$41,$D27=AY$7),$F27,"") ->  | AZ27: =IF(AND($G27=Lists!$D$41,$D27=AZ$7),$F27,"") ->  | BA27: =IF(AND($G27=Lists!$D$41,$D27=BA$7),$F27,"") ->  | BB27: =IF(AND($G27=Lists!$D$41,$D27=BB$7),$F27,"") ->  | BC27: =IF(AND($G27=Lists!$D$41,$D27=BC$7),$F27,"") ->  | BD27: =IF(AND($G27=Lists!$D$41,$D27=BD$7),$F27,"") ->  | BE27: =IF(AND($G27=Lists!$D$41,$D27=BE$7),$F27,"") ->  | BF27: =IF(AND($G27=Lists!$D$41,$D27=BF$7),$F27,"") ->  | BG27: =IF(AND($G27=Lists!$D$41,$D27=BG$7),$F27,"") ->  | BH27: =IF(AND($G27=Lists!$D$41,$D27=BH$7),$F27,"") ->  | BI27: =IF(AND($G27=Lists!$D$41,$D27=BI$7),$F27,"") -> 0 | BJ27: =IF(AND($G27=Lists!$D$41,$D27=BJ$7),$F27,"") ->  | BK27: =IF(AND($G27=Lists!$D$41,$D27=BK$7),$F27,"") ->  | BL27: =IF(AND($G27=Lists!$D$41,$D27=BL$7),$F27,"") ->  | BM27: =IF(AND($G27=Lists!$D$41,$D27=BM$7),$F27,"") ->  | BN27: =IF(AND($G27=Lists!$D$41,$D27=BN$7),$F27,"") ->  | BO27: =IF(AND($G27=Lists!$D$41,$D27=BO$7),$F27,"") ->  | BP27: =IF(AND($G27=Lists!$D$41,$D27=BP$7),$F27,"") ->  | BQ27: =IF(AND($G27=Lists!$D$41,$D27=BQ$7),$F27,"") ->  | BR27: =IF(AND($G27=Lists!$D$41,$D27=BR$7),$F27,"") ->  | BS27: =IF(AND($G27=Lists!$D$41,$D27=BS$7),$F27,"") ->  | BT27: =IF(AND($G27=Lists!$D$41,$D27=BT$7),$F27,"") ->  | BU27: =IF(AND($G27=Lists!$D$41,$D27=BU$7),$F27,"") ->  | BV27: =IF(AND($G27=Lists!$D$41,$D27=BV$7),$F27,"") ->  | BW27: =IF(AND($G27=Lists!$D$41,$D27=BW$7),$F27,"") ->  | BY27: =IF(AND($G27=Lists!$D$42,$D27=BY$7),$F27,"") ->  | BZ27: =IF(AND($G27=Lists!$D$42,$D27=BZ$7),$F27,"") ->  | CA27: =IF(AND($G27=Lists!$D$42,$D27=CA$7),$F27,"") ->  | CB27: =IF(AND($G27=Lists!$D$42,$D27=CB$7),$F27,"") ->  | CC27: =IF(AND($G27=Lists!$D$42,$D27=CC$7),$F27,"") ->  | CD27: =IF(AND($G27=Lists!$D$42,$D27=CD$7),$F27,"") ->  | CE27: =IF(AND($G27=Lists!$D$42,$D27=CE$7),$F27,"") ->  | CF27: =IF(AND($G27=Lists!$D$42,$D27=CF$7),$F27,"") ->  | CG27: =IF(AND($G27=Lists!$D$42,$D27=CG$7),$F27,"") ->  | CH27: =IF(AND($G27=Lists!$D$42,$D27=CH$7),$F27,"") ->  | CI27: =IF(AND($G27=Lists!$D$42,$D27=CI$7),$F27,"") ->  | CJ27: =IF(AND($G27=Lists!$D$42,$D27=CJ$7),$F27,"") ->  | CK27: =IF(AND($G27=Lists!$D$42,$D27=CK$7),$F27,"") ->  | CL27: =IF(AND($G27=Lists!$D$42,$D27=CL$7),$F27,"") ->  | CM27: =IF(AND($G27=Lists!$D$42,$D27=CM$7),$F27,"") ->  | CN27: =IF(AND($G27=Lists!$D$42,$D27=CN$7),$F27,"") ->  | CO27: =IF(AND($G27=Lists!$D$42,$D27=CO$7),$F27,"") ->  | CP27: =IF(AND($G27=Lists!$D$42,$D27=CP$7),$F27,"") ->  | CQ27: =IF(AND($G27=Lists!$D$42,$D27=CQ$7),$F27,"") ->  | CR27: =IF(AND($G27=Lists!$D$42,$D27=CR$7),$F27,"") ->  | CS27: =IF(AND($G27=Lists!$D$42,$D27=CS$7),$F27,"") ->  | CT27: =IF(AND($G27=Lists!$D$42,$D27=CT$7),$F27,"") ->  | CU27: =IF(AND($G27=Lists!$D$42,$D27=CU$7),$F27,"") ->  | CV27: =IF(AND($G27=Lists!$D$42,$D27=CV$7),$F27,"") ->  | CW27: =IF(AND($G27=Lists!$D$42,$D27=CW$7),$F27,"") ->  | CX27: =IF(AND($G27=Lists!$D$42,$D27=CX$7),$F27,"") ->  | CY27: =IF(AND($G27=Lists!$D$42,$D27=CY$7),$F27,"") ->  | CZ27: =IF(AND($G27=Lists!$D$42,$D27=CZ$7),$F27,"") ->  | DA27: =IF(AND($G27=Lists!$D$42,$D27=DA$7),$F27,"") ->  | DB27: =IF(AND($G27=Lists!$D$42,$D27=DB$7),$F27,"") ->  | DE27: =IF(AND($G27=Lists!$D$42,$D27=DE$7),$F27,"") -> 
D28: Coal seam gas, Appraisal / development, <= 4 wells well | G28: seed | AB28: 0 | AQ28: =IF(AND($G28=Lists!$D$41,$D28=AQ$7),$F28,"") ->  | AR28: =IF(AND($G28=Lists!$D$41,$D28=AR$7),$F28,"") ->  | AS28: =IF(AND($G28=Lists!$D$41,$D28=AS$7),$F28,"") ->  | AT28: =IF(AND($G28=Lists!$D$41,$D28=AT$7),$F28,"") ->  | AU28: =IF(AND($G28=Lists!$D$41,$D28=AU$7),$F28,"") ->  | AV28: =IF(AND($G28=Lists!$D$41,$D28=AV$7),$F28,"") ->  | AW28: =IF(AND($G28=Lists!$D$41,$D28=AW$7),$F28,"") ->  | AX28: =IF(AND($G28=Lists!$D$41,$D28=AX$7),$F28,"") ->  | AY28: =IF(AND($G28=Lists!$D$41,$D28=AY$7),$F28,"") ->  | AZ28: =IF(AND($G28=Lists!$D$41,$D28=AZ$7),$F28,"") ->  | BA28: =IF(AND($G28=Lists!$D$41,$D28=BA$7),$F28,"") ->  | BB28: =IF(AND($G28=Lists!$D$41,$D28=BB$7),$F28,"") ->  | BC28: =IF(AND($G28=Lists!$D$41,$D28=BC$7),$F28,"") ->  | BD28: =IF(AND($G28=Lists!$D$41,$D28=BD$7),$F28,"") ->  | BE28: =IF(AND($G28=Lists!$D$41,$D28=BE$7),$F28,"") ->  | BF28: =IF(AND($G28=Lists!$D$41,$D28=BF$7),$F28,"") ->  | BG28: =IF(AND($G28=Lists!$D$41,$D28=BG$7),$F28,"") ->  | BH28: =IF(AND($G28=Lists!$D$41,$D28=BH$7),$F28,"") ->  | BI28: =IF(AND($G28=Lists!$D$41,$D28=BI$7),$F28,"") ->  | BJ28: =IF(AND($G28=Lists!$D$41,$D28=BJ$7),$F28,"") -> 0 | BK28: =IF(AND($G28=Lists!$D$41,$D28=BK$7),$F28,"") ->  | BL28: =IF(AND($G28=Lists!$D$41,$D28=BL$7),$F28,"") ->  | BM28: =IF(AND($G28=Lists!$D$41,$D28=BM$7),$F28,"") ->  | BN28: =IF(AND($G28=Lists!$D$41,$D28=BN$7),$F28,"") ->  | BO28: =IF(AND($G28=Lists!$D$41,$D28=BO$7),$F28,"") ->  | BP28: =IF(AND($G28=Lists!$D$41,$D28=BP$7),$F28,"") ->  | BQ28: =IF(AND($G28=Lists!$D$41,$D28=BQ$7),$F28,"") ->  | BR28: =IF(AND($G28=Lists!$D$41,$D28=BR$7),$F28,"") ->  | BS28: =IF(AND($G28=Lists!$D$41,$D28=BS$7),$F28,"") ->  | BT28: =IF(AND($G28=Lists!$D$41,$D28=BT$7),$F28,"") ->  | BU28: =IF(AND($G28=Lists!$D$41,$D28=BU$7),$F28,"") ->  | BV28: =IF(AND($G28=Lists!$D$41,$D28=BV$7),$F28,"") ->  | BW28: =IF(AND($G28=Lists!$D$41,$D28=BW$7),$F28,"") ->  | BY28: =IF(AND($G28=Lists!$D$42,$D28=BY$7),$F28,"") ->  | BZ28: =IF(AND($G28=Lists!$D$42,$D28=BZ$7),$F28,"") ->  | CA28: =IF(AND($G28=Lists!$D$42,$D28=CA$7),$F28,"") ->  | CB28: =IF(AND($G28=Lists!$D$42,$D28=CB$7),$F28,"") ->  | CC28: =IF(AND($G28=Lists!$D$42,$D28=CC$7),$F28,"") ->  | CD28: =IF(AND($G28=Lists!$D$42,$D28=CD$7),$F28,"") ->  | CE28: =IF(AND($G28=Lists!$D$42,$D28=CE$7),$F28,"") ->  | CF28: =IF(AND($G28=Lists!$D$42,$D28=CF$7),$F28,"") ->  | CG28: =IF(AND($G28=Lists!$D$42,$D28=CG$7),$F28,"") ->  | CH28: =IF(AND($G28=Lists!$D$42,$D28=CH$7),$F28,"") ->  | CI28: =IF(AND($G28=Lists!$D$42,$D28=CI$7),$F28,"") ->  | CJ28: =IF(AND($G28=Lists!$D$42,$D28=CJ$7),$F28,"") ->  | CK28: =IF(AND($G28=Lists!$D$42,$D28=CK$7),$F28,"") ->  | CL28: =IF(AND($G28=Lists!$D$42,$D28=CL$7),$F28,"") ->  | CM28: =IF(AND($G28=Lists!$D$42,$D28=CM$7),$F28,"") ->  | CN28: =IF(AND($G28=Lists!$D$42,$D28=CN$7),$F28,"") ->  | CO28: =IF(AND($G28=Lists!$D$42,$D28=CO$7),$F28,"") ->  | CP28: =IF(AND($G28=Lists!$D$42,$D28=CP$7),$F28,"") ->  | CQ28: =IF(AND($G28=Lists!$D$42,$D28=CQ$7),$F28,"") ->  | CR28: =IF(AND($G28=Lists!$D$42,$D28=CR$7),$F28,"") ->  | CS28: =IF(AND($G28=Lists!$D$42,$D28=CS$7),$F28,"") ->  | CT28: =IF(AND($G28=Lists!$D$42,$D28=CT$7),$F28,"") ->  | CU28: =IF(AND($G28=Lists!$D$42,$D28=CU$7),$F28,"") ->  | CV28: =IF(AND($G28=Lists!$D$42,$D28=CV$7),$F28,"") ->  | CW28: =IF(AND($G28=Lists!$D$42,$D28=CW$7),$F28,"") ->  | CX28: =IF(AND($G28=Lists!$D$42,$D28=CX$7),$F28,"") ->  | CY28: =IF(AND($G28=Lists!$D$42,$D28=CY$7),$F28,"") ->  | CZ28: =IF(AND($G28=Lists!$D$42,$D28=CZ$7),$F28,"") ->  | DA28: =IF(AND($G28=Lists!$D$42,$D28=DA$7),$F28,"") ->  | DB28: =IF(AND($G28=Lists!$D$42,$D28=DB$7),$F28,"") ->  | DE28: =IF(AND($G28=Lists!$D$42,$D28=DE$7),$F28,"") -> 
D29: Coal seam gas, Operation / Production, <= 4 wells well | G29: seed | AC29: 0 | AQ29: =IF(AND($G29=Lists!$D$41,$D29=AQ$7),$F29,"") ->  | AR29: =IF(AND($G29=Lists!$D$41,$D29=AR$7),$F29,"") ->  | AS29: =IF(AND($G29=Lists!$D$41,$D29=AS$7),$F29,"") ->  | AT29: =IF(AND($G29=Lists!$D$41,$D29=AT$7),$F29,"") ->  | AU29: =IF(AND($G29=Lists!$D$41,$D29=AU$7),$F29,"") ->  | AV29: =IF(AND($G29=Lists!$D$41,$D29=AV$7),$F29,"") ->  | AW29: =IF(AND($G29=Lists!$D$41,$D29=AW$7),$F29,"") ->  | AX29: =IF(AND($G29=Lists!$D$41,$D29=AX$7),$F29,"") ->  | AY29: =IF(AND($G29=Lists!$D$41,$D29=AY$7),$F29,"") ->  | AZ29: =IF(AND($G29=Lists!$D$41,$D29=AZ$7),$F29,"") ->  | BA29: =IF(AND($G29=Lists!$D$41,$D29=BA$7),$F29,"") ->  | BB29: =IF(AND($G29=Lists!$D$41,$D29=BB$7),$F29,"") ->  | BC29: =IF(AND($G29=Lists!$D$41,$D29=BC$7),$F29,"") ->  | BD29: =IF(AND($G29=Lists!$D$41,$D29=BD$7),$F29,"") ->  | BE29: =IF(AND($G29=Lists!$D$41,$D29=BE$7),$F29,"") ->  | BF29: =IF(AND($G29=Lists!$D$41,$D29=BF$7),$F29,"") ->  | BG29: =IF(AND($G29=Lists!$D$41,$D29=BG$7),$F29,"") ->  | BH29: =IF(AND($G29=Lists!$D$41,$D29=BH$7),$F29,"") ->  | BI29: =IF(AND($G29=Lists!$D$41,$D29=BI$7),$F29,"") ->  | BJ29: =IF(AND($G29=Lists!$D$41,$D29=BJ$7),$F29,"") ->  | BK29: =IF(AND($G29=Lists!$D$41,$D29=BK$7),$F29,"") -> 0 | BL29: =IF(AND($G29=Lists!$D$41,$D29=BL$7),$F29,"") ->  | BM29: =IF(AND($G29=Lists!$D$41,$D29=BM$7),$F29,"") ->  | BN29: =IF(AND($G29=Lists!$D$41,$D29=BN$7),$F29,"") ->  | BO29: =IF(AND($G29=Lists!$D$41,$D29=BO$7),$F29,"") ->  | BP29: =IF(AND($G29=Lists!$D$41,$D29=BP$7),$F29,"") ->  | BQ29: =IF(AND($G29=Lists!$D$41,$D29=BQ$7),$F29,"") ->  | BR29: =IF(AND($G29=Lists!$D$41,$D29=BR$7),$F29,"") ->  | BS29: =IF(AND($G29=Lists!$D$41,$D29=BS$7),$F29,"") ->  | BT29: =IF(AND($G29=Lists!$D$41,$D29=BT$7),$F29,"") ->  | BU29: =IF(AND($G29=Lists!$D$41,$D29=BU$7),$F29,"") ->  | BV29: =IF(AND($G29=Lists!$D$41,$D29=BV$7),$F29,"") ->  | BW29: =IF(AND($G29=Lists!$D$41,$D29=BW$7),$F29,"") ->  | BY29: =IF(AND($G29=Lists!$D$42,$D29=BY$7),$F29,"") ->  | BZ29: =IF(AND($G29=Lists!$D$42,$D29=BZ$7),$F29,"") ->  | CA29: =IF(AND($G29=Lists!$D$42,$D29=CA$7),$F29,"") ->  | CB29: =IF(AND($G29=Lists!$D$42,$D29=CB$7),$F29,"") ->  | CC29: =IF(AND($G29=Lists!$D$42,$D29=CC$7),$F29,"") ->  | CD29: =IF(AND($G29=Lists!$D$42,$D29=CD$7),$F29,"") ->  | CE29: =IF(AND($G29=Lists!$D$42,$D29=CE$7),$F29,"") ->  | CF29: =IF(AND($G29=Lists!$D$42,$D29=CF$7),$F29,"") ->  | CG29: =IF(AND($G29=Lists!$D$42,$D29=CG$7),$F29,"") ->  | CH29: =IF(AND($G29=Lists!$D$42,$D29=CH$7),$F29,"") ->  | CI29: =IF(AND($G29=Lists!$D$42,$D29=CI$7),$F29,"") ->  | CJ29: =IF(AND($G29=Lists!$D$42,$D29=CJ$7),$F29,"") ->  | CK29: =IF(AND($G29=Lists!$D$42,$D29=CK$7),$F29,"") ->  | CL29: =IF(AND($G29=Lists!$D$42,$D29=CL$7),$F29,"") ->  | CM29: =IF(AND($G29=Lists!$D$42,$D29=CM$7),$F29,"") ->  | CN29: =IF(AND($G29=Lists!$D$42,$D29=CN$7),$F29,"") ->  | CO29: =IF(AND($G29=Lists!$D$42,$D29=CO$7),$F29,"") ->  | CP29: =IF(AND($G29=Lists!$D$42,$D29=CP$7),$F29,"") ->  | CQ29: =IF(AND($G29=Lists!$D$42,$D29=CQ$7),$F29,"") ->  | CR29: =IF(AND($G29=Lists!$D$42,$D29=CR$7),$F29,"") ->  | CS29: =IF(AND($G29=Lists!$D$42,$D29=CS$7),$F29,"") ->  | CT29: =IF(AND($G29=Lists!$D$42,$D29=CT$7),$F29,"") ->  | CU29: =IF(AND($G29=Lists!$D$42,$D29=CU$7),$F29,"") ->  | CV29: =IF(AND($G29=Lists!$D$42,$D29=CV$7),$F29,"") ->  | CW29: =IF(AND($G29=Lists!$D$42,$D29=CW$7),$F29,"") ->  | CX29: =IF(AND($G29=Lists!$D$42,$D29=CX$7),$F29,"") ->  | CY29: =IF(AND($G29=Lists!$D$42,$D29=CY$7),$F29,"") ->  | CZ29: =IF(AND($G29=Lists!$D$42,$D29=CZ$7),$F29,"") ->  | DA29: =IF(AND($G29=Lists!$D$42,$D29=DA$7),$F29,"") ->  | DB29: =IF(AND($G29=Lists!$D$42,$D29=DB$7),$F29,"") ->  | DE29: =IF(AND($G29=Lists!$D$42,$D29=DE$7),$F29,"") -> 
D30: Coal seam gas, Appraisal / development, > 4 wells well | G30: seed | AD30: 0 | AQ30: =IF(AND($G30=Lists!$D$41,$D30=AQ$7),$F30,"") ->  | AR30: =IF(AND($G30=Lists!$D$41,$D30=AR$7),$F30,"") ->  | AS30: =IF(AND($G30=Lists!$D$41,$D30=AS$7),$F30,"") ->  | AT30: =IF(AND($G30=Lists!$D$41,$D30=AT$7),$F30,"") ->  | AU30: =IF(AND($G30=Lists!$D$41,$D30=AU$7),$F30,"") ->  | AV30: =IF(AND($G30=Lists!$D$41,$D30=AV$7),$F30,"") ->  | AW30: =IF(AND($G30=Lists!$D$41,$D30=AW$7),$F30,"") ->  | AX30: =IF(AND($G30=Lists!$D$41,$D30=AX$7),$F30,"") ->  | AY30: =IF(AND($G30=Lists!$D$41,$D30=AY$7),$F30,"") ->  | AZ30: =IF(AND($G30=Lists!$D$41,$D30=AZ$7),$F30,"") ->  | BA30: =IF(AND($G30=Lists!$D$41,$D30=BA$7),$F30,"") ->  | BB30: =IF(AND($G30=Lists!$D$41,$D30=BB$7),$F30,"") ->  | BC30: =IF(AND($G30=Lists!$D$41,$D30=BC$7),$F30,"") ->  | BD30: =IF(AND($G30=Lists!$D$41,$D30=BD$7),$F30,"") ->  | BE30: =IF(AND($G30=Lists!$D$41,$D30=BE$7),$F30,"") ->  | BF30: =IF(AND($G30=Lists!$D$41,$D30=BF$7),$F30,"") ->  | BG30: =IF(AND($G30=Lists!$D$41,$D30=BG$7),$F30,"") ->  | BH30: =IF(AND($G30=Lists!$D$41,$D30=BH$7),$F30,"") ->  | BI30: =IF(AND($G30=Lists!$D$41,$D30=BI$7),$F30,"") ->  | BJ30: =IF(AND($G30=Lists!$D$41,$D30=BJ$7),$F30,"") ->  | BK30: =IF(AND($G30=Lists!$D$41,$D30=BK$7),$F30,"") ->  | BL30: =IF(AND($G30=Lists!$D$41,$D30=BL$7),$F30,"") -> 0 | BM30: =IF(AND($G30=Lists!$D$41,$D30=BM$7),$F30,"") ->  | BN30: =IF(AND($G30=Lists!$D$41,$D30=BN$7),$F30,"") ->  | BO30: =IF(AND($G30=Lists!$D$41,$D30=BO$7),$F30,"") ->  | BP30: =IF(AND($G30=Lists!$D$41,$D30=BP$7),$F30,"") ->  | BQ30: =IF(AND($G30=Lists!$D$41,$D30=BQ$7),$F30,"") ->  | BR30: =IF(AND($G30=Lists!$D$41,$D30=BR$7),$F30,"") ->  | BS30: =IF(AND($G30=Lists!$D$41,$D30=BS$7),$F30,"") ->  | BT30: =IF(AND($G30=Lists!$D$41,$D30=BT$7),$F30,"") ->  | BU30: =IF(AND($G30=Lists!$D$41,$D30=BU$7),$F30,"") ->  | BV30: =IF(AND($G30=Lists!$D$41,$D30=BV$7),$F30,"") ->  | BW30: =IF(AND($G30=Lists!$D$41,$D30=BW$7),$F30,"") ->  | BY30: =IF(AND($G30=Lists!$D$42,$D30=BY$7),$F30,"") ->  | BZ30: =IF(AND($G30=Lists!$D$42,$D30=BZ$7),$F30,"") ->  | CA30: =IF(AND($G30=Lists!$D$42,$D30=CA$7),$F30,"") ->  | CB30: =IF(AND($G30=Lists!$D$42,$D30=CB$7),$F30,"") ->  | CC30: =IF(AND($G30=Lists!$D$42,$D30=CC$7),$F30,"") ->  | CD30: =IF(AND($G30=Lists!$D$42,$D30=CD$7),$F30,"") ->  | CE30: =IF(AND($G30=Lists!$D$42,$D30=CE$7),$F30,"") ->  | CF30: =IF(AND($G30=Lists!$D$42,$D30=CF$7),$F30,"") ->  | CG30: =IF(AND($G30=Lists!$D$42,$D30=CG$7),$F30,"") ->  | CH30: =IF(AND($G30=Lists!$D$42,$D30=CH$7),$F30,"") ->  | CI30: =IF(AND($G30=Lists!$D$42,$D30=CI$7),$F30,"") ->  | CJ30: =IF(AND($G30=Lists!$D$42,$D30=CJ$7),$F30,"") ->  | CK30: =IF(AND($G30=Lists!$D$42,$D30=CK$7),$F30,"") ->  | CL30: =IF(AND($G30=Lists!$D$42,$D30=CL$7),$F30,"") ->  | CM30: =IF(AND($G30=Lists!$D$42,$D30=CM$7),$F30,"") ->  | CN30: =IF(AND($G30=Lists!$D$42,$D30=CN$7),$F30,"") ->  | CO30: =IF(AND($G30=Lists!$D$42,$D30=CO$7),$F30,"") ->  | CP30: =IF(AND($G30=Lists!$D$42,$D30=CP$7),$F30,"") ->  | CQ30: =IF(AND($G30=Lists!$D$42,$D30=CQ$7),$F30,"") ->  | CR30: =IF(AND($G30=Lists!$D$42,$D30=CR$7),$F30,"") ->  | CS30: =IF(AND($G30=Lists!$D$42,$D30=CS$7),$F30,"") ->  | CT30: =IF(AND($G30=Lists!$D$42,$D30=CT$7),$F30,"") ->  | CU30: =IF(AND($G30=Lists!$D$42,$D30=CU$7),$F30,"") ->  | CV30: =IF(AND($G30=Lists!$D$42,$D30=CV$7),$F30,"") ->  | CW30: =IF(AND($G30=Lists!$D$42,$D30=CW$7),$F30,"") ->  | CX30: =IF(AND($G30=Lists!$D$42,$D30=CX$7),$F30,"") ->  | CY30: =IF(AND($G30=Lists!$D$42,$D30=CY$7),$F30,"") ->  | CZ30: =IF(AND($G30=Lists!$D$42,$D30=CZ$7),$F30,"") ->  | DA30: =IF(AND($G30=Lists!$D$42,$D30=DA$7),$F30,"") ->  | DB30: =IF(AND($G30=Lists!$D$42,$D30=DB$7),$F30,"") ->  | DE30: =IF(AND($G30=Lists!$D$42,$D30=DE$7),$F30,"") -> 
D31: Coal seam gas, Operation / Production, > 4 wells well | G31: seed | AE31: 0 | AQ31: =IF(AND($G31=Lists!$D$41,$D31=AQ$7),$F31,"") ->  | AR31: =IF(AND($G31=Lists!$D$41,$D31=AR$7),$F31,"") ->  | AS31: =IF(AND($G31=Lists!$D$41,$D31=AS$7),$F31,"") ->  | AT31: =IF(AND($G31=Lists!$D$41,$D31=AT$7),$F31,"") ->  | AU31: =IF(AND($G31=Lists!$D$41,$D31=AU$7),$F31,"") ->  | AV31: =IF(AND($G31=Lists!$D$41,$D31=AV$7),$F31,"") ->  | AW31: =IF(AND($G31=Lists!$D$41,$D31=AW$7),$F31,"") ->  | AX31: =IF(AND($G31=Lists!$D$41,$D31=AX$7),$F31,"") ->  | AY31: =IF(AND($G31=Lists!$D$41,$D31=AY$7),$F31,"") ->  | AZ31: =IF(AND($G31=Lists!$D$41,$D31=AZ$7),$F31,"") ->  | BA31: =IF(AND($G31=Lists!$D$41,$D31=BA$7),$F31,"") ->  | BB31: =IF(AND($G31=Lists!$D$41,$D31=BB$7),$F31,"") ->  | BC31: =IF(AND($G31=Lists!$D$41,$D31=BC$7),$F31,"") ->  | BD31: =IF(AND($G31=Lists!$D$41,$D31=BD$7),$F31,"") ->  | BE31: =IF(AND($G31=Lists!$D$41,$D31=BE$7),$F31,"") ->  | BF31: =IF(AND($G31=Lists!$D$41,$D31=BF$7),$F31,"") ->  | BG31: =IF(AND($G31=Lists!$D$41,$D31=BG$7),$F31,"") ->  | BH31: =IF(AND($G31=Lists!$D$41,$D31=BH$7),$F31,"") ->  | BI31: =IF(AND($G31=Lists!$D$41,$D31=BI$7),$F31,"") ->  | BJ31: =IF(AND($G31=Lists!$D$41,$D31=BJ$7),$F31,"") ->  | BK31: =IF(AND($G31=Lists!$D$41,$D31=BK$7),$F31,"") ->  | BL31: =IF(AND($G31=Lists!$D$41,$D31=BL$7),$F31,"") ->  | BM31: =IF(AND($G31=Lists!$D$41,$D31=BM$7),$F31,"") -> 0 | BN31: =IF(AND($G31=Lists!$D$41,$D31=BN$7),$F31,"") ->  | BO31: =IF(AND($G31=Lists!$D$41,$D31=BO$7),$F31,"") ->  | BP31: =IF(AND($G31=Lists!$D$41,$D31=BP$7),$F31,"") ->  | BQ31: =IF(AND($G31=Lists!$D$41,$D31=BQ$7),$F31,"") ->  | BR31: =IF(AND($G31=Lists!$D$41,$D31=BR$7),$F31,"") ->  | BS31: =IF(AND($G31=Lists!$D$41,$D31=BS$7),$F31,"") ->  | BT31: =IF(AND($G31=Lists!$D$41,$D31=BT$7),$F31,"") ->  | BU31: =IF(AND($G31=Lists!$D$41,$D31=BU$7),$F31,"") ->  | BV31: =IF(AND($G31=Lists!$D$41,$D31=BV$7),$F31,"") ->  | BW31: =IF(AND($G31=Lists!$D$41,$D31=BW$7),$F31,"") ->  | BY31: =IF(AND($G31=Lists!$D$42,$D31=BY$7),$F31,"") ->  | BZ31: =IF(AND($G31=Lists!$D$42,$D31=BZ$7),$F31,"") ->  | CA31: =IF(AND($G31=Lists!$D$42,$D31=CA$7),$F31,"") ->  | CB31: =IF(AND($G31=Lists!$D$42,$D31=CB$7),$F31,"") ->  | CC31: =IF(AND($G31=Lists!$D$42,$D31=CC$7),$F31,"") ->  | CD31: =IF(AND($G31=Lists!$D$42,$D31=CD$7),$F31,"") ->  | CE31: =IF(AND($G31=Lists!$D$42,$D31=CE$7),$F31,"") ->  | CF31: =IF(AND($G31=Lists!$D$42,$D31=CF$7),$F31,"") ->  | CG31: =IF(AND($G31=Lists!$D$42,$D31=CG$7),$F31,"") ->  | CH31: =IF(AND($G31=Lists!$D$42,$D31=CH$7),$F31,"") ->  | CI31: =IF(AND($G31=Lists!$D$42,$D31=CI$7),$F31,"") ->  | CJ31: =IF(AND($G31=Lists!$D$42,$D31=CJ$7),$F31,"") ->  | CK31: =IF(AND($G31=Lists!$D$42,$D31=CK$7),$F31,"") ->  | CL31: =IF(AND($G31=Lists!$D$42,$D31=CL$7),$F31,"") ->  | CM31: =IF(AND($G31=Lists!$D$42,$D31=CM$7),$F31,"") ->  | CN31: =IF(AND($G31=Lists!$D$42,$D31=CN$7),$F31,"") ->  | CO31: =IF(AND($G31=Lists!$D$42,$D31=CO$7),$F31,"") ->  | CP31: =IF(AND($G31=Lists!$D$42,$D31=CP$7),$F31,"") ->  | CQ31: =IF(AND($G31=Lists!$D$42,$D31=CQ$7),$F31,"") ->  | CR31: =IF(AND($G31=Lists!$D$42,$D31=CR$7),$F31,"") ->  | CS31: =IF(AND($G31=Lists!$D$42,$D31=CS$7),$F31,"") ->  | CT31: =IF(AND($G31=Lists!$D$42,$D31=CT$7),$F31,"") ->  | CU31: =IF(AND($G31=Lists!$D$42,$D31=CU$7),$F31,"") ->  | CV31: =IF(AND($G31=Lists!$D$42,$D31=CV$7),$F31,"") ->  | CW31: =IF(AND($G31=Lists!$D$42,$D31=CW$7),$F31,"") ->  | CX31: =IF(AND($G31=Lists!$D$42,$D31=CX$7),$F31,"") ->  | CY31: =IF(AND($G31=Lists!$D$42,$D31=CY$7),$F31,"") ->  | CZ31: =IF(AND($G31=Lists!$D$42,$D31=CZ$7),$F31,"") ->  | DA31: =IF(AND($G31=Lists!$D$42,$D31=DA$7),$F31,"") ->  | DB31: =IF(AND($G31=Lists!$D$42,$D31=DB$7),$F31,"") ->  | DE31: =IF(AND($G31=Lists!$D$42,$D31=DE$7),$F31,"") -> 
D32: Tight / shale gas, Plugged and abandoned, Single well | G32: seed | AF32: 0 | AQ32: =IF(AND($G32=Lists!$D$41,$D32=AQ$7),$F32,"") ->  | AR32: =IF(AND($G32=Lists!$D$41,$D32=AR$7),$F32,"") ->  | AS32: =IF(AND($G32=Lists!$D$41,$D32=AS$7),$F32,"") ->  | AT32: =IF(AND($G32=Lists!$D$41,$D32=AT$7),$F32,"") ->  | AU32: =IF(AND($G32=Lists!$D$41,$D32=AU$7),$F32,"") ->  | AV32: =IF(AND($G32=Lists!$D$41,$D32=AV$7),$F32,"") ->  | AW32: =IF(AND($G32=Lists!$D$41,$D32=AW$7),$F32,"") ->  | AX32: =IF(AND($G32=Lists!$D$41,$D32=AX$7),$F32,"") ->  | AY32: =IF(AND($G32=Lists!$D$41,$D32=AY$7),$F32,"") ->  | AZ32: =IF(AND($G32=Lists!$D$41,$D32=AZ$7),$F32,"") ->  | BA32: =IF(AND($G32=Lists!$D$41,$D32=BA$7),$F32,"") ->  | BB32: =IF(AND($G32=Lists!$D$41,$D32=BB$7),$F32,"") ->  | BC32: =IF(AND($G32=Lists!$D$41,$D32=BC$7),$F32,"") ->  | BD32: =IF(AND($G32=Lists!$D$41,$D32=BD$7),$F32,"") ->  | BE32: =IF(AND($G32=Lists!$D$41,$D32=BE$7),$F32,"") ->  | BF32: =IF(AND($G32=Lists!$D$41,$D32=BF$7),$F32,"") ->  | BG32: =IF(AND($G32=Lists!$D$41,$D32=BG$7),$F32,"") ->  | BH32: =IF(AND($G32=Lists!$D$41,$D32=BH$7),$F32,"") ->  | BI32: =IF(AND($G32=Lists!$D$41,$D32=BI$7),$F32,"") ->  | BJ32: =IF(AND($G32=Lists!$D$41,$D32=BJ$7),$F32,"") ->  | BK32: =IF(AND($G32=Lists!$D$41,$D32=BK$7),$F32,"") ->  | BL32: =IF(AND($G32=Lists!$D$41,$D32=BL$7),$F32,"") ->  | BM32: =IF(AND($G32=Lists!$D$41,$D32=BM$7),$F32,"") ->  | BN32: =IF(AND($G32=Lists!$D$41,$D32=BN$7),$F32,"") -> 0 | BO32: =IF(AND($G32=Lists!$D$41,$D32=BO$7),$F32,"") ->  | BP32: =IF(AND($G32=Lists!$D$41,$D32=BP$7),$F32,"") ->  | BQ32: =IF(AND($G32=Lists!$D$41,$D32=BQ$7),$F32,"") ->  | BR32: =IF(AND($G32=Lists!$D$41,$D32=BR$7),$F32,"") ->  | BS32: =IF(AND($G32=Lists!$D$41,$D32=BS$7),$F32,"") ->  | BT32: =IF(AND($G32=Lists!$D$41,$D32=BT$7),$F32,"") ->  | BU32: =IF(AND($G32=Lists!$D$41,$D32=BU$7),$F32,"") ->  | BV32: =IF(AND($G32=Lists!$D$41,$D32=BV$7),$F32,"") ->  | BW32: =IF(AND($G32=Lists!$D$41,$D32=BW$7),$F32,"") ->  | BY32: =IF(AND($G32=Lists!$D$42,$D32=BY$7),$F32,"") ->  | BZ32: =IF(AND($G32=Lists!$D$42,$D32=BZ$7),$F32,"") ->  | CA32: =IF(AND($G32=Lists!$D$42,$D32=CA$7),$F32,"") ->  | CB32: =IF(AND($G32=Lists!$D$42,$D32=CB$7),$F32,"") ->  | CC32: =IF(AND($G32=Lists!$D$42,$D32=CC$7),$F32,"") ->  | CD32: =IF(AND($G32=Lists!$D$42,$D32=CD$7),$F32,"") ->  | CE32: =IF(AND($G32=Lists!$D$42,$D32=CE$7),$F32,"") ->  | CF32: =IF(AND($G32=Lists!$D$42,$D32=CF$7),$F32,"") ->  | CG32: =IF(AND($G32=Lists!$D$42,$D32=CG$7),$F32,"") ->  | CH32: =IF(AND($G32=Lists!$D$42,$D32=CH$7),$F32,"") ->  | CI32: =IF(AND($G32=Lists!$D$42,$D32=CI$7),$F32,"") ->  | CJ32: =IF(AND($G32=Lists!$D$42,$D32=CJ$7),$F32,"") ->  | CK32: =IF(AND($G32=Lists!$D$42,$D32=CK$7),$F32,"") ->  | CL32: =IF(AND($G32=Lists!$D$42,$D32=CL$7),$F32,"") ->  | CM32: =IF(AND($G32=Lists!$D$42,$D32=CM$7),$F32,"") ->  | CN32: =IF(AND($G32=Lists!$D$42,$D32=CN$7),$F32,"") ->  | CO32: =IF(AND($G32=Lists!$D$42,$D32=CO$7),$F32,"") ->  | CP32: =IF(AND($G32=Lists!$D$42,$D32=CP$7),$F32,"") ->  | CQ32: =IF(AND($G32=Lists!$D$42,$D32=CQ$7),$F32,"") ->  | CR32: =IF(AND($G32=Lists!$D$42,$D32=CR$7),$F32,"") ->  | CS32: =IF(AND($G32=Lists!$D$42,$D32=CS$7),$F32,"") ->  | CT32: =IF(AND($G32=Lists!$D$42,$D32=CT$7),$F32,"") ->  | CU32: =IF(AND($G32=Lists!$D$42,$D32=CU$7),$F32,"") ->  | CV32: =IF(AND($G32=Lists!$D$42,$D32=CV$7),$F32,"") ->  | CW32: =IF(AND($G32=Lists!$D$42,$D32=CW$7),$F32,"") ->  | CX32: =IF(AND($G32=Lists!$D$42,$D32=CX$7),$F32,"") ->  | CY32: =IF(AND($G32=Lists!$D$42,$D32=CY$7),$F32,"") ->  | CZ32: =IF(AND($G32=Lists!$D$42,$D32=CZ$7),$F32,"") ->  | DA32: =IF(AND($G32=Lists!$D$42,$D32=DA$7),$F32,"") ->  | DB32: =IF(AND($G32=Lists!$D$42,$D32=DB$7),$F32,"") ->  | DE32: =IF(AND($G32=Lists!$D$42,$D32=DE$7),$F32,"") -> 
D33: Tight / shale gas, Suspended, Single well | G33: seed | R33: =IF($D33=R$7,$E33,"") ->  | AG33: 0 | AQ33: =IF(AND($G33=Lists!$D$41,$D33=AQ$7),$F33,"") ->  | AR33: =IF(AND($G33=Lists!$D$41,$D33=AR$7),$F33,"") ->  | AS33: =IF(AND($G33=Lists!$D$41,$D33=AS$7),$F33,"") ->  | AT33: =IF(AND($G33=Lists!$D$41,$D33=AT$7),$F33,"") ->  | AU33: =IF(AND($G33=Lists!$D$41,$D33=AU$7),$F33,"") ->  | AV33: =IF(AND($G33=Lists!$D$41,$D33=AV$7),$F33,"") ->  | AW33: =IF(AND($G33=Lists!$D$41,$D33=AW$7),$F33,"") ->  | AX33: =IF(AND($G33=Lists!$D$41,$D33=AX$7),$F33,"") ->  | AY33: =IF(AND($G33=Lists!$D$41,$D33=AY$7),$F33,"") ->  | AZ33: =IF(AND($G33=Lists!$D$41,$D33=AZ$7),$F33,"") ->  | BA33: =IF(AND($G33=Lists!$D$41,$D33=BA$7),$F33,"") ->  | BB33: =IF(AND($G33=Lists!$D$41,$D33=BB$7),$F33,"") ->  | BC33: =IF(AND($G33=Lists!$D$41,$D33=BC$7),$F33,"") ->  | BD33: =IF(AND($G33=Lists!$D$41,$D33=BD$7),$F33,"") ->  | BE33: =IF(AND($G33=Lists!$D$41,$D33=BE$7),$F33,"") ->  | BF33: =IF(AND($G33=Lists!$D$41,$D33=BF$7),$F33,"") ->  | BG33: =IF(AND($G33=Lists!$D$41,$D33=BG$7),$F33,"") ->  | BH33: =IF(AND($G33=Lists!$D$41,$D33=BH$7),$F33,"") ->  | BI33: =IF(AND($G33=Lists!$D$41,$D33=BI$7),$F33,"") ->  | BJ33: =IF(AND($G33=Lists!$D$41,$D33=BJ$7),$F33,"") ->  | BK33: =IF(AND($G33=Lists!$D$41,$D33=BK$7),$F33,"") ->  | BL33: =IF(AND($G33=Lists!$D$41,$D33=BL$7),$F33,"") ->  | BM33: =IF(AND($G33=Lists!$D$41,$D33=BM$7),$F33,"") ->  | BN33: =IF(AND($G33=Lists!$D$41,$D33=BN$7),$F33,"") ->  | BO33: =IF(AND($G33=Lists!$D$41,$D33=BO$7),$F33,"") -> 0 | BP33: =IF(AND($G33=Lists!$D$41,$D33=BP$7),$F33,"") ->  | BQ33: =IF(AND($G33=Lists!$D$41,$D33=BQ$7),$F33,"") ->  | BR33: =IF(AND($G33=Lists!$D$41,$D33=BR$7),$F33,"") ->  | BS33: =IF(AND($G33=Lists!$D$41,$D33=BS$7),$F33,"") ->  | BT33: =IF(AND($G33=Lists!$D$41,$D33=BT$7),$F33,"") ->  | BU33: =IF(AND($G33=Lists!$D$41,$D33=BU$7),$F33,"") ->  | BV33: =IF(AND($G33=Lists!$D$41,$D33=BV$7),$F33,"") ->  | BW33: =IF(AND($G33=Lists!$D$41,$D33=BW$7),$F33,"") ->  | BY33: =IF(AND($G33=Lists!$D$42,$D33=BY$7),$F33,"") ->  | BZ33: =IF(AND($G33=Lists!$D$42,$D33=BZ$7),$F33,"") ->  | CA33: =IF(AND($G33=Lists!$D$42,$D33=CA$7),$F33,"") ->  | CB33: =IF(AND($G33=Lists!$D$42,$D33=CB$7),$F33,"") ->  | CC33: =IF(AND($G33=Lists!$D$42,$D33=CC$7),$F33,"") ->  | CD33: =IF(AND($G33=Lists!$D$42,$D33=CD$7),$F33,"") ->  | CE33: =IF(AND($G33=Lists!$D$42,$D33=CE$7),$F33,"") ->  | CF33: =IF(AND($G33=Lists!$D$42,$D33=CF$7),$F33,"") ->  | CG33: =IF(AND($G33=Lists!$D$42,$D33=CG$7),$F33,"") ->  | CH33: =IF(AND($G33=Lists!$D$42,$D33=CH$7),$F33,"") ->  | CI33: =IF(AND($G33=Lists!$D$42,$D33=CI$7),$F33,"") ->  | CJ33: =IF(AND($G33=Lists!$D$42,$D33=CJ$7),$F33,"") ->  | CK33: =IF(AND($G33=Lists!$D$42,$D33=CK$7),$F33,"") ->  | CL33: =IF(AND($G33=Lists!$D$42,$D33=CL$7),$F33,"") ->  | CM33: =IF(AND($G33=Lists!$D$42,$D33=CM$7),$F33,"") ->  | CN33: =IF(AND($G33=Lists!$D$42,$D33=CN$7),$F33,"") ->  | CO33: =IF(AND($G33=Lists!$D$42,$D33=CO$7),$F33,"") ->  | CP33: =IF(AND($G33=Lists!$D$42,$D33=CP$7),$F33,"") ->  | CQ33: =IF(AND($G33=Lists!$D$42,$D33=CQ$7),$F33,"") ->  | CR33: =IF(AND($G33=Lists!$D$42,$D33=CR$7),$F33,"") ->  | CS33: =IF(AND($G33=Lists!$D$42,$D33=CS$7),$F33,"") ->  | CT33: =IF(AND($G33=Lists!$D$42,$D33=CT$7),$F33,"") ->  | CU33: =IF(AND($G33=Lists!$D$42,$D33=CU$7),$F33,"") ->  | CV33: =IF(AND($G33=Lists!$D$42,$D33=CV$7),$F33,"") ->  | CW33: =IF(AND($G33=Lists!$D$42,$D33=CW$7),$F33,"") ->  | CX33: =IF(AND($G33=Lists!$D$42,$D33=CX$7),$F33,"") ->  | CY33: =IF(AND($G33=Lists!$D$42,$D33=CY$7),$F33,"") ->  | CZ33: =IF(AND($G33=Lists!$D$42,$D33=CZ$7),$F33,"") ->  | DA33: =IF(AND($G33=Lists!$D$42,$D33=DA$7),$F33,"") ->  | DB33: =IF(AND($G33=Lists!$D$42,$D33=DB$7),$F33,"") ->  | DE33: =IF(AND($G33=Lists!$D$42,$D33=DE$7),$F33,"") -> 
D34: Tight / shale gas, Shut-in, Single well | G34: seed | I34: =IF($D34=I$7,$E34,"") ->  | AH34: 0 | AO34: =IF($D34=AO$7,$E34,"") ->  | AQ34: =IF(AND($G34=Lists!$D$41,$D34=AQ$7),$F34,"") ->  | AR34: =IF(AND($G34=Lists!$D$41,$D34=AR$7),$F34,"") ->  | AS34: =IF(AND($G34=Lists!$D$41,$D34=AS$7),$F34,"") ->  | AT34: =IF(AND($G34=Lists!$D$41,$D34=AT$7),$F34,"") ->  | AU34: =IF(AND($G34=Lists!$D$41,$D34=AU$7),$F34,"") ->  | AV34: =IF(AND($G34=Lists!$D$41,$D34=AV$7),$F34,"") ->  | AW34: =IF(AND($G34=Lists!$D$41,$D34=AW$7),$F34,"") ->  | AX34: =IF(AND($G34=Lists!$D$41,$D34=AX$7),$F34,"") ->  | AY34: =IF(AND($G34=Lists!$D$41,$D34=AY$7),$F34,"") ->  | AZ34: =IF(AND($G34=Lists!$D$41,$D34=AZ$7),$F34,"") ->  | BA34: =IF(AND($G34=Lists!$D$41,$D34=BA$7),$F34,"") ->  | BB34: =IF(AND($G34=Lists!$D$41,$D34=BB$7),$F34,"") ->  | BC34: =IF(AND($G34=Lists!$D$41,$D34=BC$7),$F34,"") ->  | BD34: =IF(AND($G34=Lists!$D$41,$D34=BD$7),$F34,"") ->  | BE34: =IF(AND($G34=Lists!$D$41,$D34=BE$7),$F34,"") ->  | BF34: =IF(AND($G34=Lists!$D$41,$D34=BF$7),$F34,"") ->  | BG34: =IF(AND($G34=Lists!$D$41,$D34=BG$7),$F34,"") ->  | BH34: =IF(AND($G34=Lists!$D$41,$D34=BH$7),$F34,"") ->  | BI34: =IF(AND($G34=Lists!$D$41,$D34=BI$7),$F34,"") ->  | BJ34: =IF(AND($G34=Lists!$D$41,$D34=BJ$7),$F34,"") ->  | BK34: =IF(AND($G34=Lists!$D$41,$D34=BK$7),$F34,"") ->  | BL34: =IF(AND($G34=Lists!$D$41,$D34=BL$7),$F34,"") ->  | BM34: =IF(AND($G34=Lists!$D$41,$D34=BM$7),$F34,"") ->  | BN34: =IF(AND($G34=Lists!$D$41,$D34=BN$7),$F34,"") ->  | BO34: =IF(AND($G34=Lists!$D$41,$D34=BO$7),$F34,"") ->  | BP34: =IF(AND($G34=Lists!$D$41,$D34=BP$7),$F34,"") -> 0 | BQ34: =IF(AND($G34=Lists!$D$41,$D34=BQ$7),$F34,"") ->  | BR34: =IF(AND($G34=Lists!$D$41,$D34=BR$7),$F34,"") ->  | BS34: =IF(AND($G34=Lists!$D$41,$D34=BS$7),$F34,"") ->  | BT34: =IF(AND($G34=Lists!$D$41,$D34=BT$7),$F34,"") ->  | BU34: =IF(AND($G34=Lists!$D$41,$D34=BU$7),$F34,"") ->  | BV34: =IF(AND($G34=Lists!$D$41,$D34=BV$7),$F34,"") ->  | BW34: =IF(AND($G34=Lists!$D$41,$D34=BW$7),$F34,"") ->  | BY34: =IF(AND($G34=Lists!$D$42,$D34=BY$7),$F34,"") ->  | BZ34: =IF(AND($G34=Lists!$D$42,$D34=BZ$7),$F34,"") ->  | CA34: =IF(AND($G34=Lists!$D$42,$D34=CA$7),$F34,"") ->  | CB34: =IF(AND($G34=Lists!$D$42,$D34=CB$7),$F34,"") ->  | CC34: =IF(AND($G34=Lists!$D$42,$D34=CC$7),$F34,"") ->  | CD34: =IF(AND($G34=Lists!$D$42,$D34=CD$7),$F34,"") ->  | CE34: =IF(AND($G34=Lists!$D$42,$D34=CE$7),$F34,"") ->  | CF34: =IF(AND($G34=Lists!$D$42,$D34=CF$7),$F34,"") ->  | CG34: =IF(AND($G34=Lists!$D$42,$D34=CG$7),$F34,"") ->  | CH34: =IF(AND($G34=Lists!$D$42,$D34=CH$7),$F34,"") ->  | CI34: =IF(AND($G34=Lists!$D$42,$D34=CI$7),$F34,"") ->  | CJ34: =IF(AND($G34=Lists!$D$42,$D34=CJ$7),$F34,"") ->  | CK34: =IF(AND($G34=Lists!$D$42,$D34=CK$7),$F34,"") ->  | CL34: =IF(AND($G34=Lists!$D$42,$D34=CL$7),$F34,"") ->  | CM34: =IF(AND($G34=Lists!$D$42,$D34=CM$7),$F34,"") ->  | CN34: =IF(AND($G34=Lists!$D$42,$D34=CN$7),$F34,"") ->  | CO34: =IF(AND($G34=Lists!$D$42,$D34=CO$7),$F34,"") ->  | CP34: =IF(AND($G34=Lists!$D$42,$D34=CP$7),$F34,"") ->  | CQ34: =IF(AND($G34=Lists!$D$42,$D34=CQ$7),$F34,"") ->  | CR34: =IF(AND($G34=Lists!$D$42,$D34=CR$7),$F34,"") ->  | CS34: =IF(AND($G34=Lists!$D$42,$D34=CS$7),$F34,"") ->  | CT34: =IF(AND($G34=Lists!$D$42,$D34=CT$7),$F34,"") ->  | CU34: =IF(AND($G34=Lists!$D$42,$D34=CU$7),$F34,"") ->  | CV34: =IF(AND($G34=Lists!$D$42,$D34=CV$7),$F34,"") ->  | CW34: =IF(AND($G34=Lists!$D$42,$D34=CW$7),$F34,"") ->  | CX34: =IF(AND($G34=Lists!$D$42,$D34=CX$7),$F34,"") ->  | CY34: =IF(AND($G34=Lists!$D$42,$D34=CY$7),$F34,"") ->  | CZ34: =IF(AND($G34=Lists!$D$42,$D34=CZ$7),$F34,"") ->  | DA34: =IF(AND($G34=Lists!$D$42,$D34=DA$7),$F34,"") ->  | DB34: =IF(AND($G34=Lists!$D$42,$D34=DB$7),$F34,"") ->  | DE34: =IF(AND($G34=Lists!$D$42,$D34=DE$7),$F34,"") -> 
D35: Tight / shale gas, Appraisal / development, Single well | G35: seed | AI35: 0 | AQ35: =IF(AND($G35=Lists!$D$41,$D35=AQ$7),$F35,"") ->  | AR35: =IF(AND($G35=Lists!$D$41,$D35=AR$7),$F35,"") ->  | AS35: =IF(AND($G35=Lists!$D$41,$D35=AS$7),$F35,"") ->  | AT35: =IF(AND($G35=Lists!$D$41,$D35=AT$7),$F35,"") ->  | AU35: =IF(AND($G35=Lists!$D$41,$D35=AU$7),$F35,"") ->  | AV35: =IF(AND($G35=Lists!$D$41,$D35=AV$7),$F35,"") ->  | AW35: =IF(AND($G35=Lists!$D$41,$D35=AW$7),$F35,"") ->  | AX35: =IF(AND($G35=Lists!$D$41,$D35=AX$7),$F35,"") ->  | AY35: =IF(AND($G35=Lists!$D$41,$D35=AY$7),$F35,"") ->  | AZ35: =IF(AND($G35=Lists!$D$41,$D35=AZ$7),$F35,"") ->  | BA35: =IF(AND($G35=Lists!$D$41,$D35=BA$7),$F35,"") ->  | BB35: =IF(AND($G35=Lists!$D$41,$D35=BB$7),$F35,"") ->  | BC35: =IF(AND($G35=Lists!$D$41,$D35=BC$7),$F35,"") ->  | BD35: =IF(AND($G35=Lists!$D$41,$D35=BD$7),$F35,"") ->  | BE35: =IF(AND($G35=Lists!$D$41,$D35=BE$7),$F35,"") ->  | BF35: =IF(AND($G35=Lists!$D$41,$D35=BF$7),$F35,"") ->  | BG35: =IF(AND($G35=Lists!$D$41,$D35=BG$7),$F35,"") ->  | BH35: =IF(AND($G35=Lists!$D$41,$D35=BH$7),$F35,"") ->  | BI35: =IF(AND($G35=Lists!$D$41,$D35=BI$7),$F35,"") ->  | BJ35: =IF(AND($G35=Lists!$D$41,$D35=BJ$7),$F35,"") ->  | BK35: =IF(AND($G35=Lists!$D$41,$D35=BK$7),$F35,"") ->  | BL35: =IF(AND($G35=Lists!$D$41,$D35=BL$7),$F35,"") ->  | BM35: =IF(AND($G35=Lists!$D$41,$D35=BM$7),$F35,"") ->  | BN35: =IF(AND($G35=Lists!$D$41,$D35=BN$7),$F35,"") ->  | BO35: =IF(AND($G35=Lists!$D$41,$D35=BO$7),$F35,"") ->  | BP35: =IF(AND($G35=Lists!$D$41,$D35=BP$7),$F35,"") ->  | BQ35: =IF(AND($G35=Lists!$D$41,$D35=BQ$7),$F35,"") -> 0 | BR35: =IF(AND($G35=Lists!$D$41,$D35=BR$7),$F35,"") ->  | BS35: =IF(AND($G35=Lists!$D$41,$D35=BS$7),$F35,"") ->  | BT35: =IF(AND($G35=Lists!$D$41,$D35=BT$7),$F35,"") ->  | BU35: =IF(AND($G35=Lists!$D$41,$D35=BU$7),$F35,"") ->  | BV35: =IF(AND($G35=Lists!$D$41,$D35=BV$7),$F35,"") ->  | BW35: =IF(AND($G35=Lists!$D$41,$D35=BW$7),$F35,"") ->  | BY35: =IF(AND($G35=Lists!$D$42,$D35=BY$7),$F35,"") ->  | BZ35: =IF(AND($G35=Lists!$D$42,$D35=BZ$7),$F35,"") ->  | CA35: =IF(AND($G35=Lists!$D$42,$D35=CA$7),$F35,"") ->  | CB35: =IF(AND($G35=Lists!$D$42,$D35=CB$7),$F35,"") ->  | CC35: =IF(AND($G35=Lists!$D$42,$D35=CC$7),$F35,"") ->  | CD35: =IF(AND($G35=Lists!$D$42,$D35=CD$7),$F35,"") ->  | CE35: =IF(AND($G35=Lists!$D$42,$D35=CE$7),$F35,"") ->  | CF35: =IF(AND($G35=Lists!$D$42,$D35=CF$7),$F35,"") ->  | CG35: =IF(AND($G35=Lists!$D$42,$D35=CG$7),$F35,"") ->  | CH35: =IF(AND($G35=Lists!$D$42,$D35=CH$7),$F35,"") ->  | CI35: =IF(AND($G35=Lists!$D$42,$D35=CI$7),$F35,"") ->  | CJ35: =IF(AND($G35=Lists!$D$42,$D35=CJ$7),$F35,"") ->  | CK35: =IF(AND($G35=Lists!$D$42,$D35=CK$7),$F35,"") ->  | CL35: =IF(AND($G35=Lists!$D$42,$D35=CL$7),$F35,"") ->  | CM35: =IF(AND($G35=Lists!$D$42,$D35=CM$7),$F35,"") ->  | CN35: =IF(AND($G35=Lists!$D$42,$D35=CN$7),$F35,"") ->  | CO35: =IF(AND($G35=Lists!$D$42,$D35=CO$7),$F35,"") ->  | CP35: =IF(AND($G35=Lists!$D$42,$D35=CP$7),$F35,"") ->  | CQ35: =IF(AND($G35=Lists!$D$42,$D35=CQ$7),$F35,"") ->  | CR35: =IF(AND($G35=Lists!$D$42,$D35=CR$7),$F35,"") ->  | CS35: =IF(AND($G35=Lists!$D$42,$D35=CS$7),$F35,"") ->  | CT35: =IF(AND($G35=Lists!$D$42,$D35=CT$7),$F35,"") ->  | CU35: =IF(AND($G35=Lists!$D$42,$D35=CU$7),$F35,"") ->  | CV35: =IF(AND($G35=Lists!$D$42,$D35=CV$7),$F35,"") ->  | CW35: =IF(AND($G35=Lists!$D$42,$D35=CW$7),$F35,"") ->  | CX35: =IF(AND($G35=Lists!$D$42,$D35=CX$7),$F35,"") ->  | CY35: =IF(AND($G35=Lists!$D$42,$D35=CY$7),$F35,"") ->  | CZ35: =IF(AND($G35=Lists!$D$42,$D35=CZ$7),$F35,"") ->  | DA35: =IF(AND($G35=Lists!$D$42,$D35=DA$7),$F35,"") ->  | DB35: =IF(AND($G35=Lists!$D$42,$D35=DB$7),$F35,"") ->  | DE35: =IF(AND($G35=Lists!$D$42,$D35=DE$7),$F35,"") -> 
D36: Tight / shale gas, Operation / Production, Single well | G36: seed | AJ36: 0 | AQ36: =IF(AND($G36=Lists!$D$41,$D36=AQ$7),$F36,"") ->  | AR36: =IF(AND($G36=Lists!$D$41,$D36=AR$7),$F36,"") ->  | AS36: =IF(AND($G36=Lists!$D$41,$D36=AS$7),$F36,"") ->  | AT36: =IF(AND($G36=Lists!$D$41,$D36=AT$7),$F36,"") ->  | AU36: =IF(AND($G36=Lists!$D$41,$D36=AU$7),$F36,"") ->  | AV36: =IF(AND($G36=Lists!$D$41,$D36=AV$7),$F36,"") ->  | AW36: =IF(AND($G36=Lists!$D$41,$D36=AW$7),$F36,"") ->  | AX36: =IF(AND($G36=Lists!$D$41,$D36=AX$7),$F36,"") ->  | AY36: =IF(AND($G36=Lists!$D$41,$D36=AY$7),$F36,"") ->  | AZ36: =IF(AND($G36=Lists!$D$41,$D36=AZ$7),$F36,"") ->  | BA36: =IF(AND($G36=Lists!$D$41,$D36=BA$7),$F36,"") ->  | BB36: =IF(AND($G36=Lists!$D$41,$D36=BB$7),$F36,"") ->  | BC36: =IF(AND($G36=Lists!$D$41,$D36=BC$7),$F36,"") ->  | BD36: =IF(AND($G36=Lists!$D$41,$D36=BD$7),$F36,"") ->  | BE36: =IF(AND($G36=Lists!$D$41,$D36=BE$7),$F36,"") ->  | BF36: =IF(AND($G36=Lists!$D$41,$D36=BF$7),$F36,"") ->  | BG36: =IF(AND($G36=Lists!$D$41,$D36=BG$7),$F36,"") ->  | BH36: =IF(AND($G36=Lists!$D$41,$D36=BH$7),$F36,"") ->  | BI36: =IF(AND($G36=Lists!$D$41,$D36=BI$7),$F36,"") ->  | BJ36: =IF(AND($G36=Lists!$D$41,$D36=BJ$7),$F36,"") ->  | BK36: =IF(AND($G36=Lists!$D$41,$D36=BK$7),$F36,"") ->  | BL36: =IF(AND($G36=Lists!$D$41,$D36=BL$7),$F36,"") ->  | BM36: =IF(AND($G36=Lists!$D$41,$D36=BM$7),$F36,"") ->  | BN36: =IF(AND($G36=Lists!$D$41,$D36=BN$7),$F36,"") ->  | BO36: =IF(AND($G36=Lists!$D$41,$D36=BO$7),$F36,"") ->  | BP36: =IF(AND($G36=Lists!$D$41,$D36=BP$7),$F36,"") ->  | BQ36: =IF(AND($G36=Lists!$D$41,$D36=BQ$7),$F36,"") ->  | BR36: =IF(AND($G36=Lists!$D$41,$D36=BR$7),$F36,"") -> 0 | BS36: =IF(AND($G36=Lists!$D$41,$D36=BS$7),$F36,"") ->  | BT36: =IF(AND($G36=Lists!$D$41,$D36=BT$7),$F36,"") ->  | BU36: =IF(AND($G36=Lists!$D$41,$D36=BU$7),$F36,"") ->  | BV36: =IF(AND($G36=Lists!$D$41,$D36=BV$7),$F36,"") ->  | BW36: =IF(AND($G36=Lists!$D$41,$D36=BW$7),$F36,"") ->  | BY36: =IF(AND($G36=Lists!$D$42,$D36=BY$7),$F36,"") ->  | BZ36: =IF(AND($G36=Lists!$D$42,$D36=BZ$7),$F36,"") ->  | CA36: =IF(AND($G36=Lists!$D$42,$D36=CA$7),$F36,"") ->  | CB36: =IF(AND($G36=Lists!$D$42,$D36=CB$7),$F36,"") ->  | CC36: =IF(AND($G36=Lists!$D$42,$D36=CC$7),$F36,"") ->  | CD36: =IF(AND($G36=Lists!$D$42,$D36=CD$7),$F36,"") ->  | CE36: =IF(AND($G36=Lists!$D$42,$D36=CE$7),$F36,"") ->  | CF36: =IF(AND($G36=Lists!$D$42,$D36=CF$7),$F36,"") ->  | CG36: =IF(AND($G36=Lists!$D$42,$D36=CG$7),$F36,"") ->  | CH36: =IF(AND($G36=Lists!$D$42,$D36=CH$7),$F36,"") ->  | CI36: =IF(AND($G36=Lists!$D$42,$D36=CI$7),$F36,"") ->  | CJ36: =IF(AND($G36=Lists!$D$42,$D36=CJ$7),$F36,"") ->  | CK36: =IF(AND($G36=Lists!$D$42,$D36=CK$7),$F36,"") ->  | CL36: =IF(AND($G36=Lists!$D$42,$D36=CL$7),$F36,"") ->  | CM36: =IF(AND($G36=Lists!$D$42,$D36=CM$7),$F36,"") ->  | CN36: =IF(AND($G36=Lists!$D$42,$D36=CN$7),$F36,"") ->  | CO36: =IF(AND($G36=Lists!$D$42,$D36=CO$7),$F36,"") ->  | CP36: =IF(AND($G36=Lists!$D$42,$D36=CP$7),$F36,"") ->  | CQ36: =IF(AND($G36=Lists!$D$42,$D36=CQ$7),$F36,"") ->  | CR36: =IF(AND($G36=Lists!$D$42,$D36=CR$7),$F36,"") ->  | CS36: =IF(AND($G36=Lists!$D$42,$D36=CS$7),$F36,"") ->  | CT36: =IF(AND($G36=Lists!$D$42,$D36=CT$7),$F36,"") ->  | CU36: =IF(AND($G36=Lists!$D$42,$D36=CU$7),$F36,"") ->  | CV36: =IF(AND($G36=Lists!$D$42,$D36=CV$7),$F36,"") ->  | CW36: =IF(AND($G36=Lists!$D$42,$D36=CW$7),$F36,"") ->  | CX36: =IF(AND($G36=Lists!$D$42,$D36=CX$7),$F36,"") ->  | CY36: =IF(AND($G36=Lists!$D$42,$D36=CY$7),$F36,"") ->  | CZ36: =IF(AND($G36=Lists!$D$42,$D36=CZ$7),$F36,"") ->  | DA36: =IF(AND($G36=Lists!$D$42,$D36=DA$7),$F36,"") ->  | DB36: =IF(AND($G36=Lists!$D$42,$D36=DB$7),$F36,"") ->  | DE36: =IF(AND($G36=Lists!$D$42,$D36=DE$7),$F36,"") -> 
D37: Tight / shale gas, Operation / Production, <= 4 wells well | G37: seed | AK37: 0 | AQ37: =IF(AND($G37=Lists!$D$41,$D37=AQ$7),$F37,"") ->  | AR37: =IF(AND($G37=Lists!$D$41,$D37=AR$7),$F37,"") ->  | AS37: =IF(AND($G37=Lists!$D$41,$D37=AS$7),$F37,"") ->  | AT37: =IF(AND($G37=Lists!$D$41,$D37=AT$7),$F37,"") ->  | AU37: =IF(AND($G37=Lists!$D$41,$D37=AU$7),$F37,"") ->  | AV37: =IF(AND($G37=Lists!$D$41,$D37=AV$7),$F37,"") ->  | AW37: =IF(AND($G37=Lists!$D$41,$D37=AW$7),$F37,"") ->  | AX37: =IF(AND($G37=Lists!$D$41,$D37=AX$7),$F37,"") ->  | AY37: =IF(AND($G37=Lists!$D$41,$D37=AY$7),$F37,"") ->  | AZ37: =IF(AND($G37=Lists!$D$41,$D37=AZ$7),$F37,"") ->  | BA37: =IF(AND($G37=Lists!$D$41,$D37=BA$7),$F37,"") ->  | BB37: =IF(AND($G37=Lists!$D$41,$D37=BB$7),$F37,"") ->  | BC37: =IF(AND($G37=Lists!$D$41,$D37=BC$7),$F37,"") ->  | BD37: =IF(AND($G37=Lists!$D$41,$D37=BD$7),$F37,"") ->  | BE37: =IF(AND($G37=Lists!$D$41,$D37=BE$7),$F37,"") ->  | BF37: =IF(AND($G37=Lists!$D$41,$D37=BF$7),$F37,"") ->  | BG37: =IF(AND($G37=Lists!$D$41,$D37=BG$7),$F37,"") ->  | BH37: =IF(AND($G37=Lists!$D$41,$D37=BH$7),$F37,"") ->  | BI37: =IF(AND($G37=Lists!$D$41,$D37=BI$7),$F37,"") ->  | BJ37: =IF(AND($G37=Lists!$D$41,$D37=BJ$7),$F37,"") ->  | BK37: =IF(AND($G37=Lists!$D$41,$D37=BK$7),$F37,"") ->  | BL37: =IF(AND($G37=Lists!$D$41,$D37=BL$7),$F37,"") ->  | BM37: =IF(AND($G37=Lists!$D$41,$D37=BM$7),$F37,"") ->  | BN37: =IF(AND($G37=Lists!$D$41,$D37=BN$7),$F37,"") ->  | BO37: =IF(AND($G37=Lists!$D$41,$D37=BO$7),$F37,"") ->  | BP37: =IF(AND($G37=Lists!$D$41,$D37=BP$7),$F37,"") ->  | BQ37: =IF(AND($G37=Lists!$D$41,$D37=BQ$7),$F37,"") ->  | BR37: =IF(AND($G37=Lists!$D$41,$D37=BR$7),$F37,"") ->  | BS37: =IF(AND($G37=Lists!$D$41,$D37=BS$7),$F37,"") -> 0 | BT37: =IF(AND($G37=Lists!$D$41,$D37=BT$7),$F37,"") ->  | BU37: =IF(AND($G37=Lists!$D$41,$D37=BU$7),$F37,"") ->  | BV37: =IF(AND($G37=Lists!$D$41,$D37=BV$7),$F37,"") ->  | BW37: =IF(AND($G37=Lists!$D$41,$D37=BW$7),$F37,"") ->  | BY37: =IF(AND($G37=Lists!$D$42,$D37=BY$7),$F37,"") ->  | BZ37: =IF(AND($G37=Lists!$D$42,$D37=BZ$7),$F37,"") ->  | CA37: =IF(AND($G37=Lists!$D$42,$D37=CA$7),$F37,"") ->  | CB37: =IF(AND($G37=Lists!$D$42,$D37=CB$7),$F37,"") ->  | CC37: =IF(AND($G37=Lists!$D$42,$D37=CC$7),$F37,"") ->  | CD37: =IF(AND($G37=Lists!$D$42,$D37=CD$7),$F37,"") ->  | CE37: =IF(AND($G37=Lists!$D$42,$D37=CE$7),$F37,"") ->  | CF37: =IF(AND($G37=Lists!$D$42,$D37=CF$7),$F37,"") ->  | CG37: =IF(AND($G37=Lists!$D$42,$D37=CG$7),$F37,"") ->  | CH37: =IF(AND($G37=Lists!$D$42,$D37=CH$7),$F37,"") ->  | CI37: =IF(AND($G37=Lists!$D$42,$D37=CI$7),$F37,"") ->  | CJ37: =IF(AND($G37=Lists!$D$42,$D37=CJ$7),$F37,"") ->  | CK37: =IF(AND($G37=Lists!$D$42,$D37=CK$7),$F37,"") ->  | CL37: =IF(AND($G37=Lists!$D$42,$D37=CL$7),$F37,"") ->  | CM37: =IF(AND($G37=Lists!$D$42,$D37=CM$7),$F37,"") ->  | CN37: =IF(AND($G37=Lists!$D$42,$D37=CN$7),$F37,"") ->  | CO37: =IF(AND($G37=Lists!$D$42,$D37=CO$7),$F37,"") ->  | CP37: =IF(AND($G37=Lists!$D$42,$D37=CP$7),$F37,"") ->  | CQ37: =IF(AND($G37=Lists!$D$42,$D37=CQ$7),$F37,"") ->  | CR37: =IF(AND($G37=Lists!$D$42,$D37=CR$7),$F37,"") ->  | CS37: =IF(AND($G37=Lists!$D$42,$D37=CS$7),$F37,"") ->  | CT37: =IF(AND($G37=Lists!$D$42,$D37=CT$7),$F37,"") ->  | CU37: =IF(AND($G37=Lists!$D$42,$D37=CU$7),$F37,"") ->  | CV37: =IF(AND($G37=Lists!$D$42,$D37=CV$7),$F37,"") ->  | CW37: =IF(AND($G37=Lists!$D$42,$D37=CW$7),$F37,"") ->  | CX37: =IF(AND($G37=Lists!$D$42,$D37=CX$7),$F37,"") ->  | CY37: =IF(AND($G37=Lists!$D$42,$D37=CY$7),$F37,"") ->  | CZ37: =IF(AND($G37=Lists!$D$42,$D37=CZ$7),$F37,"") ->  | DA37: =IF(AND($G37=Lists!$D$42,$D37=DA$7),$F37,"") ->  | DB37: =IF(AND($G37=Lists!$D$42,$D37=DB$7),$F37,"") ->  | DE37: =IF(AND($G37=Lists!$D$42,$D37=DE$7),$F37,"") -> 
D38: Tight / shale gas, Operation / Production, > 4 wells well | G38: seed | AL38: 0 | AQ38: =IF(AND($G38=Lists!$D$41,$D38=AQ$7),$F38,"") ->  | AR38: =IF(AND($G38=Lists!$D$41,$D38=AR$7),$F38,"") ->  | AS38: =IF(AND($G38=Lists!$D$41,$D38=AS$7),$F38,"") ->  | AT38: =IF(AND($G38=Lists!$D$41,$D38=AT$7),$F38,"") ->  | AU38: =IF(AND($G38=Lists!$D$41,$D38=AU$7),$F38,"") ->  | AV38: =IF(AND($G38=Lists!$D$41,$D38=AV$7),$F38,"") ->  | AW38: =IF(AND($G38=Lists!$D$41,$D38=AW$7),$F38,"") ->  | AX38: =IF(AND($G38=Lists!$D$41,$D38=AX$7),$F38,"") ->  | AY38: =IF(AND($G38=Lists!$D$41,$D38=AY$7),$F38,"") ->  | AZ38: =IF(AND($G38=Lists!$D$41,$D38=AZ$7),$F38,"") ->  | BA38: =IF(AND($G38=Lists!$D$41,$D38=BA$7),$F38,"") ->  | BB38: =IF(AND($G38=Lists!$D$41,$D38=BB$7),$F38,"") ->  | BC38: =IF(AND($G38=Lists!$D$41,$D38=BC$7),$F38,"") ->  | BD38: =IF(AND($G38=Lists!$D$41,$D38=BD$7),$F38,"") ->  | BE38: =IF(AND($G38=Lists!$D$41,$D38=BE$7),$F38,"") ->  | BF38: =IF(AND($G38=Lists!$D$41,$D38=BF$7),$F38,"") ->  | BG38: =IF(AND($G38=Lists!$D$41,$D38=BG$7),$F38,"") ->  | BH38: =IF(AND($G38=Lists!$D$41,$D38=BH$7),$F38,"") ->  | BI38: =IF(AND($G38=Lists!$D$41,$D38=BI$7),$F38,"") ->  | BJ38: =IF(AND($G38=Lists!$D$41,$D38=BJ$7),$F38,"") ->  | BK38: =IF(AND($G38=Lists!$D$41,$D38=BK$7),$F38,"") ->  | BL38: =IF(AND($G38=Lists!$D$41,$D38=BL$7),$F38,"") ->  | BM38: =IF(AND($G38=Lists!$D$41,$D38=BM$7),$F38,"") ->  | BN38: =IF(AND($G38=Lists!$D$41,$D38=BN$7),$F38,"") ->  | BO38: =IF(AND($G38=Lists!$D$41,$D38=BO$7),$F38,"") ->  | BP38: =IF(AND($G38=Lists!$D$41,$D38=BP$7),$F38,"") ->  | BQ38: =IF(AND($G38=Lists!$D$41,$D38=BQ$7),$F38,"") ->  | BR38: =IF(AND($G38=Lists!$D$41,$D38=BR$7),$F38,"") ->  | BS38: =IF(AND($G38=Lists!$D$41,$D38=BS$7),$F38,"") ->  | BT38: =IF(AND($G38=Lists!$D$41,$D38=BT$7),$F38,"") -> 0 | BU38: =IF(AND($G38=Lists!$D$41,$D38=BU$7),$F38,"") ->  | BV38: =IF(AND($G38=Lists!$D$41,$D38=BV$7),$F38,"") ->  | BW38: =IF(AND($G38=Lists!$D$41,$D38=BW$7),$F38,"") ->  | BY38: =IF(AND($G38=Lists!$D$42,$D38=BY$7),$F38,"") ->  | BZ38: =IF(AND($G38=Lists!$D$42,$D38=BZ$7),$F38,"") ->  | CA38: =IF(AND($G38=Lists!$D$42,$D38=CA$7),$F38,"") ->  | CB38: =IF(AND($G38=Lists!$D$42,$D38=CB$7),$F38,"") ->  | CC38: =IF(AND($G38=Lists!$D$42,$D38=CC$7),$F38,"") ->  | CD38: =IF(AND($G38=Lists!$D$42,$D38=CD$7),$F38,"") ->  | CE38: =IF(AND($G38=Lists!$D$42,$D38=CE$7),$F38,"") ->  | CF38: =IF(AND($G38=Lists!$D$42,$D38=CF$7),$F38,"") ->  | CG38: =IF(AND($G38=Lists!$D$42,$D38=CG$7),$F38,"") ->  | CH38: =IF(AND($G38=Lists!$D$42,$D38=CH$7),$F38,"") ->  | CI38: =IF(AND($G38=Lists!$D$42,$D38=CI$7),$F38,"") ->  | CJ38: =IF(AND($G38=Lists!$D$42,$D38=CJ$7),$F38,"") ->  | CK38: =IF(AND($G38=Lists!$D$42,$D38=CK$7),$F38,"") ->  | CL38: =IF(AND($G38=Lists!$D$42,$D38=CL$7),$F38,"") ->  | CM38: =IF(AND($G38=Lists!$D$42,$D38=CM$7),$F38,"") ->  | CN38: =IF(AND($G38=Lists!$D$42,$D38=CN$7),$F38,"") ->  | CO38: =IF(AND($G38=Lists!$D$42,$D38=CO$7),$F38,"") ->  | CP38: =IF(AND($G38=Lists!$D$42,$D38=CP$7),$F38,"") ->  | CQ38: =IF(AND($G38=Lists!$D$42,$D38=CQ$7),$F38,"") ->  | CR38: =IF(AND($G38=Lists!$D$42,$D38=CR$7),$F38,"") ->  | CS38: =IF(AND($G38=Lists!$D$42,$D38=CS$7),$F38,"") ->  | CT38: =IF(AND($G38=Lists!$D$42,$D38=CT$7),$F38,"") ->  | CU38: =IF(AND($G38=Lists!$D$42,$D38=CU$7),$F38,"") ->  | CV38: =IF(AND($G38=Lists!$D$42,$D38=CV$7),$F38,"") ->  | CW38: =IF(AND($G38=Lists!$D$42,$D38=CW$7),$F38,"") ->  | CX38: =IF(AND($G38=Lists!$D$42,$D38=CX$7),$F38,"") ->  | CY38: =IF(AND($G38=Lists!$D$42,$D38=CY$7),$F38,"") ->  | CZ38: =IF(AND($G38=Lists!$D$42,$D38=CZ$7),$F38,"") ->  | DA38: =IF(AND($G38=Lists!$D$42,$D38=DA$7),$F38,"") ->  | DB38: =IF(AND($G38=Lists!$D$42,$D38=DB$7),$F38,"") ->  | DE38: =IF(AND($G38=Lists!$D$42,$D38=DE$7),$F38,"") -> 
D39: Conventional oil, Plugged and abandoned, Single well | G39: seed | I39: 0 | AQ39: =IF(AND($G39=Lists!$D$41,$D39=AQ$7),$F39,"") -> 0 | AR39: =IF(AND($G39=Lists!$D$41,$D39=AR$7),$F39,"") ->  | AS39: =IF(AND($G39=Lists!$D$41,$D39=AS$7),$F39,"") ->  | AT39: =IF(AND($G39=Lists!$D$41,$D39=AT$7),$F39,"") ->  | AU39: =IF(AND($G39=Lists!$D$41,$D39=AU$7),$F39,"") ->  | AV39: =IF(AND($G39=Lists!$D$41,$D39=AV$7),$F39,"") ->  | AW39: =IF(AND($G39=Lists!$D$41,$D39=AW$7),$F39,"") ->  | AX39: =IF(AND($G39=Lists!$D$41,$D39=AX$7),$F39,"") ->  | AY39: =IF(AND($G39=Lists!$D$41,$D39=AY$7),$F39,"") ->  | AZ39: =IF(AND($G39=Lists!$D$41,$D39=AZ$7),$F39,"") ->  | BA39: =IF(AND($G39=Lists!$D$41,$D39=BA$7),$F39,"") ->  | BB39: =IF(AND($G39=Lists!$D$41,$D39=BB$7),$F39,"") ->  | BC39: =IF(AND($G39=Lists!$D$41,$D39=BC$7),$F39,"") ->  | BD39: =IF(AND($G39=Lists!$D$41,$D39=BD$7),$F39,"") ->  | BE39: =IF(AND($G39=Lists!$D$41,$D39=BE$7),$F39,"") ->  | BF39: =IF(AND($G39=Lists!$D$41,$D39=BF$7),$F39,"") ->  | BG39: =IF(AND($G39=Lists!$D$41,$D39=BG$7),$F39,"") ->  | BH39: =IF(AND($G39=Lists!$D$41,$D39=BH$7),$F39,"") ->  | BI39: =IF(AND($G39=Lists!$D$41,$D39=BI$7),$F39,"") ->  | BJ39: =IF(AND($G39=Lists!$D$41,$D39=BJ$7),$F39,"") ->  | BK39: =IF(AND($G39=Lists!$D$41,$D39=BK$7),$F39,"") ->  | BL39: =IF(AND($G39=Lists!$D$41,$D39=BL$7),$F39,"") ->  | BM39: =IF(AND($G39=Lists!$D$41,$D39=BM$7),$F39,"") ->  | BN39: =IF(AND($G39=Lists!$D$41,$D39=BN$7),$F39,"") ->  | BO39: =IF(AND($G39=Lists!$D$41,$D39=BO$7),$F39,"") ->  | BP39: =IF(AND($G39=Lists!$D$41,$D39=BP$7),$F39,"") ->  | BQ39: =IF(AND($G39=Lists!$D$41,$D39=BQ$7),$F39,"") ->  | BR39: =IF(AND($G39=Lists!$D$41,$D39=BR$7),$F39,"") ->  | BS39: =IF(AND($G39=Lists!$D$41,$D39=BS$7),$F39,"") ->  | BT39: =IF(AND($G39=Lists!$D$41,$D39=BT$7),$F39,"") ->  | BU39: =IF(AND($G39=Lists!$D$41,$D39=BU$7),$F39,"") ->  | BV39: =IF(AND($G39=Lists!$D$41,$D39=BV$7),$F39,"") ->  | BW39: =IF(AND($G39=Lists!$D$41,$D39=BW$7),$F39,"") ->  | BY39: =IF(AND($G39=Lists!$D$42,$D39=BY$7),$F39,"") ->  | BZ39: =IF(AND($G39=Lists!$D$42,$D39=BZ$7),$F39,"") ->  | CA39: =IF(AND($G39=Lists!$D$42,$D39=CA$7),$F39,"") ->  | CB39: =IF(AND($G39=Lists!$D$42,$D39=CB$7),$F39,"") ->  | CC39: =IF(AND($G39=Lists!$D$42,$D39=CC$7),$F39,"") ->  | CD39: =IF(AND($G39=Lists!$D$42,$D39=CD$7),$F39,"") ->  | CE39: =IF(AND($G39=Lists!$D$42,$D39=CE$7),$F39,"") ->  | CF39: =IF(AND($G39=Lists!$D$42,$D39=CF$7),$F39,"") ->  | CG39: =IF(AND($G39=Lists!$D$42,$D39=CG$7),$F39,"") ->  | CH39: =IF(AND($G39=Lists!$D$42,$D39=CH$7),$F39,"") ->  | CI39: =IF(AND($G39=Lists!$D$42,$D39=CI$7),$F39,"") ->  | CJ39: =IF(AND($G39=Lists!$D$42,$D39=CJ$7),$F39,"") ->  | CK39: =IF(AND($G39=Lists!$D$42,$D39=CK$7),$F39,"") ->  | CL39: =IF(AND($G39=Lists!$D$42,$D39=CL$7),$F39,"") ->  | CM39: =IF(AND($G39=Lists!$D$42,$D39=CM$7),$F39,"") ->  | CN39: =IF(AND($G39=Lists!$D$42,$D39=CN$7),$F39,"") ->  | CO39: =IF(AND($G39=Lists!$D$42,$D39=CO$7),$F39,"") ->  | CP39: =IF(AND($G39=Lists!$D$42,$D39=CP$7),$F39,"") ->  | CQ39: =IF(AND($G39=Lists!$D$42,$D39=CQ$7),$F39,"") ->  | CR39: =IF(AND($G39=Lists!$D$42,$D39=CR$7),$F39,"") ->  | CS39: =IF(AND($G39=Lists!$D$42,$D39=CS$7),$F39,"") ->  | CT39: =IF(AND($G39=Lists!$D$42,$D39=CT$7),$F39,"") ->  | CU39: =IF(AND($G39=Lists!$D$42,$D39=CU$7),$F39,"") ->  | CV39: =IF(AND($G39=Lists!$D$42,$D39=CV$7),$F39,"") ->  | CW39: =IF(AND($G39=Lists!$D$42,$D39=CW$7),$F39,"") ->  | CX39: =IF(AND($G39=Lists!$D$42,$D39=CX$7),$F39,"") ->  | CY39: =IF(AND($G39=Lists!$D$42,$D39=CY$7),$F39,"") ->  | CZ39: =IF(AND($G39=Lists!$D$42,$D39=CZ$7),$F39,"") ->  | DA39: =IF(AND($G39=Lists!$D$42,$D39=DA$7),$F39,"") ->  | DB39: =IF(AND($G39=Lists!$D$42,$D39=DB$7),$F39,"") ->  | DE39: =IF(AND($G39=Lists!$D$42,$D39=DE$7),$F39,"") -> 
D40: Conventional oil, Plugged and abandoned, Single well | G40: no seed (arid) | I40: 0 | AQ40: =IF(AND($G40=Lists!$D$41,$D40=AQ$7),$F40,"") ->  | AR40: =IF(AND($G40=Lists!$D$41,$D40=AR$7),$F40,"") ->  | AS40: =IF(AND($G40=Lists!$D$41,$D40=AS$7),$F40,"") ->  | AT40: =IF(AND($G40=Lists!$D$41,$D40=AT$7),$F40,"") ->  | AU40: =IF(AND($G40=Lists!$D$41,$D40=AU$7),$F40,"") ->  | AV40: =IF(AND($G40=Lists!$D$41,$D40=AV$7),$F40,"") ->  | AW40: =IF(AND($G40=Lists!$D$41,$D40=AW$7),$F40,"") ->  | AX40: =IF(AND($G40=Lists!$D$41,$D40=AX$7),$F40,"") ->  | AY40: =IF(AND($G40=Lists!$D$41,$D40=AY$7),$F40,"") ->  | AZ40: =IF(AND($G40=Lists!$D$41,$D40=AZ$7),$F40,"") ->  | BA40: =IF(AND($G40=Lists!$D$41,$D40=BA$7),$F40,"") ->  | BB40: =IF(AND($G40=Lists!$D$41,$D40=BB$7),$F40,"") ->  | BC40: =IF(AND($G40=Lists!$D$41,$D40=BC$7),$F40,"") ->  | BD40: =IF(AND($G40=Lists!$D$41,$D40=BD$7),$F40,"") ->  | BE40: =IF(AND($G40=Lists!$D$41,$D40=BE$7),$F40,"") ->  | BF40: =IF(AND($G40=Lists!$D$41,$D40=BF$7),$F40,"") ->  | BG40: =IF(AND($G40=Lists!$D$41,$D40=BG$7),$F40,"") ->  | BH40: =IF(AND($G40=Lists!$D$41,$D40=BH$7),$F40,"") ->  | BI40: =IF(AND($G40=Lists!$D$41,$D40=BI$7),$F40,"") ->  | BJ40: =IF(AND($G40=Lists!$D$41,$D40=BJ$7),$F40,"") ->  | BK40: =IF(AND($G40=Lists!$D$41,$D40=BK$7),$F40,"") ->  | BL40: =IF(AND($G40=Lists!$D$41,$D40=BL$7),$F40,"") ->  | BM40: =IF(AND($G40=Lists!$D$41,$D40=BM$7),$F40,"") ->  | BN40: =IF(AND($G40=Lists!$D$41,$D40=BN$7),$F40,"") ->  | BO40: =IF(AND($G40=Lists!$D$41,$D40=BO$7),$F40,"") ->  | BP40: =IF(AND($G40=Lists!$D$41,$D40=BP$7),$F40,"") ->  | BQ40: =IF(AND($G40=Lists!$D$41,$D40=BQ$7),$F40,"") ->  | BR40: =IF(AND($G40=Lists!$D$41,$D40=BR$7),$F40,"") ->  | BS40: =IF(AND($G40=Lists!$D$41,$D40=BS$7),$F40,"") ->  | BT40: =IF(AND($G40=Lists!$D$41,$D40=BT$7),$F40,"") ->  | BU40: =IF(AND($G40=Lists!$D$41,$D40=BU$7),$F40,"") ->  | BV40: =IF(AND($G40=Lists!$D$41,$D40=BV$7),$F40,"") ->  | BW40: =IF(AND($G40=Lists!$D$41,$D40=BW$7),$F40,"") ->  | BY40: =IF(AND($G40=Lists!$D$42,$D40=BY$7),$F40,"") -> 0 | BZ40: =IF(AND($G40=Lists!$D$42,$D40=BZ$7),$F40,"") ->  | CA40: =IF(AND($G40=Lists!$D$42,$D40=CA$7),$F40,"") ->  | CB40: =IF(AND($G40=Lists!$D$42,$D40=CB$7),$F40,"") ->  | CC40: =IF(AND($G40=Lists!$D$42,$D40=CC$7),$F40,"") ->  | CD40: =IF(AND($G40=Lists!$D$42,$D40=CD$7),$F40,"") ->  | CE40: =IF(AND($G40=Lists!$D$42,$D40=CE$7),$F40,"") ->  | CF40: =IF(AND($G40=Lists!$D$42,$D40=CF$7),$F40,"") ->  | CG40: =IF(AND($G40=Lists!$D$42,$D40=CG$7),$F40,"") ->  | CH40: =IF(AND($G40=Lists!$D$42,$D40=CH$7),$F40,"") ->  | CI40: =IF(AND($G40=Lists!$D$42,$D40=CI$7),$F40,"") ->  | CJ40: =IF(AND($G40=Lists!$D$42,$D40=CJ$7),$F40,"") ->  | CK40: =IF(AND($G40=Lists!$D$42,$D40=CK$7),$F40,"") ->  | CL40: =IF(AND($G40=Lists!$D$42,$D40=CL$7),$F40,"") ->  | CM40: =IF(AND($G40=Lists!$D$42,$D40=CM$7),$F40,"") ->  | CN40: =IF(AND($G40=Lists!$D$42,$D40=CN$7),$F40,"") ->  | CO40: =IF(AND($G40=Lists!$D$42,$D40=CO$7),$F40,"") ->  | CP40: =IF(AND($G40=Lists!$D$42,$D40=CP$7),$F40,"") ->  | CQ40: =IF(AND($G40=Lists!$D$42,$D40=CQ$7),$F40,"") ->  | CR40: =IF(AND($G40=Lists!$D$42,$D40=CR$7),$F40,"") ->  | CS40: =IF(AND($G40=Lists!$D$42,$D40=CS$7),$F40,"") ->  | CT40: =IF(AND($G40=Lists!$D$42,$D40=CT$7),$F40,"") ->  | CU40: =IF(AND($G40=Lists!$D$42,$D40=CU$7),$F40,"") ->  | CV40: =IF(AND($G40=Lists!$D$42,$D40=CV$7),$F40,"") ->  | CW40: =IF(AND($G40=Lists!$D$42,$D40=CW$7),$F40,"") ->  | CX40: =IF(AND($G40=Lists!$D$42,$D40=CX$7),$F40,"") ->  | CY40: =IF(AND($G40=Lists!$D$42,$D40=CY$7),$F40,"") ->  | CZ40: =IF(AND($G40=Lists!$D$42,$D40=CZ$7),$F40,"") ->  | DA40: =IF(AND($G40=Lists!$D$42,$D40=DA$7),$F40,"") ->  | DB40: =IF(AND($G40=Lists!$D$42,$D40=DB$7),$F40,"") ->  | DE40: =IF(AND($G40=Lists!$D$42,$D40=DE$7),$F40,"") -> 
D41: Conventional oil, Plugged and abandoned, Single well | G41: no seed (arid) | I41: 0 | AQ41: =IF(AND($G41=Lists!$D$41,$D41=AQ$7),$F41,"") ->  | AR41: =IF(AND($G41=Lists!$D$41,$D41=AR$7),$F41,"") ->  | AS41: =IF(AND($G41=Lists!$D$41,$D41=AS$7),$F41,"") ->  | AT41: =IF(AND($G41=Lists!$D$41,$D41=AT$7),$F41,"") ->  | AU41: =IF(AND($G41=Lists!$D$41,$D41=AU$7),$F41,"") ->  | AV41: =IF(AND($G41=Lists!$D$41,$D41=AV$7),$F41,"") ->  | AW41: =IF(AND($G41=Lists!$D$41,$D41=AW$7),$F41,"") ->  | AX41: =IF(AND($G41=Lists!$D$41,$D41=AX$7),$F41,"") ->  | AY41: =IF(AND($G41=Lists!$D$41,$D41=AY$7),$F41,"") ->  | AZ41: =IF(AND($G41=Lists!$D$41,$D41=AZ$7),$F41,"") ->  | BA41: =IF(AND($G41=Lists!$D$41,$D41=BA$7),$F41,"") ->  | BB41: =IF(AND($G41=Lists!$D$41,$D41=BB$7),$F41,"") ->  | BC41: =IF(AND($G41=Lists!$D$41,$D41=BC$7),$F41,"") ->  | BD41: =IF(AND($G41=Lists!$D$41,$D41=BD$7),$F41,"") ->  | BE41: =IF(AND($G41=Lists!$D$41,$D41=BE$7),$F41,"") ->  | BF41: =IF(AND($G41=Lists!$D$41,$D41=BF$7),$F41,"") ->  | BG41: =IF(AND($G41=Lists!$D$41,$D41=BG$7),$F41,"") ->  | BH41: =IF(AND($G41=Lists!$D$41,$D41=BH$7),$F41,"") ->  | BI41: =IF(AND($G41=Lists!$D$41,$D41=BI$7),$F41,"") ->  | BJ41: =IF(AND($G41=Lists!$D$41,$D41=BJ$7),$F41,"") ->  | BK41: =IF(AND($G41=Lists!$D$41,$D41=BK$7),$F41,"") ->  | BL41: =IF(AND($G41=Lists!$D$41,$D41=BL$7),$F41,"") ->  | BM41: =IF(AND($G41=Lists!$D$41,$D41=BM$7),$F41,"") ->  | BN41: =IF(AND($G41=Lists!$D$41,$D41=BN$7),$F41,"") ->  | BO41: =IF(AND($G41=Lists!$D$41,$D41=BO$7),$F41,"") ->  | BP41: =IF(AND($G41=Lists!$D$41,$D41=BP$7),$F41,"") ->  | BQ41: =IF(AND($G41=Lists!$D$41,$D41=BQ$7),$F41,"") ->  | BR41: =IF(AND($G41=Lists!$D$41,$D41=BR$7),$F41,"") ->  | BS41: =IF(AND($G41=Lists!$D$41,$D41=BS$7),$F41,"") ->  | BT41: =IF(AND($G41=Lists!$D$41,$D41=BT$7),$F41,"") ->  | BU41: =IF(AND($G41=Lists!$D$41,$D41=BU$7),$F41,"") ->  | BV41: =IF(AND($G41=Lists!$D$41,$D41=BV$7),$F41,"") ->  | BW41: =IF(AND($G41=Lists!$D$41,$D41=BW$7),$F41,"") ->  | BY41: =IF(AND($G41=Lists!$D$42,$D41=BY$7),$F41,"") -> 0 | BZ41: =IF(AND($G41=Lists!$D$42,$D41=BZ$7),$F41,"") ->  | CA41: =IF(AND($G41=Lists!$D$42,$D41=CA$7),$F41,"") ->  | CB41: =IF(AND($G41=Lists!$D$42,$D41=CB$7),$F41,"") ->  | CC41: =IF(AND($G41=Lists!$D$42,$D41=CC$7),$F41,"") ->  | CD41: =IF(AND($G41=Lists!$D$42,$D41=CD$7),$F41,"") ->  | CE41: =IF(AND($G41=Lists!$D$42,$D41=CE$7),$F41,"") ->  | CF41: =IF(AND($G41=Lists!$D$42,$D41=CF$7),$F41,"") ->  | CG41: =IF(AND($G41=Lists!$D$42,$D41=CG$7),$F41,"") ->  | CH41: =IF(AND($G41=Lists!$D$42,$D41=CH$7),$F41,"") ->  | CI41: =IF(AND($G41=Lists!$D$42,$D41=CI$7),$F41,"") ->  | CJ41: =IF(AND($G41=Lists!$D$42,$D41=CJ$7),$F41,"") ->  | CK41: =IF(AND($G41=Lists!$D$42,$D41=CK$7),$F41,"") ->  | CL41: =IF(AND($G41=Lists!$D$42,$D41=CL$7),$F41,"") ->  | CM41: =IF(AND($G41=Lists!$D$42,$D41=CM$7),$F41,"") ->  | CN41: =IF(AND($G41=Lists!$D$42,$D41=CN$7),$F41,"") ->  | CO41: =IF(AND($G41=Lists!$D$42,$D41=CO$7),$F41,"") ->  | CP41: =IF(AND($G41=Lists!$D$42,$D41=CP$7),$F41,"") ->  | CQ41: =IF(AND($G41=Lists!$D$42,$D41=CQ$7),$F41,"") ->  | CR41: =IF(AND($G41=Lists!$D$42,$D41=CR$7),$F41,"") ->  | CS41: =IF(AND($G41=Lists!$D$42,$D41=CS$7),$F41,"") ->  | CT41: =IF(AND($G41=Lists!$D$42,$D41=CT$7),$F41,"") ->  | CU41: =IF(AND($G41=Lists!$D$42,$D41=CU$7),$F41,"") ->  | CV41: =IF(AND($G41=Lists!$D$42,$D41=CV$7),$F41,"") ->  | CW41: =IF(AND($G41=Lists!$D$42,$D41=CW$7),$F41,"") ->  | CX41: =IF(AND($G41=Lists!$D$42,$D41=CX$7),$F41,"") ->  | CY41: =IF(AND($G41=Lists!$D$42,$D41=CY$7),$F41,"") ->  | CZ41: =IF(AND($G41=Lists!$D$42,$D41=CZ$7),$F41,"") ->  | DA41: =IF(AND($G41=Lists!$D$42,$D41=DA$7),$F41,"") ->  | DB41: =IF(AND($G41=Lists!$D$42,$D41=DB$7),$F41,"") ->  | DE41: =IF(AND($G41=Lists!$D$42,$D41=DE$7),$F41,"") -> 
D42: Conventional oil, Plugged and abandoned, Single well | G42: no seed (arid) | I42: 0 | AQ42: =IF(AND($G42=Lists!$D$41,$D42=AQ$7),$F42,"") ->  | AR42: =IF(AND($G42=Lists!$D$41,$D42=AR$7),$F42,"") ->  | AS42: =IF(AND($G42=Lists!$D$41,$D42=AS$7),$F42,"") ->  | AT42: =IF(AND($G42=Lists!$D$41,$D42=AT$7),$F42,"") ->  | AU42: =IF(AND($G42=Lists!$D$41,$D42=AU$7),$F42,"") ->  | AV42: =IF(AND($G42=Lists!$D$41,$D42=AV$7),$F42,"") ->  | AW42: =IF(AND($G42=Lists!$D$41,$D42=AW$7),$F42,"") ->  | AX42: =IF(AND($G42=Lists!$D$41,$D42=AX$7),$F42,"") ->  | AY42: =IF(AND($G42=Lists!$D$41,$D42=AY$7),$F42,"") ->  | AZ42: =IF(AND($G42=Lists!$D$41,$D42=AZ$7),$F42,"") ->  | BA42: =IF(AND($G42=Lists!$D$41,$D42=BA$7),$F42,"") ->  | BB42: =IF(AND($G42=Lists!$D$41,$D42=BB$7),$F42,"") ->  | BC42: =IF(AND($G42=Lists!$D$41,$D42=BC$7),$F42,"") ->  | BD42: =IF(AND($G42=Lists!$D$41,$D42=BD$7),$F42,"") ->  | BE42: =IF(AND($G42=Lists!$D$41,$D42=BE$7),$F42,"") ->  | BF42: =IF(AND($G42=Lists!$D$41,$D42=BF$7),$F42,"") ->  | BG42: =IF(AND($G42=Lists!$D$41,$D42=BG$7),$F42,"") ->  | BH42: =IF(AND($G42=Lists!$D$41,$D42=BH$7),$F42,"") ->  | BI42: =IF(AND($G42=Lists!$D$41,$D42=BI$7),$F42,"") ->  | BJ42: =IF(AND($G42=Lists!$D$41,$D42=BJ$7),$F42,"") ->  | BK42: =IF(AND($G42=Lists!$D$41,$D42=BK$7),$F42,"") ->  | BL42: =IF(AND($G42=Lists!$D$41,$D42=BL$7),$F42,"") ->  | BM42: =IF(AND($G42=Lists!$D$41,$D42=BM$7),$F42,"") ->  | BN42: =IF(AND($G42=Lists!$D$41,$D42=BN$7),$F42,"") ->  | BO42: =IF(AND($G42=Lists!$D$41,$D42=BO$7),$F42,"") ->  | BP42: =IF(AND($G42=Lists!$D$41,$D42=BP$7),$F42,"") ->  | BQ42: =IF(AND($G42=Lists!$D$41,$D42=BQ$7),$F42,"") ->  | BR42: =IF(AND($G42=Lists!$D$41,$D42=BR$7),$F42,"") ->  | BS42: =IF(AND($G42=Lists!$D$41,$D42=BS$7),$F42,"") ->  | BT42: =IF(AND($G42=Lists!$D$41,$D42=BT$7),$F42,"") ->  | BU42: =IF(AND($G42=Lists!$D$41,$D42=BU$7),$F42,"") ->  | BV42: =IF(AND($G42=Lists!$D$41,$D42=BV$7),$F42,"") ->  | BW42: =IF(AND($G42=Lists!$D$41,$D42=BW$7),$F42,"") ->  | BY42: =IF(AND($G42=Lists!$D$42,$D42=BY$7),$F42,"") -> 0 | BZ42: =IF(AND($G42=Lists!$D$42,$D42=BZ$7),$F42,"") ->  | CA42: =IF(AND($G42=Lists!$D$42,$D42=CA$7),$F42,"") ->  | CB42: =IF(AND($G42=Lists!$D$42,$D42=CB$7),$F42,"") ->  | CC42: =IF(AND($G42=Lists!$D$42,$D42=CC$7),$F42,"") ->  | CD42: =IF(AND($G42=Lists!$D$42,$D42=CD$7),$F42,"") ->  | CE42: =IF(AND($G42=Lists!$D$42,$D42=CE$7),$F42,"") ->  | CF42: =IF(AND($G42=Lists!$D$42,$D42=CF$7),$F42,"") ->  | CG42: =IF(AND($G42=Lists!$D$42,$D42=CG$7),$F42,"") ->  | CH42: =IF(AND($G42=Lists!$D$42,$D42=CH$7),$F42,"") ->  | CI42: =IF(AND($G42=Lists!$D$42,$D42=CI$7),$F42,"") ->  | CJ42: =IF(AND($G42=Lists!$D$42,$D42=CJ$7),$F42,"") ->  | CK42: =IF(AND($G42=Lists!$D$42,$D42=CK$7),$F42,"") ->  | CL42: =IF(AND($G42=Lists!$D$42,$D42=CL$7),$F42,"") ->  | CM42: =IF(AND($G42=Lists!$D$42,$D42=CM$7),$F42,"") ->  | CN42: =IF(AND($G42=Lists!$D$42,$D42=CN$7),$F42,"") ->  | CO42: =IF(AND($G42=Lists!$D$42,$D42=CO$7),$F42,"") ->  | CP42: =IF(AND($G42=Lists!$D$42,$D42=CP$7),$F42,"") ->  | CQ42: =IF(AND($G42=Lists!$D$42,$D42=CQ$7),$F42,"") ->  | CR42: =IF(AND($G42=Lists!$D$42,$D42=CR$7),$F42,"") ->  | CS42: =IF(AND($G42=Lists!$D$42,$D42=CS$7),$F42,"") ->  | CT42: =IF(AND($G42=Lists!$D$42,$D42=CT$7),$F42,"") ->  | CU42: =IF(AND($G42=Lists!$D$42,$D42=CU$7),$F42,"") ->  | CV42: =IF(AND($G42=Lists!$D$42,$D42=CV$7),$F42,"") ->  | CW42: =IF(AND($G42=Lists!$D$42,$D42=CW$7),$F42,"") ->  | CX42: =IF(AND($G42=Lists!$D$42,$D42=CX$7),$F42,"") ->  | CY42: =IF(AND($G42=Lists!$D$42,$D42=CY$7),$F42,"") ->  | CZ42: =IF(AND($G42=Lists!$D$42,$D42=CZ$7),$F42,"") ->  | DA42: =IF(AND($G42=Lists!$D$42,$D42=DA$7),$F42,"") ->  | DB42: =IF(AND($G42=Lists!$D$42,$D42=DB$7),$F42,"") ->  | DE42: =IF(AND($G42=Lists!$D$42,$D42=DE$7),$F42,"") -> 
D43: Conventional oil, Plugged and abandoned, Single well | G43: no seed (arid) | I43: 0 | Z43: =IF($D43=Z$7,$E43,"") ->  | AQ43: =IF(AND($G43=Lists!$D$41,$D43=AQ$7),$F43,"") ->  | AR43: =IF(AND($G43=Lists!$D$41,$D43=AR$7),$F43,"") ->  | AS43: =IF(AND($G43=Lists!$D$41,$D43=AS$7),$F43,"") ->  | AT43: =IF(AND($G43=Lists!$D$41,$D43=AT$7),$F43,"") ->  | AU43: =IF(AND($G43=Lists!$D$41,$D43=AU$7),$F43,"") ->  | AV43: =IF(AND($G43=Lists!$D$41,$D43=AV$7),$F43,"") ->  | AW43: =IF(AND($G43=Lists!$D$41,$D43=AW$7),$F43,"") ->  | AX43: =IF(AND($G43=Lists!$D$41,$D43=AX$7),$F43,"") ->  | AY43: =IF(AND($G43=Lists!$D$41,$D43=AY$7),$F43,"") ->  | AZ43: =IF(AND($G43=Lists!$D$41,$D43=AZ$7),$F43,"") ->  | BA43: =IF(AND($G43=Lists!$D$41,$D43=BA$7),$F43,"") ->  | BB43: =IF(AND($G43=Lists!$D$41,$D43=BB$7),$F43,"") ->  | BC43: =IF(AND($G43=Lists!$D$41,$D43=BC$7),$F43,"") ->  | BD43: =IF(AND($G43=Lists!$D$41,$D43=BD$7),$F43,"") ->  | BE43: =IF(AND($G43=Lists!$D$41,$D43=BE$7),$F43,"") ->  | BF43: =IF(AND($G43=Lists!$D$41,$D43=BF$7),$F43,"") ->  | BG43: =IF(AND($G43=Lists!$D$41,$D43=BG$7),$F43,"") ->  | BH43: =IF(AND($G43=Lists!$D$41,$D43=BH$7),$F43,"") ->  | BI43: =IF(AND($G43=Lists!$D$41,$D43=BI$7),$F43,"") ->  | BJ43: =IF(AND($G43=Lists!$D$41,$D43=BJ$7),$F43,"") ->  | BK43: =IF(AND($G43=Lists!$D$41,$D43=BK$7),$F43,"") ->  | BL43: =IF(AND($G43=Lists!$D$41,$D43=BL$7),$F43,"") ->  | BM43: =IF(AND($G43=Lists!$D$41,$D43=BM$7),$F43,"") ->  | BN43: =IF(AND($G43=Lists!$D$41,$D43=BN$7),$F43,"") ->  | BO43: =IF(AND($G43=Lists!$D$41,$D43=BO$7),$F43,"") ->  | BP43: =IF(AND($G43=Lists!$D$41,$D43=BP$7),$F43,"") ->  | BQ43: =IF(AND($G43=Lists!$D$41,$D43=BQ$7),$F43,"") ->  | BR43: =IF(AND($G43=Lists!$D$41,$D43=BR$7),$F43,"") ->  | BS43: =IF(AND($G43=Lists!$D$41,$D43=BS$7),$F43,"") ->  | BT43: =IF(AND($G43=Lists!$D$41,$D43=BT$7),$F43,"") ->  | BU43: =IF(AND($G43=Lists!$D$41,$D43=BU$7),$F43,"") ->  | BV43: =IF(AND($G43=Lists!$D$41,$D43=BV$7),$F43,"") ->  | BW43: =IF(AND($G43=Lists!$D$41,$D43=BW$7),$F43,"") ->  | BY43: =IF(AND($G43=Lists!$D$42,$D43=BY$7),$F43,"") -> 0 | BZ43: =IF(AND($G43=Lists!$D$42,$D43=BZ$7),$F43,"") ->  | CA43: =IF(AND($G43=Lists!$D$42,$D43=CA$7),$F43,"") ->  | CB43: =IF(AND($G43=Lists!$D$42,$D43=CB$7),$F43,"") ->  | CC43: =IF(AND($G43=Lists!$D$42,$D43=CC$7),$F43,"") ->  | CD43: =IF(AND($G43=Lists!$D$42,$D43=CD$7),$F43,"") ->  | CE43: =IF(AND($G43=Lists!$D$42,$D43=CE$7),$F43,"") ->  | CF43: =IF(AND($G43=Lists!$D$42,$D43=CF$7),$F43,"") ->  | CG43: =IF(AND($G43=Lists!$D$42,$D43=CG$7),$F43,"") ->  | CH43: =IF(AND($G43=Lists!$D$42,$D43=CH$7),$F43,"") ->  | CI43: =IF(AND($G43=Lists!$D$42,$D43=CI$7),$F43,"") ->  | CJ43: =IF(AND($G43=Lists!$D$42,$D43=CJ$7),$F43,"") ->  | CK43: =IF(AND($G43=Lists!$D$42,$D43=CK$7),$F43,"") ->  | CL43: =IF(AND($G43=Lists!$D$42,$D43=CL$7),$F43,"") ->  | CM43: =IF(AND($G43=Lists!$D$42,$D43=CM$7),$F43,"") ->  | CN43: =IF(AND($G43=Lists!$D$42,$D43=CN$7),$F43,"") ->  | CO43: =IF(AND($G43=Lists!$D$42,$D43=CO$7),$F43,"") ->  | CP43: =IF(AND($G43=Lists!$D$42,$D43=CP$7),$F43,"") ->  | CQ43: =IF(AND($G43=Lists!$D$42,$D43=CQ$7),$F43,"") ->  | CR43: =IF(AND($G43=Lists!$D$42,$D43=CR$7),$F43,"") ->  | CS43: =IF(AND($G43=Lists!$D$42,$D43=CS$7),$F43,"") ->  | CT43: =IF(AND($G43=Lists!$D$42,$D43=CT$7),$F43,"") ->  | CU43: =IF(AND($G43=Lists!$D$42,$D43=CU$7),$F43,"") ->  | CV43: =IF(AND($G43=Lists!$D$42,$D43=CV$7),$F43,"") ->  | CW43: =IF(AND($G43=Lists!$D$42,$D43=CW$7),$F43,"") ->  | CX43: =IF(AND($G43=Lists!$D$42,$D43=CX$7),$F43,"") ->  | CY43: =IF(AND($G43=Lists!$D$42,$D43=CY$7),$F43,"") ->  | CZ43: =IF(AND($G43=Lists!$D$42,$D43=CZ$7),$F43,"") ->  | DA43: =IF(AND($G43=Lists!$D$42,$D43=DA$7),$F43,"") ->  | DB43: =IF(AND($G43=Lists!$D$42,$D43=DB$7),$F43,"") ->  | DE43: =IF(AND($G43=Lists!$D$42,$D43=DE$7),$F43,"") -> 

Sheet Seismic and Infrastructure
B2: =CONTENTS!$B$2 -> Petroleum and Gas Estimated Rehabilitation Cost Calculator | D2: Total Seismic | E2: Total Tracks | F2: Total Camps | G2: Total ERC
B3: Contents | C3: SEISMIC AND INFRASTRUCTURE INPUT SHEET | D3: =SUM(G26:I26,G48:I48) -> 0 | E3: =SUM(K71:P71) -> 0 | F3: =SUM(L110:AO110,H110:J110) -> 0 | G3: =ERC -> 0
C5: Seismic (by length) | D5: Default | E5: =Assumptions!$E$16 -> 5%
B6: Map ID | C6: Name | D6: Total Length | E6: Rehab length | F6: Land | G6: =Lists!C41 -> Pasture | H6: =Lists!C42 -> Native | I6: =Lists!C43 -> Arid
D7: km | E7: km | F7: Select from dropdown
E8: =D8*$E$5 -> 0.00 | F8: Pasture | G8: =IF($F8=G$6,$E8,"") -> 0.00 | H8: =IF($F8=H$6,$E8,"") -> 
E9: 0.00 | F9: Native | G9: =IF($F9=G$6,$E9,"") ->  | H9: 0.00
E10: 0.00 | F10: Arid | I10: 0.00
E11: 0.00 | F11: Pasture | G11: 0.00
E12: 0.00 | F12: Native | H12: 0.00
E13: 0.00 | F13: Pasture | G13: 0.00
E14: 0.00 | F14: Pasture | G14: 0.00
E15: 0.00 | F15: Pasture | G15: 0.00
E16: 0.00 | F16: Pasture | G16: 0.00
E17: 0.00 | F17: Pasture | G17: 0.00
E18: 0.00 | F18: Arid | I18: 0.00
E19: 0.00 | F19: Pasture | G19: 0.00
E20: 0.00 | F20: Pasture | G20: 0.00
E21: 0.00 | F21: Pasture | G21: 0.00
D23: =SUM(D7:D22) -> 0.00 | E23: =SUM(E7:E22) -> 0.00 | G23: =SUM(G7:G22) -> 0.00 | H23: 0.00 | I23: 0.00
F24: TOV# | G24: =Main!D8 -> #1.01 | H24: =Main!D9 -> #1.02 | I24: =Main!D10 -> #1.03
F25: Rate | G25: =VLOOKUP(G24,Main!$D$8:$J$10,Main!$J$756,FALSE) -> $1,006.18 | H25: =VLOOKUP(H24,Main!$D$8:$J$10,Main!$J$756,FALSE) -> $1,895.53 | I25: =VLOOKUP(I24,Main!$D$8:$J$10,Main!$J$756,FALSE) -> $426.76
F26: Total | G26: =G25*G23 -> 0 | H26: =H25*H23 -> 0 | I26: 0
C27: Seismic (by area) | E27: =Assumptions!$E$16 -> 5%
B28: Map ID | C28: Name | D28: Total Area | E28: Rehab area | F28: Land | G28: Pasture | H28: Native | I28: Arid
D29: ha | E29: ha | F29: Select from dropdown
E30: =D30*$E$27 -> 0.00 | F30: Pasture | G30: =IF($F30=G$28,$E30,"") -> 0.00 | H30: =IF($F30=H$28,$E30,"") ->  | I30: =IF($F30=I$28,$E30,"") -> 
E31: =D31*$E$27 -> 0.00 | F31: Native | G31: =IF($F31=G$28,$E31,"") ->  | H31: 0.00
E32: 0.00 | F32: Arid | I32: 0.00
E33: 0.00 | F33: Pasture | G33: 0.00
E34: 0.00 | F34: Native | H34: 0.00
E35: 0.00 | F35: Pasture | G35: 0.00
E36: 0.00 | F36: Pasture | G36: 0.00
E37: 0.00 | F37: Pasture | G37: 0.00
E38: 0.00 | F38: Pasture | G38: 0.00
E39: 0.00 | F39: Pasture | G39: 0.00
E40: 0.00 | F40: Arid | I40: 0.00
E41: 0.00 | F41: Pasture | G41: 0.00
E42: 0.00 | F42: Pasture | G42: 0.00
E43: 0.00 | F43: Pasture | G43: 0.00
D45: =SUM(D29:D44) -> 0.00 | E45: =SUM(E29:E44) -> 0.00 | G45: =SUM(G29:G44) -> 0.00 | H45: 0.00 | I45: 0.00
F46: =F24 -> TOV# | G46: =Main!D11 -> #1.04 | H46: =Main!D12 -> #1.05 | I46: =Main!D13 -> #1.06
F47: =F25 -> Rate | G47: =VLOOKUP(G46,Main!$D$11:$J$13,Main!$J$756,FALSE) -> $2,874.80 | H47: =VLOOKUP(H46,Main!$D$11:$J$13,Main!$J$756,FALSE) -> $5,415.80 | I47: =VLOOKUP(I46,Main!$D$11:$J$13,Main!$J$756,FALSE) -> $1,219.30
F48: Total | G48: =G45*G47 -> 0 | H48: =H45*H47 -> 0 | I48: 0
C50: Tracks and Roads | G50: Area below is total disturbance area for all camps in the category / row
B51: Map ID | C51: Area | D51: Length | E51: Width | F51: Area Calculated | G51: Area User Entered | H51: Area used in calculations | I51: Type | J51: Land | K51: Earthen Pasture | L51: Earthen Native | M51: Earthen Arid | N51: Rock, Gravel, Bitumen Pasture | O51: Rock, Gravel, Bitumen Native | P51: Rock, Gravel, Bitumen Arid
D52: km | E52: m | F52: ha | G52: ha | H52: ha | I52: Select from dropdown | J52: Select from dropdown | K52: ha | L52: ha | M52: ha | N52: ha | O52: ha | P52: ha
F53: =D53*1000*IF(E53="",Track_width_def,E53)/10000 -> 0.00 | H53: =IF(G53="",F53,G53) -> 0.00 | I53: Earthen | J53: Pasture | K53: =IF(AND($I53=Lists!$C$46,$J53=Lists!$C$41),$H53,"") -> 0.00 | L53: =IF(AND($I53=Lists!$C$46,$J53=Lists!$C$42),$H53,"") ->  | M53: =IF(AND($I53=Lists!$C$46,$J53=Lists!$C$43),$H53,"") ->  | N53: =IF(AND(OR($I53=Lists!$C$47,$I53=Lists!$C$48,$I53=Lists!$C$49),$J53=Lists!$C$41),$H53,"") ->  | O53: =IF(AND(OR($I53=Lists!$C$47,$I53=Lists!$C$48,$I53=Lists!$C$49),$J53=Lists!$C$42),$H53,"") ->  | P53: =IF(AND(OR($I53=Lists!$C$47,$I53=Lists!$C$48,$I53=Lists!$C$49),$J53=Lists!$C$43),$H53,"") -> 
F54: 0.00 | H54: =IF(G54="",F54,G54) -> 0.00 | I54: Gravel | J54: Native | K54: =IF(AND($I54=Lists!$C$46,$J54=Lists!$C$41),$H54,"") ->  | L54: =IF(AND($I54=Lists!$C$46,$J54=Lists!$C$42),$H54,"") ->  | M54: =IF(AND($I54=Lists!$C$46,$J54=Lists!$C$43),$H54,"") ->  | N54: =IF(AND(OR($I54=Lists!$C$47,$I54=Lists!$C$48,$I54=Lists!$C$49),$J54=Lists!$C$41),$H54,"") ->  | O54: =IF(AND(OR($I54=Lists!$C$47,$I54=Lists!$C$48,$I54=Lists!$C$49),$J54=Lists!$C$42),$H54,"") -> 0.00 | P54: =IF(AND(OR($I54=Lists!$C$47,$I54=Lists!$C$48,$I54=Lists!$C$49),$J54=Lists!$C$43),$H54,"") -> 
F55: 0.00 | H55: 0.00 | I55: Rock | J55: Arid | K55: =IF(AND($I55=Lists!$C$46,$J55=Lists!$C$41),$H55,"") ->  | L55: =IF(AND($I55=Lists!$C$46,$J55=Lists!$C$42),$H55,"") ->  | M55: =IF(AND($I55=Lists!$C$46,$J55=Lists!$C$43),$H55,"") ->  | N55: =IF(AND(OR($I55=Lists!$C$47,$I55=Lists!$C$48,$I55=Lists!$C$49),$J55=Lists!$C$41),$H55,"") ->  | O55: =IF(AND(OR($I55=Lists!$C$47,$I55=Lists!$C$48,$I55=Lists!$C$49),$J55=Lists!$C$42),$H55,"") ->  | P55: =IF(AND(OR($I55=Lists!$C$47,$I55=Lists!$C$48,$I55=Lists!$C$49),$J55=Lists!$C$43),$H55,"") -> 0.00
F56: 0.00 | H56: 0.00 | I56: Bitumen | J56: Pasture | K56: =IF(AND($I56=Lists!$C$46,$J56=Lists!$C$41),$H56,"") ->  | L56: =IF(AND($I56=Lists!$C$46,$J56=Lists!$C$42),$H56,"") ->  | M56: =IF(AND($I56=Lists!$C$46,$J56=Lists!$C$43),$H56,"") ->  | N56: =IF(AND(OR($I56=Lists!$C$47,$I56=Lists!$C$48,$I56=Lists!$C$49),$J56=Lists!$C$41),$H56,"") -> 0.00 | O56: =IF(AND(OR($I56=Lists!$C$47,$I56=Lists!$C$48,$I56=Lists!$C$49),$J56=Lists!$C$42),$H56,"") ->  | P56: =IF(AND(OR($I56=Lists!$C$47,$I56=Lists!$C$48,$I56=Lists!$C$49),$J56=Lists!$C$43),$H56,"") -> 
F57: 0.00 | H57: 0.00 | I57: Earthen | J57: Native | K57: =IF(AND($I57=Lists!$C$46,$J57=Lists!$C$41),$H57,"") ->  | L57: =IF(AND($I57=Lists!$C$46,$J57=Lists!$C$42),$H57,"") -> 0.00 | M57: =IF(AND($I57=Lists!$C$46,$J57=Lists!$C$43),$H57,"") ->  | N57: =IF(AND(OR($I57=Lists!$C$47,$I57=Lists!$C$48,$I57=Lists!$C$49),$J57=Lists!$C$41),$H57,"") ->  | O57: =IF(AND(OR($I57=Lists!$C$47,$I57=Lists!$C$48,$I57=Lists!$C$49),$J57=Lists!$C$42),$H57,"") ->  | P57: =IF(AND(OR($I57=Lists!$C$47,$I57=Lists!$C$48,$I57=Lists!$C$49),$J57=Lists!$C$43),$H57,"") -> 
F58: 0.00 | H58: 0.00 | I58: Gravel | J58: Native | K58: =IF(AND($I58=Lists!$C$46,$J58=Lists!$C$41),$H58,"") ->  | L58: =IF(AND($I58=Lists!$C$46,$J58=Lists!$C$42),$H58,"") ->  | M58: =IF(AND($I58=Lists!$C$46,$J58=Lists!$C$43),$H58,"") ->  | N58: =IF(AND(OR($I58=Lists!$C$47,$I58=Lists!$C$48,$I58=Lists!$C$49),$J58=Lists!$C$41),$H58,"") ->  | O58: =IF(AND(OR($I58=Lists!$C$47,$I58=Lists!$C$48,$I58=Lists!$C$49),$J58=Lists!$C$42),$H58,"") -> 0.00 | P58: =IF(AND(OR($I58=Lists!$C$47,$I58=Lists!$C$48,$I58=Lists!$C$49),$J58=Lists!$C$43),$H58,"") -> 
F59: 0.00 | H59: 0.00 | I59: Rock | J59: Native | K59: =IF(AND($I59=Lists!$C$46,$J59=Lists!$C$41),$H59,"") ->  | L59: =IF(AND($I59=Lists!$C$46,$J59=Lists!$C$42),$H59,"") ->  | M59: =IF(AND($I59=Lists!$C$46,$J59=Lists!$C$43),$H59,"") ->  | N59: =IF(AND(OR($I59=Lists!$C$47,$I59=Lists!$C$48,$I59=Lists!$C$49),$J59=Lists!$C$41),$H59,"") ->  | O59: =IF(AND(OR($I59=Lists!$C$47,$I59=Lists!$C$48,$I59=Lists!$C$49),$J59=Lists!$C$42),$H59,"") -> 0.00 | P59: =IF(AND(OR($I59=Lists!$C$47,$I59=Lists!$C$48,$I59=Lists!$C$49),$J59=Lists!$C$43),$H59,"") -> 
F60: 0.00 | H60: 0.00 | I60: Bitumen | J60: Native | K60: =IF(AND($I60=Lists!$C$46,$J60=Lists!$C$41),$H60,"") ->  | L60: =IF(AND($I60=Lists!$C$46,$J60=Lists!$C$42),$H60,"") ->  | M60: =IF(AND($I60=Lists!$C$46,$J60=Lists!$C$43),$H60,"") ->  | N60: =IF(AND(OR($I60=Lists!$C$47,$I60=Lists!$C$48,$I60=Lists!$C$49),$J60=Lists!$C$41),$H60,"") ->  | O60: =IF(AND(OR($I60=Lists!$C$47,$I60=Lists!$C$48,$I60=Lists!$C$49),$J60=Lists!$C$42),$H60,"") -> 0.00 | P60: =IF(AND(OR($I60=Lists!$C$47,$I60=Lists!$C$48,$I60=Lists!$C$49),$J60=Lists!$C$43),$H60,"") -> 
F61: 0.00 | H61: 0.00 | I61: Earthen | J61: Arid | K61: =IF(AND($I61=Lists!$C$46,$J61=Lists!$C$41),$H61,"") ->  | L61: =IF(AND($I61=Lists!$C$46,$J61=Lists!$C$42),$H61,"") ->  | M61: =IF(AND($I61=Lists!$C$46,$J61=Lists!$C$43),$H61,"") -> 0.00 | N61: =IF(AND(OR($I61=Lists!$C$47,$I61=Lists!$C$48,$I61=Lists!$C$49),$J61=Lists!$C$41),$H61,"") ->  | O61: =IF(AND(OR($I61=Lists!$C$47,$I61=Lists!$C$48,$I61=Lists!$C$49),$J61=Lists!$C$42),$H61,"") ->  | P61: =IF(AND(OR($I61=Lists!$C$47,$I61=Lists!$C$48,$I61=Lists!$C$49),$J61=Lists!$C$43),$H61,"") -> 
F62: 0.00 | H62: 0.00 | I62: Gravel | J62: Arid | K62: =IF(AND($I62=Lists!$C$46,$J62=Lists!$C$41),$H62,"") ->  | L62: =IF(AND($I62=Lists!$C$46,$J62=Lists!$C$42),$H62,"") ->  | M62: =IF(AND($I62=Lists!$C$46,$J62=Lists!$C$43),$H62,"") ->  | N62: =IF(AND(OR($I62=Lists!$C$47,$I62=Lists!$C$48,$I62=Lists!$C$49),$J62=Lists!$C$41),$H62,"") ->  | O62: =IF(AND(OR($I62=Lists!$C$47,$I62=Lists!$C$48,$I62=Lists!$C$49),$J62=Lists!$C$42),$H62,"") ->  | P62: =IF(AND(OR($I62=Lists!$C$47,$I62=Lists!$C$48,$I62=Lists!$C$49),$J62=Lists!$C$43),$H62,"") -> 0.00
F63: 0.00 | H63: 0.00 | I63: Rock | J63: Arid | K63: =IF(AND($I63=Lists!$C$46,$J63=Lists!$C$41),$H63,"") ->  | L63: =IF(AND($I63=Lists!$C$46,$J63=Lists!$C$42),$H63,"") ->  | M63: =IF(AND($I63=Lists!$C$46,$J63=Lists!$C$43),$H63,"") ->  | N63: =IF(AND(OR($I63=Lists!$C$47,$I63=Lists!$C$48,$I63=Lists!$C$49),$J63=Lists!$C$41),$H63,"") ->  | O63: =IF(AND(OR($I63=Lists!$C$47,$I63=Lists!$C$48,$I63=Lists!$C$49),$J63=Lists!$C$42),$H63,"") ->  | P63: =IF(AND(OR($I63=Lists!$C$47,$I63=Lists!$C$48,$I63=Lists!$C$49),$J63=Lists!$C$43),$H63,"") -> 0.00
F64: 0.00 | H64: 0.00 | I64: Bitumen | J64: Arid | K64: =IF(AND($I64=Lists!$C$46,$J64=Lists!$C$41),$H64,"") ->  | L64: =IF(AND($I64=Lists!$C$46,$J64=Lists!$C$42),$H64,"") ->  | M64: =IF(AND($I64=Lists!$C$46,$J64=Lists!$C$43),$H64,"") ->  | N64: =IF(AND(OR($I64=Lists!$C$47,$I64=Lists!$C$48,$I64=Lists!$C$49),$J64=Lists!$C$41),$H64,"") ->  | O64: =IF(AND(OR($I64=Lists!$C$47,$I64=Lists!$C$48,$I64=Lists!$C$49),$J64=Lists!$C$42),$H64,"") ->  | P64: =IF(AND(OR($I64=Lists!$C$47,$I64=Lists!$C$48,$I64=Lists!$C$49),$J64=Lists!$C$43),$H64,"") -> 0.00
F65: 0.00 | H65: 0.00 | I65: Earthen | J65: Pasture | K65: =IF(AND($I65=Lists!$C$46,$J65=Lists!$C$41),$H65,"") -> 0.00 | L65: =IF(AND($I65=Lists!$C$46,$J65=Lists!$C$42),$H65,"") ->  | M65: =IF(AND($I65=Lists!$C$46,$J65=Lists!$C$43),$H65,"") ->  | N65: =IF(AND(OR($I65=Lists!$C$47,$I65=Lists!$C$48,$I65=Lists!$C$49),$J65=Lists!$C$41),$H65,"") ->  | O65: =IF(AND(OR($I65=Lists!$C$47,$I65=Lists!$C$48,$I65=Lists!$C$49),$J65=Lists!$C$42),$H65,"") ->  | P65: =IF(AND(OR($I65=Lists!$C$47,$I65=Lists!$C$48,$I65=Lists!$C$49),$J65=Lists!$C$43),$H65,"") -> 
F66: 0.00 | H66: 0.00 | I66: Earthen | J66: Pasture | K66: =IF(AND($I66=Lists!$C$46,$J66=Lists!$C$41),$H66,"") -> 0.00 | L66: =IF(AND($I66=Lists!$C$46,$J66=Lists!$C$42),$H66,"") ->  | M66: =IF(AND($I66=Lists!$C$46,$J66=Lists!$C$43),$H66,"") ->  | N66: =IF(AND(OR($I66=Lists!$C$47,$I66=Lists!$C$48,$I66=Lists!$C$49),$J66=Lists!$C$41),$H66,"") ->  | O66: =IF(AND(OR($I66=Lists!$C$47,$I66=Lists!$C$48,$I66=Lists!$C$49),$J66=Lists!$C$42),$H66,"") ->  | P66: =IF(AND(OR($I66=Lists!$C$47,$I66=Lists!$C$48,$I66=Lists!$C$49),$J66=Lists!$C$43),$H66,"") -> 
D68: =SUM(D52:D67) -> 0.00 | F68: =SUM(F52:F67) -> 0.00 | G68: 0.00 | H68: 0.00 | K68: =SUM(K52:K67) -> 0.00 | L68: 0.00 | M68: 0.00 | N68: 0.00 | O68: 0.00 | P68: 0.00
J69: =F46 -> TOV# | K69: =Main!$D58 -> #2.07 | L69: =Main!$D59 -> #2.08 | M69: =Main!$D60 -> #2.09 | N69: =Main!$D73 -> #2.22 | O69: =Main!$D74 -> #2.23 | P69: =Main!$D75 -> #2.24
J70: =F47 -> Rate | K70: =VLOOKUP(K69,Main!$D$58:$K$75,Main!$J$756,FALSE) -> $2,055.66 | L70: =VLOOKUP(L69,Main!$D$58:$K$75,Main!$J$756,FALSE) -> $4,596.66 | M70: =VLOOKUP(M69,Main!$D$58:$K$75,Main!$J$756,FALSE) -> $400.16 | N70: =VLOOKUP(N69,Main!$D$58:$K$75,Main!$J$756,FALSE) -> $8,224.88 | O70: =VLOOKUP(O69,Main!$D$58:$K$75,Main!$J$756,FALSE) -> $10,765.88 | P70: =VLOOKUP(P69,Main!$D$58:$K$75,Main!$J$756,FALSE) -> $6,569.38
J71: Total | K71: =K68*K70 -> 0 | L71: =L68*L70 -> 0 | M71: 0 | N71: 0 | O71: 0 | P71: 0
C73: Camps capacity and area | I73: Area below is total disturbance area for all camps in the category / row
B74: Map ID | C74: Name(s) | D74: Select Camp Size | G74: Number | H74: Pasture | I74: Native | J74: Arid | L74: =TRANSPOSE(Assumptions!C220:C249) -> Temporary camp - <= 20 persons | M74: Temporary camp - > 20 and <= 50 persons | N74: Temporary camp - > 50 and <= 100 persons | O74: Temporary camp - > 100 and <= 150 persons | P74: Temporary camp - > 150 and <= 200 persons | Q74: Temporary camp - > 200 and <= 250 persons | R74: Temporary camp - > 250 and <= 300 persons | S74: Temporary camp - > 300 and <= 400 persons | T74: Temporary camp - > 400 and <= 500 persons | U74: Temporary camp - > 500 and <= 750 persons | V74: Temporary camp - > 750 and <= 1000 persons | W74: Temporary camp - > 1000 and <= 2000 persons | X74: Temporary camp - > 2000 and <= 3000 persons | Y74: Temporary camp - > 3000 and <= 4000 persons | Z74: Temporary camp - > 4000 and <= 5000 persons | AA74: Permanent camp - > 0 and <= 20 persons | AB74: Permanent camp - > 20 and <= 50 persons | AC74: Permanent camp - > 50 and <= 100 persons | AD74: Permanent camp - > 100 and <= 150 persons | AE74: Permanent camp - > 150 and <= 200 persons | AF74: Permanent camp - > 200 and <= 250 persons | AG74: Permanent camp - > 250 and <= 300 persons | AH74: Permanent camp - > 300 and <= 400 persons | AI74: Permanent camp - > 400 and <= 500 persons | AJ74: Permanent camp - > 500 and <= 750 persons | AK74: Permanent camp - > 750 and <= 1000 persons | AL74: Permanent camp - > 1000 and <= 2000 persons | AM74: Permanent camp - > 2000 and <= 3000 persons | AN74: Permanent camp - > 3000 and <= 4000 persons | AO74: Permanent camp - > 4000 and <= 5000 persons | AQ74: 1
D75: Select from dropdown | G75: Whole # | H75: ha | I75: ha | J75: ha | AQ75: =AQ74+1 -> 2
D76: Temporary camp - <= 20 persons | L76: =IF($D76=L$74,$G76,"") -> 0 | V76: =IF($D76=V$74,$G76,"") ->  | AF76: =IF($D76=AF$74,$G76,"") ->  | AQ76: =AQ75+1 -> 3
D77: Temporary camp - > 4000 and <= 5000 persons | Z77: 0 | AQ77: 4
D78: Permanent camp - > 0 and <= 20 persons | AA78: 0 | AQ78: 5
D79: Permanent camp - > 4000 and <= 5000 persons | AO79: 0 | AQ79: 6
D80: Temporary camp - <= 20 persons | L80: 0 | AQ80: 7
D81: Temporary camp - <= 20 persons | L81: 0 | AQ81: 8
D82: Temporary camp - > 200 and <= 250 persons | Q82: 0 | AQ82: 9
D83: Temporary camp - <= 20 persons | L83: 0 | AQ83: 10
D84: Temporary camp - <= 20 persons | L84: 0 | AQ84: 11
D85: Temporary camp - <= 20 persons | L85: 0 | AQ85: 12
D86: Temporary camp - <= 20 persons | L86: =IF($D86=L$74,$G86,"") -> 0 | V86: =IF($D86=V$74,$G86,"") ->  | AF86: =IF($D86=AF$74,$G86,"") ->  | AQ86: 13
